Workbook

Sheet OPFOKLEGHEN
E1: Rekenmodel Vee-combistof - pluimvee - opfok leghennen (V2.0, 15 maart 2021) | K1: Berekenen van het reductiepercentage van combinaties van fijnstof reducerende technieken
H3: TOELICHTING GEBRUIK REKENMODEL (Er is online ook een handleiding beschikbaar).
E4: invullen | F4: naam | H4: Bij alle GEEL gekleurde vakjes dient een keuze gemaakt te worden. Ga op het vakje staan, klik rechts naast vakje en kies een optie.
E5: invullen | F5: adres | H5: De gerealiseerde reductiepercentages staan in GROENE blokjes vermeld. Helemaal rechts is het reductiepercentage van de combinatie van de fijnstofreducerende
E6: =TODAY() -> 2021-03-15 | F6: datum | H6: technieken weergegeven. Als combinaties niet mogelijk of zinvol zijn, verschijnt er tekst in ROOD. Bij 'niet mogelijk' dient u keuze(s) aan te passen.
H7: Bij warmtewisselaar en stoffilter kan de ventilatiehoeveelheid door een techniek aangepast worden met de pijltjes omhoog/omlaag.
D8: =IF(H20="ja",IF(OPFOKLEGHEN!H14+OPFOKLEGHEN!F19<0.2,(OPFOKLEGHEN!H14+OPFOKLEGHEN!F19)*0.145/0.15,IF(OPFOKLEGHEN!H14+OPFOKLEGHEN!F19<0.4,(OPFOKLEGHEN!H14+OPFOKLEGHEN!F19)*0.36/0.35,IF(OPFOKLEGHEN!H14+OPFOKLEGHEN!F19<0.5,(OPFOKLEGHEN!H14+OPFOKLEGHEN!F19)*0.435/0.4,IF(OPFOKLEGHEN!H14+OPFOKLEGHEN!F19<0.55,(OPFOKLEGHEN!H14+OPFOKLEGHEN!F19)*0.42/0.4,IF(OPFOKLEGHEN!H14+OPFOKLEGHEN!F19<1.5,(OPFOKLEGHEN!H14+OPFOKLEGHEN!F19)*0.616/0.6))))),IF(H20="nee",IF(OPFOKLEGHEN!H14+OPFOKLEGHEN!F19<0.25,(OPFOKLEGHEN!H14+OPFOKLEGHEN!F19)*0.175/0.2,IF(OPFOKLEGHEN!H14+OPFOKLEGHEN!F19<0.35,(OPFOKLEGHEN!H14+OPFOKLEGHEN!F19),IF(OPFOKLEGHEN!H14+OPFOKLEGHEN!F19<0.45,(OPFOKLEGHEN!H14+OPFOKLEGHEN!F19)*0.434/0.4,IF(OPFOKLEGHEN!H14+OPFOKLEGHEN!F19<0.6,(OPFOKLEGHEN!H14+OPFOKLEGHEN!F19)*0.53/0.55,IF(OPFOKLEGHEN!H14+OPFOKLEGHEN!F19<0.9,(OPFOKLEGHEN!H14+OPFOKLEGHEN!F19)*0.754/0.8,IF(OPFOKLEGHEN!H14+OPFOKLEGHEN!F19<1.63,(OPFOKLEGHEN!H14+OPFOKLEGHEN!F19)*1.2/1.25,IF(OPFOKLEGHEN!H14+OPFOKLEGHEN!F19<1.85,(OPFOKLEGHEN!H14+OPFOKLEGHEN!F19)*1.723/1.8,IF(OPFOKLEGHEN!H14+OPFOKLEGHEN!F19<4.7,(OPFOKLEGHEN!H14+OPFOKLEGHEN!F19)*1.74/1.8)))))))),OPFOKLEGHEN!H14+OPFOKLEGHEN!F19)) -> 0
D9: 0 | E9: =IF(H17<0,"Klik een keer op de pijl met ventilatiehoeveelheid tussen droogtunnel en warmtewisselaar"," ") ->  | I9: Lucht droogtunnel door overige techniek? | L9: NEE
D10: =IF($H$13="parallel geschakeld met warmtewisselaar",D19/100,0) -> 0 | H10: =IF(E24="oliefilm bij voliere dmv leidingen",IF(H11="droogtunnel (platen) 55%","Oliefilm met leidingen en droogtunnel kunnen niet gecombineerd worden",IF(H12="droogtunnel (banden) 30%","Oliefilm met leidingen en droogtunnel kunnen niet gecombineerd worden"," ")),IF(E20="strooiselschuif icm oliefilm bij voliere dmv leidingen",IF(H12="droogtunnel (platen) 55%","Oliefilm met leidingen en droogtunnel kunnen niet gecombineerd worden",IF(H12="droogtunnel (banden) 30%","Oliefilm met leidingen en droogtunnel kunnen niet gecombineerd worden"," ")),IF(H12="geen droogtunnel"," ",IF(E16="GRONDHUISVESTING"," ",IF(E16="VOLIEREHUISVESTING"," ",IF(E16="kOLONIEHUISVESTING"," ",IF(E16="leghennen verrijkte kooi/kolonie"," ",IF(E16="leghennen voliere"," ",IF(E16="leghennen grondhuisvesting"," ",IF(H12="droogtunnel (platen) 55%","Droogtunnel kan alleen bij (opfok) leghennen",IF(H12="droogtunnel (banden) 30%","Droogtunnel kan alleen bij (opfok) leghennen"," "))))))))))) -> 
D11: KIES EEN CATEGORIE | H11: GEEN DROOGTUNNEL | J11: =IF(L25="GEEN TECHNIEK",F13-H14,IF(L9="nee",J30-J13-J16-J19-J26-J28,0)) -> 0 | K11: m3
D12: GRONDHUISVESTING | H12: =IF(H11="geen droogtunnel",0,IF(H7="Droogtunnel kan alleen bij (opfok) leghennen"," ",IF(H13="parallel geschakeld met warmtewisselaar",'opfok WW+droogt'!$Q$138*(1-E28),IF(H11="droogtunnel (banden) 30%",30%*(1-E28),IF(H11="droogtunnel (platen) 55%",55%*(1-E28),0))))) -> 0
D13: VOLIEREHUISVESTING | F13: ='opfok WW+droogt'!$I$3 -> 0 | G13: m3 | H13: PARALLEL GESCHAKELD MET WARMTEWISSELAAR | J13: =IF(L25="GEEN TECHNIEK",0,IF(L9="ja",F13-H14,0)) -> 0 | K13: m3 | M13: =IF(L25="luchtconditioneringsunit"," ",IF(L25="geen techniek"," ",IF(L25="chemische wasser 35%"," ",IF(L25="chemische wasser 70%"," ",IF(L25="bio wasser 60%"," ",IF(L25="bio wasser 75%"," ",IF(L25="waterluchtwassysteem"," ",IF(L25="biofilter"," ",IF(L25="Droogfilterwand"," ",IF(L25="ionisatiefilter",IF(E24="ionisatie dmv koolstofborsteltjes","Combinatie van ionisatietechnieken is niet zinvol",IF(E24="ionisatie dmv koolstof-borsteltjes icm strooiselschuif","Combinatie van ionisatietechnieken is niet zinvol"," ")))))))))))) -> 
D14: KOLONIEHUISVESTING | F14: =IF(J30=0," ",IF(H12>0,IF(H13="parallel geschakeld met warmtewisselaar",IF(F19>0.2,"De eerste weken van de opfok te weinig ventilatie voor mestdroging"," "),IF(F13+F19+F25+F26>J30,"Dit volume door droogtunnel wordt niet volledig benut. Verlaag ventilatie stoffilter of warmtewisselaar."," "))," ")) ->  | H14: =IF(H10="Geen droogtunnel mogelijk",0,IF(H11="geen droogtunnel",0,IF(H13="PARALLEL GESCHAKELD MET WARMTEWISSELAAR",0,F13))) -> 0 | I14: m3 | Q14: Reductiepercentage PM10
C15: ̌ | H15: =IF(H14+F19+H21=0,"Geen warmtewisselaar","Warmtewisselaar") -> Geen warmtewisselaar | I15: =IF(E24="oliefilm bij voliere dmv leidingen",IF(F19>0,"Oliefilm met leidingen niet combineren met warmtewisselaar"," ")," ") -> 
H16: =IF(H15="warmtewisselaar","Reductiepercentage WW 80%"," ") ->  | J16: =IF(L25="geen techniek",H14+F19+H21,IF(J18="ja",0,F19+H14)) -> 0 | K16: m3
H17: =IF(E19="Kies een categorie",0,IF(F13+F19=0,0,IF(I15="Oliefilm met leidingen niet combineren met warmtewisselaar","error",IF(H13="serie geschakeld met warmtewisselaar",('opfok WW+droogt'!$O$138-'opfok WW+droogt'!$P$138)*(1-E28),'opfok WW+droogt'!$N$138*(1-E28))))) -> 0 | I17: ="Lucht WW door overige techniek?" -> Lucht WW door overige techniek? | M17: =IF(E24="oliefilm bij voliere dmv leidingen",IF(H25>0,"Oliefilm dmv leidingen niet combineren met techniek buiten de stal",IF(L27>0,"Oliefilm dmv leidingen niet combineren met techniek buiten de stal"," ")),IF(E24="strooiselschuif icm oliefilm bij voliere dmv leidingen",IF(H25>0,"Oliefilm dmv leidingen niet combineren met techniek buiten de stal",IF(L27>0,"Oliefilm dmv leidingen niet combineren met techniek buiten de stal"," "))," ")) -> 
E18: Stal voor opfok leg | H18: Warmtewisselaar met stoffilter? | J18: NEE
D19: 0 | E19: KIES EEN CATEGORIE | F19: =IF(E19="kies een categorie",0,IF(F13+F25>J30,0,D19/100)) -> 0 | G19: m3 | H19: =IF(F20=0," ","Reductie% stoffilter 99%") -> Reductie% stoffilter 99% | J19: =IF(L25="geen techniek",0,IF(J18="ja",F19+H14,0)) -> 0 | K19: m3
D20: =MAX(0,D19-F13*100) -> 0 | F20: % t.o.v. maximum | H20: NEE | J20: =IF(J18="nee"," ",IF(L25="geen techniek",IF(J18="ja","Indien 'geen techniek', dan is er geen luchtstroom")," ")) ->  | M20: =IF(F19>0,IF(L25="Luchtconditioneringsunit","Twee keer eenzelfde type techniek in de uitgaande luchtstroom is niet logisch"," ")," ") -> 
F21: =IF(J30=0," ",F19/J30) ->  | I21: =IF(J16=0,IF(J11=0," ",IF(J11>0,IF(L25="chemische wasser 35%","Alle lucht moet door overige techniek vanwege ammoniak en/of geur",IF(L25="chemische wasser 70%","Alle lucht moet door overige techniek vanwege ammoniak en/of geur",IF(L25="Bio wasser 60%","Alle lucht moet door overige techniek vanwege ammoniak en/of geur",IF(L25="Bio wasser 75%","Alle lucht moet door overige techniek vanwege ammoniak en/of geur",IF(L25="Biofilter","Alle lucht moet door overige techniek vanwege ammoniak en/of geur",IF(L25="Luchtconditioneringsunit","Alle lucht moet door overige techniek"," "))))))," ")),IF(J16>0,IF(L25="chemische wasser 35%","Alle lucht moet door overige techniek vanwege ammoniak en/of geur",IF(L25="chemische wasser 70%","Alle lucht moet door overige techniek vanwege ammoniak en/of geur",IF(L25="Bio wasser 60%","Alle lucht moet door overige techniek vanwege ammoniak en/of geur",IF(L25="Bio wasser 75%","Alle lucht moet door overige techniek vanwege ammoniak en/of geur",IF(L25="Biofilter","Alle lucht moet door overige techniek vanwege ammoniak en/of geur",IF(L25="Luchtconditioneringsunit","Alle lucht moet door overige techniek"," "))))))," ")) -> 
E22: =IF(F19>0,"Reset: Zet ventilatie door WW en/of stoffilter in 1 klik op 0 m3",IF(F25>0,"Zet ventilatie door WW en/of stoffilter in 1 klik op 0 m3"," ")) ->  | M22: =IF(L25="Biofilter",IF(H20="ja",IF(J18>0,"Deze combinatie met WW stoffilter is toepasbaar, maar niet zinvol"," ")," "),IF(L25="bio wasser 60%",IF(H20="ja",IF(J18>0,"Deze combinatie met WW stoffilter is toepasbaar, maar niet zinvol"," ")," "),IF(L25="bio wasser 75%",IF(H20="ja",IF(J18>0,"Deze combinatie met WW stoffilter is toepasbaar, maar niet zinvol"," ")," ")," "))) -> 
E23: Staltechniek | H23: =IF(F25=0,"Geen stoffilter","Stoffilter") -> Geen stoffilter | L23: Overige technieken
D24: 0 | E24: GEEN STALTECHNIEK | H24: =IF(F25=0," ","Reductie% stoffilter 99%") ->  | I24: =IF(F25>0,IF(L25="chemische wasser 35%","Alle lucht moet door de luchtwasser of biofilter. De combinatie met een stoffilter is daarom niet mogelijk.",IF(L25="chemische wasser 70%","Alle lucht moet door de luchtwasser of biofilter. De combinatie met een stoffilter is daarom niet mogelijk.",IF(L25="bio wasser 60%","Alle lucht moet door de luchtwasser of biofilter. De combinatie met een stoffilter is daarom niet mogelijk.",IF(L25="bio wasser 75%","Alle lucht moet door de luchtwasser of biofilter. De combinatie met een stoffilter is daarom niet mogelijk.",IF(L25="biofilter","Alle lucht moet door de luchtwasser of biofilter. De combinatie met een stoffilter is daarom niet mogelijk."," ")))))," ") ->  | L24: =IF(L25="chemische wasser 35%","Potentieel reductie: 35%",IF(L25="chemische wasser 70%","Potentieel reductie: 70%",IF(L25="bio wasser 60%","Potentieel reductie: 60%",IF(L25="bio wasser 75%","Potentieel reductie: 75%",IF(L25="biofilter","Potentieel reductie: 80%",IF(L25="waterluchtwassysteem","Potentieel reductie: 33%",IF(L25="droogfilterwand","Potentieel reductie: 40%",IF(L25="ionisatiefilter","Potentieel reductie: 57%",IF(L25="luchtconditioneringsunit","Potentieel reductie: 80%"," "))))))))) -> 
E25: =IF(E24="geen staltechniek"," ",IF(E24="oliefilm bij voliere dmv leidingen",IF(E19="VOLIEREHUISVESTING"," ","Deze techniek kan alleen bij volière"),IF(E24="oliefilm dmv olierobot",IF(E19="GRONDHUISVESTING"," ","Deze techniek kan alleen bij grondhuisvesting")," "))) ->  | F25: =IF(E19="kies een categorie",0,IF(F13*100+D20+D24>J30*100,(J30*100-F13*100-D20)/100,MAX(D24/100,D24/100-D20/100))) -> 0 | G25: m3 | H25: =ROUND(IF(F13>0,'opfok WW+droogt'!$S$138*(1-E28),IF(H15="warmtewisselaar",'opfok WW+droogt'!$S$138*(1-E28),'opfok WW+droogt'!$R$138*(1-E28))),2) -> 0 | L25: GEEN TECHNIEK
F26: =MAX(J30-F13-F19-F25,0) -> 0 | G26: m3 | J26: =IF(L25="geen techniek",0,F26) -> 0 | K26: m3 | L26: Reductiepercentage overige techniek | M26: =IF(L25="Luchtconditioneringsunit",IF(F25>0,"Niet alle lucht gaat door luchtconditioneringsunit, dus niet combineren met droog stoffilter"," ")," ") -> 
E27: Reductiepercentage in stal | F27: Max. ventilatiedebiet m3/d/uur | L27: =IF(M20="Twee keer eenzelfde type techniek in de uitgaande luchtstroom is niet logisch","error",IF(M26="Niet alle lucht gaat door luchtconditioneringsunit, dus niet combineren met droog stoffilter","error",IF(I21="Alle lucht moet door overige techniek vanwege ammoniak en/of geur","error",IF(I21="Alle lucht moet door overige techniek","error",IF(I24="Alle lucht moet door de luchtwasser of biofilter. De combinatie met een stoffilter is daarom niet mogelijk.","error",IF(L25="geen techniek",0,IF(J13+J19+J26=0,0,IF(I21="Combinatie met warmtewisselaar is niet toegestaan","error",'opfok WW+droogt'!$I$10*(1-E28))))))))) -> 0 | Q27: =ROUNDDOWN(IF(H10="Oliefilm met leidingen en droogtunnel kunnen niet gecombineerd worden","error",IF(M17="Oliefilm dmv leidingen niet combineren met techniek buiten de stal","error",IF(H17<0,"error",IF(E19="Kies een categorie",0,IF(M19="Oliefilm dmv leidingen niet combineren met techniek buiten de stal","error",IF(G28<>J30,"error",100%-(1-E28)+(H12+H25+H17)+L27)))))),3) -> 0
E28: =IF(E25="deze combinatie kan niet",0,IF(E25="Deze techniek kan alleen bij volière",0,IF(E25="Deze techniek kan alleen bij grondhuisvesting",0,IF(E24="oliefilm bij voliere dmv leidingen",15%,IF(E24="oliefilm dmv olierobot",30%,IF(E24="OLIEFILM bij voliere DMV LEIDINGEN",15%,IF(E24="ionisatie dmv koolstofborsteltjes",31%,0))))))) -> 0 | G28: =J11+J13+J16+J19+J26+J28 -> 0 | J28: =F25+F26-H21-J26 -> 0 | K28: m3
K29: =IF(G28<>J30,"Optelsom debiet klopt niet"," ") -> 
D30: GEEN STALTECHNIEK | H30: Maximale ventilatie in de stal | J30: =IF(E19="Kies een categorie",0,IF(E19="kOLONIEHUISVESTING",'Max waarden'!$B$6,IF(E19="GRONDHUISVESTING",'Max waarden'!$B$6,IF(E19="VOLIEREHUISVESTING",'Max waarden'!$B$6,IF(E19="voliereHUISVESTING",#REF!,IF(E19="grondhuisvesting",#REF!,IF(E19="kolonieHUISVESTING",#REF!,IF(E19="opfok vleeskuikenouderdieren",#REF!,IF(E19="vleeskuikenouderdieren groepskooi",#REF!,IF(E19="vleeskuikenouderdieren VOLIERE",#REF!,IF(E19="vleeskuikenouderdieren grondhuisvesting",#REF!,IF(E19="vleeskuikens",6.17619,IF(E19="kalkoen hennen",#REF!,IF(E19="kalkoen hanen",#REF!,IF(E19="vleeseenden",12.56))))))))))))))) -> 0 | K30: m3
D31: OLIEFILM bij VOLIERE dmv LEIDINGEN
D32: OLIEFILM dmv OLIEROBOT
D33: IONISATIE dmv KOOLSTOFBORSTELTJES | E33: Gemaakt in opdracht van het ministerie van Infrastructuur en Waterstaat
D36: =IF(H22="zonder stoffilter",IF(D37="opfok leghennen",IF(H20="warmtewisselaar 13%",0.2,IF(H20="warmtewisselaar 31%",0.43,IF(H20="warmtewisselaar 37%",0.55,IF(H20="warmtewisselaar 50%",0.78)))),IF(D37="leghennen",IF(H20="warmtewisselaar 13%",0.4,IF(H20="warmtewisselaar 31%",1,IF(H20="warmtewisselaar 37%",1.25,IF(H20="warmtewisselaar 50%",1.8)))),IF(E19="opfok vleeskuikenouderdieren",IF(H20="warmtewisselaar 13%",0.4,IF(H20="warmtewisselaar 31%",1,IF(H20="warmtewisselaar 37%",1.3,IF(H20="warmtewisselaar 50%",1.9)))),IF(D37="vleeskuikenouderdieren",IF(H20="warmtewisselaar 13%",0.6,IF(H20="warmtewisselaar 31%",1.5,IF(H20="warmtewisselaar 37%",1.85,IF(H20="warmtewisselaar 50%",2.9))))))+IF(E19="vleeskuikens",IF(H20="warmtewisselaar 13%",0.35,IF(H20="warmtewisselaar 31%",1,IF(H20="warmtewisselaar 37%",1.3,IF(H20="warmtewisselaar 50%",2,0)))))+IF(E19="vleeseenden",IF(H20="warmtewisselaar 13%",0.8,IF(H20="warmtewisselaar 31%",2.3,IF(H20="warmtewisselaar 37%",3.15,IF(H20="warmtewisselaar 50%",4.8)))))))+IF(E19="kalkoen hennen",IF(H20="warmtewisselaar 13%",1.1,IF(H20="warmtewisselaar 31%",3,IF(H20="warmtewisselaar 37%",3.85,IF(H20="warmtewisselaar 50%",5.6)))))+IF(E19="kalkoen hanen",IF(H20="warmtewisselaar 13%",2.5,IF(H20="warmtewisselaar 31%",6.2,IF(H20="warmtewisselaar 37%",8.2,IF(H20="warmtewisselaar 50%",11.7))))),0)+IF(H22="met stoffilter",IF(D37="opfok leghennen",IF(H20="warmtewisselaar 13%",0.15,IF(H20="warmtewisselaar 31%",0.35,IF(H20="warmtewisselaar 37%",0.4,IF(H20="warmtewisselaar 50%",0.6)))),IF(D37="leghennen",IF(H20="warmtewisselaar 13%",0.35,IF(H20="warmtewisselaar 31%",0.85,IF(H20="warmtewisselaar 37%",1,IF(H20="warmtewisselaar 50%",1.4)))),IF(E19="leghennen grondhuisvesting",IF(H20="warmtewisselaar 13%",0.35,IF(H20="warmtewisselaar 31%",0.85,IF(H20="warmtewisselaar 37%",1,IF(H20="warmtewisselaar 50%",1.4)))),IF(E19="opfok vleeskuikenouderdieren",IF(H20="warmtewisselaar 13%",0.35,IF(H20="warmtewisselaar 31%",0.85,IF(H20="warmtewisselaar 37%",1.1,IF(H20="warmtewisselaar 50%",1.45)))),IF(D37="vleeskuikenouderdieren",IF(H20="warmtewisselaar 13%",0.5,IF(H20="warmtewisselaar 31%",1.2,IF(H20="warmtewisselaar 37%",1.5,IF(H20="warmtewisselaar 50%",2.1))))))+IF(E19="vleeskuikens",IF(H20="warmtewisselaar 13%",0.3,IF(H20="warmtewisselaar 31%",0.75,IF(H20="warmtewisselaar 37%",1,IF(H20="warmtewisselaar 50%",1.45,0)))))+IF(E19="vleeseenden",IF(H20="warmtewisselaar 13%",0.7,IF(H20="warmtewisselaar 31%",1.9,IF(H20="warmtewisselaar 37%",2.3,IF(H20="warmtewisselaar 50%",3.6)))))))+IF(E19="kalkoen hennen",IF(H20="warmtewisselaar 13%",0.9,IF(H20="warmtewisselaar 31%",2.5,IF(H20="warmtewisselaar 37%",3,IF(H20="warmtewisselaar 50%",4.3)))))+IF(E19="kalkoen hanen",IF(H20="warmtewisselaar 13%",2.2,IF(H20="warmtewisselaar 31%",5.3,IF(H20="warmtewisselaar 37%",6.2,IF(H20="warmtewisselaar 50%",9)))))),0) -> 0
D37: =IF(H24="zonder stoffilter",IF(D38="opfok leghennen",IF(H17="warmtewisselaar 13%",0.2,IF(H17="warmtewisselaar 31%",0.43,IF(H17="warmtewisselaar 37%",0.55,IF(H17="warmtewisselaar 50%",0.78)))),IF(D38="leghennen",IF(H17="warmtewisselaar 13%",0.4,IF(H17="warmtewisselaar 31%",1,IF(H17="warmtewisselaar 37%",1.25,IF(H17="warmtewisselaar 50%",1.8)))),IF(E19="opfok vleeskuikenouderdieren",IF(H17="warmtewisselaar 13%",0.4,IF(H17="warmtewisselaar 31%",1,IF(H17="warmtewisselaar 37%",1.3,IF(H17="warmtewisselaar 50%",1.9)))),IF(D38="vleeskuikenouderdieren",IF(H17="warmtewisselaar 13%",0.6,IF(H17="warmtewisselaar 31%",1.5,IF(H17="warmtewisselaar 37%",1.85,IF(H17="warmtewisselaar 50%",2.9))))))+IF(E19="vleeskuikens",IF(H17="warmtewisselaar 13%",0.35,IF(H17="warmtewisselaar 31%",1,IF(H17="warmtewisselaar 37%",1.3,IF(H17="warmtewisselaar 50%",2,0)))))+IF(E19="vleeseenden",IF(H17="warmtewisselaar 13%",0.8,IF(H17="warmtewisselaar 31%",2.3,IF(H17="warmtewisselaar 37%",3.15,IF(H17="warmtewisselaar 50%",4.8)))))))+IF(E19="kalkoen hennen",IF(H17="warmtewisselaar 13%",1.1,IF(H17="warmtewisselaar 31%",3,IF(H17="warmtewisselaar 37%",3.85,IF(H17="warmtewisselaar 50%",5.6)))))+IF(E19="kalkoen hanen",IF(H17="warmtewisselaar 13%",2.5,IF(H17="warmtewisselaar 31%",6.2,IF(H17="warmtewisselaar 37%",8.2,IF(H17="warmtewisselaar 50%",11.7))))),0)+IF(H24="met stoffilter",IF(D38="opfok leghennen",IF(H17="warmtewisselaar 13%",0.15,IF(H17="warmtewisselaar 31%",0.35,IF(H17="warmtewisselaar 37%",0.4,IF(H17="warmtewisselaar 50%",0.6)))),IF(D38="leghennen",IF(H17="warmtewisselaar 13%",0.35,IF(H17="warmtewisselaar 31%",0.85,IF(H17="warmtewisselaar 37%",1,IF(H17="warmtewisselaar 50%",1.4)))),IF(E19="leghennen grondhuisvesting",IF(H17="warmtewisselaar 13%",0.35,IF(H17="warmtewisselaar 31%",0.85,IF(H17="warmtewisselaar 37%",1,IF(H17="warmtewisselaar 50%",1.4)))),IF(E19="opfok vleeskuikenouderdieren",IF(H17="warmtewisselaar 13%",0.35,IF(H17="warmtewisselaar 31%",0.85,IF(H17="warmtewisselaar 37%",1.1,IF(H17="warmtewisselaar 50%",1.45)))),IF(D38="vleeskuikenouderdieren",IF(H17="warmtewisselaar 13%",0.5,IF(H17="warmtewisselaar 31%",1.2,IF(H17="warmtewisselaar 37%",1.5,IF(H17="warmtewisselaar 50%",2.1))))))+IF(E19="vleeskuikens",IF(H17="warmtewisselaar 13%",0.3,IF(H17="warmtewisselaar 31%",0.75,IF(H17="warmtewisselaar 37%",1,IF(H17="warmtewisselaar 50%",1.45,0)))))+IF(E19="vleeseenden",IF(H17="warmtewisselaar 13%",0.7,IF(H17="warmtewisselaar 31%",1.9,IF(H17="warmtewisselaar 37%",2.3,IF(H17="warmtewisselaar 50%",3.6)))))))+IF(E19="kalkoen hennen",IF(H17="warmtewisselaar 13%",0.9,IF(H17="warmtewisselaar 31%",2.5,IF(H17="warmtewisselaar 37%",3,IF(H17="warmtewisselaar 50%",4.3)))))+IF(E19="kalkoen hanen",IF(H17="warmtewisselaar 13%",2.2,IF(H17="warmtewisselaar 31%",5.3,IF(H17="warmtewisselaar 37%",6.2,IF(H17="warmtewisselaar 50%",9)))))),0) -> 0
D38: =IF(E19="kOLONIEHUISVESTING","opfok leghennen",IF(E19="GRONDHUISVESTING","opfok leghennen",IF(E19="VOLIEREHUISVESTING","opfok leghennen",IF(E19="leghennen verrijkte kooi/kolonie","leghennen",IF(E19="leghennen grondhuisvesting","leghennen",IF(E19="leghennen voliere","leghennen",IF(E19="vleeskuikenouderdieren groepskooi","vleeskuikenouderdieren",IF(E19="vleeskuikenouderdieren grondhuisvesting","vleeskuikenouderdieren",IF(E19="vleeskuikenouderdieren voliere","vleeskuikenouderdieren",0))))))))) -> 0
L47: Kies ALLE VENTILATIELUCHT ivm vereiste NH3 reductie

Sheet opfok WW+droogt (hidden)
A1: Berekening reductie PM10 op stalniveau leghennen | I1: =OPFOKLEGHEN!$E$19 -> KIES EEN CATEGORIE | V1: y | W1: z | X1: aa | Y1: ab
A2: maximale ventilatiebehoefte | I2: ='Max waarden'!$B$6 -> 1.73 | J2: m3/dier/uur
A3: Maximale debiet door droogtunnel | I3: =IF(OPFOKLEGHEN!H11="geen droogtunnel",0,IF(OPFOKLEGHEN!H11="DROOGTUNNEL (PLATEN) 55%",0.85,0.85)) -> 0 | J3: m3/dier/uur
A4: Verwijderingsrendement droogtunnel | I4: =IF(OPFOKLEGHEN!$H$11="droogtunnel (platen) 55%",79%,IF(OPFOKLEGHEN!$H$11="droogtunnel (banden) 30%",43%,0)) -> 0 | M4: platendroger: 80% verwijdering | P4: bandendroger: 45% verwijdering
A5: Maximale debiet door warmtewisselaar: | I5: =OPFOKLEGHEN!H14+OPFOKLEGHEN!F19 -> 0 | J5: =IF(OPFOKLEGHEN!$H$11="geen droogtunnel",OPFOKLEGHEN!D8,IF(OPFOKLEGHEN!$H$13="SERIE GESCHAKELD MET WARMTEWISSELAAR",OPFOKLEGHEN!D9,OPFOKLEGHEN!D10)) -> 0 | K5: m3/dier/uur
A6: Verwijderingsrendement warmtewisselaar: | I6: =IF(OPFOKLEGHEN!$H$15="geen warmtewisselaar",0,IF(OPFOKLEGHEN!$H$20="ja",95%,80%)) -> 0 | M6: standaard: 80% verwijdering | P6: bij toepassen filters: 99% verwijdering
A7: Maximale debiet door stoffilter: | I7: =OPFOKLEGHEN!$F$25 -> 0
A8: Eventueel reductie op PM10 concentratie in de stal: | I8: =OPFOKLEGHEN!$E$28 -> 0 | J8: =OPFOKLEGHEN!$H$20 -> NEE | K8: stoffilter
A9: Eventueel verwijderingsrendement hoofdventilatie (lucht NIET door andere technieken): | I9: 0 | J9: =OPFOKLEGHEN!$L$9 -> NEE | K9: droogtunnel
A10: Eventueel reductie door luchtwasser (op ALLE lucht) | G10: =IF(OPFOKLEGHEN!$L$25="chemische wasser 35%",35%,IF(OPFOKLEGHEN!$L$25="chemische wasser 70%",70%,IF(OPFOKLEGHEN!$L$25="bio wasser 60%",60%,IF(OPFOKLEGHEN!$L$25="bio wasser 75%",75%,IF(OPFOKLEGHEN!$L$25="biofilter",80%,IF(OPFOKLEGHEN!$L$25="waterluchtwassysteem",33%,IF(OPFOKLEGHEN!$L$25="droogfilterwand",40%,IF(OPFOKLEGHEN!$L$25="ionisatiefilter",57%,IF(OPFOKLEGHEN!$L$25="luchtconditioneringsunit",IF(OPFOKLEGHEN!$M$26="Luchtconditioneringsunit niet combineren met techniek buiten stal","error",80%),0))))))))) -> 0 | I10: =ROUND(IF(OPFOKLEGHEN!$H$13="SERIE GESCHAKELD MET WARMTEWISSELAAR",AC138*G10,IF(OPFOKLEGHEN!$H$13="PARALLEL GESCHAKELD MET WARMTEWISSELAAR",AD138*G10)),3) -> 0 | J10: =OPFOKLEGHEN!$J$18 -> NEE | K10: WW | AC10: Serie geschakeld | AD10: Parallel geschakeld
F11: hulprek | G11: =IF(OPFOKLEGHEN!$H$13="SERIE GESCHAKELD MET WARMTEWISSELAAR",IF(OPFOKLEGHEN!$H$20="nee",0.8,0.65),IF(OPFOKLEGHEN!$H$13="Parallel GESCHAKELD MET WARMTEWISSELAAR",IF(OPFOKLEGHEN!$H$20="nee",1,0.94))) -> 1
A12: Totale gemiddelde reductiepercentage op stalniveau: | J12: droogt. en wwlaar parallel geschakeld (wwlaar als basis voor ventilatie, daarna droogt.)
D13: =IF(OPFOKLEGHEN!$H$13="serie geschakeld met warmtewisselaar",MIN(I$5,C17),MIN(C17,I$5)) -> 0 | J13: droogt. en wwlaar serie geschakeld (lucht eerst door droogt.) | O13: =K34-(D34/C34*K34*I$6*(1-55%)) -> 0.6952340451
D14: =OPFOKLEGHEN!$H$13 -> PARALLEL GESCHAKELD MET WARMTEWISSELAAR | N14: =(1-$I$6)/(C53-D53)/C53 -> 4.534403644 | O14: =(1-($I$6*(D49-E49)))*$C49/$D49 ->  | AE14: Berekening droogt. en wwlaar in serie geschakeld. Lucht eerst door droogtunnel | AO14: Emissie bij toepassing luchtwasser: wwlaar en droogtunnel parallel
A15: Wk | B15: Lft | C15: Debiet | D15: Debiet door WWlaar (m3/dier/uur) | E15: Debiet door droogtunnel (m3/dier/uur) serie geschakeld | F15: Debiet door droogtunnel (m3/dier/uur) parallel geschakeld | G15: Debiet door stoffilter (m3/dier/uur) | H15: Debiet door overige techniek | I15: Debiet hoofdventilatie (m3/dier/uur) | J15: PM10 concentratie (mg/m3) | K15: PM10 emissie zonder reductie (gr/d/jaar) | L15: Cumulatief aandeel emissie | M15: PM10 emissie met reductie staltechniek (gr/d/jaar) | N15: PM10 emissie wwlaar parallel | O15: PM10 emissie wwlaar serie | P15: PM10 emissie droogtunnel (gr/d/jaar) serie | Q15: PM10 emissie droogtunnel (gr/d/jaar) parallel | R15: Emissie alleen Stoffilter | S15: Emissie Stoffilter na ww droogtunnel | T15: PM10 emissie wwlaar en drtunnel parallel en staltechniek (gr/d/jaar) | U15: PM10 emissie wwlaar en drtunnel parallel en staltechniek en luchtwasser (gr/d/jaar) | V15: Potentie Reductie overige techniek | W15: Potentie Reductie overige techniek, nee, nee, nee | X15: Potentie Reductie overige techniek, nee, ja droogtunnel, nee | Y15: Potentie Reductie overige techniek, nee, ja droogtunnel, ja ww naar overig | Z15: 100% minus reductie | AE15: Debiet door droogtunnel (m3/dier/ uur) | AF15: PM10 conc. na droogtunnel (mg/m3) | AG15: PM10 emissie na droogtunnel (gr/d/jaar) | AH15: Debiet door WWlaar (m3/dier/ uur) | AI15: PM10 conc. na wwlaar (mg/m3) | AJ15: PM10 emissie uit wwlaar (gr/d/jaar) | AK15: Debiet hoofd-ventilatie (m3/dier/uur) | AL15: PM10 emissie hoofddebiet (gr/d/jaar) | AM15: Wk | AN15: Lft | AO15: gew br | AP15: gew wit | AQ15: gem gew | AR15: Totale PM10 emissie (gr/d/jaar)
A16: 1 | B16: 1 | C16: =0.000000000384*AQ16^3-0.000000342064*AQ16^2+0.001060852819*AQ16+0.088327034395 -> 0.1350463481 | D16: =MIN(C16,J$5) -> 0 | E16: =IF(I$3=0,0,IF(OPFOKLEGHEN!$H$13="parallel geschakeld met warmtewisselaar",0,MIN(I$3,C16))) -> 0 | F16: =IF(I$3=0,0,IF(OPFOKLEGHEN!$H$13="serie geschakeld met warmtewisselaar",0,IF(C16<$I$3,C16-D16,MIN($I$3,C16-D16)))) -> 0 | G16: =IF(C16<$I$7,MAX(0,C16-D16-E16-F16,IF(OPFOKLEGHEN!$H$15="warmtewisselaar",IF(OPFOKLEGHEN!$H$13="serie geschakeld met warmtewisselaar",MIN(I$7,MAX(0,C16-D16-F16)),MIN(I$7,MAX(0,C16-D16-E16-F16))))),IF(OPFOKLEGHEN!$H$13="parallel geschakeld met warmtewisselaar",MIN(I$7,C16-D16-E16-F16,MIN(I$7,C16-E16-F16)),MIN(I$7,MAX(0,C16-D16-F16)))) -> 0 | H16: =IF(OPFOKLEGHEN!$H$13="parallel geschakeld met warmtewisselaar",IF(OPFOKLEGHEN!$L$9="nee",IF(OPFOKLEGHEN!$J$18="ja",C16-F16-G16,C16-D16-F16-G16),IF(OPFOKLEGHEN!$L$9="ja",IF(OPFOKLEGHEN!$J$18="ja",C16-G16,IF(OPFOKLEGHEN!$J$18="nee",C16-D16-G16)))),IF(OPFOKLEGHEN!$H$13="serie geschakeld met warmtewisselaar",IF(OPFOKLEGHEN!$J$18="ja",C16-G16,C16-D16-F16-G16),C16-D16-F16-G16)) -> 0.1350463481 | I16: =IF(C16-D16-E16<0, 0, C16-D16-E16) -> 0.1350463481 | J16: 0.2120663413 | K16: =(J16/1000)*C16*24*365 -> 0.2508757561 | L16: =SUM(K$16:K16)/$K$137 -> 0.0002937855752 | M16: =(((($J16/1000)*(1-$I$8))*$B16*$C16)) -> 2.863878495e-05 | N16: =(((($K16)*(1-($I$6*(D16)/C16))))) -> 0.2508757561 | O16: =IF(E16<I$3,P16*(1-I$6*D16/C16),IF(OPFOKLEGHEN!$H$11="droogtunnel (platen) 55%",P16*(1-$I$6)+(C16-D16)/C16*(K16-P16*(1-I$6)),P16*(1-$I$6)+(C16-D16)/C16*(K16-P16*(1-I$6)))) -> 0.2508757561 | P16: =IF(E16=0,K16,K16-K16*I$4*E16/C16) -> 0.2508757561 | Q16: =IF(F16=0,K16,K16-K16*I$4*F16/C16) -> 0.2508757561 | R16: =K16-(G16/C16)*K16*97.25% -> 0.2508757561 | S16: =MIN(K16,K16-(G16/C16)*(K16)*96.5%) -> 0.2508757561 | T16: =(((($J16/1000)*(1-$I$8))*$B16*$I16)*(1-$I$9))+(((($J16/1000)*(1-$I$8))*$B16*$D16)*(1-$I$6))+(((($J16/1000)*(1-$I$8))*$B16*$E16)*(1-$I$4)) -> 2.863878495e-05 | U16: =(($AP16/1000)*(1-$I$10)*$D16*$B16)+(($AQ16/1000)*(1-$I$10)*$E16*$B16) -> 0 | V16: =IF(OPFOKLEGHEN!$J$18="nee",H16/C16*K16,IF(OPFOKLEGHEN!$H$20="ja",O16-(K16-Q16)-(K16-S16),Q16-(K16-O16)-(K16-S16))) -> 0.2508757561 | W16: =IF(H16=0,0,IF(OPFOKLEGHEN!$H$11="geen droogtunnel",IF(OPFOKLEGHEN!$H$15="geen warmtewisselaar",Q16-(K16-R16)))+IF(OPFOKLEGHEN!$H$12>0,IF(OPFOKLEGHEN!$H$13="serie geschakeld met warmtewisselaar",(O16*80%-(K16-S16)),(Q16-(K16-S16)-(K16-T16))),(N16-(K16-S16)))) -> 0.5017515123 | X16: =IF(H16=0,0,IF(OPFOKLEGHEN!$H$11="geen droogtunnel",IF(OPFOKLEGHEN!$H$15="geen warmtewisselaar",Q16-(K16-R16)))+IF(OPFOKLEGHEN!$H$12>0,IF(OPFOKLEGHEN!$H$13="serie geschakeld met warmtewisselaar",(O16*80%-(K16-S16)),(Q16-(K16-S16/80%)-(K16-N16/80%))),(N16-(K16-S16)))) -> 0.5017515123 | Y16: =IF(H16=0,0,IF(OPFOKLEGHEN!$H$11="geen droogtunnel",IF(OPFOKLEGHEN!$H$15="geen warmtewisselaar",Q16-(K16-R16)))+IF(OPFOKLEGHEN!$H$12>0,IF(OPFOKLEGHEN!$H$13="serie geschakeld met warmtewisselaar",(O16-(K16-S16)),IF(OPFOKLEGHEN!$H$13="parallel geschakeld met warmtewisselaar",IF(OPFOKLEGHEN!$L$9="ja",IF(OPFOKLEGHEN!$J$18="nee",(N16-(K16-Q16)-(K16-S16)),(Q16-(K16-N16/80%)))))),(O16-(K16-S16)))) -> 0.5017515123 | Z16: =Q16/K16 -> 1 | AC16: =IF(H16=0,0,IF(OPFOKLEGHEN!$H$11="geen droogtunnel",IF(OPFOKLEGHEN!$H$15="geen warmtewisselaar",P16-(K16-R16),O16-(K16-R16)),IF(OPFOKLEGHEN!$H$12>=0,IF(OPFOKLEGHEN!$L$9="ja",IF(OPFOKLEGHEN!$J$18="ja",IF(OPFOKLEGHEN!$H$20="ja",O16-(K16-S16),IF(OPFOKLEGHEN!$H$20="nee",(O16-(K16-S16)),(O16-(K16-S16)))),IF(OPFOKLEGHEN!$J$18="nee",IF(OPFOKLEGHEN!$H$20="nee",O16*80%-(K16-S16),0+O16-(K16-S16)))),IF(OPFOKLEGHEN!$L$9="nee",IF(OPFOKLEGHEN!$J$18="nee",IF(OPFOKLEGHEN!$H$20="nee",(O16*80%-(K16-S16)),O16*93%-(K16-S16)),IF(OPFOKLEGHEN!$H$20="nee",IF(OPFOKLEGHEN!$J$18="ja",IF(OPFOKLEGHEN!$L$9="nee",O16-(K16-S16))),O16-(K16-S16))),6)),8))) -> 0.2508757561 | AD16: =IF(H16=0,0,IF(OPFOKLEGHEN!$H$11="geen droogtunnel",IF(OPFOKLEGHEN!$H$15="geen warmtewisselaar",Q16-(K16-R16),N16-(K16-R16)),IF(OPFOKLEGHEN!$H$12>=0,IF(OPFOKLEGHEN!$L$9="ja",IF(OPFOKLEGHEN!$J$18="ja",IF(OPFOKLEGHEN!$H$20="ja",Q16-(K16-N16)-(K16-S16),IF(OPFOKLEGHEN!$H$20="nee",(Q16-(K16-N16)-(K16-S16)),(O16-(K16-S16)))),IF(OPFOKLEGHEN!$J$18="nee",IF(OPFOKLEGHEN!$H$20="nee",1*Q16*$N$135-(K16-N16)-(K16-S16),(Q16-(K16-N16)-(K16-S16))*N$135))),IF(OPFOKLEGHEN!$L$9="nee",IF(OPFOKLEGHEN!$J$18="nee",IF(OPFOKLEGHEN!$H$20="nee",(N16*95%-(K16-Q16)/I$4-(K16-S16)),N16-(K16-Q16)/I$4-(K16-S16)),IF(OPFOKLEGHEN!$H$20="nee",IF(OPFOKLEGHEN!$J$18="ja",IF(OPFOKLEGHEN!$L$9="nee",N16-(K16-Q16)/I$4-(K16-S16))),N16-(K16-Q16)/I$4-(K16-S16)))))))) -> 0.2508757561 | AE16: =IF((D16+E16)<$I$3,D16+E16,$I$3) -> 0 | AF16: =IF($I$3>0,(J16*(1-$I$8)*(1-$I$4)),(J16*(1-$I$8))) -> 0.2120663413 | AG16: =($AF16/1000)*$B16*$AE16 -> 0 | AH16: =D16 -> 0 | AI16: =IF($I$5>0,AF16*(1-$I$6),AF16) -> 0.2120663413 | AJ16: =(AI16/1000)*B16*AH16 -> 0 | AK16: =IF($I$3>$I$5,C16-AE16,C16-AH16) -> 0.1350463481 | AL16: =((($J16/1000)*(1-$I$8))*$B16*$AK16)*(1-$I$9) -> 2.863878495e-05 | AM16: 1 | AN16: 1 | AO16: 45 | AP16: 44.3 | AQ16: =(AO16+AP16)/2 -> 44.65 | AR16: =(($AP16/1000)*(1-$I$10)*$D16*$B16)+(($AQ16/1000)*(1-$I$10)*$E16*$B16)+(($AO16/1000)*(1-$I$10)*$I16*$B16) -> 0.006077085666
A17: 1 | B17: 2 | C17: =0.000000000384*AQ17^3-0.000000342064*AQ17^2+0.001060852819*AQ17+0.088327034395 -> 0.1398417073 | D17: 0 | E17: =IF(I$3=0,0,IF(OPFOKLEGHEN!$H$13="parallel geschakeld met warmtewisselaar",0,MIN(I$3,C17))) -> 0 | F17: =IF(I$3=0,0,IF(OPFOKLEGHEN!$H$13="serie geschakeld met warmtewisselaar",0,IF(C17<$I$3,C17-D17,MIN($I$3,C17-D17)))) -> 0 | G17: =IF(C17<$I$7,MAX(0,C17-D17-E17-F17,IF(OPFOKLEGHEN!$H$15="warmtewisselaar",IF(OPFOKLEGHEN!$H$13="serie geschakeld met warmtewisselaar",MIN(I$7,MAX(0,C17-D17-F17)),MIN(I$7,MAX(0,C17-D17-E17-F17))))),IF(OPFOKLEGHEN!$H$13="parallel geschakeld met warmtewisselaar",MIN(I$7,C17-D17-E17-F17,MIN(I$7,C17-E17-F17)),MIN(I$7,MAX(0,C17-D17-F17)))) -> 0 | H17: =IF(OPFOKLEGHEN!$H$13="parallel geschakeld met warmtewisselaar",IF(OPFOKLEGHEN!$L$9="nee",IF(OPFOKLEGHEN!$J$18="ja",C17-F17-G17,C17-D17-F17-G17),IF(OPFOKLEGHEN!$L$9="ja",IF(OPFOKLEGHEN!$J$18="ja",C17-G17,IF(OPFOKLEGHEN!$J$18="nee",C17-D17-G17)))),IF(OPFOKLEGHEN!$H$13="serie geschakeld met warmtewisselaar",IF(OPFOKLEGHEN!$J$18="ja",C17-G17,C17-D17-F17-G17),C17-D17-F17-G17)) -> 0.1398417073 | I17: =IF(C17-D17-E17<0, 0, C17-D17-E17) -> 0.1398417073 | J17: 0.2160044817 | K17: =(J17/1000)*C17*24*365 -> 0.2646083751 | L17: =SUM(K$16:K17)/$K$137 -> 0.0006036525981 | M17: =(((($J17/1000)*(1-$I$8))*$B17*$C17)) -> 6.041287103e-05 | N17: 0.2646083751 | O17: =IF(E17<I$3,P17*(1-I$6*D17/C17),IF(OPFOKLEGHEN!$H$11="droogtunnel (platen) 55%",P17*(1-$I$6)+(C17-D17)/C17*(K17-P17*(1-I$6)),P17*(1-$I$6)+(C17-D17)/C17*(K17-P17*(1-I$6)))) -> 0.2646083751 | P17: 0.2646083751 | Q17: 0.2646083751 | R17: 0.2646083751 | S17: 0.2646083751 | T17: =$K17*(1-($I$6*(D17)/C17)) -> 0.2646083751 | U17: =(($AP17/1000)*(1-$I$10)*$D17*$B17)+(($AQ17/1000)*(1-$I$10)*$E17*$B17)+(($AO17/1000)*(1-$I$10)*$I17*$B17) -> 0.01398417073 | V17: =IF(OPFOKLEGHEN!$J$18="nee",H17/C17*K17,IF(OPFOKLEGHEN!$H$20="ja",O17-(K17-Q17)-(K17-S17),Q17-(K17-O17)-(K17-S17))) -> 0.2646083751 | W17: =IF(H17=0,0,IF(OPFOKLEGHEN!$H$11="geen droogtunnel",IF(OPFOKLEGHEN!$H$15="geen warmtewisselaar",Q17-(K17-R17)))+IF(OPFOKLEGHEN!$H$12>0,IF(OPFOKLEGHEN!$H$13="serie geschakeld met warmtewisselaar",(O17*80%-(K17-S17)),(Q17-(K17-S17)-(K17-T17))),(N17-(K17-S17)))) -> 0.5292167502 | X17: =IF(H17=0,0,IF(OPFOKLEGHEN!$H$11="geen droogtunnel",IF(OPFOKLEGHEN!$H$15="geen warmtewisselaar",Q17-(K17-R17)))+IF(OPFOKLEGHEN!$H$12>0,IF(OPFOKLEGHEN!$H$13="serie geschakeld met warmtewisselaar",3*(O17*80%-(K17-S17)),(Q17-(K17-S17)-(K17-N17))),(N17-(K17-S17)))) -> 0.5292167502 | Y17: =IF(H17=0,0,IF(OPFOKLEGHEN!$H$11="geen droogtunnel",IF(OPFOKLEGHEN!$H$15="geen warmtewisselaar",Q17-(K17-R17)))+IF(OPFOKLEGHEN!$H$12>0,IF(OPFOKLEGHEN!$H$13="serie geschakeld met warmtewisselaar",(O17-(K17-S17)),IF(OPFOKLEGHEN!$H$13="parallel geschakeld met warmtewisselaar",IF(OPFOKLEGHEN!$L$9="ja",IF(OPFOKLEGHEN!$J$18="nee",(N17-(K17-Q17)-(K17-S17)),(Q17-(K17-N17/80%)))))),(O17-(K17-S17)))) -> 0.5292167502 | Z17: 1 | AC17: =IF(H17=0,0,IF(OPFOKLEGHEN!$H$11="geen droogtunnel",IF(OPFOKLEGHEN!$H$15="geen warmtewisselaar",P17-(K17-R17),K17-(K17-O17)/I$6-(K17-R17)/95%)+IF(OPFOKLEGHEN!$J$18="ja",J$5/I$5*(K17-O17)*(1-I$6)),IF(OPFOKLEGHEN!$H$12>=0,IF(OPFOKLEGHEN!$L$9="ja",IF(OPFOKLEGHEN!$J$18="ja",IF(OPFOKLEGHEN!$H$20="ja",O17-(K17-S17),IF(OPFOKLEGHEN!$H$20="nee",(O17-(K17-S17)),(O17-(K17-S17)))),IF(OPFOKLEGHEN!$J$18="nee",IF(OPFOKLEGHEN!$H$20="nee",O17*80%-(K17-S17),0+O17-(K17-S17)))),IF(OPFOKLEGHEN!$L$9="nee",IF(OPFOKLEGHEN!$J$18="nee",IF(OPFOKLEGHEN!$H$20="nee",(O17*80%-(K17-S17)),O17*93%-(K17-S17)),IF(OPFOKLEGHEN!$H$20="nee",IF(OPFOKLEGHEN!$J$18="ja",IF(OPFOKLEGHEN!$L$9="nee",O17-(K17-S17))),O17-(K17-S17)))))))) -> 0.2646083751 | AD17: =IF(H17=0,0,IF(OPFOKLEGHEN!$H$11="geen droogtunnel",IF(OPFOKLEGHEN!$H$15="geen warmtewisselaar",Q17-(K17-R17),N17-(K17-R17)),IF(OPFOKLEGHEN!$H$12>=0,IF(OPFOKLEGHEN!$L$9="ja",IF(OPFOKLEGHEN!$J$18="ja",IF(OPFOKLEGHEN!$H$20="ja",Q17-(K17-N17)-(K17-S17),IF(OPFOKLEGHEN!$H$20="nee",(Q17-(K17-N17)-(K17-S17)),(O17-(K17-S17)))),IF(OPFOKLEGHEN!$J$18="nee",IF(OPFOKLEGHEN!$H$20="nee",1*Q17*$N$135-(K17-N17)-(K17-S17),(Q17-(K17-N17)-(K17-S17))*N$135))),IF(OPFOKLEGHEN!$L$9="nee",IF(OPFOKLEGHEN!$J$18="nee",IF(OPFOKLEGHEN!$H$20="nee",(N17*95%-(K17-Q17)/I$4-(K17-S17)),N17-(K17-Q17)/I$4-(K17-S17)),IF(OPFOKLEGHEN!$H$20="nee",IF(OPFOKLEGHEN!$J$18="ja",IF(OPFOKLEGHEN!$L$9="nee",N17-(K17-Q17)/I$4-(K17-S17))),N17-(K17-Q17)/I$4-(K17-S17)))))))) -> 0.2646083751 | AE17: 0 | AF17: 0.2160044817 | AG17: 0 | AH17: 0 | AI17: =IF($I$5>0,AF17*(1-$I$6),AF17) -> 0.2160044817 | AJ17: 0 | AK17: 0.1398417073 | AL17: 6.041287103e-05 | AM17: 1 | AN17: 2 | AO17: 50 | AP17: 48.6 | AQ17: =(AO17+AP17)/2 -> 49.3 | AR17: 0.01398417073
A18: 1 | B18: 3 | C18: 0.14462473 | D18: 0 | E18: =IF(I$3=0,0,IF(OPFOKLEGHEN!$H$13="parallel geschakeld met warmtewisselaar",0,MIN(I$3,C18))) -> 0 | F18: =IF(I$3=0,0,IF(OPFOKLEGHEN!$H$13="serie geschakeld met warmtewisselaar",0,IF(C18<$I$3,C18-D18,MIN($I$3,C18-D18)))) -> 0 | G18: =IF(C18<$I$7,MAX(0,C18-D18-E18-F18,IF(OPFOKLEGHEN!$H$15="warmtewisselaar",IF(OPFOKLEGHEN!$H$13="serie geschakeld met warmtewisselaar",MIN(I$7,MAX(0,C18-D18-F18)),MIN(I$7,MAX(0,C18-D18-E18-F18))))),IF(OPFOKLEGHEN!$H$13="parallel geschakeld met warmtewisselaar",MIN(I$7,C18-D18-E18-F18,MIN(I$7,C18-E18-F18)),MIN(I$7,MAX(0,C18-D18-F18)))) -> 0 | H18: =IF(OPFOKLEGHEN!$H$13="parallel geschakeld met warmtewisselaar",IF(OPFOKLEGHEN!$L$9="nee",IF(OPFOKLEGHEN!$J$18="ja",C18-F18-G18,C18-D18-F18-G18),IF(OPFOKLEGHEN!$L$9="ja",IF(OPFOKLEGHEN!$J$18="ja",C18-G18,IF(OPFOKLEGHEN!$J$18="nee",C18-D18-G18)))),IF(OPFOKLEGHEN!$H$13="serie geschakeld met warmtewisselaar",IF(OPFOKLEGHEN!$J$18="ja",C18-G18,C18-D18-F18-G18),C18-D18-F18-G18)) -> 0.14462473 | I18: 0.14462473 | J18: 0.2200157547 | K18: 0.2787407395 | L18: =SUM(K$16:K18)/$K$137 -> 0.0009300691868 | M18: 9.545915738e-05 | N18: 0.2787407395 | O18: =IF(E18<I$3,P18*(1-I$6*D18/C18),IF(OPFOKLEGHEN!$H$11="droogtunnel (platen) 55%",P18*(1-$I$6)+(C18-D18)/C18*(K18-P18*(1-I$6)),P18*(1-$I$6)+(C18-D18)/C18*(K18-P18*(1-I$6)))) -> 0.2787407395 | P18: 0.2787407395 | Q18: 0.2787407395 | R18: 0.2787407395 | S18: =MIN(K18,K18-(G18/C18)*(Q18)*95%) -> 0.2787407395 | T18: =$K18*(1-($I$6*(D18)/C18))-($I$4*F18/C18) -> 0.2787407395 | U18: =(($AP18/1000)*(1-$I$10)*$D18*$B18)+(($AQ18/1000)*(1-$I$10)*$E18*$B18)+(($AO18/1000)*(1-$I$10)*$I18*$B18) -> 0.02386308045 | V18: =IF(OPFOKLEGHEN!$J$18="nee",H18/C18*K18,IF(OPFOKLEGHEN!$H$20="ja",O18-(K18-Q18)-(K18-S18),Q18-(K18-O18)-(K18-S18))) -> 0.2787407395 | W18: =IF(H18=0,0,IF(OPFOKLEGHEN!$H$11="geen droogtunnel",IF(OPFOKLEGHEN!$H$15="geen warmtewisselaar",Q18-(K18-R18)))+IF(OPFOKLEGHEN!$H$12>0,IF(OPFOKLEGHEN!$H$13="serie geschakeld met warmtewisselaar",(O18*80%-(K18-S18)),(Q18-(K18-S18)-(K18-T18))),(N18-(K18-S18)))) -> 0.5574814791 | X18: =IF(H18=0,0,IF(OPFOKLEGHEN!$H$11="geen droogtunnel",IF(OPFOKLEGHEN!$H$15="geen warmtewisselaar",Q18-(K18-R18)))+IF(OPFOKLEGHEN!$H$12>0,IF(OPFOKLEGHEN!$H$13="serie geschakeld met warmtewisselaar",3*(O18*80%-(K18-S18)),(Q18-(K18-S18)-(K18-N18))),(N18-(K18-S18)))) -> 0.5574814791 | Y18: =IF(H18=0,0,IF(OPFOKLEGHEN!$H$11="geen droogtunnel",IF(OPFOKLEGHEN!$H$15="geen warmtewisselaar",Q18-(K18-R18)))+IF(OPFOKLEGHEN!$H$12>0,IF(OPFOKLEGHEN!$H$13="serie geschakeld met warmtewisselaar",(O18-(K18-S18)),IF(OPFOKLEGHEN!$H$13="parallel geschakeld met warmtewisselaar",IF(OPFOKLEGHEN!$L$9="ja",IF(OPFOKLEGHEN!$J$18="nee",(N18-(K18-Q18)-(K18-S18)),(Q18-(K18-N18/80%)))))),(O18-(K18-S18)))) -> 0.5574814791 | Z18: 1 | AC18: =IF(H18=0,0,IF(OPFOKLEGHEN!$H$11="geen droogtunnel",IF(OPFOKLEGHEN!$H$15="geen warmtewisselaar",P18-(K18-R18),K18-(K18-O18)/I$6-(K18-R18)/95%)+IF(OPFOKLEGHEN!$J$18="ja",J$5/I$5*(K18-O18)*(1-I$6)),IF(OPFOKLEGHEN!$H$12>=0,IF(OPFOKLEGHEN!$L$9="ja",IF(OPFOKLEGHEN!$J$18="ja",IF(OPFOKLEGHEN!$H$20="ja",O18-(K18-S18),IF(OPFOKLEGHEN!$H$20="nee",(O18-(K18-S18)),(O18-(K18-S18)))),IF(OPFOKLEGHEN!$J$18="nee",IF(OPFOKLEGHEN!$H$20="nee",O18*80%-(K18-S18),0+O18-(K18-S18)))),IF(OPFOKLEGHEN!$L$9="nee",IF(OPFOKLEGHEN!$J$18="nee",IF(OPFOKLEGHEN!$H$20="nee",(O18*80%-(K18-S18)),O18*93%-(K18-S18)),IF(OPFOKLEGHEN!$H$20="nee",IF(OPFOKLEGHEN!$J$18="ja",IF(OPFOKLEGHEN!$L$9="nee",O18-(K18-S18))),O18-(K18-S18)))))))) -> 0.2787407395 | AD18: =IF(H18=0,0,IF(OPFOKLEGHEN!$H$11="geen droogtunnel",IF(OPFOKLEGHEN!$H$15="geen warmtewisselaar",Q18-(K18-R18),N18-(K18-R18)),IF(OPFOKLEGHEN!$H$12>=0,IF(OPFOKLEGHEN!$L$9="ja",IF(OPFOKLEGHEN!$J$18="ja",IF(OPFOKLEGHEN!$H$20="ja",Q18-(K18-N18)-(K18-S18),IF(OPFOKLEGHEN!$H$20="nee",(Q18-(K18-N18)-(K18-S18)),(O18-(K18-S18)))),IF(OPFOKLEGHEN!$J$18="nee",IF(OPFOKLEGHEN!$H$20="nee",1*Q18*$N$135-(K18-N18)-(K18-S18),(Q18-(K18-N18)-(K18-S18))*N$135))),IF(OPFOKLEGHEN!$L$9="nee",IF(OPFOKLEGHEN!$J$18="nee",IF(OPFOKLEGHEN!$H$20="nee",(N18*95%-(K18-Q18)/I$4-(K18-S18)),N18-(K18-Q18)/I$4-(K18-S18)),IF(OPFOKLEGHEN!$H$20="nee",IF(OPFOKLEGHEN!$J$18="ja",IF(OPFOKLEGHEN!$L$9="nee",N18-(K18-Q18)/I$4-(K18-S18))),N18-(K18-Q18)/I$4-(K18-S18)))))))) -> 0.2787407395 | AE18: 0 | AF18: 0.2200157547 | AG18: 0 | AH18: 0 | AI18: 0.2200157547 | AJ18: 0 | AK18: 0.14462473 | AL18: 9.545915738e-05 | AM18: 1 | AN18: 3 | AO18: 55 | AP18: 52.9 | AQ18: 53.95 | AR18: 0.02386308045
A19: 1 | B19: 4 | C19: 0.1493956478 | D19: 0 | E19: =IF(I$3=0,0,IF(OPFOKLEGHEN!$H$13="parallel geschakeld met warmtewisselaar",0,MIN(I$3,C19))) -> 0 | F19: =IF(I$3=0,0,IF(OPFOKLEGHEN!$H$13="serie geschakeld met warmtewisselaar",0,IF(C19<$I$3,C19-D19,MIN($I$3,C19-D19)))) -> 0 | G19: =IF(C19<$I$7,MAX(0,C19-D19-E19-F19,IF(OPFOKLEGHEN!$H$15="warmtewisselaar",IF(OPFOKLEGHEN!$H$13="serie geschakeld met warmtewisselaar",MIN(I$7,MAX(0,C19-D19-F19)),MIN(I$7,MAX(0,C19-D19-E19-F19))))),IF(OPFOKLEGHEN!$H$13="parallel geschakeld met warmtewisselaar",MIN(I$7,C19-D19-E19-F19,MIN(I$7,C19-E19-F19)),MIN(I$7,MAX(0,C19-D19-F19)))) -> 0 | H19: =IF(OPFOKLEGHEN!$H$13="parallel geschakeld met warmtewisselaar",IF(OPFOKLEGHEN!$L$9="nee",IF(OPFOKLEGHEN!$J$18="ja",C19-F19-G19,C19-D19-F19-G19),IF(OPFOKLEGHEN!$L$9="ja",IF(OPFOKLEGHEN!$J$18="ja",C19-G19,IF(OPFOKLEGHEN!$J$18="nee",C19-D19-G19)))),IF(OPFOKLEGHEN!$H$13="serie geschakeld met warmtewisselaar",IF(OPFOKLEGHEN!$J$18="ja",C19-G19,C19-D19-F19-G19),C19-D19-F19-G19)) -> 0.1493956478 | I19: 0.1493956478 | J19: 0.2241015184 | K19: 0.2932829737 | L19: =SUM(K$16:K19)/$K$137 -> 0.001273515315 | M19: 0.0001339191661 | N19: 0.2932829737 | O19: =IF(E19<I$3,P19*(1-I$6*D19/C19),IF(OPFOKLEGHEN!$H$11="droogtunnel (platen) 55%",P19*(1-$I$6)+(C19-D19)/C19*(K19-P19*(1-I$6)),P19*(1-$I$6)+(C19-D19)/C19*(K19-P19*(1-I$6)))) -> 0.2932829737 | P19: 0.2932829737 | Q19: 0.2932829737 | R19: 0.2932829737 | S19: 0.2932829737 | T19: 0.2932829737 | U19: =(($AP19/1000)*(1-$I$10)*$D19*$B19)+(($AQ19/1000)*(1-$I$10)*$E19*$B19)+(($AO19/1000)*(1-$I$10)*$I19*$B19) -> 0.03585495548 | V19: =IF(OPFOKLEGHEN!$J$18="nee",H19/C19*K19,IF(OPFOKLEGHEN!$H$20="ja",O19-(K19-Q19)-(K19-S19),Q19-(K19-O19)-(K19-S19))) -> 0.2932829737 | W19: =IF(H19=0,0,IF(OPFOKLEGHEN!$H$11="geen droogtunnel",IF(OPFOKLEGHEN!$H$15="geen warmtewisselaar",Q19-(K19-R19)))+IF(OPFOKLEGHEN!$H$12>0,IF(OPFOKLEGHEN!$H$13="serie geschakeld met warmtewisselaar",(O19*80%-(K19-S19)),(Q19-(K19-S19)-(K19-T19))),(N19-(K19-S19)))) -> 0.5865659474 | X19: =IF(H19=0,0,IF(OPFOKLEGHEN!$H$11="geen droogtunnel",IF(OPFOKLEGHEN!$H$15="geen warmtewisselaar",Q19-(K19-R19)))+IF(OPFOKLEGHEN!$H$12>0,IF(OPFOKLEGHEN!$H$13="serie geschakeld met warmtewisselaar",3*(O19*80%-(K19-S19)),(Q19-(K19-S19)-(K19-N19))),(N19-(K19-S19)))) -> 0.5865659474 | Y19: =IF(H19=0,0,IF(OPFOKLEGHEN!$H$11="geen droogtunnel",IF(OPFOKLEGHEN!$H$15="geen warmtewisselaar",Q19-(K19-R19)))+IF(OPFOKLEGHEN!$H$12>0,IF(OPFOKLEGHEN!$H$13="serie geschakeld met warmtewisselaar",(O19-(K19-S19)),IF(OPFOKLEGHEN!$H$13="parallel geschakeld met warmtewisselaar",IF(OPFOKLEGHEN!$L$9="ja",IF(OPFOKLEGHEN!$J$18="nee",(N19-(K19-Q19)-(K19-S19)),(Q19-(K19-N19/80%)))))),(O19-(K19-S19)))) -> 0.5865659474 | Z19: 1 | AC19: =IF(H19=0,0,IF(OPFOKLEGHEN!$H$11="geen droogtunnel",IF(OPFOKLEGHEN!$H$15="geen warmtewisselaar",P19-(K19-R19),K19-(K19-O19)/I$6-(K19-R19)/95%)+IF(OPFOKLEGHEN!$J$18="ja",J$5/I$5*(K19-O19)*(1-I$6)),IF(OPFOKLEGHEN!$H$12>=0,IF(OPFOKLEGHEN!$L$9="ja",IF(OPFOKLEGHEN!$J$18="ja",IF(OPFOKLEGHEN!$H$20="ja",O19-(K19-S19),IF(OPFOKLEGHEN!$H$20="nee",(O19-(K19-S19)),(O19-(K19-S19)))),IF(OPFOKLEGHEN!$J$18="nee",IF(OPFOKLEGHEN!$H$20="nee",O19*80%-(K19-S19),0+O19-(K19-S19)))),IF(OPFOKLEGHEN!$L$9="nee",IF(OPFOKLEGHEN!$J$18="nee",IF(OPFOKLEGHEN!$H$20="nee",(O19*80%-(K19-S19)),O19*93%-(K19-S19)),IF(OPFOKLEGHEN!$H$20="nee",IF(OPFOKLEGHEN!$J$18="ja",IF(OPFOKLEGHEN!$L$9="nee",O19-(K19-S19))),O19-(K19-S19)))))))) -> 0.2932829737 | AD19: =IF(H19=0,0,IF(OPFOKLEGHEN!$H$11="geen droogtunnel",IF(OPFOKLEGHEN!$H$15="geen warmtewisselaar",Q19-(K19-R19),N19-(K19-R19)),IF(OPFOKLEGHEN!$H$12>=0,IF(OPFOKLEGHEN!$L$9="ja",IF(OPFOKLEGHEN!$J$18="ja",IF(OPFOKLEGHEN!$H$20="ja",Q19-(K19-N19)-(K19-S19),IF(OPFOKLEGHEN!$H$20="nee",(Q19-(K19-N19)-(K19-S19)),(O19-(K19-S19)))),IF(OPFOKLEGHEN!$J$18="nee",IF(OPFOKLEGHEN!$H$20="nee",1*Q19*$N$135-(K19-N19)-(K19-S19),(Q19-(K19-N19)-(K19-S19))*N$135))),IF(OPFOKLEGHEN!$L$9="nee",IF(OPFOKLEGHEN!$J$18="nee",IF(OPFOKLEGHEN!$H$20="nee",(N19*95%-(K19-Q19)/I$4-(K19-S19)),N19-(K19-Q19)/I$4-(K19-S19)),IF(OPFOKLEGHEN!$H$20="nee",IF(OPFOKLEGHEN!$J$18="ja",IF(OPFOKLEGHEN!$L$9="nee",N19-(K19-Q19)/I$4-(K19-S19))),N19-(K19-Q19)/I$4-(K19-S19)))))))) -> 0.2932829737 | AE19: 0 | AF19: 0.2241015184 | AG19: 0 | AH19: 0 | AI19: 0.2241015184 | AJ19: 0 | AK19: 0.1493956478 | AL19: 0.0001339191661 | AM19: 1 | AN19: 4 | AO19: 60 | AP19: 57.2 | AQ19: 58.6 | AR19: 0.03585495548
A20: 1 | B20: 5 | C20: 0.1541546924 | D20: 0 | E20: =IF(I$3=0,0,IF(OPFOKLEGHEN!$H$13="parallel geschakeld met warmtewisselaar",0,MIN(I$3,C20))) -> 0 | F20: =IF(I$3=0,0,IF(OPFOKLEGHEN!$H$13="serie geschakeld met warmtewisselaar",0,IF(C20<$I$3,C20-D20,MIN($I$3,C20-D20)))) -> 0 | G20: =IF(C20<$I$7,MAX(0,C20-D20-E20-F20,IF(OPFOKLEGHEN!$H$15="warmtewisselaar",IF(OPFOKLEGHEN!$H$13="serie geschakeld met warmtewisselaar",MIN(I$7,MAX(0,C20-D20-F20)),MIN(I$7,MAX(0,C20-D20-E20-F20))))),IF(OPFOKLEGHEN!$H$13="parallel geschakeld met warmtewisselaar",MIN(I$7,C20-D20-E20-F20,MIN(I$7,C20-E20-F20)),MIN(I$7,MAX(0,C20-D20-F20)))) -> 0 | H20: =IF(OPFOKLEGHEN!$H$13="parallel geschakeld met warmtewisselaar",IF(OPFOKLEGHEN!$L$9="nee",IF(OPFOKLEGHEN!$J$18="ja",C20-F20-G20,C20-D20-F20-G20),IF(OPFOKLEGHEN!$L$9="ja",IF(OPFOKLEGHEN!$J$18="ja",C20-G20,IF(OPFOKLEGHEN!$J$18="nee",C20-D20-G20)))),IF(OPFOKLEGHEN!$H$13="serie geschakeld met warmtewisselaar",IF(OPFOKLEGHEN!$J$18="ja",C20-G20,C20-D20-F20-G20),C20-D20-F20-G20)) -> 0.1541546924 | I20: 0.1541546924 | J20: 0.228263156 | K20: 0.3082454486 | L20: =SUM(K$16:K20)/$K$137 -> 0.001634483102 | M20: 0.000175939183 | N20: 0.3082454486 | O20: =IF(E20<I$3,P20*(1-I$6*D20/C20),IF(OPFOKLEGHEN!$H$11="droogtunnel (platen) 55%",P20*(1-$I$6)+(C20-D20)/C20*(K20-P20*(1-I$6)),P20*(1-$I$6)+(C20-D20)/C20*(K20-P20*(1-I$6)))) -> 0.3082454486 | P20: 0.3082454486 | Q20: 0.3082454486 | R20: 0.3082454486 | S20: =MIN(K20,IF(OPFOKLEGHEN!$H$13="parallel geschakeld met warmtewisselaar",K20-(G20/(C20-G20))*(Q20)*95%,K20-(G20/(C20-G20))*(P20)*84%)) -> 0.3082454486 | T20: 0.3082454486 | U20: =AR20 -> 0.05010027505 | V20: =IF(OPFOKLEGHEN!$J$18="nee",H20/C20*K20,IF(OPFOKLEGHEN!$H$20="ja",O20-(K20-Q20)-(K20-S20),Q20-(K20-O20)-(K20-S20))) -> 0.3082454486 | W20: =IF(H20=0,0,IF(OPFOKLEGHEN!$H$11="geen droogtunnel",IF(OPFOKLEGHEN!$H$15="geen warmtewisselaar",Q20-(K20-R20)))+IF(OPFOKLEGHEN!$H$12>0,IF(OPFOKLEGHEN!$H$13="serie geschakeld met warmtewisselaar",(O20*80%-(K20-S20)),(Q20-(K20-S20)-(K20-T20))),(N20-(K20-S20)))) -> 0.6164908973 | X20: =IF(H20=0,0,IF(OPFOKLEGHEN!$H$11="geen droogtunnel",IF(OPFOKLEGHEN!$H$15="geen warmtewisselaar",Q20-(K20-R20)))+IF(OPFOKLEGHEN!$H$12>0,IF(OPFOKLEGHEN!$H$13="serie geschakeld met warmtewisselaar",3*(O20*80%-(K20-S20)),(Q20-(K20-S20)-(K20-N20))),(N20-(K20-S20)))) -> 0.6164908973 | Y20: =IF(H20=0,0,IF(OPFOKLEGHEN!$H$11="geen droogtunnel",IF(OPFOKLEGHEN!$H$15="geen warmtewisselaar",Q20-(K20-R20)))+IF(OPFOKLEGHEN!$H$12>0,IF(OPFOKLEGHEN!$H$13="serie geschakeld met warmtewisselaar",(O20-(K20-S20)),IF(OPFOKLEGHEN!$H$13="parallel geschakeld met warmtewisselaar",IF(OPFOKLEGHEN!$L$9="ja",IF(OPFOKLEGHEN!$J$18="nee",(N20-(K20-Q20)-(K20-S20)),(Q20-(K20-N20/80%)))))),(O20-(K20-S20)))) -> 0.6164908973 | Z20: 1 | AC20: =IF(H20=0,0,IF(OPFOKLEGHEN!$H$11="geen droogtunnel",IF(OPFOKLEGHEN!$H$15="geen warmtewisselaar",P20-(K20-R20),K20-(K20-O20)/I$6-(K20-R20)/95%)+IF(OPFOKLEGHEN!$J$18="ja",J$5/I$5*(K20-O20)*(1-I$6)),IF(OPFOKLEGHEN!$H$12>=0,IF(OPFOKLEGHEN!$L$9="ja",IF(OPFOKLEGHEN!$J$18="ja",IF(OPFOKLEGHEN!$H$20="ja",O20-(K20-S20),IF(OPFOKLEGHEN!$H$20="nee",(O20-(K20-S20)),(O20-(K20-S20)))),IF(OPFOKLEGHEN!$J$18="nee",IF(OPFOKLEGHEN!$H$20="nee",O20*80%-(K20-S20),0+O20-(K20-S20)))),IF(OPFOKLEGHEN!$L$9="nee",IF(OPFOKLEGHEN!$J$18="nee",IF(OPFOKLEGHEN!$H$20="nee",(O20*80%-(K20-S20)),O20*93%-(K20-S20)),IF(OPFOKLEGHEN!$H$20="nee",IF(OPFOKLEGHEN!$J$18="ja",IF(OPFOKLEGHEN!$L$9="nee",O20-(K20-S20))),O20-(K20-S20)))))))) -> 0.3082454486 | AD20: =IF(H20=0,0,IF(OPFOKLEGHEN!$H$11="geen droogtunnel",IF(OPFOKLEGHEN!$H$15="geen warmtewisselaar",Q20-(K20-R20),N20-(K20-R20)),IF(OPFOKLEGHEN!$H$12>=0,IF(OPFOKLEGHEN!$L$9="ja",IF(OPFOKLEGHEN!$J$18="ja",IF(OPFOKLEGHEN!$H$20="ja",Q20-(K20-N20)-(K20-S20),IF(OPFOKLEGHEN!$H$20="nee",(Q20-(K20-N20)-(K20-S20)),(O20-(K20-S20)))),IF(OPFOKLEGHEN!$J$18="nee",IF(OPFOKLEGHEN!$H$20="nee",1*Q20*$N$135-(K20-N20)-(K20-S20),(Q20-(K20-N20)-(K20-S20))*N$135))),IF(OPFOKLEGHEN!$L$9="nee",IF(OPFOKLEGHEN!$J$18="nee",IF(OPFOKLEGHEN!$H$20="nee",(N20*95%-(K20-Q20)/I$4-(K20-S20)),N20-(K20-Q20)/I$4-(K20-S20)),IF(OPFOKLEGHEN!$H$20="nee",IF(OPFOKLEGHEN!$J$18="ja",IF(OPFOKLEGHEN!$L$9="nee",N20-(K20-Q20)/I$4-(K20-S20))),N20-(K20-Q20)/I$4-(K20-S20)))))))) -> 0.3082454486 | AE20: 0 | AF20: 0.228263156 | AG20: 0 | AH20: 0 | AI20: 0.228263156 | AJ20: 0 | AK20: 0.1541546924 | AL20: 0.000175939183 | AM20: 1 | AN20: 5 | AO20: 65 | AP20: 61.5 | AQ20: 63.25 | AR20: 0.05010027505
A21: 1 | B21: 6 | C21: 0.1589020955 | D21: 0 | E21: =IF(I$3=0,0,IF(OPFOKLEGHEN!$H$13="parallel geschakeld met warmtewisselaar",0,MIN(I$3,C21))) -> 0 | F21: =IF(I$3=0,0,IF(OPFOKLEGHEN!$H$13="serie geschakeld met warmtewisselaar",0,IF(C21<$I$3,C21-D21,MIN($I$3,C21-D21)))) -> 0 | G21: =IF(C21<$I$7,MAX(0,C21-D21-E21-F21,IF(OPFOKLEGHEN!$H$15="warmtewisselaar",IF(OPFOKLEGHEN!$H$13="serie geschakeld met warmtewisselaar",MIN(I$7,MAX(0,C21-D21-F21)),MIN(I$7,MAX(0,C21-D21-E21-F21))))),IF(OPFOKLEGHEN!$H$13="parallel geschakeld met warmtewisselaar",MIN(I$7,C21-D21-E21-F21,MIN(I$7,C21-E21-F21)),MIN(I$7,MAX(0,C21-D21-F21)))) -> 0 | H21: =IF(OPFOKLEGHEN!$H$13="parallel geschakeld met warmtewisselaar",IF(OPFOKLEGHEN!$L$9="nee",IF(OPFOKLEGHEN!$J$18="ja",C21-F21-G21,C21-D21-F21-G21),IF(OPFOKLEGHEN!$L$9="ja",IF(OPFOKLEGHEN!$J$18="ja",C21-G21,IF(OPFOKLEGHEN!$J$18="nee",C21-D21-G21)))),IF(OPFOKLEGHEN!$H$13="serie geschakeld met warmtewisselaar",IF(OPFOKLEGHEN!$J$18="ja",C21-G21,C21-D21-F21-G21),C21-D21-F21-G21)) -> 0.1589020955 | I21: 0.1589020955 | J21: 0.2325020765 | K21: 0.3236387884 | L21: =SUM(K$16:K21)/$K$137 -> 0.002013477107 | M21: 0.000221670403 | N21: 0.3236387884 | O21: =IF(E21<I$3,P21*(1-I$6*D21/C21),IF(OPFOKLEGHEN!$H$11="droogtunnel (platen) 55%",P21*(1-$I$6)+(C21-D21)/C21*(K21-P21*(1-I$6)),P21*(1-$I$6)+(C21-D21)/C21*(K21-P21*(1-I$6)))) -> 0.3236387884 | P21: 0.3236387884 | Q21: 0.3236387884 | R21: 0.3236387884 | S21: =MIN(K21,IF(OPFOKLEGHEN!$H$13="parallel geschakeld met warmtewisselaar",K21-(G21/(C21-G21))*(Q21)*95%,K21-(G21/(C21-G21))*(P21)*84%)) -> 0.3236387884 | T21: 0.3236387884 | U21: 0.06673888011 | V21: =IF(OPFOKLEGHEN!$J$18="nee",H21/C21*K21,IF(OPFOKLEGHEN!$H$20="ja",O21-(K21-Q21)-(K21-S21),Q21-(K21-O21)-(K21-S21))) -> 0.3236387884 | W21: =IF(H21=0,0,IF(OPFOKLEGHEN!$H$11="geen droogtunnel",IF(OPFOKLEGHEN!$H$15="geen warmtewisselaar",Q21-(K21-R21)))+IF(OPFOKLEGHEN!$H$12>0,IF(OPFOKLEGHEN!$H$13="serie geschakeld met warmtewisselaar",(O21*80%-(K21-S21)),(Q21-(K21-S21)-(K21-T21))),(N21-(K21-S21)))) -> 0.6472775767 | X21: =IF(H21=0,0,IF(OPFOKLEGHEN!$H$11="geen droogtunnel",IF(OPFOKLEGHEN!$H$15="geen warmtewisselaar",Q21-(K21-R21)))+IF(OPFOKLEGHEN!$H$12>0,IF(OPFOKLEGHEN!$H$13="serie geschakeld met warmtewisselaar",3*(O21*80%-(K21-S21)),(Q21-(K21-S21)-(K21-N21))),(N21-(K21-S21)))) -> 0.6472775767 | Y21: =IF(H21=0,0,IF(OPFOKLEGHEN!$H$11="geen droogtunnel",IF(OPFOKLEGHEN!$H$15="geen warmtewisselaar",Q21-(K21-R21)))+IF(OPFOKLEGHEN!$H$12>0,IF(OPFOKLEGHEN!$H$13="serie geschakeld met warmtewisselaar",(O21-(K21-S21)),IF(OPFOKLEGHEN!$H$13="parallel geschakeld met warmtewisselaar",IF(OPFOKLEGHEN!$L$9="ja",IF(OPFOKLEGHEN!$J$18="nee",(N21-(K21-Q21)-(K21-S21)),(Q21-(K21-N21/80%)))))),(O21-(K21-S21)))) -> 0.6472775767 | Z21: 1 | AC21: =IF(H21=0,0,IF(OPFOKLEGHEN!$H$11="geen droogtunnel",IF(OPFOKLEGHEN!$H$15="geen warmtewisselaar",P21-(K21-R21),K21-(K21-O21)/I$6-(K21-R21)/95%)+IF(OPFOKLEGHEN!$J$18="ja",J$5/I$5*(K21-O21)*(1-I$6)),IF(OPFOKLEGHEN!$H$12>=0,IF(OPFOKLEGHEN!$L$9="ja",IF(OPFOKLEGHEN!$J$18="ja",IF(OPFOKLEGHEN!$H$20="ja",O21-(K21-S21),IF(OPFOKLEGHEN!$H$20="nee",(O21-(K21-S21)),(O21-(K21-S21)))),IF(OPFOKLEGHEN!$J$18="nee",IF(OPFOKLEGHEN!$H$20="nee",O21*80%-(K21-S21),0+O21-(K21-S21)))),IF(OPFOKLEGHEN!$L$9="nee",IF(OPFOKLEGHEN!$J$18="nee",IF(OPFOKLEGHEN!$H$20="nee",(O21*80%-(K21-S21)),O21*93%-(K21-S21)),IF(OPFOKLEGHEN!$H$20="nee",IF(OPFOKLEGHEN!$J$18="ja",IF(OPFOKLEGHEN!$L$9="nee",O21-(K21-S21))),O21-(K21-S21)))))))) -> 0.3236387884 | AD21: =IF(H21=0,0,IF(OPFOKLEGHEN!$H$11="geen droogtunnel",IF(OPFOKLEGHEN!$H$15="geen warmtewisselaar",Q21-(K21-R21),N21-(K21-R21)),IF(OPFOKLEGHEN!$H$12>=0,IF(OPFOKLEGHEN!$L$9="ja",IF(OPFOKLEGHEN!$J$18="ja",IF(OPFOKLEGHEN!$H$20="ja",Q21-(K21-N21)-(K21-S21),IF(OPFOKLEGHEN!$H$20="nee",(Q21-(K21-N21)-(K21-S21)),(O21-(K21-S21)))),IF(OPFOKLEGHEN!$J$18="nee",IF(OPFOKLEGHEN!$H$20="nee",1*Q21*$N$135-(K21-N21)-(K21-S21),(Q21-(K21-N21)-(K21-S21))*N$135))),IF(OPFOKLEGHEN!$L$9="nee",IF(OPFOKLEGHEN!$J$18="nee",IF(OPFOKLEGHEN!$H$20="nee",(N21*95%-(K21-Q21)/I$4-(K21-S21)),N21-(K21-Q21)/I$4-(K21-S21)),IF(OPFOKLEGHEN!$H$20="nee",IF(OPFOKLEGHEN!$J$18="ja",IF(OPFOKLEGHEN!$L$9="nee",N21-(K21-Q21)/I$4-(K21-S21))),N21-(K21-Q21)/I$4-(K21-S21)))))))) -> 0.3236387884 | AE21: 0 | AF21: 0.2325020765 | AG21: 0 | AH21: 0 | AI21: 0.2325020765 | AJ21: 0 | AK21: 0.1589020955 | AL21: 0.000221670403 | AM21: 1 | AN21: 6 | AO21: 70 | AP21: 65.8 | AQ21: 67.9 | AR21: 0.06673888011
A22: 1 | B22: 7 | C22: 0.1635872239 | D22: 0 | E22: =IF(I$3=0,0,IF(OPFOKLEGHEN!$H$13="parallel geschakeld met warmtewisselaar",0,MIN(I$3,C22))) -> 0 | F22: =IF(I$3=0,0,IF(OPFOKLEGHEN!$H$13="serie geschakeld met warmtewisselaar",0,IF(C22<$I$3,C22-D22,MIN($I$3,C22-D22)))) -> 0 | G22: =IF(C22<$I$7,MAX(0,C22-D22-E22-F22,IF(OPFOKLEGHEN!$H$15="warmtewisselaar",IF(OPFOKLEGHEN!$H$13="serie geschakeld met warmtewisselaar",MIN(I$7,MAX(0,C22-D22-F22)),MIN(I$7,MAX(0,C22-D22-E22-F22))))),IF(OPFOKLEGHEN!$H$13="parallel geschakeld met warmtewisselaar",MIN(I$7,C22-D22-E22-F22,MIN(I$7,C22-E22-F22)),MIN(I$7,MAX(0,C22-D22-F22)))) -> 0 | H22: =IF(OPFOKLEGHEN!$H$13="parallel geschakeld met warmtewisselaar",IF(OPFOKLEGHEN!$L$9="nee",IF(OPFOKLEGHEN!$J$18="ja",C22-F22-G22,C22-D22-F22-G22),IF(OPFOKLEGHEN!$L$9="ja",IF(OPFOKLEGHEN!$J$18="ja",C22-G22,IF(OPFOKLEGHEN!$J$18="nee",C22-D22-G22)))),IF(OPFOKLEGHEN!$H$13="serie geschakeld met warmtewisselaar",IF(OPFOKLEGHEN!$J$18="ja",C22-G22,C22-D22-F22-G22),C22-D22-F22-G22)) -> 0.1635872239 | I22: 0.1635872239 | J22: 0.2368197152 | K22: 0.3393683547 | L22: =SUM(K$16:K22)/$K$137 -> 0.002410891065 | M22: 0.0002711847583 | N22: 0.3393683547 | O22: =IF(E22<I$3,P22*(1-I$6*D22/C22),IF(OPFOKLEGHEN!$H$11="droogtunnel (platen) 55%",P22*(1-$I$6)+(C22-D22)/C22*(K22-P22*(1-I$6)),P22*(1-$I$6)+(C22-D22)/C22*(K22-P22*(1-I$6)))) -> 0.3393683547 | P22: 0.3393683547 | Q22: 0.3393683547 | R22: 0.3393683547 | S22: =MIN(K22,IF(OPFOKLEGHEN!$H$13="parallel geschakeld met warmtewisselaar",K22-(G22/(C22-G22))*(Q22)*95%,K22-(G22/(C22-G22))*(P22)*84%)) -> 0.3393683547 | T22: 0.3393683547 | U22: 0.08588329253 | V22: =IF(OPFOKLEGHEN!$J$18="nee",H22/C22*K22,IF(OPFOKLEGHEN!$H$20="ja",O22-(K22-Q22)-(K22-S22),Q22-(K22-O22)-(K22-S22))) -> 0.3393683547 | W22: =IF(H22=0,0,IF(OPFOKLEGHEN!$H$11="geen droogtunnel",IF(OPFOKLEGHEN!$H$15="geen warmtewisselaar",Q22-(K22-R22)))+IF(OPFOKLEGHEN!$H$12>0,IF(OPFOKLEGHEN!$H$13="serie geschakeld met warmtewisselaar",(O22*80%-(K22-S22)),(Q22-(K22-S22)-(K22-T22))),(N22-(K22-S22)))) -> 0.6787367095 | X22: =IF(H22=0,0,IF(OPFOKLEGHEN!$H$11="geen droogtunnel",IF(OPFOKLEGHEN!$H$15="geen warmtewisselaar",Q22-(K22-R22)))+IF(OPFOKLEGHEN!$H$12>0,IF(OPFOKLEGHEN!$H$13="serie geschakeld met warmtewisselaar",3*(O22*80%-(K22-S22)),(Q22-(K22-S22)-(K22-N22))),(N22-(K22-S22)))) -> 0.6787367095 | Y22: =IF(H22=0,0,IF(OPFOKLEGHEN!$H$11="geen droogtunnel",IF(OPFOKLEGHEN!$H$15="geen warmtewisselaar",Q22-(K22-R22)))+IF(OPFOKLEGHEN!$H$12>0,IF(OPFOKLEGHEN!$H$13="serie geschakeld met warmtewisselaar",(O22-(K22-S22)),IF(OPFOKLEGHEN!$H$13="parallel geschakeld met warmtewisselaar",IF(OPFOKLEGHEN!$L$9="ja",IF(OPFOKLEGHEN!$J$18="nee",(N22-(K22-Q22)-(K22-S22)),(Q22-(K22-N22/80%)))))),(O22-(K22-S22)))) -> 0.6787367095 | Z22: 1 | AC22: =IF(H22=0,0,IF(OPFOKLEGHEN!$H$11="geen droogtunnel",IF(OPFOKLEGHEN!$H$15="geen warmtewisselaar",P22-(K22-R22),K22-(K22-O22)/I$6-(K22-R22)/95%)+IF(OPFOKLEGHEN!$J$18="ja",J$5/I$5*(K22-O22)*(1-I$6)),IF(OPFOKLEGHEN!$H$12>=0,IF(OPFOKLEGHEN!$L$9="ja",IF(OPFOKLEGHEN!$J$18="ja",IF(OPFOKLEGHEN!$H$20="ja",O22-(K22-S22),IF(OPFOKLEGHEN!$H$20="nee",(O22-(K22-S22)),(O22-(K22-S22)))),IF(OPFOKLEGHEN!$J$18="nee",IF(OPFOKLEGHEN!$H$20="nee",O22*80%-(K22-S22),0+O22-(K22-S22)))),IF(OPFOKLEGHEN!$L$9="nee",IF(OPFOKLEGHEN!$J$18="nee",IF(OPFOKLEGHEN!$H$20="nee",(O22*80%-(K22-S22)),O22*93%-(K22-S22)),IF(OPFOKLEGHEN!$H$20="nee",IF(OPFOKLEGHEN!$J$18="ja",IF(OPFOKLEGHEN!$L$9="nee",O22-(K22-S22))),O22-(K22-S22)))))))) -> 0.3393683547 | AD22: =IF(H22=0,0,IF(OPFOKLEGHEN!$H$11="geen droogtunnel",IF(OPFOKLEGHEN!$H$15="geen warmtewisselaar",Q22-(K22-R22),N22-(K22-R22)),IF(OPFOKLEGHEN!$H$12>=0,IF(OPFOKLEGHEN!$L$9="ja",IF(OPFOKLEGHEN!$J$18="ja",IF(OPFOKLEGHEN!$H$20="ja",Q22-(K22-N22)-(K22-S22),IF(OPFOKLEGHEN!$H$20="nee",(Q22-(K22-N22)-(K22-S22)),(O22-(K22-S22)))),IF(OPFOKLEGHEN!$J$18="nee",IF(OPFOKLEGHEN!$H$20="nee",1*Q22*$N$135-(K22-N22)-(K22-S22),(Q22-(K22-N22)-(K22-S22))*N$135))),IF(OPFOKLEGHEN!$L$9="nee",IF(OPFOKLEGHEN!$J$18="nee",IF(OPFOKLEGHEN!$H$20="nee",(N22*95%-(K22-Q22)/I$4-(K22-S22)),N22-(K22-Q22)/I$4-(K22-S22)),IF(OPFOKLEGHEN!$H$20="nee",IF(OPFOKLEGHEN!$J$18="ja",IF(OPFOKLEGHEN!$L$9="nee",N22-(K22-Q22)/I$4-(K22-S22))),N22-(K22-Q22)/I$4-(K22-S22)))))))) -> 0.3393683547 | AE22: 0 | AF22: 0.2368197152 | AG22: 0 | AH22: 0 | AI22: 0.2368197152 | AJ22: 0 | AK22: 0.1635872239 | AL22: 0.0002711847583 | AM22: 1 | AN22: 7 | AO22: 75 | AP22: 70 | AQ22: 72.5 | AR22: 0.08588329253
A23: 2 | B23: 8 | C23: 0.1719119828 | D23: 0 | E23: =IF(I$3=0,0,IF(OPFOKLEGHEN!$H$13="parallel geschakeld met warmtewisselaar",0,MIN(I$3,C23))) -> 0 | F23: =IF(I$3=0,0,IF(OPFOKLEGHEN!$H$13="serie geschakeld met warmtewisselaar",0,IF(C23<$I$3,C23-D23,MIN($I$3,C23-D23)))) -> 0 | G23: =IF(C23<$I$7,MAX(0,C23-D23-E23-F23,IF(OPFOKLEGHEN!$H$15="warmtewisselaar",IF(OPFOKLEGHEN!$H$13="serie geschakeld met warmtewisselaar",MIN(I$7,MAX(0,C23-D23-F23)),MIN(I$7,MAX(0,C23-D23-E23-F23))))),IF(OPFOKLEGHEN!$H$13="parallel geschakeld met warmtewisselaar",MIN(I$7,C23-D23-E23-F23,MIN(I$7,C23-E23-F23)),MIN(I$7,MAX(0,C23-D23-F23)))) -> 0 | H23: =IF(OPFOKLEGHEN!$H$13="parallel geschakeld met warmtewisselaar",IF(OPFOKLEGHEN!$L$9="nee",IF(OPFOKLEGHEN!$J$18="ja",C23-F23-G23,C23-D23-F23-G23),IF(OPFOKLEGHEN!$L$9="ja",IF(OPFOKLEGHEN!$J$18="ja",C23-G23,IF(OPFOKLEGHEN!$J$18="nee",C23-D23-G23)))),IF(OPFOKLEGHEN!$H$13="serie geschakeld met warmtewisselaar",IF(OPFOKLEGHEN!$J$18="ja",C23-G23,C23-D23-F23-G23),C23-D23-F23-G23)) -> 0.1719119828 | I23: 0.1719119828 | J23: 0.2412175338 | K23: 0.3632612963 | L23: =SUM(K$16:K23)/$K$137 -> 0.002836284616 | M23: 0.0003317454761 | N23: 0.3632612963 | O23: =IF(E23<I$3,P23*(1-I$6*D23/C23),IF(OPFOKLEGHEN!$H$11="droogtunnel (platen) 55%",P23*(1-$I$6)+(C23-D23)/C23*(K23-P23*(1-I$6)),P23*(1-$I$6)+(C23-D23)/C23*(K23-P23*(1-I$6)))) -> 0.3632612963 | P23: 0.3632612963 | Q23: 0.3632612963 | R23: 0.3632612963 | S23: =MIN(K23,IF(OPFOKLEGHEN!$H$13="parallel geschakeld met warmtewisselaar",K23-(G23/(C23-G23))*(Q23)*95%,K23-(G23/(C23-G23))*(P23)*84%)) -> 0.3632612963 | T23: 0.3632612963 | U23: 0.1149747341 | V23: =IF(OPFOKLEGHEN!$J$18="nee",H23/C23*K23,IF(OPFOKLEGHEN!$H$20="ja",O23-(K23-Q23)-(K23-S23),Q23-(K23-O23)-(K23-S23))) -> 0.3632612963 | W23: =IF(H23=0,0,IF(OPFOKLEGHEN!$H$11="geen droogtunnel",IF(OPFOKLEGHEN!$H$15="geen warmtewisselaar",Q23-(K23-R23)))+IF(OPFOKLEGHEN!$H$12>0,IF(OPFOKLEGHEN!$H$13="serie geschakeld met warmtewisselaar",(O23*80%-(K23-S23)),(Q23-(K23-S23)-(K23-T23))),(N23-(K23-S23)))) -> 0.7265225926 | X23: =IF(H23=0,0,IF(OPFOKLEGHEN!$H$11="geen droogtunnel",IF(OPFOKLEGHEN!$H$15="geen warmtewisselaar",Q23-(K23-R23)))+IF(OPFOKLEGHEN!$H$12>0,IF(OPFOKLEGHEN!$H$13="serie geschakeld met warmtewisselaar",3*(O23*80%-(K23-S23)),(Q23-(K23-S23)-(K23-N23))),(N23-(K23-S23)))) -> 0.7265225926 | Y23: =IF(H23=0,0,IF(OPFOKLEGHEN!$H$11="geen droogtunnel",IF(OPFOKLEGHEN!$H$15="geen warmtewisselaar",Q23-(K23-R23)))+IF(OPFOKLEGHEN!$H$12>0,IF(OPFOKLEGHEN!$H$13="serie geschakeld met warmtewisselaar",(O23-(K23-S23)),IF(OPFOKLEGHEN!$H$13="parallel geschakeld met warmtewisselaar",IF(OPFOKLEGHEN!$L$9="ja",IF(OPFOKLEGHEN!$J$18="nee",(N23-(K23-Q23)-(K23-S23)),(Q23-(K23-N23/80%)))))),(O23-(K23-S23)))) -> 0.7265225926 | Z23: 1 | AC23: =IF(H23=0,0,IF(OPFOKLEGHEN!$H$11="geen droogtunnel",IF(OPFOKLEGHEN!$H$15="geen warmtewisselaar",P23-(K23-R23),K23-(K23-O23)/I$6-(K23-R23)/95%)+IF(OPFOKLEGHEN!$J$18="ja",J$5/I$5*(K23-O23)*(1-I$6)),IF(OPFOKLEGHEN!$H$12>=0,IF(OPFOKLEGHEN!$L$9="ja",IF(OPFOKLEGHEN!$J$18="ja",IF(OPFOKLEGHEN!$H$20="ja",O23-(K23-S23),IF(OPFOKLEGHEN!$H$20="nee",(O23-(K23-S23)),(O23-(K23-S23)))),IF(OPFOKLEGHEN!$J$18="nee",IF(OPFOKLEGHEN!$H$20="nee",O23*80%-(K23-S23),0+O23-(K23-S23)))),IF(OPFOKLEGHEN!$L$9="nee",IF(OPFOKLEGHEN!$J$18="nee",IF(OPFOKLEGHEN!$H$20="nee",(O23*80%-(K23-S23)),O23*93%-(K23-S23)),IF(OPFOKLEGHEN!$H$20="nee",IF(OPFOKLEGHEN!$J$18="ja",IF(OPFOKLEGHEN!$L$9="nee",O23-(K23-S23))),O23-(K23-S23)))))))) -> 0.3632612963 | AD23: =IF(H23=0,0,IF(OPFOKLEGHEN!$H$11="geen droogtunnel",IF(OPFOKLEGHEN!$H$15="geen warmtewisselaar",Q23-(K23-R23),N23-(K23-R23)),IF(OPFOKLEGHEN!$H$12>=0,IF(OPFOKLEGHEN!$L$9="ja",IF(OPFOKLEGHEN!$J$18="ja",IF(OPFOKLEGHEN!$H$20="ja",Q23-(K23-N23)-(K23-S23),IF(OPFOKLEGHEN!$H$20="nee",(Q23-(K23-N23)-(K23-S23)),(O23-(K23-S23)))),IF(OPFOKLEGHEN!$J$18="nee",IF(OPFOKLEGHEN!$H$20="nee",1*Q23*$N$135-(K23-N23)-(K23-S23),(Q23-(K23-N23)-(K23-S23))*N$135))),IF(OPFOKLEGHEN!$L$9="nee",IF(OPFOKLEGHEN!$J$18="nee",IF(OPFOKLEGHEN!$H$20="nee",(N23*95%-(K23-Q23)/I$4-(K23-S23)),N23-(K23-Q23)/I$4-(K23-S23)),IF(OPFOKLEGHEN!$H$20="nee",IF(OPFOKLEGHEN!$J$18="ja",IF(OPFOKLEGHEN!$L$9="nee",N23-(K23-Q23)/I$4-(K23-S23))),N23-(K23-Q23)/I$4-(K23-S23)))))))) -> 0.3632612963 | AE23: 0 | AF23: 0.2412175338 | AG23: 0 | AH23: 0 | AI23: 0.2412175338 | AJ23: 0 | AK23: 0.1719119828 | AL23: 0.0003317454761 | AM23: 2 | AN23: 8 | AO23: =AO22+8.6 -> 83.6 | AP23: =AP22+7.8 -> 77.8 | AQ23: 80.7 | AR23: 0.1149747341
A24: 2 | B24: 9 | C24: 0.180203243 | D24: 0 | E24: =IF(I$3=0,0,IF(OPFOKLEGHEN!$H$13="parallel geschakeld met warmtewisselaar",0,MIN(I$3,C24))) -> 0 | F24: =IF(I$3=0,0,IF(OPFOKLEGHEN!$H$13="serie geschakeld met warmtewisselaar",0,IF(C24<$I$3,C24-D24,MIN($I$3,C24-D24)))) -> 0 | G24: =IF(C24<$I$7,MAX(0,C24-D24-E24-F24,IF(OPFOKLEGHEN!$H$15="warmtewisselaar",IF(OPFOKLEGHEN!$H$13="serie geschakeld met warmtewisselaar",MIN(I$7,MAX(0,C24-D24-F24)),MIN(I$7,MAX(0,C24-D24-E24-F24))))),IF(OPFOKLEGHEN!$H$13="parallel geschakeld met warmtewisselaar",MIN(I$7,C24-D24-E24-F24,MIN(I$7,C24-E24-F24)),MIN(I$7,MAX(0,C24-D24-F24)))) -> 0 | H24: =IF(OPFOKLEGHEN!$H$13="parallel geschakeld met warmtewisselaar",IF(OPFOKLEGHEN!$L$9="nee",IF(OPFOKLEGHEN!$J$18="ja",C24-F24-G24,C24-D24-F24-G24),IF(OPFOKLEGHEN!$L$9="ja",IF(OPFOKLEGHEN!$J$18="ja",C24-G24,IF(OPFOKLEGHEN!$J$18="nee",C24-D24-G24)))),IF(OPFOKLEGHEN!$H$13="serie geschakeld met warmtewisselaar",IF(OPFOKLEGHEN!$J$18="ja",C24-G24,C24-D24-F24-G24),C24-D24-F24-G24)) -> 0.180203243 | I24: 0.180203243 | J24: 0.2456970213 | K24: 0.3878525043 | L24: =SUM(K$16:K24)/$K$137 -> 0.003290475459 | M24: 0.0003984786003 | N24: 0.3878525043 | O24: =IF(E24<I$3,P24*(1-I$6*D24/C24),IF(OPFOKLEGHEN!$H$11="droogtunnel (platen) 55%",P24*(1-$I$6)+(C24-D24)/C24*(K24-P24*(1-I$6)),P24*(1-$I$6)+(C24-D24)/C24*(K24-P24*(1-I$6)))) -> 0.3878525043 | P24: 0.3878525043 | Q24: 0.3878525043 | R24: 0.3878525043 | S24: =MIN(K24,IF(OPFOKLEGHEN!$H$13="parallel geschakeld met warmtewisselaar",K24-(G24/(C24-G24))*(Q24)*95%,K24-(G24/(C24-G24))*(P24)*84%)) -> 0.3878525043 | T24: 0.3878525043 | U24: 0.149532651 | V24: =IF(OPFOKLEGHEN!$J$18="nee",H24/C24*K24,IF(OPFOKLEGHEN!$H$20="ja",O24-(K24-Q24)-(K24-S24),Q24-(K24-O24)-(K24-S24))) -> 0.3878525043 | W24: =IF(H24=0,0,IF(OPFOKLEGHEN!$H$11="geen droogtunnel",IF(OPFOKLEGHEN!$H$15="geen warmtewisselaar",Q24-(K24-R24)))+IF(OPFOKLEGHEN!$H$12>0,IF(OPFOKLEGHEN!$H$13="serie geschakeld met warmtewisselaar",(O24*80%-(K24-S24)),(Q24-(K24-S24)-(K24-T24))),(N24-(K24-S24)))) -> 0.7757050086 | X24: =IF(H24=0,0,IF(OPFOKLEGHEN!$H$11="geen droogtunnel",IF(OPFOKLEGHEN!$H$15="geen warmtewisselaar",Q24-(K24-R24)))+IF(OPFOKLEGHEN!$H$12>0,IF(OPFOKLEGHEN!$H$13="serie geschakeld met warmtewisselaar",3*(O24*80%-(K24-S24)),(Q24-(K24-S24)-(K24-N24))),(N24-(K24-S24)))) -> 0.7757050086 | Y24: =IF(H24=0,0,IF(OPFOKLEGHEN!$H$11="geen droogtunnel",IF(OPFOKLEGHEN!$H$15="geen warmtewisselaar",Q24-(K24-R24)))+IF(OPFOKLEGHEN!$H$12>0,IF(OPFOKLEGHEN!$H$13="serie geschakeld met warmtewisselaar",(O24-(K24-S24)),IF(OPFOKLEGHEN!$H$13="parallel geschakeld met warmtewisselaar",IF(OPFOKLEGHEN!$L$9="ja",IF(OPFOKLEGHEN!$J$18="nee",(N24-(K24-Q24)-(K24-S24)),(Q24-(K24-N24/80%)))))),(O24-(K24-S24)))) -> 0.7757050086 | Z24: 1 | AC24: =IF(H24=0,0,IF(OPFOKLEGHEN!$H$11="geen droogtunnel",IF(OPFOKLEGHEN!$H$15="geen warmtewisselaar",P24-(K24-R24),K24-(K24-O24)/I$6-(K24-R24)/95%)+IF(OPFOKLEGHEN!$J$18="ja",J$5/I$5*(K24-O24)*(1-I$6)),IF(OPFOKLEGHEN!$H$12>=0,IF(OPFOKLEGHEN!$L$9="ja",IF(OPFOKLEGHEN!$J$18="ja",IF(OPFOKLEGHEN!$H$20="ja",O24-(K24-S24),IF(OPFOKLEGHEN!$H$20="nee",(O24-(K24-S24)),(O24-(K24-S24)))),IF(OPFOKLEGHEN!$J$18="nee",IF(OPFOKLEGHEN!$H$20="nee",O24*80%-(K24-S24),0+O24-(K24-S24)))),IF(OPFOKLEGHEN!$L$9="nee",IF(OPFOKLEGHEN!$J$18="nee",IF(OPFOKLEGHEN!$H$20="nee",(O24*80%-(K24-S24)),O24*93%-(K24-S24)),IF(OPFOKLEGHEN!$H$20="nee",IF(OPFOKLEGHEN!$J$18="ja",IF(OPFOKLEGHEN!$L$9="nee",O24-(K24-S24))),O24-(K24-S24)))))))) -> 0.3878525043 | AD24: =IF(H24=0,0,IF(OPFOKLEGHEN!$H$11="geen droogtunnel",IF(OPFOKLEGHEN!$H$15="geen warmtewisselaar",Q24-(K24-R24),N24-(K24-R24)),IF(OPFOKLEGHEN!$H$12>=0,IF(OPFOKLEGHEN!$L$9="ja",IF(OPFOKLEGHEN!$J$18="ja",IF(OPFOKLEGHEN!$H$20="ja",Q24-(K24-N24)-(K24-S24),IF(OPFOKLEGHEN!$H$20="nee",(Q24-(K24-N24)-(K24-S24)),(O24-(K24-S24)))),IF(OPFOKLEGHEN!$J$18="nee",IF(OPFOKLEGHEN!$H$20="nee",1*Q24*$N$135-(K24-N24)-(K24-S24),(Q24-(K24-N24)-(K24-S24))*N$135))),IF(OPFOKLEGHEN!$L$9="nee",IF(OPFOKLEGHEN!$J$18="nee",IF(OPFOKLEGHEN!$H$20="nee",(N24*95%-(K24-Q24)/I$4-(K24-S24)),N24-(K24-Q24)/I$4-(K24-S24)),IF(OPFOKLEGHEN!$H$20="nee",IF(OPFOKLEGHEN!$J$18="ja",IF(OPFOKLEGHEN!$L$9="nee",N24-(K24-Q24)/I$4-(K24-S24))),N24-(K24-Q24)/I$4-(K24-S24)))))))) -> 0.3878525043 | AE24: 0 | AF24: 0.2456970213 | AG24: 0 | AH24: 0 | AI24: 0.2456970213 | AJ24: 0 | AK24: 0.180203243 | AL24: 0.0003984786003 | AM24: 2 | AN24: 9 | AO24: 92.2 | AP24: 85.6 | AQ24: 88.9 | AR24: 0.149532651
A25: 2 | B25: 10 | C25: 0.1884622749 | D25: 0 | E25: =IF(I$3=0,0,IF(OPFOKLEGHEN!$H$13="parallel geschakeld met warmtewisselaar",0,MIN(I$3,C25))) -> 0 | F25: =IF(I$3=0,0,IF(OPFOKLEGHEN!$H$13="serie geschakeld met warmtewisselaar",0,IF(C25<$I$3,C25-D25,MIN($I$3,C25-D25)))) -> 0 | G25: =IF(C25<$I$7,MAX(0,C25-D25-E25-F25,IF(OPFOKLEGHEN!$H$15="warmtewisselaar",IF(OPFOKLEGHEN!$H$13="serie geschakeld met warmtewisselaar",MIN(I$7,MAX(0,C25-D25-F25)),MIN(I$7,MAX(0,C25-D25-E25-F25))))),IF(OPFOKLEGHEN!$H$13="parallel geschakeld met warmtewisselaar",MIN(I$7,C25-D25-E25-F25,MIN(I$7,C25-E25-F25)),MIN(I$7,MAX(0,C25-D25-F25)))) -> 0 | H25: =IF(OPFOKLEGHEN!$H$13="parallel geschakeld met warmtewisselaar",IF(OPFOKLEGHEN!$L$9="nee",IF(OPFOKLEGHEN!$J$18="ja",C25-F25-G25,C25-D25-F25-G25),IF(OPFOKLEGHEN!$L$9="ja",IF(OPFOKLEGHEN!$J$18="ja",C25-G25,IF(OPFOKLEGHEN!$J$18="nee",C25-D25-G25)))),IF(OPFOKLEGHEN!$H$13="serie geschakeld met warmtewisselaar",IF(OPFOKLEGHEN!$J$18="ja",C25-G25,C25-D25-F25-G25),C25-D25-F25-G25)) -> 0.1884622749 | I25: 0.1884622749 | J25: 0.2502596944 | K25: 0.4131611192 | L25: =SUM(K$16:K25)/$K$137 -> 0.003774303705 | M25: 0.0004716451133 | N25: 0.4131611192 | O25: =IF(E25<I$3,P25*(1-I$6*D25/C25),IF(OPFOKLEGHEN!$H$11="droogtunnel (platen) 55%",P25*(1-$I$6)+(C25-D25)/C25*(K25-P25*(1-I$6)),P25*(1-$I$6)+(C25-D25)/C25*(K25-P25*(1-I$6)))) -> 0.4131611192 | P25: 0.4131611192 | Q25: 0.4131611192 | R25: 0.4131611192 | S25: =MIN(K25,IF(OPFOKLEGHEN!$H$13="parallel geschakeld met warmtewisselaar",K25-(G25/(C25-G25))*(Q25)*95%,K25-(G25/(C25-G25))*(P25)*84%)) -> 0.4131611192 | T25: 0.4131611192 | U25: 0.1899699731 | V25: =IF(OPFOKLEGHEN!$J$18="nee",H25/C25*K25,IF(OPFOKLEGHEN!$H$20="ja",O25-(K25-Q25)-(K25-S25),Q25-(K25-O25)-(K25-S25))) -> 0.4131611192 | W25: =IF(H25=0,0,IF(OPFOKLEGHEN!$H$11="geen droogtunnel",IF(OPFOKLEGHEN!$H$15="geen warmtewisselaar",Q25-(K25-R25)))+IF(OPFOKLEGHEN!$H$12>0,IF(OPFOKLEGHEN!$H$13="serie geschakeld met warmtewisselaar",(O25*80%-(K25-S25)),(Q25-(K25-S25)-(K25-T25))),(N25-(K25-S25)))) -> 0.8263222385 | X25: =IF(H25=0,0,IF(OPFOKLEGHEN!$H$11="geen droogtunnel",IF(OPFOKLEGHEN!$H$15="geen warmtewisselaar",Q25-(K25-R25)))+IF(OPFOKLEGHEN!$H$12>0,IF(OPFOKLEGHEN!$H$13="serie geschakeld met warmtewisselaar",3*(O25*80%-(K25-S25)),(Q25-(K25-S25)-(K25-N25))),(N25-(K25-S25)))) -> 0.8263222385 | Y25: =IF(H25=0,0,IF(OPFOKLEGHEN!$H$11="geen droogtunnel",IF(OPFOKLEGHEN!$H$15="geen warmtewisselaar",Q25-(K25-R25)))+IF(OPFOKLEGHEN!$H$12>0,IF(OPFOKLEGHEN!$H$13="serie geschakeld met warmtewisselaar",(O25-(K25-S25)),IF(OPFOKLEGHEN!$H$13="parallel geschakeld met warmtewisselaar",IF(OPFOKLEGHEN!$L$9="ja",IF(OPFOKLEGHEN!$J$18="nee",(N25-(K25-Q25)-(K25-S25)),(Q25-(K25-N25/80%)))))),(O25-(K25-S25)))) -> 0.8263222385 | Z25: 1 | AC25: =IF(H25=0,0,IF(OPFOKLEGHEN!$H$11="geen droogtunnel",IF(OPFOKLEGHEN!$H$15="geen warmtewisselaar",P25-(K25-R25),K25-(K25-O25)/I$6-(K25-R25)/95%)+IF(OPFOKLEGHEN!$J$18="ja",J$5/I$5*(K25-O25)*(1-I$6)),IF(OPFOKLEGHEN!$H$12>=0,IF(OPFOKLEGHEN!$L$9="ja",IF(OPFOKLEGHEN!$J$18="ja",IF(OPFOKLEGHEN!$H$20="ja",O25-(K25-S25),IF(OPFOKLEGHEN!$H$20="nee",(O25-(K25-S25)),(O25-(K25-S25)))),IF(OPFOKLEGHEN!$J$18="nee",IF(OPFOKLEGHEN!$H$20="nee",O25*80%-(K25-S25),0+O25-(K25-S25)))),IF(OPFOKLEGHEN!$L$9="nee",IF(OPFOKLEGHEN!$J$18="nee",IF(OPFOKLEGHEN!$H$20="nee",(O25*80%-(K25-S25)),O25*93%-(K25-S25)),IF(OPFOKLEGHEN!$H$20="nee",IF(OPFOKLEGHEN!$J$18="ja",IF(OPFOKLEGHEN!$L$9="nee",O25-(K25-S25))),O25-(K25-S25)))))))) -> 0.4131611192 | AD25: =IF(H25=0,0,IF(OPFOKLEGHEN!$H$11="geen droogtunnel",IF(OPFOKLEGHEN!$H$15="geen warmtewisselaar",Q25-(K25-R25),N25-(K25-R25)),IF(OPFOKLEGHEN!$H$12>=0,IF(OPFOKLEGHEN!$L$9="ja",IF(OPFOKLEGHEN!$J$18="ja",IF(OPFOKLEGHEN!$H$20="ja",Q25-(K25-N25)-(K25-S25),IF(OPFOKLEGHEN!$H$20="nee",(Q25-(K25-N25)-(K25-S25)),(O25-(K25-S25)))),IF(OPFOKLEGHEN!$J$18="nee",IF(OPFOKLEGHEN!$H$20="nee",1*Q25*$N$135-(K25-N25)-(K25-S25),(Q25-(K25-N25)-(K25-S25))*N$135))),IF(OPFOKLEGHEN!$L$9="nee",IF(OPFOKLEGHEN!$J$18="nee",IF(OPFOKLEGHEN!$H$20="nee",(N25*95%-(K25-Q25)/I$4-(K25-S25)),N25-(K25-Q25)/I$4-(K25-S25)),IF(OPFOKLEGHEN!$H$20="nee",IF(OPFOKLEGHEN!$J$18="ja",IF(OPFOKLEGHEN!$L$9="nee",N25-(K25-Q25)/I$4-(K25-S25))),N25-(K25-Q25)/I$4-(K25-S25)))))))) -> 0.4131611192 | AE25: 0 | AF25: 0.2502596944 | AG25: 0 | AH25: 0 | AI25: 0.2502596944 | AJ25: 0 | AK25: 0.1884622749 | AL25: 0.0004716451133 | AM25: 2 | AN25: 10 | AO25: 100.8 | AP25: 93.4 | AQ25: 97.1 | AR25: 0.1899699731
A26: 2 | B26: 11 | C26: 0.196690349 | D26: 0 | E26: =IF(I$3=0,0,IF(OPFOKLEGHEN!$H$13="parallel geschakeld met warmtewisselaar",0,MIN(I$3,C26))) -> 0 | F26: =IF(I$3=0,0,IF(OPFOKLEGHEN!$H$13="serie geschakeld met warmtewisselaar",0,IF(C26<$I$3,C26-D26,MIN($I$3,C26-D26)))) -> 0 | G26: =IF(C26<$I$7,MAX(0,C26-D26-E26-F26,IF(OPFOKLEGHEN!$H$15="warmtewisselaar",IF(OPFOKLEGHEN!$H$13="serie geschakeld met warmtewisselaar",MIN(I$7,MAX(0,C26-D26-F26)),MIN(I$7,MAX(0,C26-D26-E26-F26))))),IF(OPFOKLEGHEN!$H$13="parallel geschakeld met warmtewisselaar",MIN(I$7,C26-D26-E26-F26,MIN(I$7,C26-E26-F26)),MIN(I$7,MAX(0,C26-D26-F26)))) -> 0 | H26: =IF(OPFOKLEGHEN!$H$13="parallel geschakeld met warmtewisselaar",IF(OPFOKLEGHEN!$L$9="nee",IF(OPFOKLEGHEN!$J$18="ja",C26-F26-G26,C26-D26-F26-G26),IF(OPFOKLEGHEN!$L$9="ja",IF(OPFOKLEGHEN!$J$18="ja",C26-G26,IF(OPFOKLEGHEN!$J$18="nee",C26-D26-G26)))),IF(OPFOKLEGHEN!$H$13="serie geschakeld met warmtewisselaar",IF(OPFOKLEGHEN!$J$18="ja",C26-G26,C26-D26-F26-G26),C26-D26-F26-G26)) -> 0.196690349 | I26: 0.196690349 | J26: 0.2549070977 | K26: 0.4392068302 | L26: =SUM(K$16:K26)/$K$137 -> 0.004288632524 | M26: 0.0005515154261 | N26: 0.4392068302 | O26: =IF(E26<I$3,P26*(1-I$6*D26/C26),IF(OPFOKLEGHEN!$H$11="droogtunnel (platen) 55%",P26*(1-$I$6)+(C26-D26)/C26*(K26-P26*(1-I$6)),P26*(1-$I$6)+(C26-D26)/C26*(K26-P26*(1-I$6)))) -> 0.4392068302 | P26: 0.4392068302 | Q26: 0.4392068302 | R26: 0.4392068302 | S26: =MIN(K26,IF(OPFOKLEGHEN!$H$13="parallel geschakeld met warmtewisselaar",K26-(G26/(C26-G26))*(Q26)*95%,K26-(G26/(C26-G26))*(P26)*84%)) -> 0.4392068302 | T26: 0.4392068302 | U26: 0.2366971659 | V26: =IF(OPFOKLEGHEN!$J$18="nee",H26/C26*K26,IF(OPFOKLEGHEN!$H$20="ja",O26-(K26-Q26)-(K26-S26),Q26-(K26-O26)-(K26-S26))) -> 0.4392068302 | W26: =IF(H26=0,0,IF(OPFOKLEGHEN!$H$11="geen droogtunnel",IF(OPFOKLEGHEN!$H$15="geen warmtewisselaar",Q26-(K26-R26)))+IF(OPFOKLEGHEN!$H$12>0,IF(OPFOKLEGHEN!$H$13="serie geschakeld met warmtewisselaar",(O26*80%-(K26-S26)),(Q26-(K26-S26)-(K26-T26))),(N26-(K26-S26)))) -> 0.8784136604 | X26: =IF(H26=0,0,IF(OPFOKLEGHEN!$H$11="geen droogtunnel",IF(OPFOKLEGHEN!$H$15="geen warmtewisselaar",Q26-(K26-R26)))+IF(OPFOKLEGHEN!$H$12>0,IF(OPFOKLEGHEN!$H$13="serie geschakeld met warmtewisselaar",3*(O26*80%-(K26-S26)),(Q26-(K26-S26)-(K26-N26))),(N26-(K26-S26)))) -> 0.8784136604 | Y26: =IF(H26=0,0,IF(OPFOKLEGHEN!$H$11="geen droogtunnel",IF(OPFOKLEGHEN!$H$15="geen warmtewisselaar",Q26-(K26-R26)))+IF(OPFOKLEGHEN!$H$12>0,IF(OPFOKLEGHEN!$H$13="serie geschakeld met warmtewisselaar",(O26-(K26-S26)),IF(OPFOKLEGHEN!$H$13="parallel geschakeld met warmtewisselaar",IF(OPFOKLEGHEN!$L$9="ja",IF(OPFOKLEGHEN!$J$18="nee",(N26-(K26-Q26)-(K26-S26)),(Q26-(K26-N26/80%)))))),(O26-(K26-S26)))) -> 0.8784136604 | Z26: 1 | AC26: =IF(H26=0,0,IF(OPFOKLEGHEN!$H$11="geen droogtunnel",IF(OPFOKLEGHEN!$H$15="geen warmtewisselaar",P26-(K26-R26),K26-(K26-O26)/I$6-(K26-R26)/95%)+IF(OPFOKLEGHEN!$J$18="ja",J$5/I$5*(K26-O26)*(1-I$6)),IF(OPFOKLEGHEN!$H$12>=0,IF(OPFOKLEGHEN!$L$9="ja",IF(OPFOKLEGHEN!$J$18="ja",IF(OPFOKLEGHEN!$H$20="ja",O26-(K26-S26),IF(OPFOKLEGHEN!$H$20="nee",(O26-(K26-S26)),(O26-(K26-S26)))),IF(OPFOKLEGHEN!$J$18="nee",IF(OPFOKLEGHEN!$H$20="nee",O26*80%-(K26-S26),0+O26-(K26-S26)))),IF(OPFOKLEGHEN!$L$9="nee",IF(OPFOKLEGHEN!$J$18="nee",IF(OPFOKLEGHEN!$H$20="nee",(O26*80%-(K26-S26)),O26*93%-(K26-S26)),IF(OPFOKLEGHEN!$H$20="nee",IF(OPFOKLEGHEN!$J$18="ja",IF(OPFOKLEGHEN!$L$9="nee",O26-(K26-S26))),O26-(K26-S26)))))))) -> 0.4392068302 | AD26: =IF(H26=0,0,IF(OPFOKLEGHEN!$H$11="geen droogtunnel",IF(OPFOKLEGHEN!$H$15="geen warmtewisselaar",Q26-(K26-R26),N26-(K26-R26)),IF(OPFOKLEGHEN!$H$12>=0,IF(OPFOKLEGHEN!$L$9="ja",IF(OPFOKLEGHEN!$J$18="ja",IF(OPFOKLEGHEN!$H$20="ja",Q26-(K26-N26)-(K26-S26),IF(OPFOKLEGHEN!$H$20="nee",(Q26-(K26-N26)-(K26-S26)),(O26-(K26-S26)))),IF(OPFOKLEGHEN!$J$18="nee",IF(OPFOKLEGHEN!$H$20="nee",1*Q26*$N$135-(K26-N26)-(K26-S26),(Q26-(K26-N26)-(K26-S26))*N$135))),IF(OPFOKLEGHEN!$L$9="nee",IF(OPFOKLEGHEN!$J$18="nee",IF(OPFOKLEGHEN!$H$20="nee",(N26*95%-(K26-Q26)/I$4-(K26-S26)),N26-(K26-Q26)/I$4-(K26-S26)),IF(OPFOKLEGHEN!$H$20="nee",IF(OPFOKLEGHEN!$J$18="ja",IF(OPFOKLEGHEN!$L$9="nee",N26-(K26-Q26)/I$4-(K26-S26))),N26-(K26-Q26)/I$4-(K26-S26)))))))) -> 0.4392068302 | AE26: 0 | AF26: 0.2549070977 | AG26: 0 | AH26: 0 | AI26: 0.2549070977 | AJ26: 0 | AK26: 0.196690349 | AL26: 0.0005515154261 | AM26: 2 | AN26: 11 | AO26: 109.4 | AP26: 101.2 | AQ26: 105.3 | AR26: 0.2366971659
A27: 2 | B27: 12 | C27: 0.2048887354 | D27: 0 | E27: =IF(I$3=0,0,IF(OPFOKLEGHEN!$H$13="parallel geschakeld met warmtewisselaar",0,MIN(I$3,C27))) -> 0 | F27: =IF(I$3=0,0,IF(OPFOKLEGHEN!$H$13="serie geschakeld met warmtewisselaar",0,IF(C27<$I$3,C27-D27,MIN($I$3,C27-D27)))) -> 0 | G27: =IF(C27<$I$7,MAX(0,C27-D27-E27-F27,IF(OPFOKLEGHEN!$H$15="warmtewisselaar",IF(OPFOKLEGHEN!$H$13="serie geschakeld met warmtewisselaar",MIN(I$7,MAX(0,C27-D27-F27)),MIN(I$7,MAX(0,C27-D27-E27-F27))))),IF(OPFOKLEGHEN!$H$13="parallel geschakeld met warmtewisselaar",MIN(I$7,C27-D27-E27-F27,MIN(I$7,C27-E27-F27)),MIN(I$7,MAX(0,C27-D27-F27)))) -> 0 | H27: =IF(OPFOKLEGHEN!$H$13="parallel geschakeld met warmtewisselaar",IF(OPFOKLEGHEN!$L$9="nee",IF(OPFOKLEGHEN!$J$18="ja",C27-F27-G27,C27-D27-F27-G27),IF(OPFOKLEGHEN!$L$9="ja",IF(OPFOKLEGHEN!$J$18="ja",C27-G27,IF(OPFOKLEGHEN!$J$18="nee",C27-D27-G27)))),IF(OPFOKLEGHEN!$H$13="serie geschakeld met warmtewisselaar",IF(OPFOKLEGHEN!$J$18="ja",C27-G27,C27-D27-F27-G27),C27-D27-F27-G27)) -> 0.2048887354 | I27: 0.2048887354 | J27: 0.2596408049 | K27: 0.4660098912 | L27: =SUM(K$16:K27)/$K$137 -> 0.004834348802 | M27: 0.000638369714 | N27: 0.4660098912 | O27: =IF(E27<I$3,P27*(1-I$6*D27/C27),IF(OPFOKLEGHEN!$H$11="droogtunnel (platen) 55%",P27*(1-$I$6)+(C27-D27)/C27*(K27-P27*(1-I$6)),P27*(1-$I$6)+(C27-D27)/C27*(K27-P27*(1-I$6)))) -> 0.4660098912 | P27: 0.4660098912 | Q27: 0.4660098912 | R27: 0.4660098912 | S27: =MIN(K27,IF(OPFOKLEGHEN!$H$13="parallel geschakeld met warmtewisselaar",K27-(G27/(C27-G27))*(Q27)*95%,K27-(G27/(C27-G27))*(P27)*84%)) -> 0.4660098912 | T27: 0.4660098912 | U27: 0.2901224493 | V27: =IF(OPFOKLEGHEN!$J$18="nee",H27/C27*K27,IF(OPFOKLEGHEN!$H$20="ja",O27-(K27-Q27)-(K27-S27),Q27-(K27-O27)-(K27-S27))) -> 0.4660098912 | W27: =IF(H27=0,0,IF(OPFOKLEGHEN!$H$11="geen droogtunnel",IF(OPFOKLEGHEN!$H$15="geen warmtewisselaar",Q27-(K27-R27)))+IF(OPFOKLEGHEN!$H$12>0,IF(OPFOKLEGHEN!$H$13="serie geschakeld met warmtewisselaar",(O27*80%-(K27-S27)),(Q27-(K27-S27)-(K27-T27))),(N27-(K27-S27)))) -> 0.9320197824 | X27: =IF(H27=0,0,IF(OPFOKLEGHEN!$H$11="geen droogtunnel",IF(OPFOKLEGHEN!$H$15="geen warmtewisselaar",Q27-(K27-R27)))+IF(OPFOKLEGHEN!$H$12>0,IF(OPFOKLEGHEN!$H$13="serie geschakeld met warmtewisselaar",3*(O27*80%-(K27-S27)),(Q27-(K27-S27)-(K27-N27))),(N27-(K27-S27)))) -> 0.9320197824 | Y27: =IF(H27=0,0,IF(OPFOKLEGHEN!$H$11="geen droogtunnel",IF(OPFOKLEGHEN!$H$15="geen warmtewisselaar",Q27-(K27-R27)))+IF(OPFOKLEGHEN!$H$12>0,IF(OPFOKLEGHEN!$H$13="serie geschakeld met warmtewisselaar",(O27-(K27-S27)),IF(OPFOKLEGHEN!$H$13="parallel geschakeld met warmtewisselaar",IF(OPFOKLEGHEN!$L$9="ja",IF(OPFOKLEGHEN!$J$18="nee",(N27-(K27-Q27)-(K27-S27)),(Q27-(K27-N27/80%)))))),(O27-(K27-S27)))) -> 0.9320197824 | Z27: 1 | AC27: =IF(H27=0,0,IF(OPFOKLEGHEN!$H$11="geen droogtunnel",IF(OPFOKLEGHEN!$H$15="geen warmtewisselaar",P27-(K27-R27),K27-(K27-O27)/I$6-(K27-R27)/95%)+IF(OPFOKLEGHEN!$J$18="ja",J$5/I$5*(K27-O27)*(1-I$6)),IF(OPFOKLEGHEN!$H$12>=0,IF(OPFOKLEGHEN!$L$9="ja",IF(OPFOKLEGHEN!$J$18="ja",IF(OPFOKLEGHEN!$H$20="ja",O27-(K27-S27),IF(OPFOKLEGHEN!$H$20="nee",(O27-(K27-S27)),(O27-(K27-S27)))),IF(OPFOKLEGHEN!$J$18="nee",IF(OPFOKLEGHEN!$H$20="nee",O27*80%-(K27-S27),0+O27-(K27-S27)))),IF(OPFOKLEGHEN!$L$9="nee",IF(OPFOKLEGHEN!$J$18="nee",IF(OPFOKLEGHEN!$H$20="nee",(O27*80%-(K27-S27)),O27*93%-(K27-S27)),IF(OPFOKLEGHEN!$H$20="nee",IF(OPFOKLEGHEN!$J$18="ja",IF(OPFOKLEGHEN!$L$9="nee",O27-(K27-S27))),O27-(K27-S27)))))))) -> 0.4660098912 | AD27: =IF(H27=0,0,IF(OPFOKLEGHEN!$H$11="geen droogtunnel",IF(OPFOKLEGHEN!$H$15="geen warmtewisselaar",Q27-(K27-R27),N27-(K27-R27)),IF(OPFOKLEGHEN!$H$12>=0,IF(OPFOKLEGHEN!$L$9="ja",IF(OPFOKLEGHEN!$J$18="ja",IF(OPFOKLEGHEN!$H$20="ja",Q27-(K27-N27)-(K27-S27),IF(OPFOKLEGHEN!$H$20="nee",(Q27-(K27-N27)-(K27-S27)),(O27-(K27-S27)))),IF(OPFOKLEGHEN!$J$18="nee",IF(OPFOKLEGHEN!$H$20="nee",1*Q27*$N$135-(K27-N27)-(K27-S27),(Q27-(K27-N27)-(K27-S27))*N$135))),IF(OPFOKLEGHEN!$L$9="nee",IF(OPFOKLEGHEN!$J$18="nee",IF(OPFOKLEGHEN!$H$20="nee",(N27*95%-(K27-Q27)/I$4-(K27-S27)),N27-(K27-Q27)/I$4-(K27-S27)),IF(OPFOKLEGHEN!$H$20="nee",IF(OPFOKLEGHEN!$J$18="ja",IF(OPFOKLEGHEN!$L$9="nee",N27-(K27-Q27)/I$4-(K27-S27))),N27-(K27-Q27)/I$4-(K27-S27)))))))) -> 0.4660098912 | AE27: 0 | AF27: 0.2596408049 | AG27: 0 | AH27: 0 | AI27: 0.2596408049 | AJ27: 0 | AK27: 0.2048887354 | AL27: 0.000638369714 | AM27: 2 | AN27: 12 | AO27: 118 | AP27: 109 | AQ27: 113.5 | AR27: 0.2901224493
A28: 2 | B28: 13 | C28: 0.2130587046 | D28: 0 | E28: =IF(I$3=0,0,IF(OPFOKLEGHEN!$H$13="parallel geschakeld met warmtewisselaar",0,MIN(I$3,C28))) -> 0 | F28: =IF(I$3=0,0,IF(OPFOKLEGHEN!$H$13="serie geschakeld met warmtewisselaar",0,IF(C28<$I$3,C28-D28,MIN($I$3,C28-D28)))) -> 0 | G28: =IF(C28<$I$7,MAX(0,C28-D28-E28-F28,IF(OPFOKLEGHEN!$H$15="warmtewisselaar",IF(OPFOKLEGHEN!$H$13="serie geschakeld met warmtewisselaar",MIN(I$7,MAX(0,C28-D28-F28)),MIN(I$7,MAX(0,C28-D28-E28-F28))))),IF(OPFOKLEGHEN!$H$13="parallel geschakeld met warmtewisselaar",MIN(I$7,C28-D28-E28-F28,MIN(I$7,C28-E28-F28)),MIN(I$7,MAX(0,C28-D28-F28)))) -> 0 | H28: =IF(OPFOKLEGHEN!$H$13="parallel geschakeld met warmtewisselaar",IF(OPFOKLEGHEN!$L$9="nee",IF(OPFOKLEGHEN!$J$18="ja",C28-F28-G28,C28-D28-F28-G28),IF(OPFOKLEGHEN!$L$9="ja",IF(OPFOKLEGHEN!$J$18="ja",C28-G28,IF(OPFOKLEGHEN!$J$18="nee",C28-D28-G28)))),IF(OPFOKLEGHEN!$H$13="serie geschakeld met warmtewisselaar",IF(OPFOKLEGHEN!$J$18="ja",C28-G28,C28-D28-F28-G28),C28-D28-F28-G28)) -> 0.2130587046 | I28: 0.2130587046 | J28: 0.2644624185 | K28: 0.4935911377 | L28: =SUM(K$16:K28)/$K$137 -> 0.005412363826 | M28: 0.0007324982638 | N28: 0.4935911377 | O28: =IF(E28<I$3,P28*(1-I$6*D28/C28),IF(OPFOKLEGHEN!$H$11="droogtunnel (platen) 55%",P28*(1-$I$6)+(C28-D28)/C28*(K28-P28*(1-I$6)),P28*(1-$I$6)+(C28-D28)/C28*(K28-P28*(1-I$6)))) -> 0.4935911377 | P28: 0.4935911377 | Q28: 0.4935911377 | R28: 0.4935911377 | S28: =MIN(K28,IF(OPFOKLEGHEN!$H$13="parallel geschakeld met warmtewisselaar",K28-(G28/(C28-G28))*(Q28)*95%,K28-(G28/(C28-G28))*(P28)*84%)) -> 0.4935911377 | T28: 0.4935911377 | U28: 0.3506520159 | V28: =IF(OPFOKLEGHEN!$J$18="nee",H28/C28*K28,IF(OPFOKLEGHEN!$H$20="ja",O28-(K28-Q28)-(K28-S28),Q28-(K28-O28)-(K28-S28))) -> 0.4935911377 | W28: =IF(H28=0,0,IF(OPFOKLEGHEN!$H$11="geen droogtunnel",IF(OPFOKLEGHEN!$H$15="geen warmtewisselaar",Q28-(K28-R28)))+IF(OPFOKLEGHEN!$H$12>0,IF(OPFOKLEGHEN!$H$13="serie geschakeld met warmtewisselaar",(O28*80%-(K28-S28)),(Q28-(K28-S28)-(K28-T28))),(N28-(K28-S28)))) -> 0.9871822755 | X28: =IF(H28=0,0,IF(OPFOKLEGHEN!$H$11="geen droogtunnel",IF(OPFOKLEGHEN!$H$15="geen warmtewisselaar",Q28-(K28-R28)))+IF(OPFOKLEGHEN!$H$12>0,IF(OPFOKLEGHEN!$H$13="serie geschakeld met warmtewisselaar",3*(O28*80%-(K28-S28)),(Q28-(K28-S28)-(K28-N28))),(N28-(K28-S28)))) -> 0.9871822755 | Y28: =IF(H28=0,0,IF(OPFOKLEGHEN!$H$11="geen droogtunnel",IF(OPFOKLEGHEN!$H$15="geen warmtewisselaar",Q28-(K28-R28)))+IF(OPFOKLEGHEN!$H$12>0,IF(OPFOKLEGHEN!$H$13="serie geschakeld met warmtewisselaar",(O28-(K28-S28)),IF(OPFOKLEGHEN!$H$13="parallel geschakeld met warmtewisselaar",IF(OPFOKLEGHEN!$L$9="ja",IF(OPFOKLEGHEN!$J$18="nee",(N28-(K28-Q28)-(K28-S28)),(Q28-(K28-N28/80%)))))),(O28-(K28-S28)))) -> 0.9871822755 | Z28: 1 | AC28: =IF(H28=0,0,IF(OPFOKLEGHEN!$H$11="geen droogtunnel",IF(OPFOKLEGHEN!$H$15="geen warmtewisselaar",P28-(K28-R28),K28-(K28-O28)/I$6-(K28-R28)/95%)+IF(OPFOKLEGHEN!$J$18="ja",J$5/I$5*(K28-O28)*(1-I$6)),IF(OPFOKLEGHEN!$H$12>=0,IF(OPFOKLEGHEN!$L$9="ja",IF(OPFOKLEGHEN!$J$18="ja",IF(OPFOKLEGHEN!$H$20="ja",O28-(K28-S28),IF(OPFOKLEGHEN!$H$20="nee",(O28-(K28-S28)),(O28-(K28-S28)))),IF(OPFOKLEGHEN!$J$18="nee",IF(OPFOKLEGHEN!$H$20="nee",O28*80%-(K28-S28),0+O28-(K28-S28)))),IF(OPFOKLEGHEN!$L$9="nee",IF(OPFOKLEGHEN!$J$18="nee",IF(OPFOKLEGHEN!$H$20="nee",(O28*80%-(K28-S28)),O28*93%-(K28-S28)),IF(OPFOKLEGHEN!$H$20="nee",IF(OPFOKLEGHEN!$J$18="ja",IF(OPFOKLEGHEN!$L$9="nee",O28-(K28-S28))),O28-(K28-S28)))))))) -> 0.4935911377 | AD28: =IF(H28=0,0,IF(OPFOKLEGHEN!$H$11="geen droogtunnel",IF(OPFOKLEGHEN!$H$15="geen warmtewisselaar",Q28-(K28-R28),N28-(K28-R28)),IF(OPFOKLEGHEN!$H$12>=0,IF(OPFOKLEGHEN!$L$9="ja",IF(OPFOKLEGHEN!$J$18="ja",IF(OPFOKLEGHEN!$H$20="ja",Q28-(K28-N28)-(K28-S28),IF(OPFOKLEGHEN!$H$20="nee",(Q28-(K28-N28)-(K28-S28)),(O28-(K28-S28)))),IF(OPFOKLEGHEN!$J$18="nee",IF(OPFOKLEGHEN!$H$20="nee",1*Q28*$N$135-(K28-N28)-(K28-S28),(Q28-(K28-N28)-(K28-S28))*N$135))),IF(OPFOKLEGHEN!$L$9="nee",IF(OPFOKLEGHEN!$J$18="nee",IF(OPFOKLEGHEN!$H$20="nee",(N28*95%-(K28-Q28)/I$4-(K28-S28)),N28-(K28-Q28)/I$4-(K28-S28)),IF(OPFOKLEGHEN!$H$20="nee",IF(OPFOKLEGHEN!$J$18="ja",IF(OPFOKLEGHEN!$L$9="nee",N28-(K28-Q28)/I$4-(K28-S28))),N28-(K28-Q28)/I$4-(K28-S28)))))))) -> 0.4935911377 | AE28: 0 | AF28: 0.2644624185 | AG28: 0 | AH28: 0 | AI28: 0.2644624185 | AJ28: 0 | AK28: 0.2130587046 | AL28: 0.0007324982638 | AM28: 2 | AN28: 13 | AO28: 126.6 | AP28: 116.8 | AQ28: 121.7 | AR28: 0.3506520159
A29: 2 | B29: 14 | C29: 0.2213006673 | D29: 0 | E29: =IF(I$3=0,0,IF(OPFOKLEGHEN!$H$13="parallel geschakeld met warmtewisselaar",0,MIN(I$3,C29))) -> 0 | F29: =IF(I$3=0,0,IF(OPFOKLEGHEN!$H$13="serie geschakeld met warmtewisselaar",0,IF(C29<$I$3,C29-D29,MIN($I$3,C29-D29)))) -> 0 | G29: =IF(C29<$I$7,MAX(0,C29-D29-E29-F29,IF(OPFOKLEGHEN!$H$15="warmtewisselaar",IF(OPFOKLEGHEN!$H$13="serie geschakeld met warmtewisselaar",MIN(I$7,MAX(0,C29-D29-F29)),MIN(I$7,MAX(0,C29-D29-E29-F29))))),IF(OPFOKLEGHEN!$H$13="parallel geschakeld met warmtewisselaar",MIN(I$7,C29-D29-E29-F29,MIN(I$7,C29-E29-F29)),MIN(I$7,MAX(0,C29-D29-F29)))) -> 0 | H29: =IF(OPFOKLEGHEN!$H$13="parallel geschakeld met warmtewisselaar",IF(OPFOKLEGHEN!$L$9="nee",IF(OPFOKLEGHEN!$J$18="ja",C29-F29-G29,C29-D29-F29-G29),IF(OPFOKLEGHEN!$L$9="ja",IF(OPFOKLEGHEN!$J$18="ja",C29-G29,IF(OPFOKLEGHEN!$J$18="nee",C29-D29-G29)))),IF(OPFOKLEGHEN!$H$13="serie geschakeld met warmtewisselaar",IF(OPFOKLEGHEN!$J$18="ja",C29-G29,C29-D29-F29-G29),C29-D29-F29-G29)) -> 0.2213006673 | I29: 0.2213006673 | J29: 0.2693735711 | K29: 0.5222059469 | L29: =SUM(K$16:K29)/$K$137 -> 0.00602388794 | M29: 0.0008345757143 | N29: 0.5222059469 | O29: =IF(E29<I$3,P29*(1-I$6*D29/C29),IF(OPFOKLEGHEN!$H$11="droogtunnel (platen) 55%",P29*(1-$I$6)+(C29-D29)/C29*(K29-P29*(1-I$6)),P29*(1-$I$6)+(C29-D29)/C29*(K29-P29*(1-I$6)))) -> 0.5222059469 | P29: 0.5222059469 | Q29: 0.5222059469 | R29: 0.5222059469 | S29: =MIN(K29,IF(OPFOKLEGHEN!$H$13="parallel geschakeld met warmtewisselaar",K29-(G29/(C29-G29))*(Q29)*95%,K29-(G29/(C29-G29))*(P29)*84%)) -> 0.5222059469 | T29: 0.5222059469 | U29: 0.4182582611 | V29: =IF(OPFOKLEGHEN!$J$18="nee",H29/C29*K29,IF(OPFOKLEGHEN!$H$20="ja",O29-(K29-Q29)-(K29-S29),Q29-(K29-O29)-(K29-S29))) -> 0.5222059469 | W29: =IF(H29=0,0,IF(OPFOKLEGHEN!$H$11="geen droogtunnel",IF(OPFOKLEGHEN!$H$15="geen warmtewisselaar",Q29-(K29-R29)))+IF(OPFOKLEGHEN!$H$12>0,IF(OPFOKLEGHEN!$H$13="serie geschakeld met warmtewisselaar",(O29*80%-(K29-S29)),(Q29-(K29-S29)-(K29-T29))),(N29-(K29-S29)))) -> 1.044411894 | X29: =IF(H29=0,0,IF(OPFOKLEGHEN!$H$11="geen droogtunnel",IF(OPFOKLEGHEN!$H$15="geen warmtewisselaar",Q29-(K29-R29)))+IF(OPFOKLEGHEN!$H$12>0,IF(OPFOKLEGHEN!$H$13="serie geschakeld met warmtewisselaar",3*(O29*80%-(K29-S29)),(Q29-(K29-S29)-(K29-N29))),(N29-(K29-S29)))) -> 1.044411894 | Y29: =IF(H29=0,0,IF(OPFOKLEGHEN!$H$11="geen droogtunnel",IF(OPFOKLEGHEN!$H$15="geen warmtewisselaar",Q29-(K29-R29)))+IF(OPFOKLEGHEN!$H$12>0,IF(OPFOKLEGHEN!$H$13="serie geschakeld met warmtewisselaar",(O29-(K29-S29)),IF(OPFOKLEGHEN!$H$13="parallel geschakeld met warmtewisselaar",IF(OPFOKLEGHEN!$L$9="ja",IF(OPFOKLEGHEN!$J$18="nee",(N29-(K29-Q29)-(K29-S29)),(Q29-(K29-N29/80%)))))),(O29-(K29-S29)))) -> 1.044411894 | Z29: 1 | AC29: =IF(H29=0,0,IF(OPFOKLEGHEN!$H$11="geen droogtunnel",IF(OPFOKLEGHEN!$H$15="geen warmtewisselaar",P29-(K29-R29),K29-(K29-O29)/I$6-(K29-R29)/95%)+IF(OPFOKLEGHEN!$J$18="ja",J$5/I$5*(K29-O29)*(1-I$6)),IF(OPFOKLEGHEN!$H$12>=0,IF(OPFOKLEGHEN!$L$9="ja",IF(OPFOKLEGHEN!$J$18="ja",IF(OPFOKLEGHEN!$H$20="ja",O29-(K29-S29),IF(OPFOKLEGHEN!$H$20="nee",(O29-(K29-S29)),(O29-(K29-S29)))),IF(OPFOKLEGHEN!$J$18="nee",IF(OPFOKLEGHEN!$H$20="nee",O29*80%-(K29-S29),0+O29-(K29-S29)))),IF(OPFOKLEGHEN!$L$9="nee",IF(OPFOKLEGHEN!$J$18="nee",IF(OPFOKLEGHEN!$H$20="nee",(O29*80%-(K29-S29)),O29*93%-(K29-S29)),IF(OPFOKLEGHEN!$H$20="nee",IF(OPFOKLEGHEN!$J$18="ja",IF(OPFOKLEGHEN!$L$9="nee",O29-(K29-S29))),O29-(K29-S29)))))))) -> 0.5222059469 | AD29: =IF(H29=0,0,IF(OPFOKLEGHEN!$H$11="geen droogtunnel",IF(OPFOKLEGHEN!$H$15="geen warmtewisselaar",Q29-(K29-R29),N29-(K29-R29)),IF(OPFOKLEGHEN!$H$12>=0,IF(OPFOKLEGHEN!$L$9="ja",IF(OPFOKLEGHEN!$J$18="ja",IF(OPFOKLEGHEN!$H$20="ja",Q29-(K29-N29)-(K29-S29),IF(OPFOKLEGHEN!$H$20="nee",(Q29-(K29-N29)-(K29-S29)),(O29-(K29-S29)))),IF(OPFOKLEGHEN!$J$18="nee",IF(OPFOKLEGHEN!$H$20="nee",1*Q29*$N$135-(K29-N29)-(K29-S29),(Q29-(K29-N29)-(K29-S29))*N$135))),IF(OPFOKLEGHEN!$L$9="nee",IF(OPFOKLEGHEN!$J$18="nee",IF(OPFOKLEGHEN!$H$20="nee",(N29*95%-(K29-Q29)/I$4-(K29-S29)),N29-(K29-Q29)/I$4-(K29-S29)),IF(OPFOKLEGHEN!$H$20="nee",IF(OPFOKLEGHEN!$J$18="ja",IF(OPFOKLEGHEN!$L$9="nee",N29-(K29-Q29)/I$4-(K29-S29))),N29-(K29-Q29)/I$4-(K29-S29)))))))) -> 0.5222059469 | AE29: 0 | AF29: 0.2693735711 | AG29: 0 | AH29: 0 | AI29: 0.2693735711 | AJ29: 0 | AK29: 0.2213006673 | AL29: 0.0008345757143 | AM29: 2 | AN29: 14 | AO29: 135 | AP29: 125 | AQ29: 130 | AR29: 0.4182582611
A30: 3 | B30: 15 | C30: 0.2308499696 | D30: 0 | E30: =IF(I$3=0,0,IF(OPFOKLEGHEN!$H$13="parallel geschakeld met warmtewisselaar",0,MIN(I$3,C30))) -> 0 | F30: =IF(I$3=0,0,IF(OPFOKLEGHEN!$H$13="serie geschakeld met warmtewisselaar",0,IF(C30<$I$3,C30-D30,MIN($I$3,C30-D30)))) -> 0 | G30: =IF(C30<$I$7,MAX(0,C30-D30-E30-F30,IF(OPFOKLEGHEN!$H$15="warmtewisselaar",IF(OPFOKLEGHEN!$H$13="serie geschakeld met warmtewisselaar",MIN(I$7,MAX(0,C30-D30-F30)),MIN(I$7,MAX(0,C30-D30-E30-F30))))),IF(OPFOKLEGHEN!$H$13="parallel geschakeld met warmtewisselaar",MIN(I$7,C30-D30-E30-F30,MIN(I$7,C30-E30-F30)),MIN(I$7,MAX(0,C30-D30-F30)))) -> 0 | H30: =IF(OPFOKLEGHEN!$H$13="parallel geschakeld met warmtewisselaar",IF(OPFOKLEGHEN!$L$9="nee",IF(OPFOKLEGHEN!$J$18="ja",C30-F30-G30,C30-D30-F30-G30),IF(OPFOKLEGHEN!$L$9="ja",IF(OPFOKLEGHEN!$J$18="ja",C30-G30,IF(OPFOKLEGHEN!$J$18="nee",C30-D30-G30)))),IF(OPFOKLEGHEN!$H$13="serie geschakeld met warmtewisselaar",IF(OPFOKLEGHEN!$J$18="ja",C30-G30,C30-D30-F30-G30),C30-D30-F30-G30)) -> 0.2308499696 | I30: 0.2308499696 | J30: 0.2743759253 | K30: 0.5548555442 | L30: =SUM(K$16:K30)/$K$137 -> 0.006673646042 | M30: 0.00095009511 | N30: 0.5548555442 | O30: =IF(E30<I$3,P30*(1-I$6*D30/C30),IF(OPFOKLEGHEN!$H$11="droogtunnel (platen) 55%",P30*(1-$I$6)+(C30-D30)/C30*(K30-P30*(1-I$6)),P30*(1-$I$6)+(C30-D30)/C30*(K30-P30*(1-I$6)))) -> 0.5548555442 | P30: 0.5548555442 | Q30: 0.5548555442 | R30: 0.5548555442 | S30: =MIN(K30,IF(OPFOKLEGHEN!$H$13="parallel geschakeld met warmtewisselaar",K30-(G30/(C30-G30))*(Q30)*95%,K30-(G30/(C30-G30))*(P30)*84%)) -> 0.5548555442 | T30: 0.5548555442 | U30: 0.5020986838 | V30: =IF(OPFOKLEGHEN!$J$18="nee",H30/C30*K30,IF(OPFOKLEGHEN!$H$20="ja",O30-(K30-Q30)-(K30-S30),Q30-(K30-O30)-(K30-S30))) -> 0.5548555442 | W30: =IF(H30=0,0,IF(OPFOKLEGHEN!$H$11="geen droogtunnel",IF(OPFOKLEGHEN!$H$15="geen warmtewisselaar",Q30-(K30-R30)))+IF(OPFOKLEGHEN!$H$12>0,IF(OPFOKLEGHEN!$H$13="serie geschakeld met warmtewisselaar",(O30*80%-(K30-S30)),(Q30-(K30-S30)-(K30-T30))),(N30-(K30-S30)))) -> 1.109711088 | X30: =IF(H30=0,0,IF(OPFOKLEGHEN!$H$11="geen droogtunnel",IF(OPFOKLEGHEN!$H$15="geen warmtewisselaar",Q30-(K30-R30)))+IF(OPFOKLEGHEN!$H$12>0,IF(OPFOKLEGHEN!$H$13="serie geschakeld met warmtewisselaar",3*(O30*80%-(K30-S30)),(Q30-(K30-S30)-(K30-N30))),(N30-(K30-S30)))) -> 1.109711088 | Y30: =IF(H30=0,0,IF(OPFOKLEGHEN!$H$11="geen droogtunnel",IF(OPFOKLEGHEN!$H$15="geen warmtewisselaar",Q30-(K30-R30)))+IF(OPFOKLEGHEN!$H$12>0,IF(OPFOKLEGHEN!$H$13="serie geschakeld met warmtewisselaar",(O30-(K30-S30)),IF(OPFOKLEGHEN!$H$13="parallel geschakeld met warmtewisselaar",IF(OPFOKLEGHEN!$L$9="ja",IF(OPFOKLEGHEN!$J$18="nee",(N30-(K30-Q30)-(K30-S30)),(Q30-(K30-N30/80%)))))),(O30-(K30-S30)))) -> 1.109711088 | Z30: 1 | AC30: =IF(H30=0,0,IF(OPFOKLEGHEN!$H$11="geen droogtunnel",IF(OPFOKLEGHEN!$H$15="geen warmtewisselaar",P30-(K30-R30),K30-(K30-O30)/I$6-(K30-R30)/95%)+IF(OPFOKLEGHEN!$J$18="ja",J$5/I$5*(K30-O30)*(1-I$6)),IF(OPFOKLEGHEN!$H$12>=0,IF(OPFOKLEGHEN!$L$9="ja",IF(OPFOKLEGHEN!$J$18="ja",IF(OPFOKLEGHEN!$H$20="ja",O30-(K30-S30),IF(OPFOKLEGHEN!$H$20="nee",(O30-(K30-S30)),(O30-(K30-S30)))),IF(OPFOKLEGHEN!$J$18="nee",IF(OPFOKLEGHEN!$H$20="nee",O30*80%-(K30-S30),0+O30-(K30-S30)))),IF(OPFOKLEGHEN!$L$9="nee",IF(OPFOKLEGHEN!$J$18="nee",IF(OPFOKLEGHEN!$H$20="nee",(O30*80%-(K30-S30)),O30*93%-(K30-S30)),IF(OPFOKLEGHEN!$H$20="nee",IF(OPFOKLEGHEN!$J$18="ja",IF(OPFOKLEGHEN!$L$9="nee",O30-(K30-S30))),O30-(K30-S30)))))))) -> 0.5548555442 | AD30: =IF(H30=0,0,IF(OPFOKLEGHEN!$H$11="geen droogtunnel",IF(OPFOKLEGHEN!$H$15="geen warmtewisselaar",Q30-(K30-R30),N30-(K30-R30)),IF(OPFOKLEGHEN!$H$12>=0,IF(OPFOKLEGHEN!$L$9="ja",IF(OPFOKLEGHEN!$J$18="ja",IF(OPFOKLEGHEN!$H$20="ja",Q30-(K30-N30)-(K30-S30),IF(OPFOKLEGHEN!$H$20="nee",(Q30-(K30-N30)-(K30-S30)),(O30-(K30-S30)))),IF(OPFOKLEGHEN!$J$18="nee",IF(OPFOKLEGHEN!$H$20="nee",1*Q30*$N$135-(K30-N30)-(K30-S30),(Q30-(K30-N30)-(K30-S30))*N$135))),IF(OPFOKLEGHEN!$L$9="nee",IF(OPFOKLEGHEN!$J$18="nee",IF(OPFOKLEGHEN!$H$20="nee",(N30*95%-(K30-Q30)/I$4-(K30-S30)),N30-(K30-Q30)/I$4-(K30-S30)),IF(OPFOKLEGHEN!$H$20="nee",IF(OPFOKLEGHEN!$J$18="ja",IF(OPFOKLEGHEN!$L$9="nee",N30-(K30-Q30)/I$4-(K30-S30))),N30-(K30-Q30)/I$4-(K30-S30)))))))) -> 0.5548555442 | AE30: 0 | AF30: 0.2743759253 | AG30: 0 | AH30: 0 | AI30: 0.2743759253 | AJ30: 0 | AK30: 0.2308499696 | AL30: 0.00095009511 | AM30: 3 | AN30: 15 | AO30: 145 | AP30: =AP29+9.3 -> 134.3 | AQ30: 139.65 | AR30: 0.5020986838
A31: 3 | B31: 16 | C31: 0.2403655266 | D31: 0 | E31: =IF(I$3=0,0,IF(OPFOKLEGHEN!$H$13="parallel geschakeld met warmtewisselaar",0,MIN(I$3,C31))) -> 0 | F31: =IF(I$3=0,0,IF(OPFOKLEGHEN!$H$13="serie geschakeld met warmtewisselaar",0,IF(C31<$I$3,C31-D31,MIN($I$3,C31-D31)))) -> 0 | G31: =IF(C31<$I$7,MAX(0,C31-D31-E31-F31,IF(OPFOKLEGHEN!$H$15="warmtewisselaar",IF(OPFOKLEGHEN!$H$13="serie geschakeld met warmtewisselaar",MIN(I$7,MAX(0,C31-D31-F31)),MIN(I$7,MAX(0,C31-D31-E31-F31))))),IF(OPFOKLEGHEN!$H$13="parallel geschakeld met warmtewisselaar",MIN(I$7,C31-D31-E31-F31,MIN(I$7,C31-E31-F31)),MIN(I$7,MAX(0,C31-D31-F31)))) -> 0 | H31: =IF(OPFOKLEGHEN!$H$13="parallel geschakeld met warmtewisselaar",IF(OPFOKLEGHEN!$L$9="nee",IF(OPFOKLEGHEN!$J$18="ja",C31-F31-G31,C31-D31-F31-G31),IF(OPFOKLEGHEN!$L$9="ja",IF(OPFOKLEGHEN!$J$18="ja",C31-G31,IF(OPFOKLEGHEN!$J$18="nee",C31-D31-G31)))),IF(OPFOKLEGHEN!$H$13="serie geschakeld met warmtewisselaar",IF(OPFOKLEGHEN!$J$18="ja",C31-G31,C31-D31-F31-G31),C31-D31-F31-G31)) -> 0.2403655266 | I31: 0.2403655266 | J31: 0.2794711749 | K31: 0.5884550685 | L31: =SUM(K$16:K31)/$K$137 -> 0.007362750535 | M31: 0.001074803778 | N31: 0.5884550685 | O31: =IF(E31<I$3,P31*(1-I$6*D31/C31),IF(OPFOKLEGHEN!$H$11="droogtunnel (platen) 55%",P31*(1-$I$6)+(C31-D31)/C31*(K31-P31*(1-I$6)),P31*(1-$I$6)+(C31-D31)/C31*(K31-P31*(1-I$6)))) -> 0.5884550685 | P31: 0.5884550685 | Q31: 0.5884550685 | R31: 0.5884550685 | S31: =MIN(K31,IF(OPFOKLEGHEN!$H$13="parallel geschakeld met warmtewisselaar",K31-(G31/(C31-G31))*(Q31)*95%,K31-(G31/(C31-G31))*(P31)*84%)) -> 0.5884550685 | T31: 0.5884550685 | U31: 0.5961065061 | V31: =IF(OPFOKLEGHEN!$J$18="nee",H31/C31*K31,IF(OPFOKLEGHEN!$H$20="ja",O31-(K31-Q31)-(K31-S31),Q31-(K31-O31)-(K31-S31))) -> 0.5884550685 | W31: =IF(H31=0,0,IF(OPFOKLEGHEN!$H$11="geen droogtunnel",IF(OPFOKLEGHEN!$H$15="geen warmtewisselaar",Q31-(K31-R31)))+IF(OPFOKLEGHEN!$H$12>0,IF(OPFOKLEGHEN!$H$13="serie geschakeld met warmtewisselaar",(O31*80%-(K31-S31)),(Q31-(K31-S31)-(K31-T31))),(N31-(K31-S31)))) -> 1.176910137 | X31: =IF(H31=0,0,IF(OPFOKLEGHEN!$H$11="geen droogtunnel",IF(OPFOKLEGHEN!$H$15="geen warmtewisselaar",Q31-(K31-R31)))+IF(OPFOKLEGHEN!$H$12>0,IF(OPFOKLEGHEN!$H$13="serie geschakeld met warmtewisselaar",3*(O31*80%-(K31-S31)),(Q31-(K31-S31)-(K31-N31))),(N31-(K31-S31)))) -> 1.176910137 | Y31: =IF(H31=0,0,IF(OPFOKLEGHEN!$H$11="geen droogtunnel",IF(OPFOKLEGHEN!$H$15="geen warmtewisselaar",Q31-(K31-R31)))+IF(OPFOKLEGHEN!$H$12>0,IF(OPFOKLEGHEN!$H$13="serie geschakeld met warmtewisselaar",(O31-(K31-S31)),IF(OPFOKLEGHEN!$H$13="parallel geschakeld met warmtewisselaar",IF(OPFOKLEGHEN!$L$9="ja",IF(OPFOKLEGHEN!$J$18="nee",(N31-(K31-Q31)-(K31-S31)),(Q31-(K31-N31/80%)))))),(O31-(K31-S31)))) -> 1.176910137 | Z31: 1 | AC31: =IF(H31=0,0,IF(OPFOKLEGHEN!$H$11="geen droogtunnel",IF(OPFOKLEGHEN!$H$15="geen warmtewisselaar",P31-(K31-R31),K31-(K31-O31)/I$6-(K31-R31)/95%)+IF(OPFOKLEGHEN!$J$18="ja",J$5/I$5*(K31-O31)*(1-I$6)),IF(OPFOKLEGHEN!$H$12>=0,IF(OPFOKLEGHEN!$L$9="ja",IF(OPFOKLEGHEN!$J$18="ja",IF(OPFOKLEGHEN!$H$20="ja",O31-(K31-S31),IF(OPFOKLEGHEN!$H$20="nee",(O31-(K31-S31)),(O31-(K31-S31)))),IF(OPFOKLEGHEN!$J$18="nee",IF(OPFOKLEGHEN!$H$20="nee",O31*80%-(K31-S31),0+O31-(K31-S31)))),IF(OPFOKLEGHEN!$L$9="nee",IF(OPFOKLEGHEN!$J$18="nee",IF(OPFOKLEGHEN!$H$20="nee",(O31*80%-(K31-S31)),O31*93%-(K31-S31)),IF(OPFOKLEGHEN!$H$20="nee",IF(OPFOKLEGHEN!$J$18="ja",IF(OPFOKLEGHEN!$L$9="nee",O31-(K31-S31))),O31-(K31-S31)))))))) -> 0.5884550685 | AD31: =IF(H31=0,0,IF(OPFOKLEGHEN!$H$11="geen droogtunnel",IF(OPFOKLEGHEN!$H$15="geen warmtewisselaar",Q31-(K31-R31),N31-(K31-R31)),IF(OPFOKLEGHEN!$H$12>=0,IF(OPFOKLEGHEN!$L$9="ja",IF(OPFOKLEGHEN!$J$18="ja",IF(OPFOKLEGHEN!$H$20="ja",Q31-(K31-N31)-(K31-S31),IF(OPFOKLEGHEN!$H$20="nee",(Q31-(K31-N31)-(K31-S31)),(O31-(K31-S31)))),IF(OPFOKLEGHEN!$J$18="nee",IF(OPFOKLEGHEN!$H$20="nee",1*Q31*$N$135-(K31-N31)-(K31-S31),(Q31-(K31-N31)-(K31-S31))*N$135))),IF(OPFOKLEGHEN!$L$9="nee",IF(OPFOKLEGHEN!$J$18="nee",IF(OPFOKLEGHEN!$H$20="nee",(N31*95%-(K31-Q31)/I$4-(K31-S31)),N31-(K31-Q31)/I$4-(K31-S31)),IF(OPFOKLEGHEN!$H$20="nee",IF(OPFOKLEGHEN!$J$18="ja",IF(OPFOKLEGHEN!$L$9="nee",N31-(K31-Q31)/I$4-(K31-S31))),N31-(K31-Q31)/I$4-(K31-S31)))))))) -> 0.5884550685 | AE31: 0 | AF31: 0.2794711749 | AG31: 0 | AH31: 0 | AI31: 0.2794711749 | AJ31: 0 | AK31: 0.2403655266 | AL31: 0.001074803778 | AM31: 3 | AN31: 16 | AO31: 155 | AP31: 143.6 | AQ31: 149.3 | AR31: 0.5961065061
A32: 3 | B32: 17 | C32: 0.249849409 | D32: 0 | E32: =IF(I$3=0,0,IF(OPFOKLEGHEN!$H$13="parallel geschakeld met warmtewisselaar",0,MIN(I$3,C32))) -> 0 | F32: =IF(I$3=0,0,IF(OPFOKLEGHEN!$H$13="serie geschakeld met warmtewisselaar",0,IF(C32<$I$3,C32-D32,MIN($I$3,C32-D32)))) -> 0 | G32: =IF(C32<$I$7,MAX(0,C32-D32-E32-F32,IF(OPFOKLEGHEN!$H$15="warmtewisselaar",IF(OPFOKLEGHEN!$H$13="serie geschakeld met warmtewisselaar",MIN(I$7,MAX(0,C32-D32-F32)),MIN(I$7,MAX(0,C32-D32-E32-F32))))),IF(OPFOKLEGHEN!$H$13="parallel geschakeld met warmtewisselaar",MIN(I$7,C32-D32-E32-F32,MIN(I$7,C32-E32-F32)),MIN(I$7,MAX(0,C32-D32-F32)))) -> 0 | H32: =IF(OPFOKLEGHEN!$H$13="parallel geschakeld met warmtewisselaar",IF(OPFOKLEGHEN!$L$9="nee",IF(OPFOKLEGHEN!$J$18="ja",C32-F32-G32,C32-D32-F32-G32),IF(OPFOKLEGHEN!$L$9="ja",IF(OPFOKLEGHEN!$J$18="ja",C32-G32,IF(OPFOKLEGHEN!$J$18="nee",C32-D32-G32)))),IF(OPFOKLEGHEN!$H$13="serie geschakeld met warmtewisselaar",IF(OPFOKLEGHEN!$J$18="ja",C32-G32,C32-D32-F32-G32),C32-D32-F32-G32)) -> 0.249849409 | I32: 0.249849409 | J32: 0.2846610449 | K32: 0.6230321698 | L32: =SUM(K$16:K32)/$K$137 -> 0.008092346201 | M32: 0.001209080695 | N32: 0.6230321698 | O32: =IF(E32<I$3,P32*(1-I$6*D32/C32),IF(OPFOKLEGHEN!$H$11="droogtunnel (platen) 55%",P32*(1-$I$6)+(C32-D32)/C32*(K32-P32*(1-I$6)),P32*(1-$I$6)+(C32-D32)/C32*(K32-P32*(1-I$6)))) -> 0.6230321698 | P32: 0.6230321698 | Q32: 0.6230321698 | R32: 0.6230321698 | S32: =MIN(K32,IF(OPFOKLEGHEN!$H$13="parallel geschakeld met warmtewisselaar",K32-(G32/(C32-G32))*(Q32)*95%,K32-(G32/(C32-G32))*(P32)*84%)) -> 0.6230321698 | T32: 0.6230321698 | U32: 0.7008275921 | V32: =IF(OPFOKLEGHEN!$J$18="nee",H32/C32*K32,IF(OPFOKLEGHEN!$H$20="ja",O32-(K32-Q32)-(K32-S32),Q32-(K32-O32)-(K32-S32))) -> 0.6230321698 | W32: =IF(H32=0,0,IF(OPFOKLEGHEN!$H$11="geen droogtunnel",IF(OPFOKLEGHEN!$H$15="geen warmtewisselaar",Q32-(K32-R32)))+IF(OPFOKLEGHEN!$H$12>0,IF(OPFOKLEGHEN!$H$13="serie geschakeld met warmtewisselaar",(O32*80%-(K32-S32)),(Q32-(K32-S32)-(K32-T32))),(N32-(K32-S32)))) -> 1.24606434 | X32: =IF(H32=0,0,IF(OPFOKLEGHEN!$H$11="geen droogtunnel",IF(OPFOKLEGHEN!$H$15="geen warmtewisselaar",Q32-(K32-R32)))+IF(OPFOKLEGHEN!$H$12>0,IF(OPFOKLEGHEN!$H$13="serie geschakeld met warmtewisselaar",3*(O32*80%-(K32-S32)),(Q32-(K32-S32)-(K32-N32))),(N32-(K32-S32)))) -> 1.24606434 | Y32: =IF(H32=0,0,IF(OPFOKLEGHEN!$H$11="geen droogtunnel",IF(OPFOKLEGHEN!$H$15="geen warmtewisselaar",Q32-(K32-R32)))+IF(OPFOKLEGHEN!$H$12>0,IF(OPFOKLEGHEN!$H$13="serie geschakeld met warmtewisselaar",(O32-(K32-S32)),IF(OPFOKLEGHEN!$H$13="parallel geschakeld met warmtewisselaar",IF(OPFOKLEGHEN!$L$9="ja",IF(OPFOKLEGHEN!$J$18="nee",(N32-(K32-Q32)-(K32-S32)),(Q32-(K32-N32/80%)))))),(O32-(K32-S32)))) -> 1.24606434 | Z32: 1 | AC32: =IF(H32=0,0,IF(OPFOKLEGHEN!$H$11="geen droogtunnel",IF(OPFOKLEGHEN!$H$15="geen warmtewisselaar",P32-(K32-R32),K32-(K32-O32)/I$6-(K32-R32)/95%)+IF(OPFOKLEGHEN!$J$18="ja",J$5/I$5*(K32-O32)*(1-I$6)),IF(OPFOKLEGHEN!$H$12>=0,IF(OPFOKLEGHEN!$L$9="ja",IF(OPFOKLEGHEN!$J$18="ja",IF(OPFOKLEGHEN!$H$20="ja",O32-(K32-S32),IF(OPFOKLEGHEN!$H$20="nee",(O32-(K32-S32)),(O32-(K32-S32)))),IF(OPFOKLEGHEN!$J$18="nee",IF(OPFOKLEGHEN!$H$20="nee",O32*80%-(K32-S32),0+O32-(K32-S32)))),IF(OPFOKLEGHEN!$L$9="nee",IF(OPFOKLEGHEN!$J$18="nee",IF(OPFOKLEGHEN!$H$20="nee",(O32*80%-(K32-S32)),O32*93%-(K32-S32)),IF(OPFOKLEGHEN!$H$20="nee",IF(OPFOKLEGHEN!$J$18="ja",IF(OPFOKLEGHEN!$L$9="nee",O32-(K32-S32))),O32-(K32-S32)))))))) -> 0.6230321698 | AD32: =IF(H32=0,0,IF(OPFOKLEGHEN!$H$11="geen droogtunnel",IF(OPFOKLEGHEN!$H$15="geen warmtewisselaar",Q32-(K32-R32),N32-(K32-R32)),IF(OPFOKLEGHEN!$H$12>=0,IF(OPFOKLEGHEN!$L$9="ja",IF(OPFOKLEGHEN!$J$18="ja",IF(OPFOKLEGHEN!$H$20="ja",Q32-(K32-N32)-(K32-S32),IF(OPFOKLEGHEN!$H$20="nee",(Q32-(K32-N32)-(K32-S32)),(O32-(K32-S32)))),IF(OPFOKLEGHEN!$J$18="nee",IF(OPFOKLEGHEN!$H$20="nee",1*Q32*$N$135-(K32-N32)-(K32-S32),(Q32-(K32-N32)-(K32-S32))*N$135))),IF(OPFOKLEGHEN!$L$9="nee",IF(OPFOKLEGHEN!$J$18="nee",IF(OPFOKLEGHEN!$H$20="nee",(N32*95%-(K32-Q32)/I$4-(K32-S32)),N32-(K32-Q32)/I$4-(K32-S32)),IF(OPFOKLEGHEN!$H$20="nee",IF(OPFOKLEGHEN!$J$18="ja",IF(OPFOKLEGHEN!$L$9="nee",N32-(K32-Q32)/I$4-(K32-S32))),N32-(K32-Q32)/I$4-(K32-S32)))))))) -> 0.6230321698 | AE32: 0 | AF32: 0.2846610449 | AG32: 0 | AH32: 0 | AI32: 0.2846610449 | AJ32: 0 | AK32: 0.249849409 | AL32: 0.001209080695 | AM32: 3 | AN32: 17 | AO32: 165 | AP32: 152.9 | AQ32: 158.95 | AR32: 0.7008275921
A33: 3 | B33: 18 | C33: 0.259303687 | D33: 0 | E33: =IF(I$3=0,0,IF(OPFOKLEGHEN!$H$13="parallel geschakeld met warmtewisselaar",0,MIN(I$3,C33))) -> 0 | F33: =IF(I$3=0,0,IF(OPFOKLEGHEN!$H$13="serie geschakeld met warmtewisselaar",0,IF(C33<$I$3,C33-D33,MIN($I$3,C33-D33)))) -> 0 | G33: =IF(C33<$I$7,MAX(0,C33-D33-E33-F33,IF(OPFOKLEGHEN!$H$15="warmtewisselaar",IF(OPFOKLEGHEN!$H$13="serie geschakeld met warmtewisselaar",MIN(I$7,MAX(0,C33-D33-F33)),MIN(I$7,MAX(0,C33-D33-E33-F33))))),IF(OPFOKLEGHEN!$H$13="parallel geschakeld met warmtewisselaar",MIN(I$7,C33-D33-E33-F33,MIN(I$7,C33-E33-F33)),MIN(I$7,MAX(0,C33-D33-F33)))) -> 0 | H33: =IF(OPFOKLEGHEN!$H$13="parallel geschakeld met warmtewisselaar",IF(OPFOKLEGHEN!$L$9="nee",IF(OPFOKLEGHEN!$J$18="ja",C33-F33-G33,C33-D33-F33-G33),IF(OPFOKLEGHEN!$L$9="ja",IF(OPFOKLEGHEN!$J$18="ja",C33-G33,IF(OPFOKLEGHEN!$J$18="nee",C33-D33-G33)))),IF(OPFOKLEGHEN!$H$13="serie geschakeld met warmtewisselaar",IF(OPFOKLEGHEN!$J$18="ja",C33-G33,C33-D33-F33-G33),C33-D33-F33-G33)) -> 0.259303687 | I33: 0.259303687 | J33: 0.2899472924 | K33: 0.6586153611 | L33: =SUM(K$16:K33)/$K$137 -> 0.008863611212 | M33: 0.001353319235 | N33: 0.6586153611 | O33: =IF(E33<I$3,P33*(1-I$6*D33/C33),IF(OPFOKLEGHEN!$H$11="droogtunnel (platen) 55%",P33*(1-$I$6)+(C33-D33)/C33*(K33-P33*(1-I$6)),P33*(1-$I$6)+(C33-D33)/C33*(K33-P33*(1-I$6)))) -> 0.6586153611 | P33: 0.6586153611 | Q33: 0.6586153611 | R33: 0.6586153611 | S33: =MIN(K33,IF(OPFOKLEGHEN!$H$13="parallel geschakeld met warmtewisselaar",K33-(G33/(C33-G33))*(Q33)*95%,K33-(G33/(C33-G33))*(P33)*84%)) -> 0.6586153611 | T33: 0.6586153611 | U33: 0.816806614 | V33: =IF(OPFOKLEGHEN!$J$18="nee",H33/C33*K33,IF(OPFOKLEGHEN!$H$20="ja",O33-(K33-Q33)-(K33-S33),Q33-(K33-O33)-(K33-S33))) -> 0.6586153611 | W33: =IF(H33=0,0,IF(OPFOKLEGHEN!$H$11="geen droogtunnel",IF(OPFOKLEGHEN!$H$15="geen warmtewisselaar",Q33-(K33-R33)))+IF(OPFOKLEGHEN!$H$12>0,IF(OPFOKLEGHEN!$H$13="serie geschakeld met warmtewisselaar",(O33*80%-(K33-S33)),(Q33-(K33-S33)-(K33-T33))),(N33-(K33-S33)))) -> 1.317230722 | X33: =IF(H33=0,0,IF(OPFOKLEGHEN!$H$11="geen droogtunnel",IF(OPFOKLEGHEN!$H$15="geen warmtewisselaar",Q33-(K33-R33)))+IF(OPFOKLEGHEN!$H$12>0,IF(OPFOKLEGHEN!$H$13="serie geschakeld met warmtewisselaar",3*(O33*80%-(K33-S33)),(Q33-(K33-S33)-(K33-N33))),(N33-(K33-S33)))) -> 1.317230722 | Y33: =IF(H33=0,0,IF(OPFOKLEGHEN!$H$11="geen droogtunnel",IF(OPFOKLEGHEN!$H$15="geen warmtewisselaar",Q33-(K33-R33)))+IF(OPFOKLEGHEN!$H$12>0,IF(OPFOKLEGHEN!$H$13="serie geschakeld met warmtewisselaar",(O33-(K33-S33)),IF(OPFOKLEGHEN!$H$13="parallel geschakeld met warmtewisselaar",IF(OPFOKLEGHEN!$L$9="ja",IF(OPFOKLEGHEN!$J$18="nee",(N33-(K33-Q33)-(K33-S33)),(Q33-(K33-N33/80%)))))),(O33-(K33-S33)))) -> 1.317230722 | Z33: 1 | AC33: =IF(H33=0,0,IF(OPFOKLEGHEN!$H$11="geen droogtunnel",IF(OPFOKLEGHEN!$H$15="geen warmtewisselaar",P33-(K33-R33),K33-(K33-O33)/I$6-(K33-R33)/95%)+IF(OPFOKLEGHEN!$J$18="ja",J$5/I$5*(K33-O33)*(1-I$6)),IF(OPFOKLEGHEN!$H$12>=0,IF(OPFOKLEGHEN!$L$9="ja",IF(OPFOKLEGHEN!$J$18="ja",IF(OPFOKLEGHEN!$H$20="ja",O33-(K33-S33),IF(OPFOKLEGHEN!$H$20="nee",(O33-(K33-S33)),(O33-(K33-S33)))),IF(OPFOKLEGHEN!$J$18="nee",IF(OPFOKLEGHEN!$H$20="nee",O33*80%-(K33-S33),0+O33-(K33-S33)))),IF(OPFOKLEGHEN!$L$9="nee",IF(OPFOKLEGHEN!$J$18="nee",IF(OPFOKLEGHEN!$H$20="nee",(O33*80%-(K33-S33)),O33*93%-(K33-S33)),IF(OPFOKLEGHEN!$H$20="nee",IF(OPFOKLEGHEN!$J$18="ja",IF(OPFOKLEGHEN!$L$9="nee",O33-(K33-S33))),O33-(K33-S33)))))))) -> 0.6586153611 | AD33: =IF(H33=0,0,IF(OPFOKLEGHEN!$H$11="geen droogtunnel",IF(OPFOKLEGHEN!$H$15="geen warmtewisselaar",Q33-(K33-R33),N33-(K33-R33)),IF(OPFOKLEGHEN!$H$12>=0,IF(OPFOKLEGHEN!$L$9="ja",IF(OPFOKLEGHEN!$J$18="ja",IF(OPFOKLEGHEN!$H$20="ja",Q33-(K33-N33)-(K33-S33),IF(OPFOKLEGHEN!$H$20="nee",(Q33-(K33-N33)-(K33-S33)),(O33-(K33-S33)))),IF(OPFOKLEGHEN!$J$18="nee",IF(OPFOKLEGHEN!$H$20="nee",1*Q33*$N$135-(K33-N33)-(K33-S33),(Q33-(K33-N33)-(K33-S33))*N$135))),IF(OPFOKLEGHEN!$L$9="nee",IF(OPFOKLEGHEN!$J$18="nee",IF(OPFOKLEGHEN!$H$20="nee",(N33*95%-(K33-Q33)/I$4-(K33-S33)),N33-(K33-Q33)/I$4-(K33-S33)),IF(OPFOKLEGHEN!$H$20="nee",IF(OPFOKLEGHEN!$J$18="ja",IF(OPFOKLEGHEN!$L$9="nee",N33-(K33-Q33)/I$4-(K33-S33))),N33-(K33-Q33)/I$4-(K33-S33)))))))) -> 0.6586153611 | AE33: 0 | AF33: 0.2899472924 | AG33: 0 | AH33: 0 | AI33: 0.2899472924 | AJ33: 0 | AK33: 0.259303687 | AL33: 0.001353319235 | AM33: 3 | AN33: 18 | AO33: 175 | AP33: 162.2 | AQ33: 168.6 | AR33: 0.816806614
A34: 3 | B34: 19 | C34: 0.2687304311 | D34: 0 | E34: =IF(I$3=0,0,IF(OPFOKLEGHEN!$H$13="parallel geschakeld met warmtewisselaar",0,MIN(I$3,C34))) -> 0 | F34: =IF(I$3=0,0,IF(OPFOKLEGHEN!$H$13="serie geschakeld met warmtewisselaar",0,IF(C34<$I$3,C34-D34,MIN($I$3,C34-D34)))) -> 0 | G34: =IF(C34<$I$7,MAX(0,C34-D34-E34-F34,IF(OPFOKLEGHEN!$H$15="warmtewisselaar",IF(OPFOKLEGHEN!$H$13="serie geschakeld met warmtewisselaar",MIN(I$7,MAX(0,C34-D34-F34)),MIN(I$7,MAX(0,C34-D34-E34-F34))))),IF(OPFOKLEGHEN!$H$13="parallel geschakeld met warmtewisselaar",MIN(I$7,C34-D34-E34-F34,MIN(I$7,C34-E34-F34)),MIN(I$7,MAX(0,C34-D34-F34)))) -> 0 | H34: =IF(OPFOKLEGHEN!$H$13="parallel geschakeld met warmtewisselaar",IF(OPFOKLEGHEN!$L$9="nee",IF(OPFOKLEGHEN!$J$18="ja",C34-F34-G34,C34-D34-F34-G34),IF(OPFOKLEGHEN!$L$9="ja",IF(OPFOKLEGHEN!$J$18="ja",C34-G34,IF(OPFOKLEGHEN!$J$18="nee",C34-D34-G34)))),IF(OPFOKLEGHEN!$H$13="serie geschakeld met warmtewisselaar",IF(OPFOKLEGHEN!$J$18="ja",C34-G34,C34-D34-F34-G34),C34-D34-F34-G34)) -> 0.2687304311 | I34: 0.2687304311 | J34: 0.2953317073 | K34: 0.6952340451 | L34: =SUM(K$16:K34)/$K$137 -> 0.00967775817 | M34: 0.001507927723 | N34: 0.6952340451 | O34: =IF(E34<I$3,P34*(1-I$6*D34/C34),IF(OPFOKLEGHEN!$H$11="droogtunnel (platen) 55%",P34*(1-$I$6)+(C34-D34)/C34*(K34-P34*(1-I$6)),P34*(1-$I$6)+(C34-D34)/C34*(K34-P34*(1-I$6)))) -> 0.6952340451 | P34: 0.6952340451 | Q34: 0.6952340451 | R34: 0.6952340451 | S34: =MIN(K34,IF(OPFOKLEGHEN!$H$13="parallel geschakeld met warmtewisselaar",K34-(G34/(C34-G34))*(Q34)*95%,K34-(G34/(C34-G34))*(P34)*84%)) -> 0.6952340451 | T34: 0.6952340451 | U34: 0.9445874654 | V34: =IF(OPFOKLEGHEN!$J$18="nee",H34/C34*K34,IF(OPFOKLEGHEN!$H$20="ja",O34-(K34-Q34)-(K34-S34),Q34-(K34-O34)-(K34-S34))) -> 0.6952340451 | W34: =IF(H34=0,0,IF(OPFOKLEGHEN!$H$11="geen droogtunnel",IF(OPFOKLEGHEN!$H$15="geen warmtewisselaar",Q34-(K34-R34)))+IF(OPFOKLEGHEN!$H$12>0,IF(OPFOKLEGHEN!$H$13="serie geschakeld met warmtewisselaar",(O34*80%-(K34-S34)),(Q34-(K34-S34)-(K34-T34))),(N34-(K34-S34)))) -> 1.39046809 | X34: =IF(H34=0,0,IF(OPFOKLEGHEN!$H$11="geen droogtunnel",IF(OPFOKLEGHEN!$H$15="geen warmtewisselaar",Q34-(K34-R34)))+IF(OPFOKLEGHEN!$H$12>0,IF(OPFOKLEGHEN!$H$13="serie geschakeld met warmtewisselaar",3*(O34*80%-(K34-S34)),(Q34-(K34-S34)-(K34-N34))),(N34-(K34-S34)))) -> 1.39046809 | Y34: =IF(H34=0,0,IF(OPFOKLEGHEN!$H$11="geen droogtunnel",IF(OPFOKLEGHEN!$H$15="geen warmtewisselaar",Q34-(K34-R34)))+IF(OPFOKLEGHEN!$H$12>0,IF(OPFOKLEGHEN!$H$13="serie geschakeld met warmtewisselaar",(O34-(K34-S34)),IF(OPFOKLEGHEN!$H$13="parallel geschakeld met warmtewisselaar",IF(OPFOKLEGHEN!$L$9="ja",IF(OPFOKLEGHEN!$J$18="nee",(N34-(K34-Q34)-(K34-S34)),(Q34-(K34-N34/80%)))))),(O34-(K34-S34)))) -> 1.39046809 | Z34: 1 | AC34: =IF(H34=0,0,IF(OPFOKLEGHEN!$H$11="geen droogtunnel",IF(OPFOKLEGHEN!$H$15="geen warmtewisselaar",P34-(K34-R34),K34-(K34-O34)/I$6-(K34-R34)/95%)+IF(OPFOKLEGHEN!$J$18="ja",J$5/I$5*(K34-O34)*(1-I$6)),IF(OPFOKLEGHEN!$H$12>=0,IF(OPFOKLEGHEN!$L$9="ja",IF(OPFOKLEGHEN!$J$18="ja",IF(OPFOKLEGHEN!$H$20="ja",O34-(K34-S34),IF(OPFOKLEGHEN!$H$20="nee",(O34-(K34-S34)),(O34-(K34-S34)))),IF(OPFOKLEGHEN!$J$18="nee",IF(OPFOKLEGHEN!$H$20="nee",O34*80%-(K34-S34),0+O34-(K34-S34)))),IF(OPFOKLEGHEN!$L$9="nee",IF(OPFOKLEGHEN!$J$18="nee",IF(OPFOKLEGHEN!$H$20="nee",(O34*80%-(K34-S34)),O34*93%-(K34-S34)),IF(OPFOKLEGHEN!$H$20="nee",IF(OPFOKLEGHEN!$J$18="ja",IF(OPFOKLEGHEN!$L$9="nee",O34-(K34-S34))),O34-(K34-S34)))))))) -> 0.6952340451 | AD34: =IF(H34=0,0,IF(OPFOKLEGHEN!$H$11="geen droogtunnel",IF(OPFOKLEGHEN!$H$15="geen warmtewisselaar",Q34-(K34-R34),N34-(K34-R34)),IF(OPFOKLEGHEN!$H$12>=0,IF(OPFOKLEGHEN!$L$9="ja",IF(OPFOKLEGHEN!$J$18="ja",IF(OPFOKLEGHEN!$H$20="ja",Q34-(K34-N34)-(K34-S34),IF(OPFOKLEGHEN!$H$20="nee",(Q34-(K34-N34)-(K34-S34)),(O34-(K34-S34)))),IF(OPFOKLEGHEN!$J$18="nee",IF(OPFOKLEGHEN!$H$20="nee",1*Q34*$N$135-(K34-N34)-(K34-S34),(Q34-(K34-N34)-(K34-S34))*N$135))),IF(OPFOKLEGHEN!$L$9="nee",IF(OPFOKLEGHEN!$J$18="nee",IF(OPFOKLEGHEN!$H$20="nee",(N34*95%-(K34-Q34)/I$4-(K34-S34)),N34-(K34-Q34)/I$4-(K34-S34)),IF(OPFOKLEGHEN!$H$20="nee",IF(OPFOKLEGHEN!$J$18="ja",IF(OPFOKLEGHEN!$L$9="nee",N34-(K34-Q34)/I$4-(K34-S34))),N34-(K34-Q34)/I$4-(K34-S34)))))))) -> 0.6952340451 | AE34: 0 | AF34: 0.2953317073 | AG34: 0 | AH34: 0 | AI34: 0.2953317073 | AJ34: 0 | AK34: 0.2687304311 | AL34: 0.001507927723 | AM34: 3 | AN34: 19 | AO34: 185 | AP34: 171.5 | AQ34: 178.25 | AR34: 0.9445874654
A35: 3 | B35: 20 | C35: 0.2781317118 | D35: 0 | E35: =IF(I$3=0,0,IF(OPFOKLEGHEN!$H$13="parallel geschakeld met warmtewisselaar",0,MIN(I$3,C35))) -> 0 | F35: =IF(I$3=0,0,IF(OPFOKLEGHEN!$H$13="serie geschakeld met warmtewisselaar",0,IF(C35<$I$3,C35-D35,MIN($I$3,C35-D35)))) -> 0 | G35: =IF(C35<$I$7,MAX(0,C35-D35-E35-F35,IF(OPFOKLEGHEN!$H$15="warmtewisselaar",IF(OPFOKLEGHEN!$H$13="serie geschakeld met warmtewisselaar",MIN(I$7,MAX(0,C35-D35-F35)),MIN(I$7,MAX(0,C35-D35-E35-F35))))),IF(OPFOKLEGHEN!$H$13="parallel geschakeld met warmtewisselaar",MIN(I$7,C35-D35-E35-F35,MIN(I$7,C35-E35-F35)),MIN(I$7,MAX(0,C35-D35-F35)))) -> 0 | H35: =IF(OPFOKLEGHEN!$H$13="parallel geschakeld met warmtewisselaar",IF(OPFOKLEGHEN!$L$9="nee",IF(OPFOKLEGHEN!$J$18="ja",C35-F35-G35,C35-D35-F35-G35),IF(OPFOKLEGHEN!$L$9="ja",IF(OPFOKLEGHEN!$J$18="ja",C35-G35,IF(OPFOKLEGHEN!$J$18="nee",C35-D35-G35)))),IF(OPFOKLEGHEN!$H$13="serie geschakeld met warmtewisselaar",IF(OPFOKLEGHEN!$J$18="ja",C35-G35,C35-D35-F35-G35),C35-D35-F35-G35)) -> 0.2781317118 | I35: 0.2781317118 | J35: 0.3008161125 | K35: 0.7329185428 | L35: =SUM(K$16:K35)/$K$137 -> 0.01053603519 | M35: 0.001673330006 | N35: 0.7329185428 | O35: =IF(E35<I$3,P35*(1-I$6*D35/C35),IF(OPFOKLEGHEN!$H$11="droogtunnel (platen) 55%",P35*(1-$I$6)+(C35-D35)/C35*(K35-P35*(1-I$6)),P35*(1-$I$6)+(C35-D35)/C35*(K35-P35*(1-I$6)))) -> 0.7329185428 | P35: 0.7329185428 | Q35: 0.7329185428 | R35: 0.7329185428 | S35: =MIN(K35,IF(OPFOKLEGHEN!$H$13="parallel geschakeld met warmtewisselaar",K35-(G35/(C35-G35))*(Q35)*95%,K35-(G35/(C35-G35))*(P35)*84%)) -> 0.7329185428 | T35: 0.7329185428 | U35: 1.084713676 | V35: =IF(OPFOKLEGHEN!$J$18="nee",H35/C35*K35,IF(OPFOKLEGHEN!$H$20="ja",O35-(K35-Q35)-(K35-S35),Q35-(K35-O35)-(K35-S35))) -> 0.7329185428 | W35: =IF(H35=0,0,IF(OPFOKLEGHEN!$H$11="geen droogtunnel",IF(OPFOKLEGHEN!$H$15="geen warmtewisselaar",Q35-(K35-R35)))+IF(OPFOKLEGHEN!$H$12>0,IF(OPFOKLEGHEN!$H$13="serie geschakeld met warmtewisselaar",(O35*80%-(K35-S35)),(Q35-(K35-S35)-(K35-T35))),(N35-(K35-S35)))) -> 1.465837086 | X35: =IF(H35=0,0,IF(OPFOKLEGHEN!$H$11="geen droogtunnel",IF(OPFOKLEGHEN!$H$15="geen warmtewisselaar",Q35-(K35-R35)))+IF(OPFOKLEGHEN!$H$12>0,IF(OPFOKLEGHEN!$H$13="serie geschakeld met warmtewisselaar",3*(O35*80%-(K35-S35)),(Q35-(K35-S35)-(K35-N35))),(N35-(K35-S35)))) -> 1.465837086 | Y35: =IF(H35=0,0,IF(OPFOKLEGHEN!$H$11="geen droogtunnel",IF(OPFOKLEGHEN!$H$15="geen warmtewisselaar",Q35-(K35-R35)))+IF(OPFOKLEGHEN!$H$12>0,IF(OPFOKLEGHEN!$H$13="serie geschakeld met warmtewisselaar",(O35-(K35-S35)),IF(OPFOKLEGHEN!$H$13="parallel geschakeld met warmtewisselaar",IF(OPFOKLEGHEN!$L$9="ja",IF(OPFOKLEGHEN!$J$18="nee",(N35-(K35-Q35)-(K35-S35)),(Q35-(K35-N35/80%)))))),(O35-(K35-S35)))) -> 1.465837086 | Z35: 1 | AC35: =IF(H35=0,0,IF(OPFOKLEGHEN!$H$11="geen droogtunnel",IF(OPFOKLEGHEN!$H$15="geen warmtewisselaar",P35-(K35-R35),K35-(K35-O35)/I$6-(K35-R35)/95%)+IF(OPFOKLEGHEN!$J$18="ja",J$5/I$5*(K35-O35)*(1-I$6)),IF(OPFOKLEGHEN!$H$12>=0,IF(OPFOKLEGHEN!$L$9="ja",IF(OPFOKLEGHEN!$J$18="ja",IF(OPFOKLEGHEN!$H$20="ja",O35-(K35-S35),IF(OPFOKLEGHEN!$H$20="nee",(O35-(K35-S35)),(O35-(K35-S35)))),IF(OPFOKLEGHEN!$J$18="nee",IF(OPFOKLEGHEN!$H$20="nee",O35*80%-(K35-S35),0+O35-(K35-S35)))),IF(OPFOKLEGHEN!$L$9="nee",IF(OPFOKLEGHEN!$J$18="nee",IF(OPFOKLEGHEN!$H$20="nee",(O35*80%-(K35-S35)),O35*93%-(K35-S35)),IF(OPFOKLEGHEN!$H$20="nee",IF(OPFOKLEGHEN!$J$18="ja",IF(OPFOKLEGHEN!$L$9="nee",O35-(K35-S35))),O35-(K35-S35)))))))) -> 0.7329185428 | AD35: =IF(H35=0,0,IF(OPFOKLEGHEN!$H$11="geen droogtunnel",IF(OPFOKLEGHEN!$H$15="geen warmtewisselaar",Q35-(K35-R35),N35-(K35-R35)),IF(OPFOKLEGHEN!$H$12>=0,IF(OPFOKLEGHEN!$L$9="ja",IF(OPFOKLEGHEN!$J$18="ja",IF(OPFOKLEGHEN!$H$20="ja",Q35-(K35-N35)-(K35-S35),IF(OPFOKLEGHEN!$H$20="nee",(Q35-(K35-N35)-(K35-S35)),(O35-(K35-S35)))),IF(OPFOKLEGHEN!$J$18="nee",IF(OPFOKLEGHEN!$H$20="nee",1*Q35*$N$135-(K35-N35)-(K35-S35),(Q35-(K35-N35)-(K35-S35))*N$135))),IF(OPFOKLEGHEN!$L$9="nee",IF(OPFOKLEGHEN!$J$18="nee",IF(OPFOKLEGHEN!$H$20="nee",(N35*95%-(K35-Q35)/I$4-(K35-S35)),N35-(K35-Q35)/I$4-(K35-S35)),IF(OPFOKLEGHEN!$H$20="nee",IF(OPFOKLEGHEN!$J$18="ja",IF(OPFOKLEGHEN!$L$9="nee",N35-(K35-Q35)/I$4-(K35-S35))),N35-(K35-Q35)/I$4-(K35-S35)))))))) -> 0.7329185428 | AE35: 0 | AF35: 0.3008161125 | AG35: 0 | AH35: 0 | AI35: 0.3008161125 | AJ35: 0 | AK35: 0.2781317118 | AL35: 0.001673330006 | AM35: 3 | AN35: 20 | AO35: 195 | AP35: 180.8 | AQ35: 187.9 | AR35: 1.084713676
A36: 3 | B36: 21 | C36: 0.2874610662 | D36: 0 | E36: =IF(I$3=0,0,IF(OPFOKLEGHEN!$H$13="parallel geschakeld met warmtewisselaar",0,MIN(I$3,C36))) -> 0 | F36: =IF(I$3=0,0,IF(OPFOKLEGHEN!$H$13="serie geschakeld met warmtewisselaar",0,IF(C36<$I$3,C36-D36,MIN($I$3,C36-D36)))) -> 0 | G36: =IF(C36<$I$7,MAX(0,C36-D36-E36-F36,IF(OPFOKLEGHEN!$H$15="warmtewisselaar",IF(OPFOKLEGHEN!$H$13="serie geschakeld met warmtewisselaar",MIN(I$7,MAX(0,C36-D36-F36)),MIN(I$7,MAX(0,C36-D36-E36-F36))))),IF(OPFOKLEGHEN!$H$13="parallel geschakeld met warmtewisselaar",MIN(I$7,C36-D36-E36-F36,MIN(I$7,C36-E36-F36)),MIN(I$7,MAX(0,C36-D36-F36)))) -> 0 | H36: =IF(OPFOKLEGHEN!$H$13="parallel geschakeld met warmtewisselaar",IF(OPFOKLEGHEN!$L$9="nee",IF(OPFOKLEGHEN!$J$18="ja",C36-F36-G36,C36-D36-F36-G36),IF(OPFOKLEGHEN!$L$9="ja",IF(OPFOKLEGHEN!$J$18="ja",C36-G36,IF(OPFOKLEGHEN!$J$18="nee",C36-D36-G36)))),IF(OPFOKLEGHEN!$H$13="serie geschakeld met warmtewisselaar",IF(OPFOKLEGHEN!$J$18="ja",C36-G36,C36-D36-F36-G36),C36-D36-F36-G36)) -> 0.2874610662 | I36: 0.2874610662 | J36: 0.3064023649 | K36: 0.7715698545 | L36: =SUM(K$16:K36)/$K$137 -> 0.01143957444 | M36: 0.001849653761 | N36: 0.7715698545 | O36: =IF(E36<I$3,P36*(1-I$6*D36/C36),IF(OPFOKLEGHEN!$H$11="droogtunnel (platen) 55%",P36*(1-$I$6)+(C36-D36)/C36*(K36-P36*(1-I$6)),P36*(1-$I$6)+(C36-D36)/C36*(K36-P36*(1-I$6)))) -> 0.7715698545 | P36: 0.7715698545 | Q36: 0.7715698545 | R36: 0.7715698545 | S36: =MIN(K36,IF(OPFOKLEGHEN!$H$13="parallel geschakeld met warmtewisselaar",K36-(G36/(C36-G36))*(Q36)*95%,K36-(G36/(C36-G36))*(P36)*84%)) -> 0.7715698545 | T36: 0.7715698545 | U36: 1.23751989 | V36: =IF(OPFOKLEGHEN!$J$18="nee",H36/C36*K36,IF(OPFOKLEGHEN!$H$20="ja",O36-(K36-Q36)-(K36-S36),Q36-(K36-O36)-(K36-S36))) -> 0.7715698545 | W36: =IF(H36=0,0,IF(OPFOKLEGHEN!$H$11="geen droogtunnel",IF(OPFOKLEGHEN!$H$15="geen warmtewisselaar",Q36-(K36-R36)))+IF(OPFOKLEGHEN!$H$12>0,IF(OPFOKLEGHEN!$H$13="serie geschakeld met warmtewisselaar",(O36*80%-(K36-S36)),(Q36-(K36-S36)-(K36-T36))),(N36-(K36-S36)))) -> 1.543139709 | X36: =IF(H36=0,0,IF(OPFOKLEGHEN!$H$11="geen droogtunnel",IF(OPFOKLEGHEN!$H$15="geen warmtewisselaar",Q36-(K36-R36)))+IF(OPFOKLEGHEN!$H$12>0,IF(OPFOKLEGHEN!$H$13="serie geschakeld met warmtewisselaar",3*(O36*80%-(K36-S36)),(Q36-(K36-S36)-(K36-N36))),(N36-(K36-S36)))) -> 1.543139709 | Y36: =IF(H36=0,0,IF(OPFOKLEGHEN!$H$11="geen droogtunnel",IF(OPFOKLEGHEN!$H$15="geen warmtewisselaar",Q36-(K36-R36)))+IF(OPFOKLEGHEN!$H$12>0,IF(OPFOKLEGHEN!$H$13="serie geschakeld met warmtewisselaar",(O36-(K36-S36)),IF(OPFOKLEGHEN!$H$13="parallel geschakeld met warmtewisselaar",IF(OPFOKLEGHEN!$L$9="ja",IF(OPFOKLEGHEN!$J$18="nee",(N36-(K36-Q36)-(K36-S36)),(Q36-(K36-N36/80%)))))),(O36-(K36-S36)))) -> 1.543139709 | Z36: 1 | AC36: =IF(H36=0,0,IF(OPFOKLEGHEN!$H$11="geen droogtunnel",IF(OPFOKLEGHEN!$H$15="geen warmtewisselaar",P36-(K36-R36),K36-(K36-O36)/I$6-(K36-R36)/95%)+IF(OPFOKLEGHEN!$J$18="ja",J$5/I$5*(K36-O36)*(1-I$6)),IF(OPFOKLEGHEN!$H$12>=0,IF(OPFOKLEGHEN!$L$9="ja",IF(OPFOKLEGHEN!$J$18="ja",IF(OPFOKLEGHEN!$H$20="ja",O36-(K36-S36),IF(OPFOKLEGHEN!$H$20="nee",(O36-(K36-S36)),(O36-(K36-S36)))),IF(OPFOKLEGHEN!$J$18="nee",IF(OPFOKLEGHEN!$H$20="nee",O36*80%-(K36-S36),0+O36-(K36-S36)))),IF(OPFOKLEGHEN!$L$9="nee",IF(OPFOKLEGHEN!$J$18="nee",IF(OPFOKLEGHEN!$H$20="nee",(O36*80%-(K36-S36)),O36*93%-(K36-S36)),IF(OPFOKLEGHEN!$H$20="nee",IF(OPFOKLEGHEN!$J$18="ja",IF(OPFOKLEGHEN!$L$9="nee",O36-(K36-S36))),O36-(K36-S36)))))))) -> 0.7715698545 | AD36: =IF(H36=0,0,IF(OPFOKLEGHEN!$H$11="geen droogtunnel",IF(OPFOKLEGHEN!$H$15="geen warmtewisselaar",Q36-(K36-R36),N36-(K36-R36)),IF(OPFOKLEGHEN!$H$12>=0,IF(OPFOKLEGHEN!$L$9="ja",IF(OPFOKLEGHEN!$J$18="ja",IF(OPFOKLEGHEN!$H$20="ja",Q36-(K36-N36)-(K36-S36),IF(OPFOKLEGHEN!$H$20="nee",(Q36-(K36-N36)-(K36-S36)),(O36-(K36-S36)))),IF(OPFOKLEGHEN!$J$18="nee",IF(OPFOKLEGHEN!$H$20="nee",1*Q36*$N$135-(K36-N36)-(K36-S36),(Q36-(K36-N36)-(K36-S36))*N$135))),IF(OPFOKLEGHEN!$L$9="nee",IF(OPFOKLEGHEN!$J$18="nee",IF(OPFOKLEGHEN!$H$20="nee",(N36*95%-(K36-Q36)/I$4-(K36-S36)),N36-(K36-Q36)/I$4-(K36-S36)),IF(OPFOKLEGHEN!$H$20="nee",IF(OPFOKLEGHEN!$J$18="ja",IF(OPFOKLEGHEN!$L$9="nee",N36-(K36-Q36)/I$4-(K36-S36))),N36-(K36-Q36)/I$4-(K36-S36)))))))) -> 0.7715698545 | AE36: 0 | AF36: 0.3064023649 | AG36: 0 | AH36: 0 | AI36: 0.3064023649 | AJ36: 0 | AK36: 0.2874610662 | AL36: 0.001849653761 | AM36: 3 | AN36: 21 | AO36: 205 | AP36: 190 | AQ36: 197.5 | AR36: 1.23751989 | AS36: (($Z35/1000)*(1-$F$9)*$D35*$B35)+H35*(1-F$6)*C35/D35
A37: 4 | B37: 22 | C37: 0.2978346208 | D37: 0 | E37: =IF(I$3=0,0,IF(OPFOKLEGHEN!$H$13="parallel geschakeld met warmtewisselaar",0,MIN(I$3,C37))) -> 0 | F37: =IF(I$3=0,0,IF(OPFOKLEGHEN!$H$13="serie geschakeld met warmtewisselaar",0,IF(C37<$I$3,C37-D37,MIN($I$3,C37-D37)))) -> 0 | G37: =IF(C37<$I$7,MAX(0,C37-D37-E37-F37,IF(OPFOKLEGHEN!$H$15="warmtewisselaar",IF(OPFOKLEGHEN!$H$13="serie geschakeld met warmtewisselaar",MIN(I$7,MAX(0,C37-D37-F37)),MIN(I$7,MAX(0,C37-D37-E37-F37))))),IF(OPFOKLEGHEN!$H$13="parallel geschakeld met warmtewisselaar",MIN(I$7,C37-D37-E37-F37,MIN(I$7,C37-E37-F37)),MIN(I$7,MAX(0,C37-D37-F37)))) -> 0 | H37: =IF(OPFOKLEGHEN!$H$13="parallel geschakeld met warmtewisselaar",IF(OPFOKLEGHEN!$L$9="nee",IF(OPFOKLEGHEN!$J$18="ja",C37-F37-G37,C37-D37-F37-G37),IF(OPFOKLEGHEN!$L$9="ja",IF(OPFOKLEGHEN!$J$18="ja",C37-G37,IF(OPFOKLEGHEN!$J$18="nee",C37-D37-G37)))),IF(OPFOKLEGHEN!$H$13="serie geschakeld met warmtewisselaar",IF(OPFOKLEGHEN!$J$18="ja",C37-G37,C37-D37-F37-G37),C37-D37-F37-G37)) -> 0.2978346208 | I37: 0.2978346208 | J37: 0.3120923558 | K37: 0.814258718 | L37: =SUM(K$16:K37)/$K$137 -> 0.01239310407 | M37: 0.002044941986 | N37: 0.814258718 | O37: =IF(E37<I$3,P37*(1-I$6*D37/C37),IF(OPFOKLEGHEN!$H$11="droogtunnel (platen) 55%",P37*(1-$I$6)+(C37-D37)/C37*(K37-P37*(1-I$6)),P37*(1-$I$6)+(C37-D37)/C37*(K37-P37*(1-I$6)))) -> 0.814258718 | P37: 0.814258718 | Q37: 0.814258718 | R37: 0.814258718 | S37: =MIN(K37,IF(OPFOKLEGHEN!$H$13="parallel geschakeld met warmtewisselaar",K37-(G37/(C37-G37))*(Q37)*95%,K37-(G37/(C37-G37))*(P37)*84%)) -> 0.814258718 | T37: 0.814258718 | U37: 1.422517716 | V37: =IF(OPFOKLEGHEN!$J$18="nee",H37/C37*K37,IF(OPFOKLEGHEN!$H$20="ja",O37-(K37-Q37)-(K37-S37),Q37-(K37-O37)-(K37-S37))) -> 0.814258718 | W37: =IF(H37=0,0,IF(OPFOKLEGHEN!$H$11="geen droogtunnel",IF(OPFOKLEGHEN!$H$15="geen warmtewisselaar",Q37-(K37-R37)))+IF(OPFOKLEGHEN!$H$12>0,IF(OPFOKLEGHEN!$H$13="serie geschakeld met warmtewisselaar",(O37*80%-(K37-S37)),(Q37-(K37-S37)-(K37-T37))),(N37-(K37-S37)))) -> 1.628517436 | X37: =IF(H37=0,0,IF(OPFOKLEGHEN!$H$11="geen droogtunnel",IF(OPFOKLEGHEN!$H$15="geen warmtewisselaar",Q37-(K37-R37)))+IF(OPFOKLEGHEN!$H$12>0,IF(OPFOKLEGHEN!$H$13="serie geschakeld met warmtewisselaar",3*(O37*80%-(K37-S37)),(Q37-(K37-S37)-(K37-N37))),(N37-(K37-S37)))) -> 1.628517436 | Y37: =IF(H37=0,0,IF(OPFOKLEGHEN!$H$11="geen droogtunnel",IF(OPFOKLEGHEN!$H$15="geen warmtewisselaar",Q37-(K37-R37)))+IF(OPFOKLEGHEN!$H$12>0,IF(OPFOKLEGHEN!$H$13="serie geschakeld met warmtewisselaar",(O37-(K37-S37)),IF(OPFOKLEGHEN!$H$13="parallel geschakeld met warmtewisselaar",IF(OPFOKLEGHEN!$L$9="ja",IF(OPFOKLEGHEN!$J$18="nee",(N37-(K37-Q37)-(K37-S37)),(Q37-(K37-N37/80%)))))),(O37-(K37-S37)))) -> 1.628517436 | Z37: 1 | AC37: =IF(H37=0,0,IF(OPFOKLEGHEN!$H$11="geen droogtunnel",IF(OPFOKLEGHEN!$H$15="geen warmtewisselaar",P37-(K37-R37),K37-(K37-O37)/I$6-(K37-R37)/95%)+IF(OPFOKLEGHEN!$J$18="ja",J$5/I$5*(K37-O37)*(1-I$6)),IF(OPFOKLEGHEN!$H$12>=0,IF(OPFOKLEGHEN!$L$9="ja",IF(OPFOKLEGHEN!$J$18="ja",IF(OPFOKLEGHEN!$H$20="ja",O37-(K37-S37),IF(OPFOKLEGHEN!$H$20="nee",(O37-(K37-S37)),(O37-(K37-S37)))),IF(OPFOKLEGHEN!$J$18="nee",IF(OPFOKLEGHEN!$H$20="nee",O37*80%-(K37-S37),0+O37-(K37-S37)))),IF(OPFOKLEGHEN!$L$9="nee",IF(OPFOKLEGHEN!$J$18="nee",IF(OPFOKLEGHEN!$H$20="nee",(O37*80%-(K37-S37)),O37*93%-(K37-S37)),IF(OPFOKLEGHEN!$H$20="nee",IF(OPFOKLEGHEN!$J$18="ja",IF(OPFOKLEGHEN!$L$9="nee",O37-(K37-S37))),O37-(K37-S37)))))))) -> 0.814258718 | AD37: =IF(H37=0,0,IF(OPFOKLEGHEN!$H$11="geen droogtunnel",IF(OPFOKLEGHEN!$H$15="geen warmtewisselaar",Q37-(K37-R37),N37-(K37-R37)),IF(OPFOKLEGHEN!$H$12>=0,IF(OPFOKLEGHEN!$L$9="ja",IF(OPFOKLEGHEN!$J$18="ja",IF(OPFOKLEGHEN!$H$20="ja",Q37-(K37-N37)-(K37-S37),IF(OPFOKLEGHEN!$H$20="nee",(Q37-(K37-N37)-(K37-S37)),(O37-(K37-S37)))),IF(OPFOKLEGHEN!$J$18="nee",IF(OPFOKLEGHEN!$H$20="nee",1*Q37*$N$135-(K37-N37)-(K37-S37),(Q37-(K37-N37)-(K37-S37))*N$135))),IF(OPFOKLEGHEN!$L$9="nee",IF(OPFOKLEGHEN!$J$18="nee",IF(OPFOKLEGHEN!$H$20="nee",(N37*95%-(K37-Q37)/I$4-(K37-S37)),N37-(K37-Q37)/I$4-(K37-S37)),IF(OPFOKLEGHEN!$H$20="nee",IF(OPFOKLEGHEN!$J$18="ja",IF(OPFOKLEGHEN!$L$9="nee",N37-(K37-Q37)/I$4-(K37-S37))),N37-(K37-Q37)/I$4-(K37-S37)))))))) -> 0.814258718 | AE37: 0 | AF37: 0.3120923558 | AG37: 0 | AH37: 0 | AI37: 0.3120923558 | AJ37: 0 | AK37: 0.2978346208 | AL37: 0.002044941986 | AM37: 4 | AN37: 22 | AO37: =AO36+12.1 -> 217.1 | AP37: =AP36+9.3 -> 199.3 | AQ37: 208.2 | AR37: 1.422517716 | AS37: =(($AP36/1000)*(1-$I$10)*$D36*$B36) -> 0
A38: 4 | B38: 23 | C38: 0.3081847696 | D38: 0 | E38: =IF(I$3=0,0,IF(OPFOKLEGHEN!$H$13="parallel geschakeld met warmtewisselaar",0,MIN(I$3,C38))) -> 0 | F38: =IF(I$3=0,0,IF(OPFOKLEGHEN!$H$13="serie geschakeld met warmtewisselaar",0,IF(C38<$I$3,C38-D38,MIN($I$3,C38-D38)))) -> 0 | G38: =IF(C38<$I$7,MAX(0,C38-D38-E38-F38,IF(OPFOKLEGHEN!$H$15="warmtewisselaar",IF(OPFOKLEGHEN!$H$13="serie geschakeld met warmtewisselaar",MIN(I$7,MAX(0,C38-D38-F38)),MIN(I$7,MAX(0,C38-D38-E38-F38))))),IF(OPFOKLEGHEN!$H$13="parallel geschakeld met warmtewisselaar",MIN(I$7,C38-D38-E38-F38,MIN(I$7,C38-E38-F38)),MIN(I$7,MAX(0,C38-D38-F38)))) -> 0 | H38: =IF(OPFOKLEGHEN!$H$13="parallel geschakeld met warmtewisselaar",IF(OPFOKLEGHEN!$L$9="nee",IF(OPFOKLEGHEN!$J$18="ja",C38-F38-G38,C38-D38-F38-G38),IF(OPFOKLEGHEN!$L$9="ja",IF(OPFOKLEGHEN!$J$18="ja",C38-G38,IF(OPFOKLEGHEN!$J$18="nee",C38-D38-G38)))),IF(OPFOKLEGHEN!$H$13="serie geschakeld met warmtewisselaar",IF(OPFOKLEGHEN!$J$18="ja",C38-G38,C38-D38-F38-G38),C38-D38-F38-G38)) -> 0.3081847696 | I38: 0.3081847696 | J38: 0.3178880117 | K38: 0.8582018143 | L38: =SUM(K$16:K38)/$K$137 -> 0.01339809282 | M38: 0.002253269604 | N38: 0.8582018143 | O38: =IF(E38<I$3,P38*(1-I$6*D38/C38),IF(OPFOKLEGHEN!$H$11="droogtunnel (platen) 55%",P38*(1-$I$6)+(C38-D38)/C38*(K38-P38*(1-I$6)),P38*(1-$I$6)+(C38-D38)/C38*(K38-P38*(1-I$6)))) -> 0.8582018143 | P38: 0.8582018143 | Q38: 0.8582018143 | R38: 0.8582018143 | S38: =MIN(K38,IF(OPFOKLEGHEN!$H$13="parallel geschakeld met warmtewisselaar",K38-(G38/(C38-G38))*(Q38)*95%,K38-(G38/(C38-G38))*(P38)*84%)) -> 0.8582018143 | T38: 0.8582018143 | U38: 1.624626832 | V38: =IF(OPFOKLEGHEN!$J$18="nee",H38/C38*K38,IF(OPFOKLEGHEN!$H$20="ja",O38-(K38-Q38)-(K38-S38),Q38-(K38-O38)-(K38-S38))) -> 0.8582018143 | W38: =IF(H38=0,0,IF(OPFOKLEGHEN!$H$11="geen droogtunnel",IF(OPFOKLEGHEN!$H$15="geen warmtewisselaar",Q38-(K38-R38)))+IF(OPFOKLEGHEN!$H$12>0,IF(OPFOKLEGHEN!$H$13="serie geschakeld met warmtewisselaar",(O38*80%-(K38-S38)),(Q38-(K38-S38)-(K38-T38))),(N38-(K38-S38)))) -> 1.716403629 | X38: =IF(H38=0,0,IF(OPFOKLEGHEN!$H$11="geen droogtunnel",IF(OPFOKLEGHEN!$H$15="geen warmtewisselaar",Q38-(K38-R38)))+IF(OPFOKLEGHEN!$H$12>0,IF(OPFOKLEGHEN!$H$13="serie geschakeld met warmtewisselaar",3*(O38*80%-(K38-S38)),(Q38-(K38-S38)-(K38-N38))),(N38-(K38-S38)))) -> 1.716403629 | Y38: =IF(H38=0,0,IF(OPFOKLEGHEN!$H$11="geen droogtunnel",IF(OPFOKLEGHEN!$H$15="geen warmtewisselaar",Q38-(K38-R38)))+IF(OPFOKLEGHEN!$H$12>0,IF(OPFOKLEGHEN!$H$13="serie geschakeld met warmtewisselaar",(O38-(K38-S38)),IF(OPFOKLEGHEN!$H$13="parallel geschakeld met warmtewisselaar",IF(OPFOKLEGHEN!$L$9="ja",IF(OPFOKLEGHEN!$J$18="nee",(N38-(K38-Q38)-(K38-S38)),(Q38-(K38-N38/80%)))))),(O38-(K38-S38)))) -> 1.716403629 | Z38: 1 | AC38: =IF(H38=0,0,IF(OPFOKLEGHEN!$H$11="geen droogtunnel",IF(OPFOKLEGHEN!$H$15="geen warmtewisselaar",P38-(K38-R38),K38-(K38-O38)/I$6-(K38-R38)/95%)+IF(OPFOKLEGHEN!$J$18="ja",J$5/I$5*(K38-O38)*(1-I$6)),IF(OPFOKLEGHEN!$H$12>=0,IF(OPFOKLEGHEN!$L$9="ja",IF(OPFOKLEGHEN!$J$18="ja",IF(OPFOKLEGHEN!$H$20="ja",O38-(K38-S38),IF(OPFOKLEGHEN!$H$20="nee",(O38-(K38-S38)),(O38-(K38-S38)))),IF(OPFOKLEGHEN!$J$18="nee",IF(OPFOKLEGHEN!$H$20="nee",O38*80%-(K38-S38),0+O38-(K38-S38)))),IF(OPFOKLEGHEN!$L$9="nee",IF(OPFOKLEGHEN!$J$18="nee",IF(OPFOKLEGHEN!$H$20="nee",(O38*80%-(K38-S38)),O38*93%-(K38-S38)),IF(OPFOKLEGHEN!$H$20="nee",IF(OPFOKLEGHEN!$J$18="ja",IF(OPFOKLEGHEN!$L$9="nee",O38-(K38-S38))),O38-(K38-S38)))))))) -> 0.8582018143 | AD38: =IF(H38=0,0,IF(OPFOKLEGHEN!$H$11="geen droogtunnel",IF(OPFOKLEGHEN!$H$15="geen warmtewisselaar",Q38-(K38-R38),N38-(K38-R38)),IF(OPFOKLEGHEN!$H$12>=0,IF(OPFOKLEGHEN!$L$9="ja",IF(OPFOKLEGHEN!$J$18="ja",IF(OPFOKLEGHEN!$H$20="ja",Q38-(K38-N38)-(K38-S38),IF(OPFOKLEGHEN!$H$20="nee",(Q38-(K38-N38)-(K38-S38)),(O38-(K38-S38)))),IF(OPFOKLEGHEN!$J$18="nee",IF(OPFOKLEGHEN!$H$20="nee",1*Q38*$N$135-(K38-N38)-(K38-S38),(Q38-(K38-N38)-(K38-S38))*N$135))),IF(OPFOKLEGHEN!$L$9="nee",IF(OPFOKLEGHEN!$J$18="nee",IF(OPFOKLEGHEN!$H$20="nee",(N38*95%-(K38-Q38)/I$4-(K38-S38)),N38-(K38-Q38)/I$4-(K38-S38)),IF(OPFOKLEGHEN!$H$20="nee",IF(OPFOKLEGHEN!$J$18="ja",IF(OPFOKLEGHEN!$L$9="nee",N38-(K38-Q38)/I$4-(K38-S38))),N38-(K38-Q38)/I$4-(K38-S38)))))))) -> 0.8582018143 | AE38: 0 | AF38: 0.3178880117 | AG38: 0 | AH38: 0 | AI38: 0.3178880117 | AJ38: 0 | AK38: 0.3081847696 | AL38: 0.002253269604 | AM38: 4 | AN38: 23 | AO38: 229.2 | AP38: 208.6 | AQ38: 218.9 | AR38: 1.624626832 | AS38: =(($AQ36/1000)*(1-$I$10)*$E36*$B36) -> 0
A39: 4 | B39: 24 | C39: 0.3185143351 | D39: 0 | E39: =IF(I$3=0,0,IF(OPFOKLEGHEN!$H$13="parallel geschakeld met warmtewisselaar",0,MIN(I$3,C39))) -> 0 | F39: =IF(I$3=0,0,IF(OPFOKLEGHEN!$H$13="serie geschakeld met warmtewisselaar",0,IF(C39<$I$3,C39-D39,MIN($I$3,C39-D39)))) -> 0 | G39: =IF(C39<$I$7,MAX(0,C39-D39-E39-F39,IF(OPFOKLEGHEN!$H$15="warmtewisselaar",IF(OPFOKLEGHEN!$H$13="serie geschakeld met warmtewisselaar",MIN(I$7,MAX(0,C39-D39-F39)),MIN(I$7,MAX(0,C39-D39-E39-F39))))),IF(OPFOKLEGHEN!$H$13="parallel geschakeld met warmtewisselaar",MIN(I$7,C39-D39-E39-F39,MIN(I$7,C39-E39-F39)),MIN(I$7,MAX(0,C39-D39-F39)))) -> 0 | H39: =IF(OPFOKLEGHEN!$H$13="parallel geschakeld met warmtewisselaar",IF(OPFOKLEGHEN!$L$9="nee",IF(OPFOKLEGHEN!$J$18="ja",C39-F39-G39,C39-D39-F39-G39),IF(OPFOKLEGHEN!$L$9="ja",IF(OPFOKLEGHEN!$J$18="ja",C39-G39,IF(OPFOKLEGHEN!$J$18="nee",C39-D39-G39)))),IF(OPFOKLEGHEN!$H$13="serie geschakeld met warmtewisselaar",IF(OPFOKLEGHEN!$J$18="ja",C39-G39,C39-D39-F39-G39),C39-D39-F39-G39)) -> 0.3185143351 | I39: 0.3185143351 | J39: 0.3237912947 | K39: 0.9034378001 | L39: =SUM(K$16:K39)/$K$137 -> 0.01445605473 | M39: 0.002475172055 | N39: 0.9034378001 | O39: =IF(E39<I$3,P39*(1-I$6*D39/C39),IF(OPFOKLEGHEN!$H$11="droogtunnel (platen) 55%",P39*(1-$I$6)+(C39-D39)/C39*(K39-P39*(1-I$6)),P39*(1-$I$6)+(C39-D39)/C39*(K39-P39*(1-I$6)))) -> 0.9034378001 | P39: 0.9034378001 | Q39: 0.9034378001 | R39: 0.9034378001 | S39: =MIN(K39,IF(OPFOKLEGHEN!$H$13="parallel geschakeld met warmtewisselaar",K39-(G39/(C39-G39))*(Q39)*95%,K39-(G39/(C39-G39))*(P39)*84%)) -> 0.9034378001 | T39: 0.9034378001 | U39: 1.844580218 | V39: =IF(OPFOKLEGHEN!$J$18="nee",H39/C39*K39,IF(OPFOKLEGHEN!$H$20="ja",O39-(K39-Q39)-(K39-S39),Q39-(K39-O39)-(K39-S39))) -> 0.9034378001 | W39: =IF(H39=0,0,IF(OPFOKLEGHEN!$H$11="geen droogtunnel",IF(OPFOKLEGHEN!$H$15="geen warmtewisselaar",Q39-(K39-R39)))+IF(OPFOKLEGHEN!$H$12>0,IF(OPFOKLEGHEN!$H$13="serie geschakeld met warmtewisselaar",(O39*80%-(K39-S39)),(Q39-(K39-S39)-(K39-T39))),(N39-(K39-S39)))) -> 1.8068756 | X39: =IF(H39=0,0,IF(OPFOKLEGHEN!$H$11="geen droogtunnel",IF(OPFOKLEGHEN!$H$15="geen warmtewisselaar",Q39-(K39-R39)))+IF(OPFOKLEGHEN!$H$12>0,IF(OPFOKLEGHEN!$H$13="serie geschakeld met warmtewisselaar",3*(O39*80%-(K39-S39)),(Q39-(K39-S39)-(K39-N39))),(N39-(K39-S39)))) -> 1.8068756 | Y39: =IF(H39=0,0,IF(OPFOKLEGHEN!$H$11="geen droogtunnel",IF(OPFOKLEGHEN!$H$15="geen warmtewisselaar",Q39-(K39-R39)))+IF(OPFOKLEGHEN!$H$12>0,IF(OPFOKLEGHEN!$H$13="serie geschakeld met warmtewisselaar",(O39-(K39-S39)),IF(OPFOKLEGHEN!$H$13="parallel geschakeld met warmtewisselaar",IF(OPFOKLEGHEN!$L$9="ja",IF(OPFOKLEGHEN!$J$18="nee",(N39-(K39-Q39)-(K39-S39)),(Q39-(K39-N39/80%)))))),(O39-(K39-S39)))) -> 1.8068756 | Z39: 1 | AC39: =IF(H39=0,0,IF(OPFOKLEGHEN!$H$11="geen droogtunnel",IF(OPFOKLEGHEN!$H$15="geen warmtewisselaar",P39-(K39-R39),K39-(K39-O39)/I$6-(K39-R39)/95%)+IF(OPFOKLEGHEN!$J$18="ja",J$5/I$5*(K39-O39)*(1-I$6)),IF(OPFOKLEGHEN!$H$12>=0,IF(OPFOKLEGHEN!$L$9="ja",IF(OPFOKLEGHEN!$J$18="ja",IF(OPFOKLEGHEN!$H$20="ja",O39-(K39-S39),IF(OPFOKLEGHEN!$H$20="nee",(O39-(K39-S39)),(O39-(K39-S39)))),IF(OPFOKLEGHEN!$J$18="nee",IF(OPFOKLEGHEN!$H$20="nee",O39*80%-(K39-S39),0+O39-(K39-S39)))),IF(OPFOKLEGHEN!$L$9="nee",IF(OPFOKLEGHEN!$J$18="nee",IF(OPFOKLEGHEN!$H$20="nee",(O39*80%-(K39-S39)),O39*93%-(K39-S39)),IF(OPFOKLEGHEN!$H$20="nee",IF(OPFOKLEGHEN!$J$18="ja",IF(OPFOKLEGHEN!$L$9="nee",O39-(K39-S39))),O39-(K39-S39)))))))) -> 0.9034378001 | AD39: =IF(H39=0,0,IF(OPFOKLEGHEN!$H$11="geen droogtunnel",IF(OPFOKLEGHEN!$H$15="geen warmtewisselaar",Q39-(K39-R39),N39-(K39-R39)),IF(OPFOKLEGHEN!$H$12>=0,IF(OPFOKLEGHEN!$L$9="ja",IF(OPFOKLEGHEN!$J$18="ja",IF(OPFOKLEGHEN!$H$20="ja",Q39-(K39-N39)-(K39-S39),IF(OPFOKLEGHEN!$H$20="nee",(Q39-(K39-N39)-(K39-S39)),(O39-(K39-S39)))),IF(OPFOKLEGHEN!$J$18="nee",IF(OPFOKLEGHEN!$H$20="nee",1*Q39*$N$135-(K39-N39)-(K39-S39),(Q39-(K39-N39)-(K39-S39))*N$135))),IF(OPFOKLEGHEN!$L$9="nee",IF(OPFOKLEGHEN!$J$18="nee",IF(OPFOKLEGHEN!$H$20="nee",(N39*95%-(K39-Q39)/I$4-(K39-S39)),N39-(K39-Q39)/I$4-(K39-S39)),IF(OPFOKLEGHEN!$H$20="nee",IF(OPFOKLEGHEN!$J$18="ja",IF(OPFOKLEGHEN!$L$9="nee",N39-(K39-Q39)/I$4-(K39-S39))),N39-(K39-Q39)/I$4-(K39-S39)))))))) -> 0.9034378001 | AE39: 0 | AF39: 0.3237912947 | AG39: 0 | AH39: 0 | AI39: 0.3237912947 | AJ39: 0 | AK39: 0.3185143351 | AL39: 0.002475172055 | AM39: 4 | AN39: 24 | AO39: 241.3 | AP39: 217.9 | AQ39: 229.6 | AR39: 1.844580218 | AS39: (($Y35/1000)*(1-$F$9)*$F35*$B35)
A40: 4 | B40: 25 | C40: 0.3288261399 | D40: 0 | E40: =IF(I$3=0,0,IF(OPFOKLEGHEN!$H$13="parallel geschakeld met warmtewisselaar",0,MIN(I$3,C40))) -> 0 | F40: =IF(I$3=0,0,IF(OPFOKLEGHEN!$H$13="serie geschakeld met warmtewisselaar",0,IF(C40<$I$3,C40-D40,MIN($I$3,C40-D40)))) -> 0 | G40: =IF(C40<$I$7,MAX(0,C40-D40-E40-F40,IF(OPFOKLEGHEN!$H$15="warmtewisselaar",IF(OPFOKLEGHEN!$H$13="serie geschakeld met warmtewisselaar",MIN(I$7,MAX(0,C40-D40-F40)),MIN(I$7,MAX(0,C40-D40-E40-F40))))),IF(OPFOKLEGHEN!$H$13="parallel geschakeld met warmtewisselaar",MIN(I$7,C40-D40-E40-F40,MIN(I$7,C40-E40-F40)),MIN(I$7,MAX(0,C40-D40-F40)))) -> 0 | H40: =IF(OPFOKLEGHEN!$H$13="parallel geschakeld met warmtewisselaar",IF(OPFOKLEGHEN!$L$9="nee",IF(OPFOKLEGHEN!$J$18="ja",C40-F40-G40,C40-D40-F40-G40),IF(OPFOKLEGHEN!$L$9="ja",IF(OPFOKLEGHEN!$J$18="ja",C40-G40,IF(OPFOKLEGHEN!$J$18="nee",C40-D40-G40)))),IF(OPFOKLEGHEN!$H$13="serie geschakeld met warmtewisselaar",IF(OPFOKLEGHEN!$J$18="ja",C40-G40,C40-D40-F40-G40),C40-D40-F40-G40)) -> 0.3288261399 | I40: 0.3288261399 | J40: 0.3298042037 | K40: 0.9500066104 | L40: =SUM(K$16:K40)/$K$137 -> 0.01556855058 | M40: 0.00271120608 | N40: 0.9500066104 | O40: =IF(E40<I$3,P40*(1-I$6*D40/C40),IF(OPFOKLEGHEN!$H$11="droogtunnel (platen) 55%",P40*(1-$I$6)+(C40-D40)/C40*(K40-P40*(1-I$6)),P40*(1-$I$6)+(C40-D40)/C40*(K40-P40*(1-I$6)))) -> 0.9500066104 | P40: 0.9500066104 | Q40: 0.9500066104 | R40: 0.9500066104 | S40: =MIN(K40,IF(OPFOKLEGHEN!$H$13="parallel geschakeld met warmtewisselaar",K40-(G40/(C40-G40))*(Q40)*95%,K40-(G40/(C40-G40))*(P40)*84%)) -> 0.9500066104 | T40: 0.9500066104 | U40: 2.083113596 | V40: =IF(OPFOKLEGHEN!$J$18="nee",H40/C40*K40,IF(OPFOKLEGHEN!$H$20="ja",O40-(K40-Q40)-(K40-S40),Q40-(K40-O40)-(K40-S40))) -> 0.9500066104 | W40: =IF(H40=0,0,IF(OPFOKLEGHEN!$H$11="geen droogtunnel",IF(OPFOKLEGHEN!$H$15="geen warmtewisselaar",Q40-(K40-R40)))+IF(OPFOKLEGHEN!$H$12>0,IF(OPFOKLEGHEN!$H$13="serie geschakeld met warmtewisselaar",(O40*80%-(K40-S40)),(Q40-(K40-S40)-(K40-T40))),(N40-(K40-S40)))) -> 1.900013221 | X40: =IF(H40=0,0,IF(OPFOKLEGHEN!$H$11="geen droogtunnel",IF(OPFOKLEGHEN!$H$15="geen warmtewisselaar",Q40-(K40-R40)))+IF(OPFOKLEGHEN!$H$12>0,IF(OPFOKLEGHEN!$H$13="serie geschakeld met warmtewisselaar",3*(O40*80%-(K40-S40)),(Q40-(K40-S40)-(K40-N40))),(N40-(K40-S40)))) -> 1.900013221 | Y40: =IF(H40=0,0,IF(OPFOKLEGHEN!$H$11="geen droogtunnel",IF(OPFOKLEGHEN!$H$15="geen warmtewisselaar",Q40-(K40-R40)))+IF(OPFOKLEGHEN!$H$12>0,IF(OPFOKLEGHEN!$H$13="serie geschakeld met warmtewisselaar",(O40-(K40-S40)),IF(OPFOKLEGHEN!$H$13="parallel geschakeld met warmtewisselaar",IF(OPFOKLEGHEN!$L$9="ja",IF(OPFOKLEGHEN!$J$18="nee",(N40-(K40-Q40)-(K40-S40)),(Q40-(K40-N40/80%)))))),(O40-(K40-S40)))) -> 1.900013221 | Z40: 1 | AC40: =IF(H40=0,0,IF(OPFOKLEGHEN!$H$11="geen droogtunnel",IF(OPFOKLEGHEN!$H$15="geen warmtewisselaar",P40-(K40-R40),K40-(K40-O40)/I$6-(K40-R40)/95%)+IF(OPFOKLEGHEN!$J$18="ja",J$5/I$5*(K40-O40)*(1-I$6)),IF(OPFOKLEGHEN!$H$12>=0,IF(OPFOKLEGHEN!$L$9="ja",IF(OPFOKLEGHEN!$J$18="ja",IF(OPFOKLEGHEN!$H$20="ja",O40-(K40-S40),IF(OPFOKLEGHEN!$H$20="nee",(O40-(K40-S40)),(O40-(K40-S40)))),IF(OPFOKLEGHEN!$J$18="nee",IF(OPFOKLEGHEN!$H$20="nee",O40*80%-(K40-S40),0+O40-(K40-S40)))),IF(OPFOKLEGHEN!$L$9="nee",IF(OPFOKLEGHEN!$J$18="nee",IF(OPFOKLEGHEN!$H$20="nee",(O40*80%-(K40-S40)),O40*93%-(K40-S40)),IF(OPFOKLEGHEN!$H$20="nee",IF(OPFOKLEGHEN!$J$18="ja",IF(OPFOKLEGHEN!$L$9="nee",O40-(K40-S40))),O40-(K40-S40)))))))) -> 0.9500066104 | AD40: =IF(H40=0,0,IF(OPFOKLEGHEN!$H$11="geen droogtunnel",IF(OPFOKLEGHEN!$H$15="geen warmtewisselaar",Q40-(K40-R40),N40-(K40-R40)),IF(OPFOKLEGHEN!$H$12>=0,IF(OPFOKLEGHEN!$L$9="ja",IF(OPFOKLEGHEN!$J$18="ja",IF(OPFOKLEGHEN!$H$20="ja",Q40-(K40-N40)-(K40-S40),IF(OPFOKLEGHEN!$H$20="nee",(Q40-(K40-N40)-(K40-S40)),(O40-(K40-S40)))),IF(OPFOKLEGHEN!$J$18="nee",IF(OPFOKLEGHEN!$H$20="nee",1*Q40*$N$135-(K40-N40)-(K40-S40),(Q40-(K40-N40)-(K40-S40))*N$135))),IF(OPFOKLEGHEN!$L$9="nee",IF(OPFOKLEGHEN!$J$18="nee",IF(OPFOKLEGHEN!$H$20="nee",(N40*95%-(K40-Q40)/I$4-(K40-S40)),N40-(K40-Q40)/I$4-(K40-S40)),IF(OPFOKLEGHEN!$H$20="nee",IF(OPFOKLEGHEN!$J$18="ja",IF(OPFOKLEGHEN!$L$9="nee",N40-(K40-Q40)/I$4-(K40-S40))),N40-(K40-Q40)/I$4-(K40-S40)))))))) -> 0.9500066104 | AE40: 0 | AF40: 0.3298042037 | AG40: 0 | AH40: 0 | AI40: 0.3298042037 | AJ40: 0 | AK40: 0.3288261399 | AL40: 0.00271120608 | AM40: 4 | AN40: 25 | AO40: 253.4 | AP40: 227.2 | AQ40: 240.3 | AR40: 2.083113596
A41: 4 | B41: 26 | C41: 0.3391230063 | D41: 0 | E41: =IF(I$3=0,0,IF(OPFOKLEGHEN!$H$13="parallel geschakeld met warmtewisselaar",0,MIN(I$3,C41))) -> 0 | F41: =IF(I$3=0,0,IF(OPFOKLEGHEN!$H$13="serie geschakeld met warmtewisselaar",0,IF(C41<$I$3,C41-D41,MIN($I$3,C41-D41)))) -> 0 | G41: =IF(C41<$I$7,MAX(0,C41-D41-E41-F41,IF(OPFOKLEGHEN!$H$15="warmtewisselaar",IF(OPFOKLEGHEN!$H$13="serie geschakeld met warmtewisselaar",MIN(I$7,MAX(0,C41-D41-F41)),MIN(I$7,MAX(0,C41-D41-E41-F41))))),IF(OPFOKLEGHEN!$H$13="parallel geschakeld met warmtewisselaar",MIN(I$7,C41-D41-E41-F41,MIN(I$7,C41-E41-F41)),MIN(I$7,MAX(0,C41-D41-F41)))) -> 0 | H41: =IF(OPFOKLEGHEN!$H$13="parallel geschakeld met warmtewisselaar",IF(OPFOKLEGHEN!$L$9="nee",IF(OPFOKLEGHEN!$J$18="ja",C41-F41-G41,C41-D41-F41-G41),IF(OPFOKLEGHEN!$L$9="ja",IF(OPFOKLEGHEN!$J$18="ja",C41-G41,IF(OPFOKLEGHEN!$J$18="nee",C41-D41-G41)))),IF(OPFOKLEGHEN!$H$13="serie geschakeld met warmtewisselaar",IF(OPFOKLEGHEN!$J$18="ja",C41-G41,C41-D41-F41-G41),C41-D41-F41-G41)) -> 0.3391230063 | I41: 0.3391230063 | J41: 0.3359287743 | K41: 0.9979495003 | L41: =SUM(K$16:K41)/$K$137 -> 0.01673718948 | M41: 0.002961950572 | N41: 0.9979495003 | O41: =IF(E41<I$3,P41*(1-I$6*D41/C41),IF(OPFOKLEGHEN!$H$11="droogtunnel (platen) 55%",P41*(1-$I$6)+(C41-D41)/C41*(K41-P41*(1-I$6)),P41*(1-$I$6)+(C41-D41)/C41*(K41-P41*(1-I$6)))) -> 0.9979495003 | P41: 0.9979495003 | Q41: 0.9979495003 | R41: 0.9979495003 | S41: =MIN(K41,IF(OPFOKLEGHEN!$H$13="parallel geschakeld met warmtewisselaar",K41-(G41/(C41-G41))*(Q41)*95%,K41-(G41/(C41-G41))*(P41)*84%)) -> 0.9979495003 | T41: 0.9979495003 | U41: 2.340966112 | V41: =IF(OPFOKLEGHEN!$J$18="nee",H41/C41*K41,IF(OPFOKLEGHEN!$H$20="ja",O41-(K41-Q41)-(K41-S41),Q41-(K41-O41)-(K41-S41))) -> 0.9979495003 | W41: =IF(H41=0,0,IF(OPFOKLEGHEN!$H$11="geen droogtunnel",IF(OPFOKLEGHEN!$H$15="geen warmtewisselaar",Q41-(K41-R41)))+IF(OPFOKLEGHEN!$H$12>0,IF(OPFOKLEGHEN!$H$13="serie geschakeld met warmtewisselaar",(O41*80%-(K41-S41)),(Q41-(K41-S41)-(K41-T41))),(N41-(K41-S41)))) -> 1.995899001 | X41: =IF(H41=0,0,IF(OPFOKLEGHEN!$H$11="geen droogtunnel",IF(OPFOKLEGHEN!$H$15="geen warmtewisselaar",Q41-(K41-R41)))+IF(OPFOKLEGHEN!$H$12>0,IF(OPFOKLEGHEN!$H$13="serie geschakeld met warmtewisselaar",3*(O41*80%-(K41-S41)),(Q41-(K41-S41)-(K41-N41))),(N41-(K41-S41)))) -> 1.995899001 | Y41: =IF(H41=0,0,IF(OPFOKLEGHEN!$H$11="geen droogtunnel",IF(OPFOKLEGHEN!$H$15="geen warmtewisselaar",Q41-(K41-R41)))+IF(OPFOKLEGHEN!$H$12>0,IF(OPFOKLEGHEN!$H$13="serie geschakeld met warmtewisselaar",(O41-(K41-S41)),IF(OPFOKLEGHEN!$H$13="parallel geschakeld met warmtewisselaar",IF(OPFOKLEGHEN!$L$9="ja",IF(OPFOKLEGHEN!$J$18="nee",(N41-(K41-Q41)-(K41-S41)),(Q41-(K41-N41/80%)))))),(O41-(K41-S41)))) -> 1.995899001 | Z41: 1 | AC41: =IF(H41=0,0,IF(OPFOKLEGHEN!$H$11="geen droogtunnel",IF(OPFOKLEGHEN!$H$15="geen warmtewisselaar",P41-(K41-R41),K41-(K41-O41)/I$6-(K41-R41)/95%)+IF(OPFOKLEGHEN!$J$18="ja",J$5/I$5*(K41-O41)*(1-I$6)),IF(OPFOKLEGHEN!$H$12>=0,IF(OPFOKLEGHEN!$L$9="ja",IF(OPFOKLEGHEN!$J$18="ja",IF(OPFOKLEGHEN!$H$20="ja",O41-(K41-S41),IF(OPFOKLEGHEN!$H$20="nee",(O41-(K41-S41)),(O41-(K41-S41)))),IF(OPFOKLEGHEN!$J$18="nee",IF(OPFOKLEGHEN!$H$20="nee",O41*80%-(K41-S41),0+O41-(K41-S41)))),IF(OPFOKLEGHEN!$L$9="nee",IF(OPFOKLEGHEN!$J$18="nee",IF(OPFOKLEGHEN!$H$20="nee",(O41*80%-(K41-S41)),O41*93%-(K41-S41)),IF(OPFOKLEGHEN!$H$20="nee",IF(OPFOKLEGHEN!$J$18="ja",IF(OPFOKLEGHEN!$L$9="nee",O41-(K41-S41))),O41-(K41-S41)))))))) -> 0.9979495003 | AD41: =IF(H41=0,0,IF(OPFOKLEGHEN!$H$11="geen droogtunnel",IF(OPFOKLEGHEN!$H$15="geen warmtewisselaar",Q41-(K41-R41),N41-(K41-R41)),IF(OPFOKLEGHEN!$H$12>=0,IF(OPFOKLEGHEN!$L$9="ja",IF(OPFOKLEGHEN!$J$18="ja",IF(OPFOKLEGHEN!$H$20="ja",Q41-(K41-N41)-(K41-S41),IF(OPFOKLEGHEN!$H$20="nee",(Q41-(K41-N41)-(K41-S41)),(O41-(K41-S41)))),IF(OPFOKLEGHEN!$J$18="nee",IF(OPFOKLEGHEN!$H$20="nee",1*Q41*$N$135-(K41-N41)-(K41-S41),(Q41-(K41-N41)-(K41-S41))*N$135))),IF(OPFOKLEGHEN!$L$9="nee",IF(OPFOKLEGHEN!$J$18="nee",IF(OPFOKLEGHEN!$H$20="nee",(N41*95%-(K41-Q41)/I$4-(K41-S41)),N41-(K41-Q41)/I$4-(K41-S41)),IF(OPFOKLEGHEN!$H$20="nee",IF(OPFOKLEGHEN!$J$18="ja",IF(OPFOKLEGHEN!$L$9="nee",N41-(K41-Q41)/I$4-(K41-S41))),N41-(K41-Q41)/I$4-(K41-S41)))))))) -> 0.9979495003 | AE41: 0 | AF41: 0.3359287743 | AG41: 0 | AH41: 0 | AI41: 0.3359287743 | AJ41: 0 | AK41: 0.3391230063 | AL41: 0.002961950572 | AM41: 4 | AN41: 26 | AO41: 265.5 | AP41: 236.5 | AQ41: 251 | AR41: 2.340966112
A42: 4 | B42: 27 | C42: 0.3494077569 | D42: 0 | E42: =IF(I$3=0,0,IF(OPFOKLEGHEN!$H$13="parallel geschakeld met warmtewisselaar",0,MIN(I$3,C42))) -> 0 | F42: =IF(I$3=0,0,IF(OPFOKLEGHEN!$H$13="serie geschakeld met warmtewisselaar",0,IF(C42<$I$3,C42-D42,MIN($I$3,C42-D42)))) -> 0 | G42: =IF(C42<$I$7,MAX(0,C42-D42-E42-F42,IF(OPFOKLEGHEN!$H$15="warmtewisselaar",IF(OPFOKLEGHEN!$H$13="serie geschakeld met warmtewisselaar",MIN(I$7,MAX(0,C42-D42-F42)),MIN(I$7,MAX(0,C42-D42-E42-F42))))),IF(OPFOKLEGHEN!$H$13="parallel geschakeld met warmtewisselaar",MIN(I$7,C42-D42-E42-F42,MIN(I$7,C42-E42-F42)),MIN(I$7,MAX(0,C42-D42-F42)))) -> 0 | H42: =IF(OPFOKLEGHEN!$H$13="parallel geschakeld met warmtewisselaar",IF(OPFOKLEGHEN!$L$9="nee",IF(OPFOKLEGHEN!$J$18="ja",C42-F42-G42,C42-D42-F42-G42),IF(OPFOKLEGHEN!$L$9="ja",IF(OPFOKLEGHEN!$J$18="ja",C42-G42,IF(OPFOKLEGHEN!$J$18="nee",C42-D42-G42)))),IF(OPFOKLEGHEN!$H$13="serie geschakeld met warmtewisselaar",IF(OPFOKLEGHEN!$J$18="ja",C42-G42,C42-D42-F42-G42),C42-D42-F42-G42)) -> 0.3494077569 | I42: 0.3494077569 | J42: 0.3421670801 | K42: 1.047309088 | L42: =SUM(K$16:K42)/$K$137 -> 0.01796363044 | M42: 0.003228007463 | N42: 1.047309088 | O42: =IF(E42<I$3,P42*(1-I$6*D42/C42),IF(OPFOKLEGHEN!$H$11="droogtunnel (platen) 55%",P42*(1-$I$6)+(C42-D42)/C42*(K42-P42*(1-I$6)),P42*(1-$I$6)+(C42-D42)/C42*(K42-P42*(1-I$6)))) -> 1.047309088 | P42: 1.047309088 | Q42: 1.047309088 | R42: 1.047309088 | S42: =MIN(K42,IF(OPFOKLEGHEN!$H$13="parallel geschakeld met warmtewisselaar",K42-(G42/(C42-G42))*(Q42)*95%,K42-(G42/(C42-G42))*(P42)*84%)) -> 1.047309088 | T42: 1.047309088 | U42: 2.61888102 | V42: =IF(OPFOKLEGHEN!$J$18="nee",H42/C42*K42,IF(OPFOKLEGHEN!$H$20="ja",O42-(K42-Q42)-(K42-S42),Q42-(K42-O42)-(K42-S42))) -> 1.047309088 | W42: =IF(H42=0,0,IF(OPFOKLEGHEN!$H$11="geen droogtunnel",IF(OPFOKLEGHEN!$H$15="geen warmtewisselaar",Q42-(K42-R42)))+IF(OPFOKLEGHEN!$H$12>0,IF(OPFOKLEGHEN!$H$13="serie geschakeld met warmtewisselaar",(O42*80%-(K42-S42)),(Q42-(K42-S42)-(K42-T42))),(N42-(K42-S42)))) -> 2.094618176 | X42: =IF(H42=0,0,IF(OPFOKLEGHEN!$H$11="geen droogtunnel",IF(OPFOKLEGHEN!$H$15="geen warmtewisselaar",Q42-(K42-R42)))+IF(OPFOKLEGHEN!$H$12>0,IF(OPFOKLEGHEN!$H$13="serie geschakeld met warmtewisselaar",3*(O42*80%-(K42-S42)),(Q42-(K42-S42)-(K42-N42))),(N42-(K42-S42)))) -> 2.094618176 | Y42: =IF(H42=0,0,IF(OPFOKLEGHEN!$H$11="geen droogtunnel",IF(OPFOKLEGHEN!$H$15="geen warmtewisselaar",Q42-(K42-R42)))+IF(OPFOKLEGHEN!$H$12>0,IF(OPFOKLEGHEN!$H$13="serie geschakeld met warmtewisselaar",(O42-(K42-S42)),IF(OPFOKLEGHEN!$H$13="parallel geschakeld met warmtewisselaar",IF(OPFOKLEGHEN!$L$9="ja",IF(OPFOKLEGHEN!$J$18="nee",(N42-(K42-Q42)-(K42-S42)),(Q42-(K42-N42/80%)))))),(O42-(K42-S42)))) -> 2.094618176 | Z42: 1 | AC42: =IF(H42=0,0,IF(OPFOKLEGHEN!$H$11="geen droogtunnel",IF(OPFOKLEGHEN!$H$15="geen warmtewisselaar",P42-(K42-R42),K42-(K42-O42)/I$6-(K42-R42)/95%)+IF(OPFOKLEGHEN!$J$18="ja",J$5/I$5*(K42-O42)*(1-I$6)),IF(OPFOKLEGHEN!$H$12>=0,IF(OPFOKLEGHEN!$L$9="ja",IF(OPFOKLEGHEN!$J$18="ja",IF(OPFOKLEGHEN!$H$20="ja",O42-(K42-S42),IF(OPFOKLEGHEN!$H$20="nee",(O42-(K42-S42)),(O42-(K42-S42)))),IF(OPFOKLEGHEN!$J$18="nee",IF(OPFOKLEGHEN!$H$20="nee",O42*80%-(K42-S42),0+O42-(K42-S42)))),IF(OPFOKLEGHEN!$L$9="nee",IF(OPFOKLEGHEN!$J$18="nee",IF(OPFOKLEGHEN!$H$20="nee",(O42*80%-(K42-S42)),O42*93%-(K42-S42)),IF(OPFOKLEGHEN!$H$20="nee",IF(OPFOKLEGHEN!$J$18="ja",IF(OPFOKLEGHEN!$L$9="nee",O42-(K42-S42))),O42-(K42-S42)))))))) -> 1.047309088 | AD42: =IF(H42=0,0,IF(OPFOKLEGHEN!$H$11="geen droogtunnel",IF(OPFOKLEGHEN!$H$15="geen warmtewisselaar",Q42-(K42-R42),N42-(K42-R42)),IF(OPFOKLEGHEN!$H$12>=0,IF(OPFOKLEGHEN!$L$9="ja",IF(OPFOKLEGHEN!$J$18="ja",IF(OPFOKLEGHEN!$H$20="ja",Q42-(K42-N42)-(K42-S42),IF(OPFOKLEGHEN!$H$20="nee",(Q42-(K42-N42)-(K42-S42)),(O42-(K42-S42)))),IF(OPFOKLEGHEN!$J$18="nee",IF(OPFOKLEGHEN!$H$20="nee",1*Q42*$N$135-(K42-N42)-(K42-S42),(Q42-(K42-N42)-(K42-S42))*N$135))),IF(OPFOKLEGHEN!$L$9="nee",IF(OPFOKLEGHEN!$J$18="nee",IF(OPFOKLEGHEN!$H$20="nee",(N42*95%-(K42-Q42)/I$4-(K42-S42)),N42-(K42-Q42)/I$4-(K42-S42)),IF(OPFOKLEGHEN!$H$20="nee",IF(OPFOKLEGHEN!$J$18="ja",IF(OPFOKLEGHEN!$L$9="nee",N42-(K42-Q42)/I$4-(K42-S42))),N42-(K42-Q42)/I$4-(K42-S42)))))))) -> 1.047309088 | AE42: 0 | AF42: 0.3421670801 | AG42: 0 | AH42: 0 | AI42: 0.3421670801 | AJ42: 0 | AK42: 0.3494077569 | AL42: 0.003228007463 | AM42: 4 | AN42: 27 | AO42: 277.6 | AP42: 245.8 | AQ42: 261.7 | AR42: 2.61888102
A43: 4 | B43: 28 | C43: 0.3597792117 | D43: 0 | E43: =IF(I$3=0,0,IF(OPFOKLEGHEN!$H$13="parallel geschakeld met warmtewisselaar",0,MIN(I$3,C43))) -> 0 | F43: =IF(I$3=0,0,IF(OPFOKLEGHEN!$H$13="serie geschakeld met warmtewisselaar",0,IF(C43<$I$3,C43-D43,MIN($I$3,C43-D43)))) -> 0 | G43: =IF(C43<$I$7,MAX(0,C43-D43-E43-F43,IF(OPFOKLEGHEN!$H$15="warmtewisselaar",IF(OPFOKLEGHEN!$H$13="serie geschakeld met warmtewisselaar",MIN(I$7,MAX(0,C43-D43-F43)),MIN(I$7,MAX(0,C43-D43-E43-F43))))),IF(OPFOKLEGHEN!$H$13="parallel geschakeld met warmtewisselaar",MIN(I$7,C43-D43-E43-F43,MIN(I$7,C43-E43-F43)),MIN(I$7,MAX(0,C43-D43-F43)))) -> 0 | H43: =IF(OPFOKLEGHEN!$H$13="parallel geschakeld met warmtewisselaar",IF(OPFOKLEGHEN!$L$9="nee",IF(OPFOKLEGHEN!$J$18="ja",C43-F43-G43,C43-D43-F43-G43),IF(OPFOKLEGHEN!$L$9="ja",IF(OPFOKLEGHEN!$J$18="ja",C43-G43,IF(OPFOKLEGHEN!$J$18="nee",C43-D43-G43)))),IF(OPFOKLEGHEN!$H$13="serie geschakeld met warmtewisselaar",IF(OPFOKLEGHEN!$J$18="ja",C43-G43,C43-D43-F43-G43),C43-D43-F43-G43)) -> 0.3597792117 | I43: 0.3597792117 | J43: 0.3485212334 | K43: 1.098422485 | L43: =SUM(K$16:K43)/$K$137 -> 0.01924992724 | M43: 0.003510939448 | N43: 1.098422485 | O43: =IF(E43<I$3,P43*(1-I$6*D43/C43),IF(OPFOKLEGHEN!$H$11="droogtunnel (platen) 55%",P43*(1-$I$6)+(C43-D43)/C43*(K43-P43*(1-I$6)),P43*(1-$I$6)+(C43-D43)/C43*(K43-P43*(1-I$6)))) -> 1.098422485 | P43: 1.098422485 | Q43: 1.098422485 | R43: 1.098422485 | S43: =MIN(K43,IF(OPFOKLEGHEN!$H$13="parallel geschakeld met warmtewisselaar",K43-(G43/(C43-G43))*(Q43)*95%,K43-(G43/(C43-G43))*(P43)*84%)) -> 1.098422485 | T43: 1.098422485 | U43: 2.921407199 | V43: =IF(OPFOKLEGHEN!$J$18="nee",H43/C43*K43,IF(OPFOKLEGHEN!$H$20="ja",O43-(K43-Q43)-(K43-S43),Q43-(K43-O43)-(K43-S43))) -> 1.098422485 | W43: =IF(H43=0,0,IF(OPFOKLEGHEN!$H$11="geen droogtunnel",IF(OPFOKLEGHEN!$H$15="geen warmtewisselaar",Q43-(K43-R43)))+IF(OPFOKLEGHEN!$H$12>0,IF(OPFOKLEGHEN!$H$13="serie geschakeld met warmtewisselaar",(O43*80%-(K43-S43)),(Q43-(K43-S43)-(K43-T43))),(N43-(K43-S43)))) -> 2.196844969 | X43: =IF(H43=0,0,IF(OPFOKLEGHEN!$H$11="geen droogtunnel",IF(OPFOKLEGHEN!$H$15="geen warmtewisselaar",Q43-(K43-R43)))+IF(OPFOKLEGHEN!$H$12>0,IF(OPFOKLEGHEN!$H$13="serie geschakeld met warmtewisselaar",3*(O43*80%-(K43-S43)),(Q43-(K43-S43)-(K43-N43))),(N43-(K43-S43)))) -> 2.196844969 | Y43: =IF(H43=0,0,IF(OPFOKLEGHEN!$H$11="geen droogtunnel",IF(OPFOKLEGHEN!$H$15="geen warmtewisselaar",Q43-(K43-R43)))+IF(OPFOKLEGHEN!$H$12>0,IF(OPFOKLEGHEN!$H$13="serie geschakeld met warmtewisselaar",(O43-(K43-S43)),IF(OPFOKLEGHEN!$H$13="parallel geschakeld met warmtewisselaar",IF(OPFOKLEGHEN!$L$9="ja",IF(OPFOKLEGHEN!$J$18="nee",(N43-(K43-Q43)-(K43-S43)),(Q43-(K43-N43/80%)))))),(O43-(K43-S43)))) -> 2.196844969 | Z43: 1 | AC43: =IF(H43=0,0,IF(OPFOKLEGHEN!$H$11="geen droogtunnel",IF(OPFOKLEGHEN!$H$15="geen warmtewisselaar",P43-(K43-R43),K43-(K43-O43)/I$6-(K43-R43)/95%)+IF(OPFOKLEGHEN!$J$18="ja",J$5/I$5*(K43-O43)*(1-I$6)),IF(OPFOKLEGHEN!$H$12>=0,IF(OPFOKLEGHEN!$L$9="ja",IF(OPFOKLEGHEN!$J$18="ja",IF(OPFOKLEGHEN!$H$20="ja",O43-(K43-S43),IF(OPFOKLEGHEN!$H$20="nee",(O43-(K43-S43)),(O43-(K43-S43)))),IF(OPFOKLEGHEN!$J$18="nee",IF(OPFOKLEGHEN!$H$20="nee",O43*80%-(K43-S43),0+O43-(K43-S43)))),IF(OPFOKLEGHEN!$L$9="nee",IF(OPFOKLEGHEN!$J$18="nee",IF(OPFOKLEGHEN!$H$20="nee",(O43*80%-(K43-S43)),O43*93%-(K43-S43)),IF(OPFOKLEGHEN!$H$20="nee",IF(OPFOKLEGHEN!$J$18="ja",IF(OPFOKLEGHEN!$L$9="nee",O43-(K43-S43))),O43-(K43-S43)))))))) -> 1.098422485 | AD43: =IF(H43=0,0,IF(OPFOKLEGHEN!$H$11="geen droogtunnel",IF(OPFOKLEGHEN!$H$15="geen warmtewisselaar",Q43-(K43-R43),N43-(K43-R43)),IF(OPFOKLEGHEN!$H$12>=0,IF(OPFOKLEGHEN!$L$9="ja",IF(OPFOKLEGHEN!$J$18="ja",IF(OPFOKLEGHEN!$H$20="ja",Q43-(K43-N43)-(K43-S43),IF(OPFOKLEGHEN!$H$20="nee",(Q43-(K43-N43)-(K43-S43)),(O43-(K43-S43)))),IF(OPFOKLEGHEN!$J$18="nee",IF(OPFOKLEGHEN!$H$20="nee",1*Q43*$N$135-(K43-N43)-(K43-S43),(Q43-(K43-N43)-(K43-S43))*N$135))),IF(OPFOKLEGHEN!$L$9="nee",IF(OPFOKLEGHEN!$J$18="nee",IF(OPFOKLEGHEN!$H$20="nee",(N43*95%-(K43-Q43)/I$4-(K43-S43)),N43-(K43-Q43)/I$4-(K43-S43)),IF(OPFOKLEGHEN!$H$20="nee",IF(OPFOKLEGHEN!$J$18="ja",IF(OPFOKLEGHEN!$L$9="nee",N43-(K43-Q43)/I$4-(K43-S43))),N43-(K43-Q43)/I$4-(K43-S43)))))))) -> 1.098422485 | AE43: 0 | AF43: 0.3485212334 | AG43: 0 | AH43: 0 | AI43: 0.3485212334 | AJ43: 0 | AK43: 0.3597792117 | AL43: 0.003510939448 | AM43: 4 | AN43: 28 | AO43: 290 | AP43: 255 | AQ43: 272.5 | AR43: 2.921407199
A44: 5 | B44: 29 | C44: 0.37067182 | D44: 0 | E44: =IF(I$3=0,0,IF(OPFOKLEGHEN!$H$13="parallel geschakeld met warmtewisselaar",0,MIN(I$3,C44))) -> 0 | F44: =IF(I$3=0,0,IF(OPFOKLEGHEN!$H$13="serie geschakeld met warmtewisselaar",0,IF(C44<$I$3,C44-D44,MIN($I$3,C44-D44)))) -> 0 | G44: =IF(C44<$I$7,MAX(0,C44-D44-E44-F44,IF(OPFOKLEGHEN!$H$15="warmtewisselaar",IF(OPFOKLEGHEN!$H$13="serie geschakeld met warmtewisselaar",MIN(I$7,MAX(0,C44-D44-F44)),MIN(I$7,MAX(0,C44-D44-E44-F44))))),IF(OPFOKLEGHEN!$H$13="parallel geschakeld met warmtewisselaar",MIN(I$7,C44-D44-E44-F44,MIN(I$7,C44-E44-F44)),MIN(I$7,MAX(0,C44-D44-F44)))) -> 0 | H44: =IF(OPFOKLEGHEN!$H$13="parallel geschakeld met warmtewisselaar",IF(OPFOKLEGHEN!$L$9="nee",IF(OPFOKLEGHEN!$J$18="ja",C44-F44-G44,C44-D44-F44-G44),IF(OPFOKLEGHEN!$L$9="ja",IF(OPFOKLEGHEN!$J$18="ja",C44-G44,IF(OPFOKLEGHEN!$J$18="nee",C44-D44-G44)))),IF(OPFOKLEGHEN!$H$13="serie geschakeld met warmtewisselaar",IF(OPFOKLEGHEN!$J$18="ja",C44-G44,C44-D44-F44-G44),C44-D44-F44-G44)) -> 0.37067182 | I44: 0.37067182 | J44: 0.3549933852 | K44: 1.152693747 | L44: =SUM(K$16:K44)/$K$137 -> 0.02059977786 | M44: 0.003815995281 | N44: 1.152693747 | O44: =IF(E44<I$3,P44*(1-I$6*D44/C44),IF(OPFOKLEGHEN!$H$11="droogtunnel (platen) 55%",P44*(1-$I$6)+(C44-D44)/C44*(K44-P44*(1-I$6)),P44*(1-$I$6)+(C44-D44)/C44*(K44-P44*(1-I$6)))) -> 1.152693747 | P44: 1.152693747 | Q44: 1.152693747 | R44: 1.152693747 | S44: =MIN(K44,IF(OPFOKLEGHEN!$H$13="parallel geschakeld met warmtewisselaar",K44-(G44/(C44-G44))*(Q44)*95%,K44-(G44/(C44-G44))*(P44)*84%)) -> 1.152693747 | T44: 1.152693747 | U44: 3.246343799 | V44: =IF(OPFOKLEGHEN!$J$18="nee",H44/C44*K44,IF(OPFOKLEGHEN!$H$20="ja",O44-(K44-Q44)-(K44-S44),Q44-(K44-O44)-(K44-S44))) -> 1.152693747 | W44: =IF(H44=0,0,IF(OPFOKLEGHEN!$H$11="geen droogtunnel",IF(OPFOKLEGHEN!$H$15="geen warmtewisselaar",Q44-(K44-R44)))+IF(OPFOKLEGHEN!$H$12>0,IF(OPFOKLEGHEN!$H$13="serie geschakeld met warmtewisselaar",(O44*80%-(K44-S44)),(Q44-(K44-S44)-(K44-T44))),(N44-(K44-S44)))) -> 2.305387494 | X44: =IF(H44=0,0,IF(OPFOKLEGHEN!$H$11="geen droogtunnel",IF(OPFOKLEGHEN!$H$15="geen warmtewisselaar",Q44-(K44-R44)))+IF(OPFOKLEGHEN!$H$12>0,IF(OPFOKLEGHEN!$H$13="serie geschakeld met warmtewisselaar",3*(O44*80%-(K44-S44)),(Q44-(K44-S44)-(K44-N44))),(N44-(K44-S44)))) -> 2.305387494 | Y44: =IF(H44=0,0,IF(OPFOKLEGHEN!$H$11="geen droogtunnel",IF(OPFOKLEGHEN!$H$15="geen warmtewisselaar",Q44-(K44-R44)))+IF(OPFOKLEGHEN!$H$12>0,IF(OPFOKLEGHEN!$H$13="serie geschakeld met warmtewisselaar",(O44-(K44-S44)),IF(OPFOKLEGHEN!$H$13="parallel geschakeld met warmtewisselaar",IF(OPFOKLEGHEN!$L$9="ja",IF(OPFOKLEGHEN!$J$18="nee",(N44-(K44-Q44)-(K44-S44)),(Q44-(K44-N44/80%)))))),(O44-(K44-S44)))) -> 2.305387494 | Z44: 1 | AC44: =IF(H44=0,0,IF(OPFOKLEGHEN!$H$11="geen droogtunnel",IF(OPFOKLEGHEN!$H$15="geen warmtewisselaar",P44-(K44-R44),K44-(K44-O44)/I$6-(K44-R44)/95%)+IF(OPFOKLEGHEN!$J$18="ja",J$5/I$5*(K44-O44)*(1-I$6)),IF(OPFOKLEGHEN!$H$12>=0,IF(OPFOKLEGHEN!$L$9="ja",IF(OPFOKLEGHEN!$J$18="ja",IF(OPFOKLEGHEN!$H$20="ja",O44-(K44-S44),IF(OPFOKLEGHEN!$H$20="nee",(O44-(K44-S44)),(O44-(K44-S44)))),IF(OPFOKLEGHEN!$J$18="nee",IF(OPFOKLEGHEN!$H$20="nee",O44*80%-(K44-S44),0+O44-(K44-S44)))),IF(OPFOKLEGHEN!$L$9="nee",IF(OPFOKLEGHEN!$J$18="nee",IF(OPFOKLEGHEN!$H$20="nee",(O44*80%-(K44-S44)),O44*93%-(K44-S44)),IF(OPFOKLEGHEN!$H$20="nee",IF(OPFOKLEGHEN!$J$18="ja",IF(OPFOKLEGHEN!$L$9="nee",O44-(K44-S44))),O44-(K44-S44)))))))) -> 1.152693747 | AD44: =IF(H44=0,0,IF(OPFOKLEGHEN!$H$11="geen droogtunnel",IF(OPFOKLEGHEN!$H$15="geen warmtewisselaar",Q44-(K44-R44),N44-(K44-R44)),IF(OPFOKLEGHEN!$H$12>=0,IF(OPFOKLEGHEN!$L$9="ja",IF(OPFOKLEGHEN!$J$18="ja",IF(OPFOKLEGHEN!$H$20="ja",Q44-(K44-N44)-(K44-S44),IF(OPFOKLEGHEN!$H$20="nee",(Q44-(K44-N44)-(K44-S44)),(O44-(K44-S44)))),IF(OPFOKLEGHEN!$J$18="nee",IF(OPFOKLEGHEN!$H$20="nee",1*Q44*$N$135-(K44-N44)-(K44-S44),(Q44-(K44-N44)-(K44-S44))*N$135))),IF(OPFOKLEGHEN!$L$9="nee",IF(OPFOKLEGHEN!$J$18="nee",IF(OPFOKLEGHEN!$H$20="nee",(N44*95%-(K44-Q44)/I$4-(K44-S44)),N44-(K44-Q44)/I$4-(K44-S44)),IF(OPFOKLEGHEN!$H$20="nee",IF(OPFOKLEGHEN!$J$18="ja",IF(OPFOKLEGHEN!$L$9="nee",N44-(K44-Q44)/I$4-(K44-S44))),N44-(K44-Q44)/I$4-(K44-S44)))))))) -> 1.152693747 | AE44: 0 | AF44: 0.3549933852 | AG44: 0 | AH44: 0 | AI44: 0.3549933852 | AJ44: 0 | AK44: 0.37067182 | AL44: 0.003815995281 | AM44: 5 | AN44: 29 | AO44: =AO43+12 -> 302 | AP44: =AP43+10.7 -> 265.7 | AQ44: 283.85 | AR44: 3.246343799
A45: 5 | B45: 30 | C45: 0.3815605459 | D45: 0 | E45: =IF(I$3=0,0,IF(OPFOKLEGHEN!$H$13="parallel geschakeld met warmtewisselaar",0,MIN(I$3,C45))) -> 0 | F45: =IF(I$3=0,0,IF(OPFOKLEGHEN!$H$13="serie geschakeld met warmtewisselaar",0,IF(C45<$I$3,C45-D45,MIN($I$3,C45-D45)))) -> 0 | G45: =IF(C45<$I$7,MAX(0,C45-D45-E45-F45,IF(OPFOKLEGHEN!$H$15="warmtewisselaar",IF(OPFOKLEGHEN!$H$13="serie geschakeld met warmtewisselaar",MIN(I$7,MAX(0,C45-D45-F45)),MIN(I$7,MAX(0,C45-D45-E45-F45))))),IF(OPFOKLEGHEN!$H$13="parallel geschakeld met warmtewisselaar",MIN(I$7,C45-D45-E45-F45,MIN(I$7,C45-E45-F45)),MIN(I$7,MAX(0,C45-D45-F45)))) -> 0 | H45: =IF(OPFOKLEGHEN!$H$13="parallel geschakeld met warmtewisselaar",IF(OPFOKLEGHEN!$L$9="nee",IF(OPFOKLEGHEN!$J$18="ja",C45-F45-G45,C45-D45-F45-G45),IF(OPFOKLEGHEN!$L$9="ja",IF(OPFOKLEGHEN!$J$18="ja",C45-G45,IF(OPFOKLEGHEN!$J$18="nee",C45-D45-G45)))),IF(OPFOKLEGHEN!$H$13="serie geschakeld met warmtewisselaar",IF(OPFOKLEGHEN!$J$18="ja",C45-G45,C45-D45-F45-G45),C45-D45-F45-G45)) -> 0.3815605459 | I45: 0.3815605459 | J45: 0.3615857271 | K45: 1.208589583 | L45: =SUM(K$16:K45)/$K$137 -> 0.02201508475 | M45: 0.004139005422 | N45: 1.208589583 | O45: =IF(E45<I$3,P45*(1-I$6*D45/C45),IF(OPFOKLEGHEN!$H$11="droogtunnel (platen) 55%",P45*(1-$I$6)+(C45-D45)/C45*(K45-P45*(1-I$6)),P45*(1-$I$6)+(C45-D45)/C45*(K45-P45*(1-I$6)))) -> 1.208589583 | P45: 1.208589583 | Q45: 1.208589583 | R45: 1.208589583 | S45: =MIN(K45,IF(OPFOKLEGHEN!$H$13="parallel geschakeld met warmtewisselaar",K45-(G45/(C45-G45))*(Q45)*95%,K45-(G45/(C45-G45))*(P45)*84%)) -> 1.208589583 | T45: 1.208589583 | U45: 3.594300342 | V45: =IF(OPFOKLEGHEN!$J$18="nee",H45/C45*K45,IF(OPFOKLEGHEN!$H$20="ja",O45-(K45-Q45)-(K45-S45),Q45-(K45-O45)-(K45-S45))) -> 1.208589583 | W45: =IF(H45=0,0,IF(OPFOKLEGHEN!$H$11="geen droogtunnel",IF(OPFOKLEGHEN!$H$15="geen warmtewisselaar",Q45-(K45-R45)))+IF(OPFOKLEGHEN!$H$12>0,IF(OPFOKLEGHEN!$H$13="serie geschakeld met warmtewisselaar",(O45*80%-(K45-S45)),(Q45-(K45-S45)-(K45-T45))),(N45-(K45-S45)))) -> 2.417179167 | X45: =IF(H45=0,0,IF(OPFOKLEGHEN!$H$11="geen droogtunnel",IF(OPFOKLEGHEN!$H$15="geen warmtewisselaar",Q45-(K45-R45)))+IF(OPFOKLEGHEN!$H$12>0,IF(OPFOKLEGHEN!$H$13="serie geschakeld met warmtewisselaar",3*(O45*80%-(K45-S45)),(Q45-(K45-S45)-(K45-N45))),(N45-(K45-S45)))) -> 2.417179167 | Y45: =IF(H45=0,0,IF(OPFOKLEGHEN!$H$11="geen droogtunnel",IF(OPFOKLEGHEN!$H$15="geen warmtewisselaar",Q45-(K45-R45)))+IF(OPFOKLEGHEN!$H$12>0,IF(OPFOKLEGHEN!$H$13="serie geschakeld met warmtewisselaar",(O45-(K45-S45)),IF(OPFOKLEGHEN!$H$13="parallel geschakeld met warmtewisselaar",IF(OPFOKLEGHEN!$L$9="ja",IF(OPFOKLEGHEN!$J$18="nee",(N45-(K45-Q45)-(K45-S45)),(Q45-(K45-N45/80%)))))),(O45-(K45-S45)))) -> 2.417179167 | Z45: 1 | AC45: =IF(H45=0,0,IF(OPFOKLEGHEN!$H$11="geen droogtunnel",IF(OPFOKLEGHEN!$H$15="geen warmtewisselaar",P45-(K45-R45),K45-(K45-O45)/I$6-(K45-R45)/95%)+IF(OPFOKLEGHEN!$J$18="ja",J$5/I$5*(K45-O45)*(1-I$6)),IF(OPFOKLEGHEN!$H$12>=0,IF(OPFOKLEGHEN!$L$9="ja",IF(OPFOKLEGHEN!$J$18="ja",IF(OPFOKLEGHEN!$H$20="ja",O45-(K45-S45),IF(OPFOKLEGHEN!$H$20="nee",(O45-(K45-S45)),(O45-(K45-S45)))),IF(OPFOKLEGHEN!$J$18="nee",IF(OPFOKLEGHEN!$H$20="nee",O45*80%-(K45-S45),0+O45-(K45-S45)))),IF(OPFOKLEGHEN!$L$9="nee",IF(OPFOKLEGHEN!$J$18="nee",IF(OPFOKLEGHEN!$H$20="nee",(O45*80%-(K45-S45)),O45*93%-(K45-S45)),IF(OPFOKLEGHEN!$H$20="nee",IF(OPFOKLEGHEN!$J$18="ja",IF(OPFOKLEGHEN!$L$9="nee",O45-(K45-S45))),O45-(K45-S45)))))))) -> 1.208589583 | AD45: =IF(H45=0,0,IF(OPFOKLEGHEN!$H$11="geen droogtunnel",IF(OPFOKLEGHEN!$H$15="geen warmtewisselaar",Q45-(K45-R45),N45-(K45-R45)),IF(OPFOKLEGHEN!$H$12>=0,IF(OPFOKLEGHEN!$L$9="ja",IF(OPFOKLEGHEN!$J$18="ja",IF(OPFOKLEGHEN!$H$20="ja",Q45-(K45-N45)-(K45-S45),IF(OPFOKLEGHEN!$H$20="nee",(Q45-(K45-N45)-(K45-S45)),(O45-(K45-S45)))),IF(OPFOKLEGHEN!$J$18="nee",IF(OPFOKLEGHEN!$H$20="nee",1*Q45*$N$135-(K45-N45)-(K45-S45),(Q45-(K45-N45)-(K45-S45))*N$135))),IF(OPFOKLEGHEN!$L$9="nee",IF(OPFOKLEGHEN!$J$18="nee",IF(OPFOKLEGHEN!$H$20="nee",(N45*95%-(K45-Q45)/I$4-(K45-S45)),N45-(K45-Q45)/I$4-(K45-S45)),IF(OPFOKLEGHEN!$H$20="nee",IF(OPFOKLEGHEN!$J$18="ja",IF(OPFOKLEGHEN!$L$9="nee",N45-(K45-Q45)/I$4-(K45-S45))),N45-(K45-Q45)/I$4-(K45-S45)))))))) -> 1.208589583 | AE45: 0 | AF45: 0.3615857271 | AG45: 0 | AH45: 0 | AI45: 0.3615857271 | AJ45: 0 | AK45: 0.3815605459 | AL45: 0.004139005422 | AM45: 5 | AN45: 30 | AO45: 314 | AP45: 276.4 | AQ45: 295.2 | AR45: 3.594300342
A46: 5 | B46: 31 | C46: 0.3924487582 | D46: 0 | E46: =IF(I$3=0,0,IF(OPFOKLEGHEN!$H$13="parallel geschakeld met warmtewisselaar",0,MIN(I$3,C46))) -> 0 | F46: =IF(I$3=0,0,IF(OPFOKLEGHEN!$H$13="serie geschakeld met warmtewisselaar",0,IF(C46<$I$3,C46-D46,MIN($I$3,C46-D46)))) -> 0 | G46: =IF(C46<$I$7,MAX(0,C46-D46-E46-F46,IF(OPFOKLEGHEN!$H$15="warmtewisselaar",IF(OPFOKLEGHEN!$H$13="serie geschakeld met warmtewisselaar",MIN(I$7,MAX(0,C46-D46-F46)),MIN(I$7,MAX(0,C46-D46-E46-F46))))),IF(OPFOKLEGHEN!$H$13="parallel geschakeld met warmtewisselaar",MIN(I$7,C46-D46-E46-F46,MIN(I$7,C46-E46-F46)),MIN(I$7,MAX(0,C46-D46-F46)))) -> 0 | H46: =IF(OPFOKLEGHEN!$H$13="parallel geschakeld met warmtewisselaar",IF(OPFOKLEGHEN!$L$9="nee",IF(OPFOKLEGHEN!$J$18="ja",C46-F46-G46,C46-D46-F46-G46),IF(OPFOKLEGHEN!$L$9="ja",IF(OPFOKLEGHEN!$J$18="ja",C46-G46,IF(OPFOKLEGHEN!$J$18="nee",C46-D46-G46)))),IF(OPFOKLEGHEN!$H$13="serie geschakeld met warmtewisselaar",IF(OPFOKLEGHEN!$J$18="ja",C46-G46,C46-D46-F46-G46),C46-D46-F46-G46)) -> 0.3924487582 | I46: 0.3924487582 | J46: 0.3683004908 | K46: 1.266162255 | L46: =SUM(K$16:K46)/$K$137 -> 0.02349781155 | M46: 0.004480711178 | N46: 1.266162255 | O46: =IF(E46<I$3,P46*(1-I$6*D46/C46),IF(OPFOKLEGHEN!$H$11="droogtunnel (platen) 55%",P46*(1-$I$6)+(C46-D46)/C46*(K46-P46*(1-I$6)),P46*(1-$I$6)+(C46-D46)/C46*(K46-P46*(1-I$6)))) -> 1.266162255 | P46: 1.266162255 | Q46: 1.266162255 | R46: 1.266162255 | S46: =MIN(K46,IF(OPFOKLEGHEN!$H$13="parallel geschakeld met warmtewisselaar",K46-(G46/(C46-G46))*(Q46)*95%,K46-(G46/(C46-G46))*(P46)*84%)) -> 1.266162255 | T46: 1.266162255 | U46: 3.96608715 | V46: =IF(OPFOKLEGHEN!$J$18="nee",H46/C46*K46,IF(OPFOKLEGHEN!$H$20="ja",O46-(K46-Q46)-(K46-S46),Q46-(K46-O46)-(K46-S46))) -> 1.266162255 | W46: =IF(H46=0,0,IF(OPFOKLEGHEN!$H$11="geen droogtunnel",IF(OPFOKLEGHEN!$H$15="geen warmtewisselaar",Q46-(K46-R46)))+IF(OPFOKLEGHEN!$H$12>0,IF(OPFOKLEGHEN!$H$13="serie geschakeld met warmtewisselaar",(O46*80%-(K46-S46)),(Q46-(K46-S46)-(K46-T46))),(N46-(K46-S46)))) -> 2.532324511 | X46: =IF(H46=0,0,IF(OPFOKLEGHEN!$H$11="geen droogtunnel",IF(OPFOKLEGHEN!$H$15="geen warmtewisselaar",Q46-(K46-R46)))+IF(OPFOKLEGHEN!$H$12>0,IF(OPFOKLEGHEN!$H$13="serie geschakeld met warmtewisselaar",3*(O46*80%-(K46-S46)),(Q46-(K46-S46)-(K46-N46))),(N46-(K46-S46)))) -> 2.532324511 | Y46: =IF(H46=0,0,IF(OPFOKLEGHEN!$H$11="geen droogtunnel",IF(OPFOKLEGHEN!$H$15="geen warmtewisselaar",Q46-(K46-R46)))+IF(OPFOKLEGHEN!$H$12>0,IF(OPFOKLEGHEN!$H$13="serie geschakeld met warmtewisselaar",(O46-(K46-S46)),IF(OPFOKLEGHEN!$H$13="parallel geschakeld met warmtewisselaar",IF(OPFOKLEGHEN!$L$9="ja",IF(OPFOKLEGHEN!$J$18="nee",(N46-(K46-Q46)-(K46-S46)),(Q46-(K46-N46/80%)))))),(O46-(K46-S46)))) -> 2.532324511 | Z46: 1 | AC46: =IF(H46=0,0,IF(OPFOKLEGHEN!$H$11="geen droogtunnel",IF(OPFOKLEGHEN!$H$15="geen warmtewisselaar",P46-(K46-R46),K46-(K46-O46)/I$6-(K46-R46)/95%)+IF(OPFOKLEGHEN!$J$18="ja",J$5/I$5*(K46-O46)*(1-I$6)),IF(OPFOKLEGHEN!$H$12>=0,IF(OPFOKLEGHEN!$L$9="ja",IF(OPFOKLEGHEN!$J$18="ja",IF(OPFOKLEGHEN!$H$20="ja",O46-(K46-S46),IF(OPFOKLEGHEN!$H$20="nee",(O46-(K46-S46)),(O46-(K46-S46)))),IF(OPFOKLEGHEN!$J$18="nee",IF(OPFOKLEGHEN!$H$20="nee",O46*80%-(K46-S46),0+O46-(K46-S46)))),IF(OPFOKLEGHEN!$L$9="nee",IF(OPFOKLEGHEN!$J$18="nee",IF(OPFOKLEGHEN!$H$20="nee",(O46*80%-(K46-S46)),O46*93%-(K46-S46)),IF(OPFOKLEGHEN!$H$20="nee",IF(OPFOKLEGHEN!$J$18="ja",IF(OPFOKLEGHEN!$L$9="nee",O46-(K46-S46))),O46-(K46-S46)))))))) -> 1.266162255 | AD46: =IF(H46=0,0,IF(OPFOKLEGHEN!$H$11="geen droogtunnel",IF(OPFOKLEGHEN!$H$15="geen warmtewisselaar",Q46-(K46-R46),N46-(K46-R46)),IF(OPFOKLEGHEN!$H$12>=0,IF(OPFOKLEGHEN!$L$9="ja",IF(OPFOKLEGHEN!$J$18="ja",IF(OPFOKLEGHEN!$H$20="ja",Q46-(K46-N46)-(K46-S46),IF(OPFOKLEGHEN!$H$20="nee",(Q46-(K46-N46)-(K46-S46)),(O46-(K46-S46)))),IF(OPFOKLEGHEN!$J$18="nee",IF(OPFOKLEGHEN!$H$20="nee",1*Q46*$N$135-(K46-N46)-(K46-S46),(Q46-(K46-N46)-(K46-S46))*N$135))),IF(OPFOKLEGHEN!$L$9="nee",IF(OPFOKLEGHEN!$J$18="nee",IF(OPFOKLEGHEN!$H$20="nee",(N46*95%-(K46-Q46)/I$4-(K46-S46)),N46-(K46-Q46)/I$4-(K46-S46)),IF(OPFOKLEGHEN!$H$20="nee",IF(OPFOKLEGHEN!$J$18="ja",IF(OPFOKLEGHEN!$L$9="nee",N46-(K46-Q46)/I$4-(K46-S46))),N46-(K46-Q46)/I$4-(K46-S46)))))))) -> 1.266162255 | AE46: 0 | AF46: 0.3683004908 | AG46: 0 | AH46: 0 | AI46: 0.3683004908 | AJ46: 0 | AK46: 0.3924487582 | AL46: 0.004480711178 | AM46: 5 | AN46: 31 | AO46: 326 | AP46: 287.1 | AQ46: 306.55 | AR46: 3.96608715
A47: 5 | B47: 32 | C47: 0.4033398255 | D47: 0 | E47: =IF(I$3=0,0,IF(OPFOKLEGHEN!$H$13="parallel geschakeld met warmtewisselaar",0,MIN(I$3,C47))) -> 0 | F47: =IF(I$3=0,0,IF(OPFOKLEGHEN!$H$13="serie geschakeld met warmtewisselaar",0,IF(C47<$I$3,C47-D47,MIN($I$3,C47-D47)))) -> 0 | G47: =IF(C47<$I$7,MAX(0,C47-D47-E47-F47,IF(OPFOKLEGHEN!$H$15="warmtewisselaar",IF(OPFOKLEGHEN!$H$13="serie geschakeld met warmtewisselaar",MIN(I$7,MAX(0,C47-D47-F47)),MIN(I$7,MAX(0,C47-D47-E47-F47))))),IF(OPFOKLEGHEN!$H$13="parallel geschakeld met warmtewisselaar",MIN(I$7,C47-D47-E47-F47,MIN(I$7,C47-E47-F47)),MIN(I$7,MAX(0,C47-D47-F47)))) -> 0 | H47: =IF(OPFOKLEGHEN!$H$13="parallel geschakeld met warmtewisselaar",IF(OPFOKLEGHEN!$L$9="nee",IF(OPFOKLEGHEN!$J$18="ja",C47-F47-G47,C47-D47-F47-G47),IF(OPFOKLEGHEN!$L$9="ja",IF(OPFOKLEGHEN!$J$18="ja",C47-G47,IF(OPFOKLEGHEN!$J$18="nee",C47-D47-G47)))),IF(OPFOKLEGHEN!$H$13="serie geschakeld met warmtewisselaar",IF(OPFOKLEGHEN!$J$18="ja",C47-G47,C47-D47-F47-G47),C47-D47-F47-G47)) -> 0.4033398255 | I47: 0.4033398255 | J47: 0.3751399499 | K47: 1.325465806 | L47: =SUM(K$16:K47)/$K$137 -> 0.02504998518 | M47: 0.004841884223 | N47: 1.325465806 | O47: =IF(E47<I$3,P47*(1-I$6*D47/C47),IF(OPFOKLEGHEN!$H$11="droogtunnel (platen) 55%",P47*(1-$I$6)+(C47-D47)/C47*(K47-P47*(1-I$6)),P47*(1-$I$6)+(C47-D47)/C47*(K47-P47*(1-I$6)))) -> 1.325465806 | P47: 1.325465806 | Q47: 1.325465806 | R47: 1.325465806 | S47: =MIN(K47,IF(OPFOKLEGHEN!$H$13="parallel geschakeld met warmtewisselaar",K47-(G47/(C47-G47))*(Q47)*95%,K47-(G47/(C47-G47))*(P47)*84%)) -> 1.325465806 | T47: 1.325465806 | U47: 4.362523553 | V47: =IF(OPFOKLEGHEN!$J$18="nee",H47/C47*K47,IF(OPFOKLEGHEN!$H$20="ja",O47-(K47-Q47)-(K47-S47),Q47-(K47-O47)-(K47-S47))) -> 1.325465806 | W47: =IF(H47=0,0,IF(OPFOKLEGHEN!$H$11="geen droogtunnel",IF(OPFOKLEGHEN!$H$15="geen warmtewisselaar",Q47-(K47-R47)))+IF(OPFOKLEGHEN!$H$12>0,IF(OPFOKLEGHEN!$H$13="serie geschakeld met warmtewisselaar",(O47*80%-(K47-S47)),(Q47-(K47-S47)-(K47-T47))),(N47-(K47-S47)))) -> 2.650931612 | X47: =IF(H47=0,0,IF(OPFOKLEGHEN!$H$11="geen droogtunnel",IF(OPFOKLEGHEN!$H$15="geen warmtewisselaar",Q47-(K47-R47)))+IF(OPFOKLEGHEN!$H$12>0,IF(OPFOKLEGHEN!$H$13="serie geschakeld met warmtewisselaar",3*(O47*80%-(K47-S47)),(Q47-(K47-S47)-(K47-N47))),(N47-(K47-S47)))) -> 2.650931612 | Y47: =IF(H47=0,0,IF(OPFOKLEGHEN!$H$11="geen droogtunnel",IF(OPFOKLEGHEN!$H$15="geen warmtewisselaar",Q47-(K47-R47)))+IF(OPFOKLEGHEN!$H$12>0,IF(OPFOKLEGHEN!$H$13="serie geschakeld met warmtewisselaar",(O47-(K47-S47)),IF(OPFOKLEGHEN!$H$13="parallel geschakeld met warmtewisselaar",IF(OPFOKLEGHEN!$L$9="ja",IF(OPFOKLEGHEN!$J$18="nee",(N47-(K47-Q47)-(K47-S47)),(Q47-(K47-N47/80%)))))),(O47-(K47-S47)))) -> 2.650931612 | Z47: 1 | AC47: =IF(H47=0,0,IF(OPFOKLEGHEN!$H$11="geen droogtunnel",IF(OPFOKLEGHEN!$H$15="geen warmtewisselaar",P47-(K47-R47),K47-(K47-O47)/I$6-(K47-R47)/95%)+IF(OPFOKLEGHEN!$J$18="ja",J$5/I$5*(K47-O47)*(1-I$6)),IF(OPFOKLEGHEN!$H$12>=0,IF(OPFOKLEGHEN!$L$9="ja",IF(OPFOKLEGHEN!$J$18="ja",IF(OPFOKLEGHEN!$H$20="ja",O47-(K47-S47),IF(OPFOKLEGHEN!$H$20="nee",(O47-(K47-S47)),(O47-(K47-S47)))),IF(OPFOKLEGHEN!$J$18="nee",IF(OPFOKLEGHEN!$H$20="nee",O47*80%-(K47-S47),0+O47-(K47-S47)))),IF(OPFOKLEGHEN!$L$9="nee",IF(OPFOKLEGHEN!$J$18="nee",IF(OPFOKLEGHEN!$H$20="nee",(O47*80%-(K47-S47)),O47*93%-(K47-S47)),IF(OPFOKLEGHEN!$H$20="nee",IF(OPFOKLEGHEN!$J$18="ja",IF(OPFOKLEGHEN!$L$9="nee",O47-(K47-S47))),O47-(K47-S47)))))))) -> 1.325465806 | AD47: =IF(H47=0,0,IF(OPFOKLEGHEN!$H$11="geen droogtunnel",IF(OPFOKLEGHEN!$H$15="geen warmtewisselaar",Q47-(K47-R47),N47-(K47-R47)),IF(OPFOKLEGHEN!$H$12>=0,IF(OPFOKLEGHEN!$L$9="ja",IF(OPFOKLEGHEN!$J$18="ja",IF(OPFOKLEGHEN!$H$20="ja",Q47-(K47-N47)-(K47-S47),IF(OPFOKLEGHEN!$H$20="nee",(Q47-(K47-N47)-(K47-S47)),(O47-(K47-S47)))),IF(OPFOKLEGHEN!$J$18="nee",IF(OPFOKLEGHEN!$H$20="nee",1*Q47*$N$135-(K47-N47)-(K47-S47),(Q47-(K47-N47)-(K47-S47))*N$135))),IF(OPFOKLEGHEN!$L$9="nee",IF(OPFOKLEGHEN!$J$18="nee",IF(OPFOKLEGHEN!$H$20="nee",(N47*95%-(K47-Q47)/I$4-(K47-S47)),N47-(K47-Q47)/I$4-(K47-S47)),IF(OPFOKLEGHEN!$H$20="nee",IF(OPFOKLEGHEN!$J$18="ja",IF(OPFOKLEGHEN!$L$9="nee",N47-(K47-Q47)/I$4-(K47-S47))),N47-(K47-Q47)/I$4-(K47-S47)))))))) -> 1.325465806 | AE47: 0 | AF47: 0.3751399499 | AG47: 0 | AH47: 0 | AI47: 0.3751399499 | AJ47: 0 | AK47: 0.4033398255 | AL47: 0.004841884223 | AM47: 5 | AN47: 32 | AO47: 338 | AP47: 297.8 | AQ47: 317.9 | AR47: 4.362523553
A48: 5 | B48: 33 | C48: 0.4142371168 | D48: 0 | E48: =IF(I$3=0,0,IF(OPFOKLEGHEN!$H$13="parallel geschakeld met warmtewisselaar",0,MIN(I$3,C48))) -> 0 | F48: =IF(I$3=0,0,IF(OPFOKLEGHEN!$H$13="serie geschakeld met warmtewisselaar",0,IF(C48<$I$3,C48-D48,MIN($I$3,C48-D48)))) -> 0 | G48: =IF(C48<$I$7,MAX(0,C48-D48-E48-F48,IF(OPFOKLEGHEN!$H$15="warmtewisselaar",IF(OPFOKLEGHEN!$H$13="serie geschakeld met warmtewisselaar",MIN(I$7,MAX(0,C48-D48-F48)),MIN(I$7,MAX(0,C48-D48-E48-F48))))),IF(OPFOKLEGHEN!$H$13="parallel geschakeld met warmtewisselaar",MIN(I$7,C48-D48-E48-F48,MIN(I$7,C48-E48-F48)),MIN(I$7,MAX(0,C48-D48-F48)))) -> 0 | H48: =IF(OPFOKLEGHEN!$H$13="parallel geschakeld met warmtewisselaar",IF(OPFOKLEGHEN!$L$9="nee",IF(OPFOKLEGHEN!$J$18="ja",C48-F48-G48,C48-D48-F48-G48),IF(OPFOKLEGHEN!$L$9="ja",IF(OPFOKLEGHEN!$J$18="ja",C48-G48,IF(OPFOKLEGHEN!$J$18="nee",C48-D48-G48)))),IF(OPFOKLEGHEN!$H$13="serie geschakeld met warmtewisselaar",IF(OPFOKLEGHEN!$J$18="ja",C48-G48,C48-D48-F48-G48),C48-D48-F48-G48)) -> 0.4142371168 | I48: 0.4142371168 | J48: 0.38210642 | K48: 1.386556117 | L48: =SUM(K$16:K48)/$K$137 -> 0.02667369802 | M48: 0.005223327837 | N48: =(((($K48)*(1-($I$6*(D48)/C48))))) -> 1.386556117 | O48: =IF(E48<I$3,P48*(1-I$6*D48/C48),IF(OPFOKLEGHEN!$H$11="droogtunnel (platen) 55%",P48*(1-$I$6)+(C48-D48)/C48*(K48-P48*(1-I$6)),P48*(1-$I$6)+(C48-D48)/C48*(K48-P48*(1-I$6)))) -> 1.386556117 | P48: =IF(E48=0,K48,K48-K48*I$4*E48/C48) -> 1.386556117 | Q48: =IF(F48=0,K48,K48-K48*I$4*F48/C48) -> 1.386556117 | R48: 1.386556117 | S48: =MIN(K48,IF(OPFOKLEGHEN!$H$13="parallel geschakeld met warmtewisselaar",K48-(G48/(C48-G48))*(Q48)*95%,K48-(G48/(C48-G48))*(P48)*84%)) -> 1.386556117 | T48: 1.386556117 | U48: 4.784438699 | V48: =IF(OPFOKLEGHEN!$J$18="nee",H48/C48*K48,IF(OPFOKLEGHEN!$H$20="ja",O48-(K48-Q48)-(K48-S48),Q48-(K48-O48)-(K48-S48))) -> 1.386556117 | W48: =IF(H48=0,0,IF(OPFOKLEGHEN!$H$11="geen droogtunnel",IF(OPFOKLEGHEN!$H$15="geen warmtewisselaar",Q48-(K48-R48)))+IF(OPFOKLEGHEN!$H$12>0,IF(OPFOKLEGHEN!$H$13="serie geschakeld met warmtewisselaar",(O48*80%-(K48-S48)),(Q48-(K48-S48)-(K48-T48))),(N48-(K48-S48)))) -> 2.773112233 | X48: =IF(H48=0,0,IF(OPFOKLEGHEN!$H$11="geen droogtunnel",IF(OPFOKLEGHEN!$H$15="geen warmtewisselaar",Q48-(K48-R48)))+IF(OPFOKLEGHEN!$H$12>0,IF(OPFOKLEGHEN!$H$13="serie geschakeld met warmtewisselaar",3*(O48*80%-(K48-S48)),(Q48-(K48-S48)-(K48-N48))),(N48-(K48-S48)))) -> 2.773112233 | Y48: =IF(H48=0,0,IF(OPFOKLEGHEN!$H$11="geen droogtunnel",IF(OPFOKLEGHEN!$H$15="geen warmtewisselaar",Q48-(K48-R48)))+IF(OPFOKLEGHEN!$H$12>0,IF(OPFOKLEGHEN!$H$13="serie geschakeld met warmtewisselaar",(O48-(K48-S48)),IF(OPFOKLEGHEN!$H$13="parallel geschakeld met warmtewisselaar",IF(OPFOKLEGHEN!$L$9="ja",IF(OPFOKLEGHEN!$J$18="nee",(N48-(K48-Q48)-(K48-S48)),(Q48-(K48-N48/80%)))))),(O48-(K48-S48)))) -> 2.773112233 | Z48: =Q48/K48 -> 1 | AC48: =IF(H48=0,0,IF(OPFOKLEGHEN!$H$11="geen droogtunnel",IF(OPFOKLEGHEN!$H$15="geen warmtewisselaar",P48-(K48-R48),K48-(K48-O48)/I$6-(K48-R48)/95%)+IF(OPFOKLEGHEN!$J$18="ja",J$5/I$5*(K48-O48)*(1-I$6)),IF(OPFOKLEGHEN!$H$12>=0,IF(OPFOKLEGHEN!$L$9="ja",IF(OPFOKLEGHEN!$J$18="ja",IF(OPFOKLEGHEN!$H$20="ja",O48-(K48-S48),IF(OPFOKLEGHEN!$H$20="nee",(O48-(K48-S48)),(O48-(K48-S48)))),IF(OPFOKLEGHEN!$J$18="nee",IF(OPFOKLEGHEN!$H$20="nee",O48*80%-(K48-S48),0+O48-(K48-S48)))),IF(OPFOKLEGHEN!$L$9="nee",IF(OPFOKLEGHEN!$J$18="nee",IF(OPFOKLEGHEN!$H$20="nee",(O48*80%-(K48-S48)),O48*93%-(K48-S48)),IF(OPFOKLEGHEN!$H$20="nee",IF(OPFOKLEGHEN!$J$18="ja",IF(OPFOKLEGHEN!$L$9="nee",O48-(K48-S48))),O48-(K48-S48)))))))) -> 1.386556117 | AD48: =IF(H48=0,0,IF(OPFOKLEGHEN!$H$11="geen droogtunnel",IF(OPFOKLEGHEN!$H$15="geen warmtewisselaar",Q48-(K48-R48),N48-(K48-R48)),IF(OPFOKLEGHEN!$H$12>=0,IF(OPFOKLEGHEN!$L$9="ja",IF(OPFOKLEGHEN!$J$18="ja",IF(OPFOKLEGHEN!$H$20="ja",Q48-(K48-N48)-(K48-S48),IF(OPFOKLEGHEN!$H$20="nee",(Q48-(K48-N48)-(K48-S48)),(O48-(K48-S48)))),IF(OPFOKLEGHEN!$J$18="nee",IF(OPFOKLEGHEN!$H$20="nee",1*Q48*$N$135-(K48-N48)-(K48-S48),(Q48-(K48-N48)-(K48-S48))*N$135))),IF(OPFOKLEGHEN!$L$9="nee",IF(OPFOKLEGHEN!$J$18="nee",IF(OPFOKLEGHEN!$H$20="nee",(N48*95%-(K48-Q48)/I$4-(K48-S48)),N48-(K48-Q48)/I$4-(K48-S48)),IF(OPFOKLEGHEN!$H$20="nee",IF(OPFOKLEGHEN!$J$18="ja",IF(OPFOKLEGHEN!$L$9="nee",N48-(K48-Q48)/I$4-(K48-S48))),N48-(K48-Q48)/I$4-(K48-S48)))))))) -> 1.386556117 | AE48: =IF((D48+E48)<$I$3,D48+E48,$I$3) -> 0 | AF48: =IF($I$3>0,(J48*(1-$I$8)*(1-$I$4)),(J48*(1-$I$8))) -> 0.38210642 | AG48: =($AF48/1000)*$B48*$AE48 -> 0 | AH48: =D48 -> 0 | AI48: 0.38210642 | AJ48: =(AI48/1000)*B48*AH48 -> 0 | AK48: =IF($I$3>$I$5,C48-AE48,C48-AH48) -> 0.4142371168 | AL48: =((($J48/1000)*(1-$I$8))*$B48*$AK48)*(1-$I$9) -> 0.005223327837 | AM48: 5 | AN48: 33 | AO48: 350 | AP48: 308.5 | AQ48: 329.25 | AR48: =(($AP48/1000)*(1-$I$10)*$D48*$B48)+(($AQ48/1000)*(1-$I$10)*$E48*$B48)+(($AO48/1000)*(1-$I$10)*$I48*$B48) -> 4.784438699
A49: 5 | B49: 34 | C49: 0.4251440007 | D49: 0 | E49: =IF(I$3=0,0,IF(OPFOKLEGHEN!$H$13="parallel geschakeld met warmtewisselaar",0,MIN(I$3,C49))) -> 0 | F49: =IF(I$3=0,0,IF(OPFOKLEGHEN!$H$13="serie geschakeld met warmtewisselaar",0,IF(C49<$I$3,C49-D49,MIN($I$3,C49-D49)))) -> 0 | G49: =IF(C49<$I$7,MAX(0,C49-D49-E49-F49,IF(OPFOKLEGHEN!$H$15="warmtewisselaar",IF(OPFOKLEGHEN!$H$13="serie geschakeld met warmtewisselaar",MIN(I$7,MAX(0,C49-D49-F49)),MIN(I$7,MAX(0,C49-D49-E49-F49))))),IF(OPFOKLEGHEN!$H$13="parallel geschakeld met warmtewisselaar",MIN(I$7,C49-D49-E49-F49,MIN(I$7,C49-E49-F49)),MIN(I$7,MAX(0,C49-D49-F49)))) -> 0 | H49: =IF(OPFOKLEGHEN!$H$13="parallel geschakeld met warmtewisselaar",IF(OPFOKLEGHEN!$L$9="nee",IF(OPFOKLEGHEN!$J$18="ja",C49-F49-G49,C49-D49-F49-G49),IF(OPFOKLEGHEN!$L$9="ja",IF(OPFOKLEGHEN!$J$18="ja",C49-G49,IF(OPFOKLEGHEN!$J$18="nee",C49-D49-G49)))),IF(OPFOKLEGHEN!$H$13="serie geschakeld met warmtewisselaar",IF(OPFOKLEGHEN!$J$18="ja",C49-G49,C49-D49-F49-G49),C49-D49-F49-G49)) -> 0.4251440007 | I49: 0.4251440007 | J49: 0.3892022597 | K49: 1.44949097 | L49: =SUM(K$16:K49)/$K$137 -> 0.0283711101 | M49: 0.005625878195 | N49: 1.44949097 | O49: =IF(E49<I$3,P49*(1-I$6*D49/C49),IF(OPFOKLEGHEN!$H$11="droogtunnel (platen) 55%",P49*(1-$I$6)+(C49-D49)/C49*(K49-P49*(1-I$6)),P49*(1-$I$6)+(C49-D49)/C49*(K49-P49*(1-I$6)))) -> 1.44949097 | P49: 1.44949097 | Q49: 1.44949097 | R49: 1.44949097 | S49: =MIN(K49,IF(OPFOKLEGHEN!$H$13="parallel geschakeld met warmtewisselaar",K49-(G49/(C49-G49))*(Q49)*95%,K49-(G49/(C49-G49))*(P49)*84%)) -> 1.44949097 | T49: 1.44949097 | U49: 5.232672361 | V49: =IF(OPFOKLEGHEN!$J$18="nee",H49/C49*K49,IF(OPFOKLEGHEN!$H$20="ja",O49-(K49-Q49)-(K49-S49),Q49-(K49-O49)-(K49-S49))) -> 1.44949097 | W49: =IF(H49=0,0,IF(OPFOKLEGHEN!$H$11="geen droogtunnel",IF(OPFOKLEGHEN!$H$15="geen warmtewisselaar",Q49-(K49-R49)))+IF(OPFOKLEGHEN!$H$12>0,IF(OPFOKLEGHEN!$H$13="serie geschakeld met warmtewisselaar",(O49*80%-(K49-S49)),(Q49-(K49-S49)-(K49-T49))),(N49-(K49-S49)))) -> 2.898981941 | X49: =IF(H49=0,0,IF(OPFOKLEGHEN!$H$11="geen droogtunnel",IF(OPFOKLEGHEN!$H$15="geen warmtewisselaar",Q49-(K49-R49)))+IF(OPFOKLEGHEN!$H$12>0,IF(OPFOKLEGHEN!$H$13="serie geschakeld met warmtewisselaar",3*(O49*80%-(K49-S49)),(Q49-(K49-S49)-(K49-N49))),(N49-(K49-S49)))) -> 2.898981941 | Y49: =IF(H49=0,0,IF(OPFOKLEGHEN!$H$11="geen droogtunnel",IF(OPFOKLEGHEN!$H$15="geen warmtewisselaar",Q49-(K49-R49)))+IF(OPFOKLEGHEN!$H$12>0,IF(OPFOKLEGHEN!$H$13="serie geschakeld met warmtewisselaar",(O49-(K49-S49)),IF(OPFOKLEGHEN!$H$13="parallel geschakeld met warmtewisselaar",IF(OPFOKLEGHEN!$L$9="ja",IF(OPFOKLEGHEN!$J$18="nee",(N49-(K49-Q49)-(K49-S49)),(Q49-(K49-N49/80%)))))),(O49-(K49-S49)))) -> 2.898981941 | Z49: 1 | AC49: =IF(H49=0,0,IF(OPFOKLEGHEN!$H$11="geen droogtunnel",IF(OPFOKLEGHEN!$H$15="geen warmtewisselaar",P49-(K49-R49),K49-(K49-O49)/I$6-(K49-R49)/95%)+IF(OPFOKLEGHEN!$J$18="ja",J$5/I$5*(K49-O49)*(1-I$6)),IF(OPFOKLEGHEN!$H$12>=0,IF(OPFOKLEGHEN!$L$9="ja",IF(OPFOKLEGHEN!$J$18="ja",IF(OPFOKLEGHEN!$H$20="ja",O49-(K49-S49),IF(OPFOKLEGHEN!$H$20="nee",(O49-(K49-S49)),(O49-(K49-S49)))),IF(OPFOKLEGHEN!$J$18="nee",IF(OPFOKLEGHEN!$H$20="nee",O49*80%-(K49-S49),0+O49-(K49-S49)))),IF(OPFOKLEGHEN!$L$9="nee",IF(OPFOKLEGHEN!$J$18="nee",IF(OPFOKLEGHEN!$H$20="nee",(O49*80%-(K49-S49)),O49*93%-(K49-S49)),IF(OPFOKLEGHEN!$H$20="nee",IF(OPFOKLEGHEN!$J$18="ja",IF(OPFOKLEGHEN!$L$9="nee",O49-(K49-S49))),O49-(K49-S49)))))))) -> 1.44949097 | AD49: =IF(H49=0,0,IF(OPFOKLEGHEN!$H$11="geen droogtunnel",IF(OPFOKLEGHEN!$H$15="geen warmtewisselaar",Q49-(K49-R49),N49-(K49-R49)),IF(OPFOKLEGHEN!$H$12>=0,IF(OPFOKLEGHEN!$L$9="ja",IF(OPFOKLEGHEN!$J$18="ja",IF(OPFOKLEGHEN!$H$20="ja",Q49-(K49-N49)-(K49-S49),IF(OPFOKLEGHEN!$H$20="nee",(Q49-(K49-N49)-(K49-S49)),(O49-(K49-S49)))),IF(OPFOKLEGHEN!$J$18="nee",IF(OPFOKLEGHEN!$H$20="nee",1*Q49*$N$135-(K49-N49)-(K49-S49),(Q49-(K49-N49)-(K49-S49))*N$135))),IF(OPFOKLEGHEN!$L$9="nee",IF(OPFOKLEGHEN!$J$18="nee",IF(OPFOKLEGHEN!$H$20="nee",(N49*95%-(K49-Q49)/I$4-(K49-S49)),N49-(K49-Q49)/I$4-(K49-S49)),IF(OPFOKLEGHEN!$H$20="nee",IF(OPFOKLEGHEN!$J$18="ja",IF(OPFOKLEGHEN!$L$9="nee",N49-(K49-Q49)/I$4-(K49-S49))),N49-(K49-Q49)/I$4-(K49-S49)))))))) -> 1.44949097 | AE49: 0 | AF49: 0.3892022597 | AG49: 0 | AH49: 0 | AI49: 0.3892022597 | AJ49: 0 | AK49: 0.4251440007 | AL49: 0.005625878195 | AM49: 5 | AN49: 34 | AO49: 362 | AP49: 319.2 | AQ49: 340.6 | AR49: 5.232672361
A50: 5 | B50: 35 | C50: 0.4365933892 | D50: 0 | E50: =IF(I$3=0,0,IF(OPFOKLEGHEN!$H$13="parallel geschakeld met warmtewisselaar",0,MIN(I$3,C50))) -> 0 | F50: =IF(I$3=0,0,IF(OPFOKLEGHEN!$H$13="serie geschakeld met warmtewisselaar",0,IF(C50<$I$3,C50-D50,MIN($I$3,C50-D50)))) -> 0 | G50: =IF(C50<$I$7,MAX(0,C50-D50-E50-F50,IF(OPFOKLEGHEN!$H$15="warmtewisselaar",IF(OPFOKLEGHEN!$H$13="serie geschakeld met warmtewisselaar",MIN(I$7,MAX(0,C50-D50-F50)),MIN(I$7,MAX(0,C50-D50-E50-F50))))),IF(OPFOKLEGHEN!$H$13="parallel geschakeld met warmtewisselaar",MIN(I$7,C50-D50-E50-F50,MIN(I$7,C50-E50-F50)),MIN(I$7,MAX(0,C50-D50-F50)))) -> 0 | H50: =IF(OPFOKLEGHEN!$H$13="parallel geschakeld met warmtewisselaar",IF(OPFOKLEGHEN!$L$9="nee",IF(OPFOKLEGHEN!$J$18="ja",C50-F50-G50,C50-D50-F50-G50),IF(OPFOKLEGHEN!$L$9="ja",IF(OPFOKLEGHEN!$J$18="ja",C50-G50,IF(OPFOKLEGHEN!$J$18="nee",C50-D50-G50)))),IF(OPFOKLEGHEN!$H$13="serie geschakeld met warmtewisselaar",IF(OPFOKLEGHEN!$J$18="ja",C50-G50,C50-D50-F50-G50),C50-D50-F50-G50)) -> 0.4365933892 | I50: 0.4365933892 | J50: 0.3964298713 | K50: 1.516169071 | L50: =SUM(K$16:K50)/$K$137 -> 0.03014660491 | M50: 0.006057753139 | N50: 1.516169071 | O50: =IF(E50<I$3,P50*(1-I$6*D50/C50),IF(OPFOKLEGHEN!$H$11="droogtunnel (platen) 55%",P50*(1-$I$6)+(C50-D50)/C50*(K50-P50*(1-I$6)),P50*(1-$I$6)+(C50-D50)/C50*(K50-P50*(1-I$6)))) -> 1.516169071 | P50: 1.516169071 | Q50: 1.516169071 | R50: 1.516169071 | S50: =MIN(K50,IF(OPFOKLEGHEN!$H$13="parallel geschakeld met warmtewisselaar",K50-(G50/(C50-G50))*(Q50)*95%,K50-(G50/(C50-G50))*(P50)*84%)) -> 1.516169071 | T50: =$K50*(1-($I$6*(D50)/C50))-($I$4*F50/C50) -> 1.516169071 | U50: 5.730288233 | V50: =IF(OPFOKLEGHEN!$J$18="nee",H50/C50*K50,IF(OPFOKLEGHEN!$H$20="ja",O50-(K50-Q50)-(K50-S50),Q50-(K50-O50)-(K50-S50))) -> 1.516169071 | W50: =IF(H50=0,0,IF(OPFOKLEGHEN!$H$11="geen droogtunnel",IF(OPFOKLEGHEN!$H$15="geen warmtewisselaar",Q50-(K50-R50)))+IF(OPFOKLEGHEN!$H$12>0,IF(OPFOKLEGHEN!$H$13="serie geschakeld met warmtewisselaar",(O50*80%-(K50-S50)),(Q50-(K50-S50)-(K50-T50))),(N50-(K50-S50)))) -> 3.032338143 | X50: =IF(H50=0,0,IF(OPFOKLEGHEN!$H$11="geen droogtunnel",IF(OPFOKLEGHEN!$H$15="geen warmtewisselaar",Q50-(K50-R50)))+IF(OPFOKLEGHEN!$H$12>0,IF(OPFOKLEGHEN!$H$13="serie geschakeld met warmtewisselaar",3*(O50*80%-(K50-S50)),(Q50-(K50-S50)-(K50-N50))),(N50-(K50-S50)))) -> 3.032338143 | Y50: =IF(H50=0,0,IF(OPFOKLEGHEN!$H$11="geen droogtunnel",IF(OPFOKLEGHEN!$H$15="geen warmtewisselaar",Q50-(K50-R50)))+IF(OPFOKLEGHEN!$H$12>0,IF(OPFOKLEGHEN!$H$13="serie geschakeld met warmtewisselaar",(O50-(K50-S50)),IF(OPFOKLEGHEN!$H$13="parallel geschakeld met warmtewisselaar",IF(OPFOKLEGHEN!$L$9="ja",IF(OPFOKLEGHEN!$J$18="nee",(N50-(K50-Q50)-(K50-S50)),(Q50-(K50-N50/80%)))))),(O50-(K50-S50)))) -> 3.032338143 | Z50: 1 | AC50: =IF(H50=0,0,IF(OPFOKLEGHEN!$H$11="geen droogtunnel",IF(OPFOKLEGHEN!$H$15="geen warmtewisselaar",P50-(K50-R50),K50-(K50-O50)/I$6-(K50-R50)/95%)+IF(OPFOKLEGHEN!$J$18="ja",J$5/I$5*(K50-O50)*(1-I$6)),IF(OPFOKLEGHEN!$H$12>=0,IF(OPFOKLEGHEN!$L$9="ja",IF(OPFOKLEGHEN!$J$18="ja",IF(OPFOKLEGHEN!$H$20="ja",O50-(K50-S50),IF(OPFOKLEGHEN!$H$20="nee",(O50-(K50-S50)),(O50-(K50-S50)))),IF(OPFOKLEGHEN!$J$18="nee",IF(OPFOKLEGHEN!$H$20="nee",O50*80%-(K50-S50),0+O50-(K50-S50)))),IF(OPFOKLEGHEN!$L$9="nee",IF(OPFOKLEGHEN!$J$18="nee",IF(OPFOKLEGHEN!$H$20="nee",(O50*80%-(K50-S50)),O50*93%-(K50-S50)),IF(OPFOKLEGHEN!$H$20="nee",IF(OPFOKLEGHEN!$J$18="ja",IF(OPFOKLEGHEN!$L$9="nee",O50-(K50-S50))),O50-(K50-S50)))))))) -> 1.516169071 | AD50: =IF(H50=0,0,IF(OPFOKLEGHEN!$H$11="geen droogtunnel",IF(OPFOKLEGHEN!$H$15="geen warmtewisselaar",Q50-(K50-R50),N50-(K50-R50)),IF(OPFOKLEGHEN!$H$12>=0,IF(OPFOKLEGHEN!$L$9="ja",IF(OPFOKLEGHEN!$J$18="ja",IF(OPFOKLEGHEN!$H$20="ja",Q50-(K50-N50)-(K50-S50),IF(OPFOKLEGHEN!$H$20="nee",(Q50-(K50-N50)-(K50-S50)),(O50-(K50-S50)))),IF(OPFOKLEGHEN!$J$18="nee",IF(OPFOKLEGHEN!$H$20="nee",1*Q50*$N$135-(K50-N50)-(K50-S50),(Q50-(K50-N50)-(K50-S50))*N$135))),IF(OPFOKLEGHEN!$L$9="nee",IF(OPFOKLEGHEN!$J$18="nee",IF(OPFOKLEGHEN!$H$20="nee",(N50*95%-(K50-Q50)/I$4-(K50-S50)),N50-(K50-Q50)/I$4-(K50-S50)),IF(OPFOKLEGHEN!$H$20="nee",IF(OPFOKLEGHEN!$J$18="ja",IF(OPFOKLEGHEN!$L$9="nee",N50-(K50-Q50)/I$4-(K50-S50))),N50-(K50-Q50)/I$4-(K50-S50)))))))) -> 1.516169071 | AE50: 0 | AF50: 0.3964298713 | AG50: 0 | AH50: 0 | AI50: 0.3964298713 | AJ50: 0 | AK50: 0.4365933892 | AL50: 0.006057753139 | AM50: 5 | AN50: 35 | AO50: 375 | AP50: 330 | AQ50: 352.5 | AR50: 5.730288233
A51: 6 | B51: 36 | C51: 0.4475786639 | D51: 0 | E51: =IF(I$3=0,0,IF(OPFOKLEGHEN!$H$13="parallel geschakeld met warmtewisselaar",0,MIN(I$3,C51))) -> 0 | F51: =IF(I$3=0,0,IF(OPFOKLEGHEN!$H$13="serie geschakeld met warmtewisselaar",0,IF(C51<$I$3,C51-D51,MIN($I$3,C51-D51)))) -> 0 | G51: =IF(C51<$I$7,MAX(0,C51-D51-E51-F51,IF(OPFOKLEGHEN!$H$15="warmtewisselaar",IF(OPFOKLEGHEN!$H$13="serie geschakeld met warmtewisselaar",MIN(I$7,MAX(0,C51-D51-F51)),MIN(I$7,MAX(0,C51-D51-E51-F51))))),IF(OPFOKLEGHEN!$H$13="parallel geschakeld met warmtewisselaar",MIN(I$7,C51-D51-E51-F51,MIN(I$7,C51-E51-F51)),MIN(I$7,MAX(0,C51-D51-F51)))) -> 0 | H51: =IF(OPFOKLEGHEN!$H$13="parallel geschakeld met warmtewisselaar",IF(OPFOKLEGHEN!$L$9="nee",IF(OPFOKLEGHEN!$J$18="ja",C51-F51-G51,C51-D51-F51-G51),IF(OPFOKLEGHEN!$L$9="ja",IF(OPFOKLEGHEN!$J$18="ja",C51-G51,IF(OPFOKLEGHEN!$J$18="nee",C51-D51-G51)))),IF(OPFOKLEGHEN!$H$13="serie geschakeld met warmtewisselaar",IF(OPFOKLEGHEN!$J$18="ja",C51-G51,C51-D51-F51-G51),C51-D51-F51-G51)) -> 0.4475786639 | I51: 0.4475786639 | J51: 0.4037917021 | K51: 1.583182103 | L51: =SUM(K$16:K51)/$K$137 -> 0.03200057466 | M51: 0.006506227819 | N51: 1.583182103 | O51: =IF(E51<I$3,P51*(1-I$6*D51/C51),IF(OPFOKLEGHEN!$H$11="droogtunnel (platen) 55%",P51*(1-$I$6)+(C51-D51)/C51*(K51-P51*(1-I$6)),P51*(1-$I$6)+(C51-D51)/C51*(K51-P51*(1-I$6)))) -> 1.583182103 | P51: 1.583182103 | Q51: 1.583182103 | R51: 1.583182103 | S51: =MIN(K51,IF(OPFOKLEGHEN!$H$13="parallel geschakeld met warmtewisselaar",K51-(G51/(C51-G51))*(Q51)*95%,K51-(G51/(C51-G51))*(P51)*84%)) -> 1.583182103 | T51: 1.583182103 | U51: 6.237277228 | V51: =IF(OPFOKLEGHEN!$J$18="nee",H51/C51*K51,IF(OPFOKLEGHEN!$H$20="ja",O51-(K51-Q51)-(K51-S51),Q51-(K51-O51)-(K51-S51))) -> 1.583182103 | W51: =IF(H51=0,0,IF(OPFOKLEGHEN!$H$11="geen droogtunnel",IF(OPFOKLEGHEN!$H$15="geen warmtewisselaar",Q51-(K51-R51)))+IF(OPFOKLEGHEN!$H$12>0,IF(OPFOKLEGHEN!$H$13="serie geschakeld met warmtewisselaar",(O51*80%-(K51-S51)),(Q51-(K51-S51)-(K51-T51))),(N51-(K51-S51)))) -> 3.166364205 | X51: =IF(H51=0,0,IF(OPFOKLEGHEN!$H$11="geen droogtunnel",IF(OPFOKLEGHEN!$H$15="geen warmtewisselaar",Q51-(K51-R51)))+IF(OPFOKLEGHEN!$H$12>0,IF(OPFOKLEGHEN!$H$13="serie geschakeld met warmtewisselaar",3*(O51*80%-(K51-S51)),(Q51-(K51-S51)-(K51-N51))),(N51-(K51-S51)))) -> 3.166364205 | Y51: =IF(H51=0,0,IF(OPFOKLEGHEN!$H$11="geen droogtunnel",IF(OPFOKLEGHEN!$H$15="geen warmtewisselaar",Q51-(K51-R51)))+IF(OPFOKLEGHEN!$H$12>0,IF(OPFOKLEGHEN!$H$13="serie geschakeld met warmtewisselaar",(O51-(K51-S51)),IF(OPFOKLEGHEN!$H$13="parallel geschakeld met warmtewisselaar",IF(OPFOKLEGHEN!$L$9="ja",IF(OPFOKLEGHEN!$J$18="nee",(N51-(K51-Q51)-(K51-S51)),(Q51-(K51-N51/80%)))))),(O51-(K51-S51)))) -> 3.166364205 | Z51: 1 | AC51: =IF(H51=0,0,IF(OPFOKLEGHEN!$H$11="geen droogtunnel",IF(OPFOKLEGHEN!$H$15="geen warmtewisselaar",P51-(K51-R51),K51-(K51-O51)/I$6-(K51-R51)/95%)+IF(OPFOKLEGHEN!$J$18="ja",J$5/I$5*(K51-O51)*(1-I$6)),IF(OPFOKLEGHEN!$H$12>=0,IF(OPFOKLEGHEN!$L$9="ja",IF(OPFOKLEGHEN!$J$18="ja",IF(OPFOKLEGHEN!$H$20="ja",O51-(K51-S51),IF(OPFOKLEGHEN!$H$20="nee",(O51-(K51-S51)),(O51-(K51-S51)))),IF(OPFOKLEGHEN!$J$18="nee",IF(OPFOKLEGHEN!$H$20="nee",O51*80%-(K51-S51),0+O51-(K51-S51)))),IF(OPFOKLEGHEN!$L$9="nee",IF(OPFOKLEGHEN!$J$18="nee",IF(OPFOKLEGHEN!$H$20="nee",(O51*80%-(K51-S51)),O51*93%-(K51-S51)),IF(OPFOKLEGHEN!$H$20="nee",IF(OPFOKLEGHEN!$J$18="ja",IF(OPFOKLEGHEN!$L$9="nee",O51-(K51-S51))),O51-(K51-S51)))))))) -> 1.583182103 | AD51: =IF(H51=0,0,IF(OPFOKLEGHEN!$H$11="geen droogtunnel",IF(OPFOKLEGHEN!$H$15="geen warmtewisselaar",Q51-(K51-R51),N51-(K51-R51)),IF(OPFOKLEGHEN!$H$12>=0,IF(OPFOKLEGHEN!$L$9="ja",IF(OPFOKLEGHEN!$J$18="ja",IF(OPFOKLEGHEN!$H$20="ja",Q51-(K51-N51)-(K51-S51),IF(OPFOKLEGHEN!$H$20="nee",(Q51-(K51-N51)-(K51-S51)),(O51-(K51-S51)))),IF(OPFOKLEGHEN!$J$18="nee",IF(OPFOKLEGHEN!$H$20="nee",1*Q51*$N$135-(K51-N51)-(K51-S51),(Q51-(K51-N51)-(K51-S51))*N$135))),IF(OPFOKLEGHEN!$L$9="nee",IF(OPFOKLEGHEN!$J$18="nee",IF(OPFOKLEGHEN!$H$20="nee",(N51*95%-(K51-Q51)/I$4-(K51-S51)),N51-(K51-Q51)/I$4-(K51-S51)),IF(OPFOKLEGHEN!$H$20="nee",IF(OPFOKLEGHEN!$J$18="ja",IF(OPFOKLEGHEN!$L$9="nee",N51-(K51-Q51)/I$4-(K51-S51))),N51-(K51-Q51)/I$4-(K51-S51)))))))) -> 1.583182103 | AE51: 0 | AF51: 0.4037917021 | AG51: 0 | AH51: 0 | AI51: 0.4037917021 | AJ51: 0 | AK51: 0.4475786639 | AL51: 0.006506227819 | AM51: 6 | AN51: 36 | AO51: =AO50+12.1 -> 387.1 | AP51: =AP50+10.7 -> 340.7 | AQ51: 363.9 | AR51: 6.237277228
A52: 6 | B52: 37 | C52: 0.4585839911 | D52: 0 | E52: =IF(I$3=0,0,IF(OPFOKLEGHEN!$H$13="parallel geschakeld met warmtewisselaar",0,MIN(I$3,C52))) -> 0 | F52: =IF(I$3=0,0,IF(OPFOKLEGHEN!$H$13="serie geschakeld met warmtewisselaar",0,IF(C52<$I$3,C52-D52,MIN($I$3,C52-D52)))) -> 0 | G52: =IF(C52<$I$7,MAX(0,C52-D52-E52-F52,IF(OPFOKLEGHEN!$H$15="warmtewisselaar",IF(OPFOKLEGHEN!$H$13="serie geschakeld met warmtewisselaar",MIN(I$7,MAX(0,C52-D52-F52)),MIN(I$7,MAX(0,C52-D52-E52-F52))))),IF(OPFOKLEGHEN!$H$13="parallel geschakeld met warmtewisselaar",MIN(I$7,C52-D52-E52-F52,MIN(I$7,C52-E52-F52)),MIN(I$7,MAX(0,C52-D52-F52)))) -> 0 | H52: =IF(OPFOKLEGHEN!$H$13="parallel geschakeld met warmtewisselaar",IF(OPFOKLEGHEN!$L$9="nee",IF(OPFOKLEGHEN!$J$18="ja",C52-F52-G52,C52-D52-F52-G52),IF(OPFOKLEGHEN!$L$9="ja",IF(OPFOKLEGHEN!$J$18="ja",C52-G52,IF(OPFOKLEGHEN!$J$18="nee",C52-D52-G52)))),IF(OPFOKLEGHEN!$H$13="serie geschakeld met warmtewisselaar",IF(OPFOKLEGHEN!$J$18="ja",C52-G52,C52-D52-F52-G52),C52-D52-F52-G52)) -> 0.4585839911 | I52: 0.4585839911 | J52: 0.4112902445 | K52: 1.652233427 | L52: =SUM(K$16:K52)/$K$137 -> 0.03393540629 | M52: 0.006978611506 | N52: 1.652233427 | O52: =IF(E52<I$3,P52*(1-I$6*D52/C52),IF(OPFOKLEGHEN!$H$11="droogtunnel (platen) 55%",P52*(1-$I$6)+(C52-D52)/C52*(K52-P52*(1-I$6)),P52*(1-$I$6)+(C52-D52)/C52*(K52-P52*(1-I$6)))) -> 1.652233427 | P52: 1.652233427 | Q52: 1.652233427 | R52: 1.652233427 | S52: =MIN(K52,IF(OPFOKLEGHEN!$H$13="parallel geschakeld met warmtewisselaar",K52-(G52/(C52-G52))*(Q52)*95%,K52-(G52/(C52-G52))*(P52)*84%)) -> 1.652233427 | T52: 1.652233427 | U52: 6.773468982 | V52: =IF(OPFOKLEGHEN!$J$18="nee",H52/C52*K52,IF(OPFOKLEGHEN!$H$20="ja",O52-(K52-Q52)-(K52-S52),Q52-(K52-O52)-(K52-S52))) -> 1.652233427 | W52: =IF(H52=0,0,IF(OPFOKLEGHEN!$H$11="geen droogtunnel",IF(OPFOKLEGHEN!$H$15="geen warmtewisselaar",Q52-(K52-R52)))+IF(OPFOKLEGHEN!$H$12>0,IF(OPFOKLEGHEN!$H$13="serie geschakeld met warmtewisselaar",(O52*80%-(K52-S52)),(Q52-(K52-S52)-(K52-T52))),(N52-(K52-S52)))) -> 3.304466854 | X52: =IF(H52=0,0,IF(OPFOKLEGHEN!$H$11="geen droogtunnel",IF(OPFOKLEGHEN!$H$15="geen warmtewisselaar",Q52-(K52-R52)))+IF(OPFOKLEGHEN!$H$12>0,IF(OPFOKLEGHEN!$H$13="serie geschakeld met warmtewisselaar",3*(O52*80%-(K52-S52)),(Q52-(K52-S52)-(K52-N52))),(N52-(K52-S52)))) -> 3.304466854 | Y52: =IF(H52=0,0,IF(OPFOKLEGHEN!$H$11="geen droogtunnel",IF(OPFOKLEGHEN!$H$15="geen warmtewisselaar",Q52-(K52-R52)))+IF(OPFOKLEGHEN!$H$12>0,IF(OPFOKLEGHEN!$H$13="serie geschakeld met warmtewisselaar",(O52-(K52-S52)),IF(OPFOKLEGHEN!$H$13="parallel geschakeld met warmtewisselaar",IF(OPFOKLEGHEN!$L$9="ja",IF(OPFOKLEGHEN!$J$18="nee",(N52-(K52-Q52)-(K52-S52)),(Q52-(K52-N52/80%)))))),(O52-(K52-S52)))) -> 3.304466854 | Z52: 1 | AC52: =IF(H52=0,0,IF(OPFOKLEGHEN!$H$11="geen droogtunnel",IF(OPFOKLEGHEN!$H$15="geen warmtewisselaar",P52-(K52-R52),K52-(K52-O52)/I$6-(K52-R52)/95%)+IF(OPFOKLEGHEN!$J$18="ja",J$5/I$5*(K52-O52)*(1-I$6)),IF(OPFOKLEGHEN!$H$12>=0,IF(OPFOKLEGHEN!$L$9="ja",IF(OPFOKLEGHEN!$J$18="ja",IF(OPFOKLEGHEN!$H$20="ja",O52-(K52-S52),IF(OPFOKLEGHEN!$H$20="nee",(O52-(K52-S52)),(O52-(K52-S52)))),IF(OPFOKLEGHEN!$J$18="nee",IF(OPFOKLEGHEN!$H$20="nee",O52*80%-(K52-S52),0+O52-(K52-S52)))),IF(OPFOKLEGHEN!$L$9="nee",IF(OPFOKLEGHEN!$J$18="nee",IF(OPFOKLEGHEN!$H$20="nee",(O52*80%-(K52-S52)),O52*93%-(K52-S52)),IF(OPFOKLEGHEN!$H$20="nee",IF(OPFOKLEGHEN!$J$18="ja",IF(OPFOKLEGHEN!$L$9="nee",O52-(K52-S52))),O52-(K52-S52)))))))) -> 1.652233427 | AD52: =IF(H52=0,0,IF(OPFOKLEGHEN!$H$11="geen droogtunnel",IF(OPFOKLEGHEN!$H$15="geen warmtewisselaar",Q52-(K52-R52),N52-(K52-R52)),IF(OPFOKLEGHEN!$H$12>=0,IF(OPFOKLEGHEN!$L$9="ja",IF(OPFOKLEGHEN!$J$18="ja",IF(OPFOKLEGHEN!$H$20="ja",Q52-(K52-N52)-(K52-S52),IF(OPFOKLEGHEN!$H$20="nee",(Q52-(K52-N52)-(K52-S52)),(O52-(K52-S52)))),IF(OPFOKLEGHEN!$J$18="nee",IF(OPFOKLEGHEN!$H$20="nee",1*Q52*$N$135-(K52-N52)-(K52-S52),(Q52-(K52-N52)-(K52-S52))*N$135))),IF(OPFOKLEGHEN!$L$9="nee",IF(OPFOKLEGHEN!$J$18="nee",IF(OPFOKLEGHEN!$H$20="nee",(N52*95%-(K52-Q52)/I$4-(K52-S52)),N52-(K52-Q52)/I$4-(K52-S52)),IF(OPFOKLEGHEN!$H$20="nee",IF(OPFOKLEGHEN!$J$18="ja",IF(OPFOKLEGHEN!$L$9="nee",N52-(K52-Q52)/I$4-(K52-S52))),N52-(K52-Q52)/I$4-(K52-S52)))))))) -> 1.652233427 | AE52: 0 | AF52: 0.4112902445 | AG52: 0 | AH52: 0 | AI52: 0.4112902445 | AJ52: 0 | AK52: 0.4585839911 | AL52: 0.006978611506 | AM52: 6 | AN52: 37 | AO52: 399.2 | AP52: 351.4 | AQ52: 375.3 | AR52: 6.773468982
A53: 6 | B53: 38 | C53: 0.4696127843 | D53: 0 | E53: =IF(I$3=0,0,IF(OPFOKLEGHEN!$H$13="parallel geschakeld met warmtewisselaar",0,MIN(I$3,C53))) -> 0 | F53: =IF(I$3=0,0,IF(OPFOKLEGHEN!$H$13="serie geschakeld met warmtewisselaar",0,IF(C53<$I$3,C53-D53,MIN($I$3,C53-D53)))) -> 0 | G53: =IF(C53<$I$7,MAX(0,C53-D53-E53-F53,IF(OPFOKLEGHEN!$H$15="warmtewisselaar",IF(OPFOKLEGHEN!$H$13="serie geschakeld met warmtewisselaar",MIN(I$7,MAX(0,C53-D53-F53)),MIN(I$7,MAX(0,C53-D53-E53-F53))))),IF(OPFOKLEGHEN!$H$13="parallel geschakeld met warmtewisselaar",MIN(I$7,C53-D53-E53-F53,MIN(I$7,C53-E53-F53)),MIN(I$7,MAX(0,C53-D53-F53)))) -> 0 | H53: =IF(OPFOKLEGHEN!$H$13="parallel geschakeld met warmtewisselaar",IF(OPFOKLEGHEN!$L$9="nee",IF(OPFOKLEGHEN!$J$18="ja",C53-F53-G53,C53-D53-F53-G53),IF(OPFOKLEGHEN!$L$9="ja",IF(OPFOKLEGHEN!$J$18="ja",C53-G53,IF(OPFOKLEGHEN!$J$18="nee",C53-D53-G53)))),IF(OPFOKLEGHEN!$H$13="serie geschakeld met warmtewisselaar",IF(OPFOKLEGHEN!$J$18="ja",C53-G53,C53-D53-F53-G53),C53-D53-F53-G53)) -> 0.4696127843 | I53: 0.4696127843 | J53: 0.4189280372 | K53: 1.723389507 | L53: =SUM(K$16:K53)/$K$137 -> 0.03595356454 | M53: 0.007475890554 | N53: 1.723389507 | O53: =IF(E53<I$3,P53*(1-I$6*D53/C53),IF(OPFOKLEGHEN!$H$11="droogtunnel (platen) 55%",P53*(1-$I$6)+(C53-D53)/C53*(K53-P53*(1-I$6)),P53*(1-$I$6)+(C53-D53)/C53*(K53-P53*(1-I$6)))) -> 1.723389507 | P53: 1.723389507 | Q53: 1.723389507 | R53: 1.723389507 | S53: =MIN(K53,IF(OPFOKLEGHEN!$H$13="parallel geschakeld met warmtewisselaar",K53-(G53/(C53-G53))*(Q53)*95%,K53-(G53/(C53-G53))*(P53)*84%)) -> 1.723389507 | T53: 1.723389507 | U53: 7.33976605 | V53: =IF(OPFOKLEGHEN!$J$18="nee",H53/C53*K53,IF(OPFOKLEGHEN!$H$20="ja",O53-(K53-Q53)-(K53-S53),Q53-(K53-O53)-(K53-S53))) -> 1.723389507 | W53: =IF(H53=0,0,IF(OPFOKLEGHEN!$H$11="geen droogtunnel",IF(OPFOKLEGHEN!$H$15="geen warmtewisselaar",Q53-(K53-R53)))+IF(OPFOKLEGHEN!$H$12>0,IF(OPFOKLEGHEN!$H$13="serie geschakeld met warmtewisselaar",(O53*80%-(K53-S53)),(Q53-(K53-S53)-(K53-T53))),(N53-(K53-S53)))) -> 3.446779013 | X53: =IF(H53=0,0,IF(OPFOKLEGHEN!$H$11="geen droogtunnel",IF(OPFOKLEGHEN!$H$15="geen warmtewisselaar",Q53-(K53-R53)))+IF(OPFOKLEGHEN!$H$12>0,IF(OPFOKLEGHEN!$H$13="serie geschakeld met warmtewisselaar",3*(O53*80%-(K53-S53)),(Q53-(K53-S53)-(K53-N53))),(N53-(K53-S53)))) -> 3.446779013 | Y53: =IF(H53=0,0,IF(OPFOKLEGHEN!$H$11="geen droogtunnel",IF(OPFOKLEGHEN!$H$15="geen warmtewisselaar",Q53-(K53-R53)))+IF(OPFOKLEGHEN!$H$12>0,IF(OPFOKLEGHEN!$H$13="serie geschakeld met warmtewisselaar",(O53-(K53-S53)),IF(OPFOKLEGHEN!$H$13="parallel geschakeld met warmtewisselaar",IF(OPFOKLEGHEN!$L$9="ja",IF(OPFOKLEGHEN!$J$18="nee",(N53-(K53-Q53)-(K53-S53)),(Q53-(K53-N53/80%)))))),(O53-(K53-S53)))) -> 3.446779013 | Z53: 1 | AC53: =IF(H53=0,0,IF(OPFOKLEGHEN!$H$11="geen droogtunnel",IF(OPFOKLEGHEN!$H$15="geen warmtewisselaar",P53-(K53-R53),K53-(K53-O53)/I$6-(K53-R53)/95%)+IF(OPFOKLEGHEN!$J$18="ja",J$5/I$5*(K53-O53)*(1-I$6)),IF(OPFOKLEGHEN!$H$12>=0,IF(OPFOKLEGHEN!$L$9="ja",IF(OPFOKLEGHEN!$J$18="ja",IF(OPFOKLEGHEN!$H$20="ja",O53-(K53-S53),IF(OPFOKLEGHEN!$H$20="nee",(O53-(K53-S53)),(O53-(K53-S53)))),IF(OPFOKLEGHEN!$J$18="nee",IF(OPFOKLEGHEN!$H$20="nee",O53*80%-(K53-S53),0+O53-(K53-S53)))),IF(OPFOKLEGHEN!$L$9="nee",IF(OPFOKLEGHEN!$J$18="nee",IF(OPFOKLEGHEN!$H$20="nee",(O53*80%-(K53-S53)),O53*93%-(K53-S53)),IF(OPFOKLEGHEN!$H$20="nee",IF(OPFOKLEGHEN!$J$18="ja",IF(OPFOKLEGHEN!$L$9="nee",O53-(K53-S53))),O53-(K53-S53)))))))) -> 1.723389507 | AD53: =IF(H53=0,0,IF(OPFOKLEGHEN!$H$11="geen droogtunnel",IF(OPFOKLEGHEN!$H$15="geen warmtewisselaar",Q53-(K53-R53),N53-(K53-R53)),IF(OPFOKLEGHEN!$H$12>=0,IF(OPFOKLEGHEN!$L$9="ja",IF(OPFOKLEGHEN!$J$18="ja",IF(OPFOKLEGHEN!$H$20="ja",Q53-(K53-N53)-(K53-S53),IF(OPFOKLEGHEN!$H$20="nee",(Q53-(K53-N53)-(K53-S53)),(O53-(K53-S53)))),IF(OPFOKLEGHEN!$J$18="nee",IF(OPFOKLEGHEN!$H$20="nee",1*Q53*$N$135-(K53-N53)-(K53-S53),(Q53-(K53-N53)-(K53-S53))*N$135))),IF(OPFOKLEGHEN!$L$9="nee",IF(OPFOKLEGHEN!$J$18="nee",IF(OPFOKLEGHEN!$H$20="nee",(N53*95%-(K53-Q53)/I$4-(K53-S53)),N53-(K53-Q53)/I$4-(K53-S53)),IF(OPFOKLEGHEN!$H$20="nee",IF(OPFOKLEGHEN!$J$18="ja",IF(OPFOKLEGHEN!$L$9="nee",N53-(K53-Q53)/I$4-(K53-S53))),N53-(K53-Q53)/I$4-(K53-S53)))))))) -> 1.723389507 | AE53: 0 | AF53: 0.4189280372 | AG53: 0 | AH53: 0 | AI53: 0.4189280372 | AJ53: 0 | AK53: 0.4696127843 | AL53: 0.007475890554 | AM53: 6 | AN53: 38 | AO53: 411.3 | AP53: 362.1 | AQ53: 386.7 | AR53: 7.33976605
A54: 6 | B54: 39 | C54: 0.4806684569 | D54: 0 | E54: =IF(I$3=0,0,IF(OPFOKLEGHEN!$H$13="parallel geschakeld met warmtewisselaar",0,MIN(I$3,C54))) -> 0 | F54: =IF(I$3=0,0,IF(OPFOKLEGHEN!$H$13="serie geschakeld met warmtewisselaar",0,IF(C54<$I$3,C54-D54,MIN($I$3,C54-D54)))) -> 0 | G54: =IF(C54<$I$7,MAX(0,C54-D54-E54-F54,IF(OPFOKLEGHEN!$H$15="warmtewisselaar",IF(OPFOKLEGHEN!$H$13="serie geschakeld met warmtewisselaar",MIN(I$7,MAX(0,C54-D54-F54)),MIN(I$7,MAX(0,C54-D54-E54-F54))))),IF(OPFOKLEGHEN!$H$13="parallel geschakeld met warmtewisselaar",MIN(I$7,C54-D54-E54-F54,MIN(I$7,C54-E54-F54)),MIN(I$7,MAX(0,C54-D54-F54)))) -> 0 | H54: =IF(OPFOKLEGHEN!$H$13="parallel geschakeld met warmtewisselaar",IF(OPFOKLEGHEN!$L$9="nee",IF(OPFOKLEGHEN!$J$18="ja",C54-F54-G54,C54-D54-F54-G54),IF(OPFOKLEGHEN!$L$9="ja",IF(OPFOKLEGHEN!$J$18="ja",C54-G54,IF(OPFOKLEGHEN!$J$18="nee",C54-D54-G54)))),IF(OPFOKLEGHEN!$H$13="serie geschakeld met warmtewisselaar",IF(OPFOKLEGHEN!$J$18="ja",C54-G54,C54-D54-F54-G54),C54-D54-F54-G54)) -> 0.4806684569 | I54: 0.4806684569 | J54: 0.4267076662 | K54: 1.796719059 | L54: =SUM(K$16:K54)/$K$137 -> 0.03805759464 | M54: 0.007999091702 | N54: 1.796719059 | O54: =IF(E54<I$3,P54*(1-I$6*D54/C54),IF(OPFOKLEGHEN!$H$11="droogtunnel (platen) 55%",P54*(1-$I$6)+(C54-D54)/C54*(K54-P54*(1-I$6)),P54*(1-$I$6)+(C54-D54)/C54*(K54-P54*(1-I$6)))) -> 1.796719059 | P54: 1.796719059 | Q54: 1.796719059 | R54: 1.796719059 | S54: =MIN(K54,IF(OPFOKLEGHEN!$H$13="parallel geschakeld met warmtewisselaar",K54-(G54/(C54-G54))*(Q54)*95%,K54-(G54/(C54-G54))*(P54)*84%)) -> 1.796719059 | T54: 1.796719059 | U54: 7.937085962 | V54: =IF(OPFOKLEGHEN!$J$18="nee",H54/C54*K54,IF(OPFOKLEGHEN!$H$20="ja",O54-(K54-Q54)-(K54-S54),Q54-(K54-O54)-(K54-S54))) -> 1.796719059 | W54: =IF(H54=0,0,IF(OPFOKLEGHEN!$H$11="geen droogtunnel",IF(OPFOKLEGHEN!$H$15="geen warmtewisselaar",Q54-(K54-R54)))+IF(OPFOKLEGHEN!$H$12>0,IF(OPFOKLEGHEN!$H$13="serie geschakeld met warmtewisselaar",(O54*80%-(K54-S54)),(Q54-(K54-S54)-(K54-T54))),(N54-(K54-S54)))) -> 3.593438119 | X54: =IF(H54=0,0,IF(OPFOKLEGHEN!$H$11="geen droogtunnel",IF(OPFOKLEGHEN!$H$15="geen warmtewisselaar",Q54-(K54-R54)))+IF(OPFOKLEGHEN!$H$12>0,IF(OPFOKLEGHEN!$H$13="serie geschakeld met warmtewisselaar",3*(O54*80%-(K54-S54)),(Q54-(K54-S54)-(K54-N54))),(N54-(K54-S54)))) -> 3.593438119 | Y54: =IF(H54=0,0,IF(OPFOKLEGHEN!$H$11="geen droogtunnel",IF(OPFOKLEGHEN!$H$15="geen warmtewisselaar",Q54-(K54-R54)))+IF(OPFOKLEGHEN!$H$12>0,IF(OPFOKLEGHEN!$H$13="serie geschakeld met warmtewisselaar",(O54-(K54-S54)),IF(OPFOKLEGHEN!$H$13="parallel geschakeld met warmtewisselaar",IF(OPFOKLEGHEN!$L$9="ja",IF(OPFOKLEGHEN!$J$18="nee",(N54-(K54-Q54)-(K54-S54)),(Q54-(K54-N54/80%)))))),(O54-(K54-S54)))) -> 3.593438119 | Z54: 1 | AC54: =IF(H54=0,0,IF(OPFOKLEGHEN!$H$11="geen droogtunnel",IF(OPFOKLEGHEN!$H$15="geen warmtewisselaar",P54-(K54-R54),K54-(K54-O54)/I$6-(K54-R54)/95%)+IF(OPFOKLEGHEN!$J$18="ja",J$5/I$5*(K54-O54)*(1-I$6)),IF(OPFOKLEGHEN!$H$12>=0,IF(OPFOKLEGHEN!$L$9="ja",IF(OPFOKLEGHEN!$J$18="ja",IF(OPFOKLEGHEN!$H$20="ja",O54-(K54-S54),IF(OPFOKLEGHEN!$H$20="nee",(O54-(K54-S54)),(O54-(K54-S54)))),IF(OPFOKLEGHEN!$J$18="nee",IF(OPFOKLEGHEN!$H$20="nee",O54*80%-(K54-S54),0+O54-(K54-S54)))),IF(OPFOKLEGHEN!$L$9="nee",IF(OPFOKLEGHEN!$J$18="nee",IF(OPFOKLEGHEN!$H$20="nee",(O54*80%-(K54-S54)),O54*93%-(K54-S54)),IF(OPFOKLEGHEN!$H$20="nee",IF(OPFOKLEGHEN!$J$18="ja",IF(OPFOKLEGHEN!$L$9="nee",O54-(K54-S54))),O54-(K54-S54)))))))) -> 1.796719059 | AD54: =IF(H54=0,0,IF(OPFOKLEGHEN!$H$11="geen droogtunnel",IF(OPFOKLEGHEN!$H$15="geen warmtewisselaar",Q54-(K54-R54),N54-(K54-R54)),IF(OPFOKLEGHEN!$H$12>=0,IF(OPFOKLEGHEN!$L$9="ja",IF(OPFOKLEGHEN!$J$18="ja",IF(OPFOKLEGHEN!$H$20="ja",Q54-(K54-N54)-(K54-S54),IF(OPFOKLEGHEN!$H$20="nee",(Q54-(K54-N54)-(K54-S54)),(O54-(K54-S54)))),IF(OPFOKLEGHEN!$J$18="nee",IF(OPFOKLEGHEN!$H$20="nee",1*Q54*$N$135-(K54-N54)-(K54-S54),(Q54-(K54-N54)-(K54-S54))*N$135))),IF(OPFOKLEGHEN!$L$9="nee",IF(OPFOKLEGHEN!$J$18="nee",IF(OPFOKLEGHEN!$H$20="nee",(N54*95%-(K54-Q54)/I$4-(K54-S54)),N54-(K54-Q54)/I$4-(K54-S54)),IF(OPFOKLEGHEN!$H$20="nee",IF(OPFOKLEGHEN!$J$18="ja",IF(OPFOKLEGHEN!$L$9="nee",N54-(K54-Q54)/I$4-(K54-S54))),N54-(K54-Q54)/I$4-(K54-S54)))))))) -> 1.796719059 | AE54: 0 | AF54: 0.4267076662 | AG54: 0 | AH54: 0 | AI54: 0.4267076662 | AJ54: 0 | AK54: 0.4806684569 | AL54: 0.007999091702 | AM54: 6 | AN54: 39 | AO54: 423.4 | AP54: 372.8 | AQ54: 398.1 | AR54: 7.937085962
A55: 6 | B55: 40 | C55: 0.4917544225 | D55: 0 | E55: =IF(I$3=0,0,IF(OPFOKLEGHEN!$H$13="parallel geschakeld met warmtewisselaar",0,MIN(I$3,C55))) -> 0 | F55: =IF(I$3=0,0,IF(OPFOKLEGHEN!$H$13="serie geschakeld met warmtewisselaar",0,IF(C55<$I$3,C55-D55,MIN($I$3,C55-D55)))) -> 0 | G55: =IF(C55<$I$7,MAX(0,C55-D55-E55-F55,IF(OPFOKLEGHEN!$H$15="warmtewisselaar",IF(OPFOKLEGHEN!$H$13="serie geschakeld met warmtewisselaar",MIN(I$7,MAX(0,C55-D55-F55)),MIN(I$7,MAX(0,C55-D55-E55-F55))))),IF(OPFOKLEGHEN!$H$13="parallel geschakeld met warmtewisselaar",MIN(I$7,C55-D55-E55-F55,MIN(I$7,C55-E55-F55)),MIN(I$7,MAX(0,C55-D55-F55)))) -> 0 | H55: =IF(OPFOKLEGHEN!$H$13="parallel geschakeld met warmtewisselaar",IF(OPFOKLEGHEN!$L$9="nee",IF(OPFOKLEGHEN!$J$18="ja",C55-F55-G55,C55-D55-F55-G55),IF(OPFOKLEGHEN!$L$9="ja",IF(OPFOKLEGHEN!$J$18="ja",C55-G55,IF(OPFOKLEGHEN!$J$18="nee",C55-D55-G55)))),IF(OPFOKLEGHEN!$H$13="serie geschakeld met warmtewisselaar",IF(OPFOKLEGHEN!$J$18="ja",C55-G55,C55-D55-F55-G55),C55-D55-F55-G55)) -> 0.4917544225 | I55: 0.4917544225 | J55: 0.4346317654 | K55: 1.872293133 | L55: =SUM(K$16:K55)/$K$137 -> 0.04025012502 | M55: 0.008549283712 | N55: 1.872293133 | O55: =IF(E55<I$3,P55*(1-I$6*D55/C55),IF(OPFOKLEGHEN!$H$11="droogtunnel (platen) 55%",P55*(1-$I$6)+(C55-D55)/C55*(K55-P55*(1-I$6)),P55*(1-$I$6)+(C55-D55)/C55*(K55-P55*(1-I$6)))) -> 1.872293133 | P55: 1.872293133 | Q55: 1.872293133 | R55: 1.872293133 | S55: =MIN(K55,IF(OPFOKLEGHEN!$H$13="parallel geschakeld met warmtewisselaar",K55-(G55/(C55-G55))*(Q55)*95%,K55-(G55/(C55-G55))*(P55)*84%)) -> 1.872293133 | T55: 1.872293133 | U55: 8.56636204 | V55: =IF(OPFOKLEGHEN!$J$18="nee",H55/C55*K55,IF(OPFOKLEGHEN!$H$20="ja",O55-(K55-Q55)-(K55-S55),Q55-(K55-O55)-(K55-S55))) -> 1.872293133 | W55: =IF(H55=0,0,IF(OPFOKLEGHEN!$H$11="geen droogtunnel",IF(OPFOKLEGHEN!$H$15="geen warmtewisselaar",Q55-(K55-R55)))+IF(OPFOKLEGHEN!$H$12>0,IF(OPFOKLEGHEN!$H$13="serie geschakeld met warmtewisselaar",(O55*80%-(K55-S55)),(Q55-(K55-S55)-(K55-T55))),(N55-(K55-S55)))) -> 3.744586266 | X55: =IF(H55=0,0,IF(OPFOKLEGHEN!$H$11="geen droogtunnel",IF(OPFOKLEGHEN!$H$15="geen warmtewisselaar",Q55-(K55-R55)))+IF(OPFOKLEGHEN!$H$12>0,IF(OPFOKLEGHEN!$H$13="serie geschakeld met warmtewisselaar",3*(O55*80%-(K55-S55)),(Q55-(K55-S55)-(K55-N55))),(N55-(K55-S55)))) -> 3.744586266 | Y55: =IF(H55=0,0,IF(OPFOKLEGHEN!$H$11="geen droogtunnel",IF(OPFOKLEGHEN!$H$15="geen warmtewisselaar",Q55-(K55-R55)))+IF(OPFOKLEGHEN!$H$12>0,IF(OPFOKLEGHEN!$H$13="serie geschakeld met warmtewisselaar",(O55-(K55-S55)),IF(OPFOKLEGHEN!$H$13="parallel geschakeld met warmtewisselaar",IF(OPFOKLEGHEN!$L$9="ja",IF(OPFOKLEGHEN!$J$18="nee",(N55-(K55-Q55)-(K55-S55)),(Q55-(K55-N55/80%)))))),(O55-(K55-S55)))) -> 3.744586266 | Z55: 1 | AC55: =IF(H55=0,0,IF(OPFOKLEGHEN!$H$11="geen droogtunnel",IF(OPFOKLEGHEN!$H$15="geen warmtewisselaar",P55-(K55-R55),K55-(K55-O55)/I$6-(K55-R55)/95%)+IF(OPFOKLEGHEN!$J$18="ja",J$5/I$5*(K55-O55)*(1-I$6)),IF(OPFOKLEGHEN!$H$12>=0,IF(OPFOKLEGHEN!$L$9="ja",IF(OPFOKLEGHEN!$J$18="ja",IF(OPFOKLEGHEN!$H$20="ja",O55-(K55-S55),IF(OPFOKLEGHEN!$H$20="nee",(O55-(K55-S55)),(O55-(K55-S55)))),IF(OPFOKLEGHEN!$J$18="nee",IF(OPFOKLEGHEN!$H$20="nee",O55*80%-(K55-S55),0+O55-(K55-S55)))),IF(OPFOKLEGHEN!$L$9="nee",IF(OPFOKLEGHEN!$J$18="nee",IF(OPFOKLEGHEN!$H$20="nee",(O55*80%-(K55-S55)),O55*93%-(K55-S55)),IF(OPFOKLEGHEN!$H$20="nee",IF(OPFOKLEGHEN!$J$18="ja",IF(OPFOKLEGHEN!$L$9="nee",O55-(K55-S55))),O55-(K55-S55)))))))) -> 1.872293133 | AD55: =IF(H55=0,0,IF(OPFOKLEGHEN!$H$11="geen droogtunnel",IF(OPFOKLEGHEN!$H$15="geen warmtewisselaar",Q55-(K55-R55),N55-(K55-R55)),IF(OPFOKLEGHEN!$H$12>=0,IF(OPFOKLEGHEN!$L$9="ja",IF(OPFOKLEGHEN!$J$18="ja",IF(OPFOKLEGHEN!$H$20="ja",Q55-(K55-N55)-(K55-S55),IF(OPFOKLEGHEN!$H$20="nee",(Q55-(K55-N55)-(K55-S55)),(O55-(K55-S55)))),IF(OPFOKLEGHEN!$J$18="nee",IF(OPFOKLEGHEN!$H$20="nee",1*Q55*$N$135-(K55-N55)-(K55-S55),(Q55-(K55-N55)-(K55-S55))*N$135))),IF(OPFOKLEGHEN!$L$9="nee",IF(OPFOKLEGHEN!$J$18="nee",IF(OPFOKLEGHEN!$H$20="nee",(N55*95%-(K55-Q55)/I$4-(K55-S55)),N55-(K55-Q55)/I$4-(K55-S55)),IF(OPFOKLEGHEN!$H$20="nee",IF(OPFOKLEGHEN!$J$18="ja",IF(OPFOKLEGHEN!$L$9="nee",N55-(K55-Q55)/I$4-(K55-S55))),N55-(K55-Q55)/I$4-(K55-S55)))))))) -> 1.872293133 | AE55: 0 | AF55: 0.4346317654 | AG55: 0 | AH55: 0 | AI55: 0.4346317654 | AJ55: 0 | AK55: 0.4917544225 | AL55: 0.008549283712 | AM55: 6 | AN55: 40 | AO55: 435.5 | AP55: 383.5 | AQ55: 409.5 | AR55: 8.56636204
A56: 6 | B56: 41 | C56: 0.5028740946 | D56: 0 | E56: =IF(I$3=0,0,IF(OPFOKLEGHEN!$H$13="parallel geschakeld met warmtewisselaar",0,MIN(I$3,C56))) -> 0 | F56: =IF(I$3=0,0,IF(OPFOKLEGHEN!$H$13="serie geschakeld met warmtewisselaar",0,IF(C56<$I$3,C56-D56,MIN($I$3,C56-D56)))) -> 0 | G56: =IF(C56<$I$7,MAX(0,C56-D56-E56-F56,IF(OPFOKLEGHEN!$H$15="warmtewisselaar",IF(OPFOKLEGHEN!$H$13="serie geschakeld met warmtewisselaar",MIN(I$7,MAX(0,C56-D56-F56)),MIN(I$7,MAX(0,C56-D56-E56-F56))))),IF(OPFOKLEGHEN!$H$13="parallel geschakeld met warmtewisselaar",MIN(I$7,C56-D56-E56-F56,MIN(I$7,C56-E56-F56)),MIN(I$7,MAX(0,C56-D56-F56)))) -> 0 | H56: =IF(OPFOKLEGHEN!$H$13="parallel geschakeld met warmtewisselaar",IF(OPFOKLEGHEN!$L$9="nee",IF(OPFOKLEGHEN!$J$18="ja",C56-F56-G56,C56-D56-F56-G56),IF(OPFOKLEGHEN!$L$9="ja",IF(OPFOKLEGHEN!$J$18="ja",C56-G56,IF(OPFOKLEGHEN!$J$18="nee",C56-D56-G56)))),IF(OPFOKLEGHEN!$H$13="serie geschakeld met warmtewisselaar",IF(OPFOKLEGHEN!$J$18="ja",C56-G56,C56-D56-F56-G56),C56-D56-F56-G56)) -> 0.5028740946 | I56: 0.5028740946 | J56: 0.4427030176 | K56: 1.950185181 | L56: =SUM(K$16:K56)/$K$137 -> 0.0425338701 | M56: 0.009127579046 | N56: 1.950185181 | O56: =IF(E56<I$3,P56*(1-I$6*D56/C56),IF(OPFOKLEGHEN!$H$11="droogtunnel (platen) 55%",P56*(1-$I$6)+(C56-D56)/C56*(K56-P56*(1-I$6)),P56*(1-$I$6)+(C56-D56)/C56*(K56-P56*(1-I$6)))) -> 1.950185181 | P56: 1.950185181 | Q56: 1.950185181 | R56: 1.950185181 | S56: =MIN(K56,IF(OPFOKLEGHEN!$H$13="parallel geschakeld met warmtewisselaar",K56-(G56/(C56-G56))*(Q56)*95%,K56-(G56/(C56-G56))*(P56)*84%)) -> 1.950185181 | T56: 1.950185181 | U56: 9.228544234 | V56: =IF(OPFOKLEGHEN!$J$18="nee",H56/C56*K56,IF(OPFOKLEGHEN!$H$20="ja",O56-(K56-Q56)-(K56-S56),Q56-(K56-O56)-(K56-S56))) -> 1.950185181 | W56: =IF(H56=0,0,IF(OPFOKLEGHEN!$H$11="geen droogtunnel",IF(OPFOKLEGHEN!$H$15="geen warmtewisselaar",Q56-(K56-R56)))+IF(OPFOKLEGHEN!$H$12>0,IF(OPFOKLEGHEN!$H$13="serie geschakeld met warmtewisselaar",(O56*80%-(K56-S56)),(Q56-(K56-S56)-(K56-T56))),(N56-(K56-S56)))) -> 3.900370363 | X56: =IF(H56=0,0,IF(OPFOKLEGHEN!$H$11="geen droogtunnel",IF(OPFOKLEGHEN!$H$15="geen warmtewisselaar",Q56-(K56-R56)))+IF(OPFOKLEGHEN!$H$12>0,IF(OPFOKLEGHEN!$H$13="serie geschakeld met warmtewisselaar",3*(O56*80%-(K56-S56)),(Q56-(K56-S56)-(K56-N56))),(N56-(K56-S56)))) -> 3.900370363 | Y56: =IF(H56=0,0,IF(OPFOKLEGHEN!$H$11="geen droogtunnel",IF(OPFOKLEGHEN!$H$15="geen warmtewisselaar",Q56-(K56-R56)))+IF(OPFOKLEGHEN!$H$12>0,IF(OPFOKLEGHEN!$H$13="serie geschakeld met warmtewisselaar",(O56-(K56-S56)),IF(OPFOKLEGHEN!$H$13="parallel geschakeld met warmtewisselaar",IF(OPFOKLEGHEN!$L$9="ja",IF(OPFOKLEGHEN!$J$18="nee",(N56-(K56-Q56)-(K56-S56)),(Q56-(K56-N56/80%)))))),(O56-(K56-S56)))) -> 3.900370363 | Z56: 1 | AC56: =IF(H56=0,0,IF(OPFOKLEGHEN!$H$11="geen droogtunnel",IF(OPFOKLEGHEN!$H$15="geen warmtewisselaar",P56-(K56-R56),K56-(K56-O56)/I$6-(K56-R56)/95%)+IF(OPFOKLEGHEN!$J$18="ja",J$5/I$5*(K56-O56)*(1-I$6)),IF(OPFOKLEGHEN!$H$12>=0,IF(OPFOKLEGHEN!$L$9="ja",IF(OPFOKLEGHEN!$J$18="ja",IF(OPFOKLEGHEN!$H$20="ja",O56-(K56-S56),IF(OPFOKLEGHEN!$H$20="nee",(O56-(K56-S56)),(O56-(K56-S56)))),IF(OPFOKLEGHEN!$J$18="nee",IF(OPFOKLEGHEN!$H$20="nee",O56*80%-(K56-S56),0+O56-(K56-S56)))),IF(OPFOKLEGHEN!$L$9="nee",IF(OPFOKLEGHEN!$J$18="nee",IF(OPFOKLEGHEN!$H$20="nee",(O56*80%-(K56-S56)),O56*93%-(K56-S56)),IF(OPFOKLEGHEN!$H$20="nee",IF(OPFOKLEGHEN!$J$18="ja",IF(OPFOKLEGHEN!$L$9="nee",O56-(K56-S56))),O56-(K56-S56)))))))) -> 1.950185181 | AD56: =IF(H56=0,0,IF(OPFOKLEGHEN!$H$11="geen droogtunnel",IF(OPFOKLEGHEN!$H$15="geen warmtewisselaar",Q56-(K56-R56),N56-(K56-R56)),IF(OPFOKLEGHEN!$H$12>=0,IF(OPFOKLEGHEN!$L$9="ja",IF(OPFOKLEGHEN!$J$18="ja",IF(OPFOKLEGHEN!$H$20="ja",Q56-(K56-N56)-(K56-S56),IF(OPFOKLEGHEN!$H$20="nee",(Q56-(K56-N56)-(K56-S56)),(O56-(K56-S56)))),IF(OPFOKLEGHEN!$J$18="nee",IF(OPFOKLEGHEN!$H$20="nee",1*Q56*$N$135-(K56-N56)-(K56-S56),(Q56-(K56-N56)-(K56-S56))*N$135))),IF(OPFOKLEGHEN!$L$9="nee",IF(OPFOKLEGHEN!$J$18="nee",IF(OPFOKLEGHEN!$H$20="nee",(N56*95%-(K56-Q56)/I$4-(K56-S56)),N56-(K56-Q56)/I$4-(K56-S56)),IF(OPFOKLEGHEN!$H$20="nee",IF(OPFOKLEGHEN!$J$18="ja",IF(OPFOKLEGHEN!$L$9="nee",N56-(K56-Q56)/I$4-(K56-S56))),N56-(K56-Q56)/I$4-(K56-S56)))))))) -> 1.950185181 | AE56: 0 | AF56: 0.4427030176 | AG56: 0 | AH56: 0 | AI56: 0.4427030176 | AJ56: 0 | AK56: 0.5028740946 | AL56: 0.009127579046 | AM56: 6 | AN56: 41 | AO56: 447.6 | AP56: 394.2 | AQ56: 420.9 | AR56: 9.228544234
A57: 6 | B57: 42 | C57: 0.5142269715 | D57: 0 | E57: =IF(I$3=0,0,IF(OPFOKLEGHEN!$H$13="parallel geschakeld met warmtewisselaar",0,MIN(I$3,C57))) -> 0 | F57: =IF(I$3=0,0,IF(OPFOKLEGHEN!$H$13="serie geschakeld met warmtewisselaar",0,IF(C57<$I$3,C57-D57,MIN($I$3,C57-D57)))) -> 0 | G57: =IF(C57<$I$7,MAX(0,C57-D57-E57-F57,IF(OPFOKLEGHEN!$H$15="warmtewisselaar",IF(OPFOKLEGHEN!$H$13="serie geschakeld met warmtewisselaar",MIN(I$7,MAX(0,C57-D57-F57)),MIN(I$7,MAX(0,C57-D57-E57-F57))))),IF(OPFOKLEGHEN!$H$13="parallel geschakeld met warmtewisselaar",MIN(I$7,C57-D57-E57-F57,MIN(I$7,C57-E57-F57)),MIN(I$7,MAX(0,C57-D57-F57)))) -> 0 | H57: =IF(OPFOKLEGHEN!$H$13="parallel geschakeld met warmtewisselaar",IF(OPFOKLEGHEN!$L$9="nee",IF(OPFOKLEGHEN!$J$18="ja",C57-F57-G57,C57-D57-F57-G57),IF(OPFOKLEGHEN!$L$9="ja",IF(OPFOKLEGHEN!$J$18="ja",C57-G57,IF(OPFOKLEGHEN!$J$18="nee",C57-D57-G57)))),IF(OPFOKLEGHEN!$H$13="serie geschakeld met warmtewisselaar",IF(OPFOKLEGHEN!$J$18="ja",C57-G57,C57-D57-F57-G57),C57-D57-F57-G57)) -> 0.5142269715 | I57: 0.5142269715 | J57: 0.4509241557 | K57: 2.0312457 | L57: =SUM(K$16:K57)/$K$137 -> 0.04491254031 | M57: 0.009738849245 | N57: 2.0312457 | O57: =IF(E57<I$3,P57*(1-I$6*D57/C57),IF(OPFOKLEGHEN!$H$11="droogtunnel (platen) 55%",P57*(1-$I$6)+(C57-D57)/C57*(K57-P57*(1-I$6)),P57*(1-$I$6)+(C57-D57)/C57*(K57-P57*(1-I$6)))) -> 2.0312457 | P57: 2.0312457 | Q57: 2.0312457 | R57: 2.0312457 | S57: =MIN(K57,IF(OPFOKLEGHEN!$H$13="parallel geschakeld met warmtewisselaar",K57-(G57/(C57-G57))*(Q57)*95%,K57-(G57/(C57-G57))*(P57)*84%)) -> 2.0312457 | T57: 2.0312457 | U57: 9.93486509 | V57: =IF(OPFOKLEGHEN!$J$18="nee",H57/C57*K57,IF(OPFOKLEGHEN!$H$20="ja",O57-(K57-Q57)-(K57-S57),Q57-(K57-O57)-(K57-S57))) -> 2.0312457 | W57: =IF(H57=0,0,IF(OPFOKLEGHEN!$H$11="geen droogtunnel",IF(OPFOKLEGHEN!$H$15="geen warmtewisselaar",Q57-(K57-R57)))+IF(OPFOKLEGHEN!$H$12>0,IF(OPFOKLEGHEN!$H$13="serie geschakeld met warmtewisselaar",(O57*80%-(K57-S57)),(Q57-(K57-S57)-(K57-T57))),(N57-(K57-S57)))) -> 4.062491399 | X57: =IF(H57=0,0,IF(OPFOKLEGHEN!$H$11="geen droogtunnel",IF(OPFOKLEGHEN!$H$15="geen warmtewisselaar",Q57-(K57-R57)))+IF(OPFOKLEGHEN!$H$12>0,IF(OPFOKLEGHEN!$H$13="serie geschakeld met warmtewisselaar",3*(O57*80%-(K57-S57)),(Q57-(K57-S57)-(K57-N57))),(N57-(K57-S57)))) -> 4.062491399 | Y57: =IF(H57=0,0,IF(OPFOKLEGHEN!$H$11="geen droogtunnel",IF(OPFOKLEGHEN!$H$15="geen warmtewisselaar",Q57-(K57-R57)))+IF(OPFOKLEGHEN!$H$12>0,IF(OPFOKLEGHEN!$H$13="serie geschakeld met warmtewisselaar",(O57-(K57-S57)),IF(OPFOKLEGHEN!$H$13="parallel geschakeld met warmtewisselaar",IF(OPFOKLEGHEN!$L$9="ja",IF(OPFOKLEGHEN!$J$18="nee",(N57-(K57-Q57)-(K57-S57)),(Q57-(K57-N57/80%)))))),(O57-(K57-S57)))) -> 4.062491399 | Z57: 1 | AC57: =IF(H57=0,0,IF(OPFOKLEGHEN!$H$11="geen droogtunnel",IF(OPFOKLEGHEN!$H$15="geen warmtewisselaar",P57-(K57-R57),K57-(K57-O57)/I$6-(K57-R57)/95%)+IF(OPFOKLEGHEN!$J$18="ja",J$5/I$5*(K57-O57)*(1-I$6)),IF(OPFOKLEGHEN!$H$12>=0,IF(OPFOKLEGHEN!$L$9="ja",IF(OPFOKLEGHEN!$J$18="ja",IF(OPFOKLEGHEN!$H$20="ja",O57-(K57-S57),IF(OPFOKLEGHEN!$H$20="nee",(O57-(K57-S57)),(O57-(K57-S57)))),IF(OPFOKLEGHEN!$J$18="nee",IF(OPFOKLEGHEN!$H$20="nee",O57*80%-(K57-S57),0+O57-(K57-S57)))),IF(OPFOKLEGHEN!$L$9="nee",IF(OPFOKLEGHEN!$J$18="nee",IF(OPFOKLEGHEN!$H$20="nee",(O57*80%-(K57-S57)),O57*93%-(K57-S57)),IF(OPFOKLEGHEN!$H$20="nee",IF(OPFOKLEGHEN!$J$18="ja",IF(OPFOKLEGHEN!$L$9="nee",O57-(K57-S57))),O57-(K57-S57)))))))) -> 2.0312457 | AD57: =IF(H57=0,0,IF(OPFOKLEGHEN!$H$11="geen droogtunnel",IF(OPFOKLEGHEN!$H$15="geen warmtewisselaar",Q57-(K57-R57),N57-(K57-R57)),IF(OPFOKLEGHEN!$H$12>=0,IF(OPFOKLEGHEN!$L$9="ja",IF(OPFOKLEGHEN!$J$18="ja",IF(OPFOKLEGHEN!$H$20="ja",Q57-(K57-N57)-(K57-S57),IF(OPFOKLEGHEN!$H$20="nee",(Q57-(K57-N57)-(K57-S57)),(O57-(K57-S57)))),IF(OPFOKLEGHEN!$J$18="nee",IF(OPFOKLEGHEN!$H$20="nee",1*Q57*$N$135-(K57-N57)-(K57-S57),(Q57-(K57-N57)-(K57-S57))*N$135))),IF(OPFOKLEGHEN!$L$9="nee",IF(OPFOKLEGHEN!$J$18="nee",IF(OPFOKLEGHEN!$H$20="nee",(N57*95%-(K57-Q57)/I$4-(K57-S57)),N57-(K57-Q57)/I$4-(K57-S57)),IF(OPFOKLEGHEN!$H$20="nee",IF(OPFOKLEGHEN!$J$18="ja",IF(OPFOKLEGHEN!$L$9="nee",N57-(K57-Q57)/I$4-(K57-S57))),N57-(K57-Q57)/I$4-(K57-S57)))))))) -> 2.0312457 | AE57: 0 | AF57: 0.4509241557 | AG57: 0 | AH57: 0 | AI57: 0.4509241557 | AJ57: 0 | AK57: 0.5142269715 | AL57: 0.009738849245 | AM57: 6 | AN57: 42 | AO57: 460 | AP57: 405 | AQ57: 432.5 | AR57: 9.93486509
A58: 7 | B58: 43 | C58: 0.5261632589 | D58: 0 | E58: =IF(I$3=0,0,IF(OPFOKLEGHEN!$H$13="parallel geschakeld met warmtewisselaar",0,MIN(I$3,C58))) -> 0 | F58: =IF(I$3=0,0,IF(OPFOKLEGHEN!$H$13="serie geschakeld met warmtewisselaar",0,IF(C58<$I$3,C58-D58,MIN($I$3,C58-D58)))) -> 0 | G58: =IF(C58<$I$7,MAX(0,C58-D58-E58-F58,IF(OPFOKLEGHEN!$H$15="warmtewisselaar",IF(OPFOKLEGHEN!$H$13="serie geschakeld met warmtewisselaar",MIN(I$7,MAX(0,C58-D58-F58)),MIN(I$7,MAX(0,C58-D58-E58-F58))))),IF(OPFOKLEGHEN!$H$13="parallel geschakeld met warmtewisselaar",MIN(I$7,C58-D58-E58-F58,MIN(I$7,C58-E58-F58)),MIN(I$7,MAX(0,C58-D58-F58)))) -> 0 | H58: =IF(OPFOKLEGHEN!$H$13="parallel geschakeld met warmtewisselaar",IF(OPFOKLEGHEN!$L$9="nee",IF(OPFOKLEGHEN!$J$18="ja",C58-F58-G58,C58-D58-F58-G58),IF(OPFOKLEGHEN!$L$9="ja",IF(OPFOKLEGHEN!$J$18="ja",C58-G58,IF(OPFOKLEGHEN!$J$18="nee",C58-D58-G58)))),IF(OPFOKLEGHEN!$H$13="serie geschakeld met warmtewisselaar",IF(OPFOKLEGHEN!$J$18="ja",C58-G58,C58-D58-F58-G58),C58-D58-F58-G58)) -> 0.5261632589 | I58: 0.5261632589 | J58: 0.4592979629 | K58: 2.116991646 | L58: =SUM(K$16:K58)/$K$137 -> 0.04739162245 | M58: 0.01039162566 | N58: 2.116991646 | O58: =IF(E58<I$3,P58*(1-I$6*D58/C58),IF(OPFOKLEGHEN!$H$11="droogtunnel (platen) 55%",P58*(1-$I$6)+(C58-D58)/C58*(K58-P58*(1-I$6)),P58*(1-$I$6)+(C58-D58)/C58*(K58-P58*(1-I$6)))) -> 2.116991646 | P58: 2.116991646 | Q58: 2.116991646 | R58: 2.116991646 | S58: =MIN(K58,IF(OPFOKLEGHEN!$H$13="parallel geschakeld met warmtewisselaar",K58-(G58/(C58-G58))*(Q58)*95%,K58-(G58/(C58-G58))*(P58)*84%)) -> 2.116991646 | T58: 2.116991646 | U58: 10.69937202 | V58: =IF(OPFOKLEGHEN!$J$18="nee",H58/C58*K58,IF(OPFOKLEGHEN!$H$20="ja",O58-(K58-Q58)-(K58-S58),Q58-(K58-O58)-(K58-S58))) -> 2.116991646 | W58: =IF(H58=0,0,IF(OPFOKLEGHEN!$H$11="geen droogtunnel",IF(OPFOKLEGHEN!$H$15="geen warmtewisselaar",Q58-(K58-R58)))+IF(OPFOKLEGHEN!$H$12>0,IF(OPFOKLEGHEN!$H$13="serie geschakeld met warmtewisselaar",(O58*80%-(K58-S58)),(Q58-(K58-S58)-(K58-T58))),(N58-(K58-S58)))) -> 4.233983292 | X58: =IF(H58=0,0,IF(OPFOKLEGHEN!$H$11="geen droogtunnel",IF(OPFOKLEGHEN!$H$15="geen warmtewisselaar",Q58-(K58-R58)))+IF(OPFOKLEGHEN!$H$12>0,IF(OPFOKLEGHEN!$H$13="serie geschakeld met warmtewisselaar",3*(O58*80%-(K58-S58)),(Q58-(K58-S58)-(K58-N58))),(N58-(K58-S58)))) -> 4.233983292 | Y58: =IF(H58=0,0,IF(OPFOKLEGHEN!$H$11="geen droogtunnel",IF(OPFOKLEGHEN!$H$15="geen warmtewisselaar",Q58-(K58-R58)))+IF(OPFOKLEGHEN!$H$12>0,IF(OPFOKLEGHEN!$H$13="serie geschakeld met warmtewisselaar",(O58-(K58-S58)),IF(OPFOKLEGHEN!$H$13="parallel geschakeld met warmtewisselaar",IF(OPFOKLEGHEN!$L$9="ja",IF(OPFOKLEGHEN!$J$18="nee",(N58-(K58-Q58)-(K58-S58)),(Q58-(K58-N58/80%)))))),(O58-(K58-S58)))) -> 4.233983292 | Z58: 1 | AC58: =IF(H58=0,0,IF(OPFOKLEGHEN!$H$11="geen droogtunnel",IF(OPFOKLEGHEN!$H$15="geen warmtewisselaar",P58-(K58-R58),K58-(K58-O58)/I$6-(K58-R58)/95%)+IF(OPFOKLEGHEN!$J$18="ja",J$5/I$5*(K58-O58)*(1-I$6)),IF(OPFOKLEGHEN!$H$12>=0,IF(OPFOKLEGHEN!$L$9="ja",IF(OPFOKLEGHEN!$J$18="ja",IF(OPFOKLEGHEN!$H$20="ja",O58-(K58-S58),IF(OPFOKLEGHEN!$H$20="nee",(O58-(K58-S58)),(O58-(K58-S58)))),IF(OPFOKLEGHEN!$J$18="nee",IF(OPFOKLEGHEN!$H$20="nee",O58*80%-(K58-S58),0+O58-(K58-S58)))),IF(OPFOKLEGHEN!$L$9="nee",IF(OPFOKLEGHEN!$J$18="nee",IF(OPFOKLEGHEN!$H$20="nee",(O58*80%-(K58-S58)),O58*93%-(K58-S58)),IF(OPFOKLEGHEN!$H$20="nee",IF(OPFOKLEGHEN!$J$18="ja",IF(OPFOKLEGHEN!$L$9="nee",O58-(K58-S58))),O58-(K58-S58)))))))) -> 2.116991646 | AD58: =IF(H58=0,0,IF(OPFOKLEGHEN!$H$11="geen droogtunnel",IF(OPFOKLEGHEN!$H$15="geen warmtewisselaar",Q58-(K58-R58),N58-(K58-R58)),IF(OPFOKLEGHEN!$H$12>=0,IF(OPFOKLEGHEN!$L$9="ja",IF(OPFOKLEGHEN!$J$18="ja",IF(OPFOKLEGHEN!$H$20="ja",Q58-(K58-N58)-(K58-S58),IF(OPFOKLEGHEN!$H$20="nee",(Q58-(K58-N58)-(K58-S58)),(O58-(K58-S58)))),IF(OPFOKLEGHEN!$J$18="nee",IF(OPFOKLEGHEN!$H$20="nee",1*Q58*$N$135-(K58-N58)-(K58-S58),(Q58-(K58-N58)-(K58-S58))*N$135))),IF(OPFOKLEGHEN!$L$9="nee",IF(OPFOKLEGHEN!$J$18="nee",IF(OPFOKLEGHEN!$H$20="nee",(N58*95%-(K58-Q58)/I$4-(K58-S58)),N58-(K58-Q58)/I$4-(K58-S58)),IF(OPFOKLEGHEN!$H$20="nee",IF(OPFOKLEGHEN!$J$18="ja",IF(OPFOKLEGHEN!$L$9="nee",N58-(K58-Q58)/I$4-(K58-S58))),N58-(K58-Q58)/I$4-(K58-S58)))))))) -> 2.116991646 | AE58: 0 | AF58: 0.4592979629 | AG58: 0 | AH58: 0 | AI58: 0.4592979629 | AJ58: 0 | AK58: 0.5261632589 | AL58: 0.01039162566 | AM58: 7 | AN58: 43 | AO58: =AO57+12.9 -> 472.9 | AP58: =AP57+11.4 -> 416.4 | AQ58: 444.65 | AR58: 10.69937202
A59: 7 | B59: 44 | C59: 0.538149789 | D59: 0 | E59: =IF(I$3=0,0,IF(OPFOKLEGHEN!$H$13="parallel geschakeld met warmtewisselaar",0,MIN(I$3,C59))) -> 0 | F59: =IF(I$3=0,0,IF(OPFOKLEGHEN!$H$13="serie geschakeld met warmtewisselaar",0,IF(C59<$I$3,C59-D59,MIN($I$3,C59-D59)))) -> 0 | G59: =IF(C59<$I$7,MAX(0,C59-D59-E59-F59,IF(OPFOKLEGHEN!$H$15="warmtewisselaar",IF(OPFOKLEGHEN!$H$13="serie geschakeld met warmtewisselaar",MIN(I$7,MAX(0,C59-D59-F59)),MIN(I$7,MAX(0,C59-D59-E59-F59))))),IF(OPFOKLEGHEN!$H$13="parallel geschakeld met warmtewisselaar",MIN(I$7,C59-D59-E59-F59,MIN(I$7,C59-E59-F59)),MIN(I$7,MAX(0,C59-D59-F59)))) -> 0 | H59: =IF(OPFOKLEGHEN!$H$13="parallel geschakeld met warmtewisselaar",IF(OPFOKLEGHEN!$L$9="nee",IF(OPFOKLEGHEN!$J$18="ja",C59-F59-G59,C59-D59-F59-G59),IF(OPFOKLEGHEN!$L$9="ja",IF(OPFOKLEGHEN!$J$18="ja",C59-G59,IF(OPFOKLEGHEN!$J$18="nee",C59-D59-G59)))),IF(OPFOKLEGHEN!$H$13="serie geschakeld met warmtewisselaar",IF(OPFOKLEGHEN!$J$18="ja",C59-G59,C59-D59-F59-G59),C59-D59-F59-G59)) -> 0.538149789 | I59: 0.538149789 | J59: 0.4678272745 | K59: 2.205427666 | L59: =SUM(K$16:K59)/$K$137 -> 0.04997426673 | M59: 0.01107749056 | N59: 2.205427666 | O59: =IF(E59<I$3,P59*(1-I$6*D59/C59),IF(OPFOKLEGHEN!$H$11="droogtunnel (platen) 55%",P59*(1-$I$6)+(C59-D59)/C59*(K59-P59*(1-I$6)),P59*(1-$I$6)+(C59-D59)/C59*(K59-P59*(1-I$6)))) -> 2.205427666 | P59: 2.205427666 | Q59: 2.205427666 | R59: 2.205427666 | S59: =MIN(K59,IF(OPFOKLEGHEN!$H$13="parallel geschakeld met warmtewisselaar",K59-(G59/(C59-G59))*(Q59)*95%,K59-(G59/(C59-G59))*(P59)*84%)) -> 2.205427666 | T59: 2.205427666 | U59: 11.50305937 | V59: =IF(OPFOKLEGHEN!$J$18="nee",H59/C59*K59,IF(OPFOKLEGHEN!$H$20="ja",O59-(K59-Q59)-(K59-S59),Q59-(K59-O59)-(K59-S59))) -> 2.205427666 | W59: =IF(H59=0,0,IF(OPFOKLEGHEN!$H$11="geen droogtunnel",IF(OPFOKLEGHEN!$H$15="geen warmtewisselaar",Q59-(K59-R59)))+IF(OPFOKLEGHEN!$H$12>0,IF(OPFOKLEGHEN!$H$13="serie geschakeld met warmtewisselaar",(O59*80%-(K59-S59)),(Q59-(K59-S59)-(K59-T59))),(N59-(K59-S59)))) -> 4.410855331 | X59: =IF(H59=0,0,IF(OPFOKLEGHEN!$H$11="geen droogtunnel",IF(OPFOKLEGHEN!$H$15="geen warmtewisselaar",Q59-(K59-R59)))+IF(OPFOKLEGHEN!$H$12>0,IF(OPFOKLEGHEN!$H$13="serie geschakeld met warmtewisselaar",3*(O59*80%-(K59-S59)),(Q59-(K59-S59)-(K59-N59))),(N59-(K59-S59)))) -> 4.410855331 | Y59: =IF(H59=0,0,IF(OPFOKLEGHEN!$H$11="geen droogtunnel",IF(OPFOKLEGHEN!$H$15="geen warmtewisselaar",Q59-(K59-R59)))+IF(OPFOKLEGHEN!$H$12>0,IF(OPFOKLEGHEN!$H$13="serie geschakeld met warmtewisselaar",(O59-(K59-S59)),IF(OPFOKLEGHEN!$H$13="parallel geschakeld met warmtewisselaar",IF(OPFOKLEGHEN!$L$9="ja",IF(OPFOKLEGHEN!$J$18="nee",(N59-(K59-Q59)-(K59-S59)),(Q59-(K59-N59/80%)))))),(O59-(K59-S59)))) -> 4.410855331 | Z59: 1 | AC59: =IF(H59=0,0,IF(OPFOKLEGHEN!$H$11="geen droogtunnel",IF(OPFOKLEGHEN!$H$15="geen warmtewisselaar",P59-(K59-R59),K59-(K59-O59)/I$6-(K59-R59)/95%)+IF(OPFOKLEGHEN!$J$18="ja",J$5/I$5*(K59-O59)*(1-I$6)),IF(OPFOKLEGHEN!$H$12>=0,IF(OPFOKLEGHEN!$L$9="ja",IF(OPFOKLEGHEN!$J$18="ja",IF(OPFOKLEGHEN!$H$20="ja",O59-(K59-S59),IF(OPFOKLEGHEN!$H$20="nee",(O59-(K59-S59)),(O59-(K59-S59)))),IF(OPFOKLEGHEN!$J$18="nee",IF(OPFOKLEGHEN!$H$20="nee",O59*80%-(K59-S59),0+O59-(K59-S59)))),IF(OPFOKLEGHEN!$L$9="nee",IF(OPFOKLEGHEN!$J$18="nee",IF(OPFOKLEGHEN!$H$20="nee",(O59*80%-(K59-S59)),O59*93%-(K59-S59)),IF(OPFOKLEGHEN!$H$20="nee",IF(OPFOKLEGHEN!$J$18="ja",IF(OPFOKLEGHEN!$L$9="nee",O59-(K59-S59))),O59-(K59-S59)))))))) -> 2.205427666 | AD59: =IF(H59=0,0,IF(OPFOKLEGHEN!$H$11="geen droogtunnel",IF(OPFOKLEGHEN!$H$15="geen warmtewisselaar",Q59-(K59-R59),N59-(K59-R59)),IF(OPFOKLEGHEN!$H$12>=0,IF(OPFOKLEGHEN!$L$9="ja",IF(OPFOKLEGHEN!$J$18="ja",IF(OPFOKLEGHEN!$H$20="ja",Q59-(K59-N59)-(K59-S59),IF(OPFOKLEGHEN!$H$20="nee",(Q59-(K59-N59)-(K59-S59)),(O59-(K59-S59)))),IF(OPFOKLEGHEN!$J$18="nee",IF(OPFOKLEGHEN!$H$20="nee",1*Q59*$N$135-(K59-N59)-(K59-S59),(Q59-(K59-N59)-(K59-S59))*N$135))),IF(OPFOKLEGHEN!$L$9="nee",IF(OPFOKLEGHEN!$J$18="nee",IF(OPFOKLEGHEN!$H$20="nee",(N59*95%-(K59-Q59)/I$4-(K59-S59)),N59-(K59-Q59)/I$4-(K59-S59)),IF(OPFOKLEGHEN!$H$20="nee",IF(OPFOKLEGHEN!$J$18="ja",IF(OPFOKLEGHEN!$L$9="nee",N59-(K59-Q59)/I$4-(K59-S59))),N59-(K59-Q59)/I$4-(K59-S59)))))))) -> 2.205427666 | AE59: 0 | AF59: 0.4678272745 | AG59: 0 | AH59: 0 | AI59: 0.4678272745 | AJ59: 0 | AK59: 0.538149789 | AL59: 0.01107749056 | AM59: 7 | AN59: 44 | AO59: 485.8 | AP59: 427.8 | AQ59: 456.8 | AR59: 11.50305937
A60: 7 | B60: 45 | C60: 0.5501906942 | D60: 0 | E60: =IF(I$3=0,0,IF(OPFOKLEGHEN!$H$13="parallel geschakeld met warmtewisselaar",0,MIN(I$3,C60))) -> 0 | F60: =IF(I$3=0,0,IF(OPFOKLEGHEN!$H$13="serie geschakeld met warmtewisselaar",0,IF(C60<$I$3,C60-D60,MIN($I$3,C60-D60)))) -> 0 | G60: =IF(C60<$I$7,MAX(0,C60-D60-E60-F60,IF(OPFOKLEGHEN!$H$15="warmtewisselaar",IF(OPFOKLEGHEN!$H$13="serie geschakeld met warmtewisselaar",MIN(I$7,MAX(0,C60-D60-F60)),MIN(I$7,MAX(0,C60-D60-E60-F60))))),IF(OPFOKLEGHEN!$H$13="parallel geschakeld met warmtewisselaar",MIN(I$7,C60-D60-E60-F60,MIN(I$7,C60-E60-F60)),MIN(I$7,MAX(0,C60-D60-F60)))) -> 0 | H60: =IF(OPFOKLEGHEN!$H$13="parallel geschakeld met warmtewisselaar",IF(OPFOKLEGHEN!$L$9="nee",IF(OPFOKLEGHEN!$J$18="ja",C60-F60-G60,C60-D60-F60-G60),IF(OPFOKLEGHEN!$L$9="ja",IF(OPFOKLEGHEN!$J$18="ja",C60-G60,IF(OPFOKLEGHEN!$J$18="nee",C60-D60-G60)))),IF(OPFOKLEGHEN!$H$13="serie geschakeld met warmtewisselaar",IF(OPFOKLEGHEN!$J$18="ja",C60-G60,C60-D60-F60-G60),C60-D60-F60-G60)) -> 0.5501906942 | I60: 0.5501906942 | J60: 0.4765149781 | K60: 2.296645174 | L60: =SUM(K$16:K60)/$K$137 -> 0.05266373036 | M60: 0.0117978348 | N60: 2.296645174 | O60: =IF(E60<I$3,P60*(1-I$6*D60/C60),IF(OPFOKLEGHEN!$H$11="droogtunnel (platen) 55%",P60*(1-$I$6)+(C60-D60)/C60*(K60-P60*(1-I$6)),P60*(1-$I$6)+(C60-D60)/C60*(K60-P60*(1-I$6)))) -> 2.296645174 | P60: 2.296645174 | Q60: 2.296645174 | R60: 2.296645174 | S60: =MIN(K60,IF(OPFOKLEGHEN!$H$13="parallel geschakeld met warmtewisselaar",K60-(G60/(C60-G60))*(Q60)*95%,K60-(G60/(C60-G60))*(P60)*84%)) -> 2.296645174 | T60: 2.296645174 | U60: 12.34710446 | V60: =IF(OPFOKLEGHEN!$J$18="nee",H60/C60*K60,IF(OPFOKLEGHEN!$H$20="ja",O60-(K60-Q60)-(K60-S60),Q60-(K60-O60)-(K60-S60))) -> 2.296645174 | W60: =IF(H60=0,0,IF(OPFOKLEGHEN!$H$11="geen droogtunnel",IF(OPFOKLEGHEN!$H$15="geen warmtewisselaar",Q60-(K60-R60)))+IF(OPFOKLEGHEN!$H$12>0,IF(OPFOKLEGHEN!$H$13="serie geschakeld met warmtewisselaar",(O60*80%-(K60-S60)),(Q60-(K60-S60)-(K60-T60))),(N60-(K60-S60)))) -> 4.593290347 | X60: =IF(H60=0,0,IF(OPFOKLEGHEN!$H$11="geen droogtunnel",IF(OPFOKLEGHEN!$H$15="geen warmtewisselaar",Q60-(K60-R60)))+IF(OPFOKLEGHEN!$H$12>0,IF(OPFOKLEGHEN!$H$13="serie geschakeld met warmtewisselaar",3*(O60*80%-(K60-S60)),(Q60-(K60-S60)-(K60-N60))),(N60-(K60-S60)))) -> 4.593290347 | Y60: =IF(H60=0,0,IF(OPFOKLEGHEN!$H$11="geen droogtunnel",IF(OPFOKLEGHEN!$H$15="geen warmtewisselaar",Q60-(K60-R60)))+IF(OPFOKLEGHEN!$H$12>0,IF(OPFOKLEGHEN!$H$13="serie geschakeld met warmtewisselaar",(O60-(K60-S60)),IF(OPFOKLEGHEN!$H$13="parallel geschakeld met warmtewisselaar",IF(OPFOKLEGHEN!$L$9="ja",IF(OPFOKLEGHEN!$J$18="nee",(N60-(K60-Q60)-(K60-S60)),(Q60-(K60-N60/80%)))))),(O60-(K60-S60)))) -> 4.593290347 | Z60: 1 | AC60: =IF(H60=0,0,IF(OPFOKLEGHEN!$H$11="geen droogtunnel",IF(OPFOKLEGHEN!$H$15="geen warmtewisselaar",P60-(K60-R60),K60-(K60-O60)/I$6-(K60-R60)/95%)+IF(OPFOKLEGHEN!$J$18="ja",J$5/I$5*(K60-O60)*(1-I$6)),IF(OPFOKLEGHEN!$H$12>=0,IF(OPFOKLEGHEN!$L$9="ja",IF(OPFOKLEGHEN!$J$18="ja",IF(OPFOKLEGHEN!$H$20="ja",O60-(K60-S60),IF(OPFOKLEGHEN!$H$20="nee",(O60-(K60-S60)),(O60-(K60-S60)))),IF(OPFOKLEGHEN!$J$18="nee",IF(OPFOKLEGHEN!$H$20="nee",O60*80%-(K60-S60),0+O60-(K60-S60)))),IF(OPFOKLEGHEN!$L$9="nee",IF(OPFOKLEGHEN!$J$18="nee",IF(OPFOKLEGHEN!$H$20="nee",(O60*80%-(K60-S60)),O60*93%-(K60-S60)),IF(OPFOKLEGHEN!$H$20="nee",IF(OPFOKLEGHEN!$J$18="ja",IF(OPFOKLEGHEN!$L$9="nee",O60-(K60-S60))),O60-(K60-S60)))))))) -> 2.296645174 | AD60: =IF(H60=0,0,IF(OPFOKLEGHEN!$H$11="geen droogtunnel",IF(OPFOKLEGHEN!$H$15="geen warmtewisselaar",Q60-(K60-R60),N60-(K60-R60)),IF(OPFOKLEGHEN!$H$12>=0,IF(OPFOKLEGHEN!$L$9="ja",IF(OPFOKLEGHEN!$J$18="ja",IF(OPFOKLEGHEN!$H$20="ja",Q60-(K60-N60)-(K60-S60),IF(OPFOKLEGHEN!$H$20="nee",(Q60-(K60-N60)-(K60-S60)),(O60-(K60-S60)))),IF(OPFOKLEGHEN!$J$18="nee",IF(OPFOKLEGHEN!$H$20="nee",1*Q60*$N$135-(K60-N60)-(K60-S60),(Q60-(K60-N60)-(K60-S60))*N$135))),IF(OPFOKLEGHEN!$L$9="nee",IF(OPFOKLEGHEN!$J$18="nee",IF(OPFOKLEGHEN!$H$20="nee",(N60*95%-(K60-Q60)/I$4-(K60-S60)),N60-(K60-Q60)/I$4-(K60-S60)),IF(OPFOKLEGHEN!$H$20="nee",IF(OPFOKLEGHEN!$J$18="ja",IF(OPFOKLEGHEN!$L$9="nee",N60-(K60-Q60)/I$4-(K60-S60))),N60-(K60-Q60)/I$4-(K60-S60)))))))) -> 2.296645174 | AE60: 0 | AF60: 0.4765149781 | AG60: 0 | AH60: 0 | AI60: 0.4765149781 | AJ60: 0 | AK60: 0.5501906942 | AL60: 0.0117978348 | AM60: 7 | AN60: 45 | AO60: 498.7 | AP60: 439.2 | AQ60: 468.95 | AR60: 12.34710446
A61: 7 | B61: 46 | C61: 0.562290107 | D61: 0 | E61: =IF(I$3=0,0,IF(OPFOKLEGHEN!$H$13="parallel geschakeld met warmtewisselaar",0,MIN(I$3,C61))) -> 0 | F61: =IF(I$3=0,0,IF(OPFOKLEGHEN!$H$13="serie geschakeld met warmtewisselaar",0,IF(C61<$I$3,C61-D61,MIN($I$3,C61-D61)))) -> 0 | G61: =IF(C61<$I$7,MAX(0,C61-D61-E61-F61,IF(OPFOKLEGHEN!$H$15="warmtewisselaar",IF(OPFOKLEGHEN!$H$13="serie geschakeld met warmtewisselaar",MIN(I$7,MAX(0,C61-D61-F61)),MIN(I$7,MAX(0,C61-D61-E61-F61))))),IF(OPFOKLEGHEN!$H$13="parallel geschakeld met warmtewisselaar",MIN(I$7,C61-D61-E61-F61,MIN(I$7,C61-E61-F61)),MIN(I$7,MAX(0,C61-D61-F61)))) -> 0 | H61: =IF(OPFOKLEGHEN!$H$13="parallel geschakeld met warmtewisselaar",IF(OPFOKLEGHEN!$L$9="nee",IF(OPFOKLEGHEN!$J$18="ja",C61-F61-G61,C61-D61-F61-G61),IF(OPFOKLEGHEN!$L$9="ja",IF(OPFOKLEGHEN!$J$18="ja",C61-G61,IF(OPFOKLEGHEN!$J$18="nee",C61-D61-G61)))),IF(OPFOKLEGHEN!$H$13="serie geschakeld met warmtewisselaar",IF(OPFOKLEGHEN!$J$18="ja",C61-G61,C61-D61-F61-G61),C61-D61-F61-G61)) -> 0.562290107 | I61: 0.562290107 | J61: 0.4853640152 | K61: 2.390738764 | L61: =SUM(K$16:K61)/$K$137 -> 0.05546338137 | M61: 0.01255410767 | N61: 2.390738764 | O61: =IF(E61<I$3,P61*(1-I$6*D61/C61),IF(OPFOKLEGHEN!$H$11="droogtunnel (platen) 55%",P61*(1-$I$6)+(C61-D61)/C61*(K61-P61*(1-I$6)),P61*(1-$I$6)+(C61-D61)/C61*(K61-P61*(1-I$6)))) -> 2.390738764 | P61: 2.390738764 | Q61: 2.390738764 | R61: 2.390738764 | S61: =MIN(K61,IF(OPFOKLEGHEN!$H$13="parallel geschakeld met warmtewisselaar",K61-(G61/(C61-G61))*(Q61)*95%,K61-(G61/(C61-G61))*(P61)*84%)) -> 2.390738764 | T61: 2.390738764 | U61: 13.23271046 | V61: =IF(OPFOKLEGHEN!$J$18="nee",H61/C61*K61,IF(OPFOKLEGHEN!$H$20="ja",O61-(K61-Q61)-(K61-S61),Q61-(K61-O61)-(K61-S61))) -> 2.390738764 | W61: =IF(H61=0,0,IF(OPFOKLEGHEN!$H$11="geen droogtunnel",IF(OPFOKLEGHEN!$H$15="geen warmtewisselaar",Q61-(K61-R61)))+IF(OPFOKLEGHEN!$H$12>0,IF(OPFOKLEGHEN!$H$13="serie geschakeld met warmtewisselaar",(O61*80%-(K61-S61)),(Q61-(K61-S61)-(K61-T61))),(N61-(K61-S61)))) -> 4.781477528 | X61: =IF(H61=0,0,IF(OPFOKLEGHEN!$H$11="geen droogtunnel",IF(OPFOKLEGHEN!$H$15="geen warmtewisselaar",Q61-(K61-R61)))+IF(OPFOKLEGHEN!$H$12>0,IF(OPFOKLEGHEN!$H$13="serie geschakeld met warmtewisselaar",3*(O61*80%-(K61-S61)),(Q61-(K61-S61)-(K61-N61))),(N61-(K61-S61)))) -> 4.781477528 | Y61: =IF(H61=0,0,IF(OPFOKLEGHEN!$H$11="geen droogtunnel",IF(OPFOKLEGHEN!$H$15="geen warmtewisselaar",Q61-(K61-R61)))+IF(OPFOKLEGHEN!$H$12>0,IF(OPFOKLEGHEN!$H$13="serie geschakeld met warmtewisselaar",(O61-(K61-S61)),IF(OPFOKLEGHEN!$H$13="parallel geschakeld met warmtewisselaar",IF(OPFOKLEGHEN!$L$9="ja",IF(OPFOKLEGHEN!$J$18="nee",(N61-(K61-Q61)-(K61-S61)),(Q61-(K61-N61/80%)))))),(O61-(K61-S61)))) -> 4.781477528 | Z61: 1 | AC61: =IF(H61=0,0,IF(OPFOKLEGHEN!$H$11="geen droogtunnel",IF(OPFOKLEGHEN!$H$15="geen warmtewisselaar",P61-(K61-R61),K61-(K61-O61)/I$6-(K61-R61)/95%)+IF(OPFOKLEGHEN!$J$18="ja",J$5/I$5*(K61-O61)*(1-I$6)),IF(OPFOKLEGHEN!$H$12>=0,IF(OPFOKLEGHEN!$L$9="ja",IF(OPFOKLEGHEN!$J$18="ja",IF(OPFOKLEGHEN!$H$20="ja",O61-(K61-S61),IF(OPFOKLEGHEN!$H$20="nee",(O61-(K61-S61)),(O61-(K61-S61)))),IF(OPFOKLEGHEN!$J$18="nee",IF(OPFOKLEGHEN!$H$20="nee",O61*80%-(K61-S61),0+O61-(K61-S61)))),IF(OPFOKLEGHEN!$L$9="nee",IF(OPFOKLEGHEN!$J$18="nee",IF(OPFOKLEGHEN!$H$20="nee",(O61*80%-(K61-S61)),O61*93%-(K61-S61)),IF(OPFOKLEGHEN!$H$20="nee",IF(OPFOKLEGHEN!$J$18="ja",IF(OPFOKLEGHEN!$L$9="nee",O61-(K61-S61))),O61-(K61-S61)))))))) -> 2.390738764 | AD61: =IF(H61=0,0,IF(OPFOKLEGHEN!$H$11="geen droogtunnel",IF(OPFOKLEGHEN!$H$15="geen warmtewisselaar",Q61-(K61-R61),N61-(K61-R61)),IF(OPFOKLEGHEN!$H$12>=0,IF(OPFOKLEGHEN!$L$9="ja",IF(OPFOKLEGHEN!$J$18="ja",IF(OPFOKLEGHEN!$H$20="ja",Q61-(K61-N61)-(K61-S61),IF(OPFOKLEGHEN!$H$20="nee",(Q61-(K61-N61)-(K61-S61)),(O61-(K61-S61)))),IF(OPFOKLEGHEN!$J$18="nee",IF(OPFOKLEGHEN!$H$20="nee",1*Q61*$N$135-(K61-N61)-(K61-S61),(Q61-(K61-N61)-(K61-S61))*N$135))),IF(OPFOKLEGHEN!$L$9="nee",IF(OPFOKLEGHEN!$J$18="nee",IF(OPFOKLEGHEN!$H$20="nee",(N61*95%-(K61-Q61)/I$4-(K61-S61)),N61-(K61-Q61)/I$4-(K61-S61)),IF(OPFOKLEGHEN!$H$20="nee",IF(OPFOKLEGHEN!$J$18="ja",IF(OPFOKLEGHEN!$L$9="nee",N61-(K61-Q61)/I$4-(K61-S61))),N61-(K61-Q61)/I$4-(K61-S61)))))))) -> 2.390738764 | AE61: 0 | AF61: 0.4853640152 | AG61: 0 | AH61: 0 | AI61: 0.4853640152 | AJ61: 0 | AK61: 0.562290107 | AL61: 0.01255410767 | AM61: 7 | AN61: 46 | AO61: 511.6 | AP61: 450.6 | AQ61: 481.1 | AR61: 13.23271046
A62: 7 | B62: 47 | C62: 0.57445216 | D62: 0 | E62: =IF(I$3=0,0,IF(OPFOKLEGHEN!$H$13="parallel geschakeld met warmtewisselaar",0,MIN(I$3,C62))) -> 0 | F62: =IF(I$3=0,0,IF(OPFOKLEGHEN!$H$13="serie geschakeld met warmtewisselaar",0,IF(C62<$I$3,C62-D62,MIN($I$3,C62-D62)))) -> 0 | G62: =IF(C62<$I$7,MAX(0,C62-D62-E62-F62,IF(OPFOKLEGHEN!$H$15="warmtewisselaar",IF(OPFOKLEGHEN!$H$13="serie geschakeld met warmtewisselaar",MIN(I$7,MAX(0,C62-D62-F62)),MIN(I$7,MAX(0,C62-D62-E62-F62))))),IF(OPFOKLEGHEN!$H$13="parallel geschakeld met warmtewisselaar",MIN(I$7,C62-D62-E62-F62,MIN(I$7,C62-E62-F62)),MIN(I$7,MAX(0,C62-D62-F62)))) -> 0 | H62: =IF(OPFOKLEGHEN!$H$13="parallel geschakeld met warmtewisselaar",IF(OPFOKLEGHEN!$L$9="nee",IF(OPFOKLEGHEN!$J$18="ja",C62-F62-G62,C62-D62-F62-G62),IF(OPFOKLEGHEN!$L$9="ja",IF(OPFOKLEGHEN!$J$18="ja",C62-G62,IF(OPFOKLEGHEN!$J$18="nee",C62-D62-G62)))),IF(OPFOKLEGHEN!$H$13="serie geschakeld met warmtewisselaar",IF(OPFOKLEGHEN!$J$18="ja",C62-G62,C62-D62-F62-G62),C62-D62-F62-G62)) -> 0.57445216 | I62: 0.57445216 | J62: 0.4943773817 | K62: 2.487806316 | L62: =SUM(K$16:K62)/$K$137 -> 0.05837670237 | M62: 0.01334781927 | N62: 2.487806316 | O62: =IF(E62<I$3,P62*(1-I$6*D62/C62),IF(OPFOKLEGHEN!$H$11="droogtunnel (platen) 55%",P62*(1-$I$6)+(C62-D62)/C62*(K62-P62*(1-I$6)),P62*(1-$I$6)+(C62-D62)/C62*(K62-P62*(1-I$6)))) -> 2.487806316 | P62: 2.487806316 | Q62: 2.487806316 | R62: 2.487806316 | S62: =MIN(K62,IF(OPFOKLEGHEN!$H$13="parallel geschakeld met warmtewisselaar",K62-(G62/(C62-G62))*(Q62)*95%,K62-(G62/(C62-G62))*(P62)*84%)) -> 2.487806316 | T62: 2.487806316 | U62: 14.16110742 | V62: =IF(OPFOKLEGHEN!$J$18="nee",H62/C62*K62,IF(OPFOKLEGHEN!$H$20="ja",O62-(K62-Q62)-(K62-S62),Q62-(K62-O62)-(K62-S62))) -> 2.487806316 | W62: =IF(H62=0,0,IF(OPFOKLEGHEN!$H$11="geen droogtunnel",IF(OPFOKLEGHEN!$H$15="geen warmtewisselaar",Q62-(K62-R62)))+IF(OPFOKLEGHEN!$H$12>0,IF(OPFOKLEGHEN!$H$13="serie geschakeld met warmtewisselaar",(O62*80%-(K62-S62)),(Q62-(K62-S62)-(K62-T62))),(N62-(K62-S62)))) -> 4.975612632 | X62: =IF(H62=0,0,IF(OPFOKLEGHEN!$H$11="geen droogtunnel",IF(OPFOKLEGHEN!$H$15="geen warmtewisselaar",Q62-(K62-R62)))+IF(OPFOKLEGHEN!$H$12>0,IF(OPFOKLEGHEN!$H$13="serie geschakeld met warmtewisselaar",3*(O62*80%-(K62-S62)),(Q62-(K62-S62)-(K62-N62))),(N62-(K62-S62)))) -> 4.975612632 | Y62: =IF(H62=0,0,IF(OPFOKLEGHEN!$H$11="geen droogtunnel",IF(OPFOKLEGHEN!$H$15="geen warmtewisselaar",Q62-(K62-R62)))+IF(OPFOKLEGHEN!$H$12>0,IF(OPFOKLEGHEN!$H$13="serie geschakeld met warmtewisselaar",(O62-(K62-S62)),IF(OPFOKLEGHEN!$H$13="parallel geschakeld met warmtewisselaar",IF(OPFOKLEGHEN!$L$9="ja",IF(OPFOKLEGHEN!$J$18="nee",(N62-(K62-Q62)-(K62-S62)),(Q62-(K62-N62/80%)))))),(O62-(K62-S62)))) -> 4.975612632 | Z62: 1 | AC62: =IF(H62=0,0,IF(OPFOKLEGHEN!$H$11="geen droogtunnel",IF(OPFOKLEGHEN!$H$15="geen warmtewisselaar",P62-(K62-R62),K62-(K62-O62)/I$6-(K62-R62)/95%)+IF(OPFOKLEGHEN!$J$18="ja",J$5/I$5*(K62-O62)*(1-I$6)),IF(OPFOKLEGHEN!$H$12>=0,IF(OPFOKLEGHEN!$L$9="ja",IF(OPFOKLEGHEN!$J$18="ja",IF(OPFOKLEGHEN!$H$20="ja",O62-(K62-S62),IF(OPFOKLEGHEN!$H$20="nee",(O62-(K62-S62)),(O62-(K62-S62)))),IF(OPFOKLEGHEN!$J$18="nee",IF(OPFOKLEGHEN!$H$20="nee",O62*80%-(K62-S62),0+O62-(K62-S62)))),IF(OPFOKLEGHEN!$L$9="nee",IF(OPFOKLEGHEN!$J$18="nee",IF(OPFOKLEGHEN!$H$20="nee",(O62*80%-(K62-S62)),O62*93%-(K62-S62)),IF(OPFOKLEGHEN!$H$20="nee",IF(OPFOKLEGHEN!$J$18="ja",IF(OPFOKLEGHEN!$L$9="nee",O62-(K62-S62))),O62-(K62-S62)))))))) -> 2.487806316 | AD62: =IF(H62=0,0,IF(OPFOKLEGHEN!$H$11="geen droogtunnel",IF(OPFOKLEGHEN!$H$15="geen warmtewisselaar",Q62-(K62-R62),N62-(K62-R62)),IF(OPFOKLEGHEN!$H$12>=0,IF(OPFOKLEGHEN!$L$9="ja",IF(OPFOKLEGHEN!$J$18="ja",IF(OPFOKLEGHEN!$H$20="ja",Q62-(K62-N62)-(K62-S62),IF(OPFOKLEGHEN!$H$20="nee",(Q62-(K62-N62)-(K62-S62)),(O62-(K62-S62)))),IF(OPFOKLEGHEN!$J$18="nee",IF(OPFOKLEGHEN!$H$20="nee",1*Q62*$N$135-(K62-N62)-(K62-S62),(Q62-(K62-N62)-(K62-S62))*N$135))),IF(OPFOKLEGHEN!$L$9="nee",IF(OPFOKLEGHEN!$J$18="nee",IF(OPFOKLEGHEN!$H$20="nee",(N62*95%-(K62-Q62)/I$4-(K62-S62)),N62-(K62-Q62)/I$4-(K62-S62)),IF(OPFOKLEGHEN!$H$20="nee",IF(OPFOKLEGHEN!$J$18="ja",IF(OPFOKLEGHEN!$L$9="nee",N62-(K62-Q62)/I$4-(K62-S62))),N62-(K62-Q62)/I$4-(K62-S62)))))))) -> 2.487806316 | AE62: 0 | AF62: 0.4943773817 | AG62: 0 | AH62: 0 | AI62: 0.4943773817 | AJ62: 0 | AK62: 0.57445216 | AL62: 0.01334781927 | AM62: 7 | AN62: 47 | AO62: 524.5 | AP62: 462 | AQ62: 493.25 | AR62: 14.16110742
A63: 7 | B63: 48 | C63: 0.5866809856 | D63: 0 | E63: =IF(I$3=0,0,IF(OPFOKLEGHEN!$H$13="parallel geschakeld met warmtewisselaar",0,MIN(I$3,C63))) -> 0 | F63: =IF(I$3=0,0,IF(OPFOKLEGHEN!$H$13="serie geschakeld met warmtewisselaar",0,IF(C63<$I$3,C63-D63,MIN($I$3,C63-D63)))) -> 0 | G63: =IF(C63<$I$7,MAX(0,C63-D63-E63-F63,IF(OPFOKLEGHEN!$H$15="warmtewisselaar",IF(OPFOKLEGHEN!$H$13="serie geschakeld met warmtewisselaar",MIN(I$7,MAX(0,C63-D63-F63)),MIN(I$7,MAX(0,C63-D63-E63-F63))))),IF(OPFOKLEGHEN!$H$13="parallel geschakeld met warmtewisselaar",MIN(I$7,C63-D63-E63-F63,MIN(I$7,C63-E63-F63)),MIN(I$7,MAX(0,C63-D63-F63)))) -> 0 | H63: =IF(OPFOKLEGHEN!$H$13="parallel geschakeld met warmtewisselaar",IF(OPFOKLEGHEN!$L$9="nee",IF(OPFOKLEGHEN!$J$18="ja",C63-F63-G63,C63-D63-F63-G63),IF(OPFOKLEGHEN!$L$9="ja",IF(OPFOKLEGHEN!$J$18="ja",C63-G63,IF(OPFOKLEGHEN!$J$18="nee",C63-D63-G63)))),IF(OPFOKLEGHEN!$H$13="serie geschakeld met warmtewisselaar",IF(OPFOKLEGHEN!$J$18="ja",C63-G63,C63-D63-F63-G63),C63-D63-F63-G63)) -> 0.5866809856 | I63: 0.5866809856 | J63: 0.5035581294 | K63: 2.587949102 | L63: =SUM(K$16:K63)/$K$137 -> 0.0614072946 | M63: 0.01418054302 | N63: 2.587949102 | O63: =IF(E63<I$3,P63*(1-I$6*D63/C63),IF(OPFOKLEGHEN!$H$11="droogtunnel (platen) 55%",P63*(1-$I$6)+(C63-D63)/C63*(K63-P63*(1-I$6)),P63*(1-$I$6)+(C63-D63)/C63*(K63-P63*(1-I$6)))) -> 2.587949102 | P63: 2.587949102 | Q63: 2.587949102 | R63: 2.587949102 | S63: =MIN(K63,IF(OPFOKLEGHEN!$H$13="parallel geschakeld met warmtewisselaar",K63-(G63/(C63-G63))*(Q63)*95%,K63-(G63/(C63-G63))*(P63)*84%)) -> 2.587949102 | T63: 2.587949102 | U63: 15.13355336 | V63: =IF(OPFOKLEGHEN!$J$18="nee",H63/C63*K63,IF(OPFOKLEGHEN!$H$20="ja",O63-(K63-Q63)-(K63-S63),Q63-(K63-O63)-(K63-S63))) -> 2.587949102 | W63: =IF(H63=0,0,IF(OPFOKLEGHEN!$H$11="geen droogtunnel",IF(OPFOKLEGHEN!$H$15="geen warmtewisselaar",Q63-(K63-R63)))+IF(OPFOKLEGHEN!$H$12>0,IF(OPFOKLEGHEN!$H$13="serie geschakeld met warmtewisselaar",(O63*80%-(K63-S63)),(Q63-(K63-S63)-(K63-T63))),(N63-(K63-S63)))) -> 5.175898204 | X63: =IF(H63=0,0,IF(OPFOKLEGHEN!$H$11="geen droogtunnel",IF(OPFOKLEGHEN!$H$15="geen warmtewisselaar",Q63-(K63-R63)))+IF(OPFOKLEGHEN!$H$12>0,IF(OPFOKLEGHEN!$H$13="serie geschakeld met warmtewisselaar",3*(O63*80%-(K63-S63)),(Q63-(K63-S63)-(K63-N63))),(N63-(K63-S63)))) -> 5.175898204 | Y63: =IF(H63=0,0,IF(OPFOKLEGHEN!$H$11="geen droogtunnel",IF(OPFOKLEGHEN!$H$15="geen warmtewisselaar",Q63-(K63-R63)))+IF(OPFOKLEGHEN!$H$12>0,IF(OPFOKLEGHEN!$H$13="serie geschakeld met warmtewisselaar",(O63-(K63-S63)),IF(OPFOKLEGHEN!$H$13="parallel geschakeld met warmtewisselaar",IF(OPFOKLEGHEN!$L$9="ja",IF(OPFOKLEGHEN!$J$18="nee",(N63-(K63-Q63)-(K63-S63)),(Q63-(K63-N63/80%)))))),(O63-(K63-S63)))) -> 5.175898204 | Z63: 1 | AC63: =IF(H63=0,0,IF(OPFOKLEGHEN!$H$11="geen droogtunnel",IF(OPFOKLEGHEN!$H$15="geen warmtewisselaar",P63-(K63-R63),K63-(K63-O63)/I$6-(K63-R63)/95%)+IF(OPFOKLEGHEN!$J$18="ja",J$5/I$5*(K63-O63)*(1-I$6)),IF(OPFOKLEGHEN!$H$12>=0,IF(OPFOKLEGHEN!$L$9="ja",IF(OPFOKLEGHEN!$J$18="ja",IF(OPFOKLEGHEN!$H$20="ja",O63-(K63-S63),IF(OPFOKLEGHEN!$H$20="nee",(O63-(K63-S63)),(O63-(K63-S63)))),IF(OPFOKLEGHEN!$J$18="nee",IF(OPFOKLEGHEN!$H$20="nee",O63*80%-(K63-S63),0+O63-(K63-S63)))),IF(OPFOKLEGHEN!$L$9="nee",IF(OPFOKLEGHEN!$J$18="nee",IF(OPFOKLEGHEN!$H$20="nee",(O63*80%-(K63-S63)),O63*93%-(K63-S63)),IF(OPFOKLEGHEN!$H$20="nee",IF(OPFOKLEGHEN!$J$18="ja",IF(OPFOKLEGHEN!$L$9="nee",O63-(K63-S63))),O63-(K63-S63)))))))) -> 2.587949102 | AD63: =IF(H63=0,0,IF(OPFOKLEGHEN!$H$11="geen droogtunnel",IF(OPFOKLEGHEN!$H$15="geen warmtewisselaar",Q63-(K63-R63),N63-(K63-R63)),IF(OPFOKLEGHEN!$H$12>=0,IF(OPFOKLEGHEN!$L$9="ja",IF(OPFOKLEGHEN!$J$18="ja",IF(OPFOKLEGHEN!$H$20="ja",Q63-(K63-N63)-(K63-S63),IF(OPFOKLEGHEN!$H$20="nee",(Q63-(K63-N63)-(K63-S63)),(O63-(K63-S63)))),IF(OPFOKLEGHEN!$J$18="nee",IF(OPFOKLEGHEN!$H$20="nee",1*Q63*$N$135-(K63-N63)-(K63-S63),(Q63-(K63-N63)-(K63-S63))*N$135))),IF(OPFOKLEGHEN!$L$9="nee",IF(OPFOKLEGHEN!$J$18="nee",IF(OPFOKLEGHEN!$H$20="nee",(N63*95%-(K63-Q63)/I$4-(K63-S63)),N63-(K63-Q63)/I$4-(K63-S63)),IF(OPFOKLEGHEN!$H$20="nee",IF(OPFOKLEGHEN!$J$18="ja",IF(OPFOKLEGHEN!$L$9="nee",N63-(K63-Q63)/I$4-(K63-S63))),N63-(K63-Q63)/I$4-(K63-S63)))))))) -> 2.587949102 | AE63: 0 | AF63: 0.5035581294 | AG63: 0 | AH63: 0 | AI63: 0.5035581294 | AJ63: 0 | AK63: 0.5866809856 | AL63: 0.01418054302 | AM63: 7 | AN63: 48 | AO63: 537.4 | AP63: 473.4 | AQ63: 505.4 | AR63: 15.13355336
A64: 7 | B64: 49 | C64: 0.5989299491 | D64: 0 | E64: =IF(I$3=0,0,IF(OPFOKLEGHEN!$H$13="parallel geschakeld met warmtewisselaar",0,MIN(I$3,C64))) -> 0 | F64: =IF(I$3=0,0,IF(OPFOKLEGHEN!$H$13="serie geschakeld met warmtewisselaar",0,IF(C64<$I$3,C64-D64,MIN($I$3,C64-D64)))) -> 0 | G64: =IF(C64<$I$7,MAX(0,C64-D64-E64-F64,IF(OPFOKLEGHEN!$H$15="warmtewisselaar",IF(OPFOKLEGHEN!$H$13="serie geschakeld met warmtewisselaar",MIN(I$7,MAX(0,C64-D64-F64)),MIN(I$7,MAX(0,C64-D64-E64-F64))))),IF(OPFOKLEGHEN!$H$13="parallel geschakeld met warmtewisselaar",MIN(I$7,C64-D64-E64-F64,MIN(I$7,C64-E64-F64)),MIN(I$7,MAX(0,C64-D64-F64)))) -> 0 | H64: =IF(OPFOKLEGHEN!$H$13="parallel geschakeld met warmtewisselaar",IF(OPFOKLEGHEN!$L$9="nee",IF(OPFOKLEGHEN!$J$18="ja",C64-F64-G64,C64-D64-F64-G64),IF(OPFOKLEGHEN!$L$9="ja",IF(OPFOKLEGHEN!$J$18="ja",C64-G64,IF(OPFOKLEGHEN!$J$18="nee",C64-D64-G64)))),IF(OPFOKLEGHEN!$H$13="serie geschakeld met warmtewisselaar",IF(OPFOKLEGHEN!$J$18="ja",C64-G64,C64-D64-F64-G64),C64-D64-F64-G64)) -> 0.5989299491 | I64: 0.5989299491 | J64: 0.5129093666 | K64: 2.6910438 | L64: =SUM(K$16:K64)/$K$137 -> 0.06455861485 | M64: 0.01505264226 | N64: 2.6910438 | O64: =IF(E64<I$3,P64*(1-I$6*D64/C64),IF(OPFOKLEGHEN!$H$11="droogtunnel (platen) 55%",P64*(1-$I$6)+(C64-D64)/C64*(K64-P64*(1-I$6)),P64*(1-$I$6)+(C64-D64)/C64*(K64-P64*(1-I$6)))) -> 2.6910438 | P64: 2.6910438 | Q64: 2.6910438 | R64: 2.6910438 | S64: =MIN(K64,IF(OPFOKLEGHEN!$H$13="parallel geschakeld met warmtewisselaar",K64-(G64/(C64-G64))*(Q64)*95%,K64-(G64/(C64-G64))*(P64)*84%)) -> 2.6910438 | T64: 2.6910438 | U64: 16.14116213 | V64: =IF(OPFOKLEGHEN!$J$18="nee",H64/C64*K64,IF(OPFOKLEGHEN!$H$20="ja",O64-(K64-Q64)-(K64-S64),Q64-(K64-O64)-(K64-S64))) -> 2.6910438 | W64: =IF(H64=0,0,IF(OPFOKLEGHEN!$H$11="geen droogtunnel",IF(OPFOKLEGHEN!$H$15="geen warmtewisselaar",Q64-(K64-R64)))+IF(OPFOKLEGHEN!$H$12>0,IF(OPFOKLEGHEN!$H$13="serie geschakeld met warmtewisselaar",(O64*80%-(K64-S64)),(Q64-(K64-S64)-(K64-T64))),(N64-(K64-S64)))) -> 5.3820876 | X64: =IF(H64=0,0,IF(OPFOKLEGHEN!$H$11="geen droogtunnel",IF(OPFOKLEGHEN!$H$15="geen warmtewisselaar",Q64-(K64-R64)))+IF(OPFOKLEGHEN!$H$12>0,IF(OPFOKLEGHEN!$H$13="serie geschakeld met warmtewisselaar",3*(O64*80%-(K64-S64)),(Q64-(K64-S64)-(K64-N64))),(N64-(K64-S64)))) -> 5.3820876 | Y64: =IF(H64=0,0,IF(OPFOKLEGHEN!$H$11="geen droogtunnel",IF(OPFOKLEGHEN!$H$15="geen warmtewisselaar",Q64-(K64-R64)))+IF(OPFOKLEGHEN!$H$12>0,IF(OPFOKLEGHEN!$H$13="serie geschakeld met warmtewisselaar",(O64-(K64-S64)),IF(OPFOKLEGHEN!$H$13="parallel geschakeld met warmtewisselaar",IF(OPFOKLEGHEN!$L$9="ja",IF(OPFOKLEGHEN!$J$18="nee",(N64-(K64-Q64)-(K64-S64)),(Q64-(K64-N64/80%)))))),(O64-(K64-S64)))) -> 5.3820876 | Z64: 1 | AC64: =IF(H64=0,0,IF(OPFOKLEGHEN!$H$11="geen droogtunnel",IF(OPFOKLEGHEN!$H$15="geen warmtewisselaar",P64-(K64-R64),K64-(K64-O64)/I$6-(K64-R64)/95%)+IF(OPFOKLEGHEN!$J$18="ja",J$5/I$5*(K64-O64)*(1-I$6)),IF(OPFOKLEGHEN!$H$12>=0,IF(OPFOKLEGHEN!$L$9="ja",IF(OPFOKLEGHEN!$J$18="ja",IF(OPFOKLEGHEN!$H$20="ja",O64-(K64-S64),IF(OPFOKLEGHEN!$H$20="nee",(O64-(K64-S64)),(O64-(K64-S64)))),IF(OPFOKLEGHEN!$J$18="nee",IF(OPFOKLEGHEN!$H$20="nee",O64*80%-(K64-S64),0+O64-(K64-S64)))),IF(OPFOKLEGHEN!$L$9="nee",IF(OPFOKLEGHEN!$J$18="nee",IF(OPFOKLEGHEN!$H$20="nee",(O64*80%-(K64-S64)),O64*93%-(K64-S64)),IF(OPFOKLEGHEN!$H$20="nee",IF(OPFOKLEGHEN!$J$18="ja",IF(OPFOKLEGHEN!$L$9="nee",O64-(K64-S64))),O64-(K64-S64)))))))) -> 2.6910438 | AD64: =IF(H64=0,0,IF(OPFOKLEGHEN!$H$11="geen droogtunnel",IF(OPFOKLEGHEN!$H$15="geen warmtewisselaar",Q64-(K64-R64),N64-(K64-R64)),IF(OPFOKLEGHEN!$H$12>=0,IF(OPFOKLEGHEN!$L$9="ja",IF(OPFOKLEGHEN!$J$18="ja",IF(OPFOKLEGHEN!$H$20="ja",Q64-(K64-N64)-(K64-S64),IF(OPFOKLEGHEN!$H$20="nee",(Q64-(K64-N64)-(K64-S64)),(O64-(K64-S64)))),IF(OPFOKLEGHEN!$J$18="nee",IF(OPFOKLEGHEN!$H$20="nee",1*Q64*$N$135-(K64-N64)-(K64-S64),(Q64-(K64-N64)-(K64-S64))*N$135))),IF(OPFOKLEGHEN!$L$9="nee",IF(OPFOKLEGHEN!$J$18="nee",IF(OPFOKLEGHEN!$H$20="nee",(N64*95%-(K64-Q64)/I$4-(K64-S64)),N64-(K64-Q64)/I$4-(K64-S64)),IF(OPFOKLEGHEN!$H$20="nee",IF(OPFOKLEGHEN!$J$18="ja",IF(OPFOKLEGHEN!$L$9="nee",N64-(K64-Q64)/I$4-(K64-S64))),N64-(K64-Q64)/I$4-(K64-S64)))))))) -> 2.6910438 | AE64: 0 | AF64: 0.5129093666 | AG64: 0 | AH64: 0 | AI64: 0.5129093666 | AJ64: 0 | AK64: 0.5989299491 | AL64: 0.01505264226 | AM64: 7 | AN64: 49 | AO64: 550 | AP64: 485 | AQ64: 517.5 | AR64: 16.14116213
A65: 8 | B65: 50 | C65: 0.6112533171 | D65: 0 | E65: =IF(I$3=0,0,IF(OPFOKLEGHEN!$H$13="parallel geschakeld met warmtewisselaar",0,MIN(I$3,C65))) -> 0 | F65: =IF(I$3=0,0,IF(OPFOKLEGHEN!$H$13="serie geschakeld met warmtewisselaar",0,IF(C65<$I$3,C65-D65,MIN($I$3,C65-D65)))) -> 0 | G65: =IF(C65<$I$7,MAX(0,C65-D65-E65-F65,IF(OPFOKLEGHEN!$H$15="warmtewisselaar",IF(OPFOKLEGHEN!$H$13="serie geschakeld met warmtewisselaar",MIN(I$7,MAX(0,C65-D65-F65)),MIN(I$7,MAX(0,C65-D65-E65-F65))))),IF(OPFOKLEGHEN!$H$13="parallel geschakeld met warmtewisselaar",MIN(I$7,C65-D65-E65-F65,MIN(I$7,C65-E65-F65)),MIN(I$7,MAX(0,C65-D65-F65)))) -> 0 | H65: =IF(OPFOKLEGHEN!$H$13="parallel geschakeld met warmtewisselaar",IF(OPFOKLEGHEN!$L$9="nee",IF(OPFOKLEGHEN!$J$18="ja",C65-F65-G65,C65-D65-F65-G65),IF(OPFOKLEGHEN!$L$9="ja",IF(OPFOKLEGHEN!$J$18="ja",C65-G65,IF(OPFOKLEGHEN!$J$18="nee",C65-D65-G65)))),IF(OPFOKLEGHEN!$H$13="serie geschakeld met warmtewisselaar",IF(OPFOKLEGHEN!$J$18="ja",C65-G65,C65-D65-F65-G65),C65-D65-F65-G65)) -> 0.6112533171 | I65: 0.6112533171 | J65: 0.5224342592 | K65: 2.797415543 | L65: =SUM(K$16:K65)/$K$137 -> 0.06783450067 | M65: 0.01596698369 | N65: 2.797415543 | O65: =IF(E65<I$3,P65*(1-I$6*D65/C65),IF(OPFOKLEGHEN!$H$11="droogtunnel (platen) 55%",P65*(1-$I$6)+(C65-D65)/C65*(K65-P65*(1-I$6)),P65*(1-$I$6)+(C65-D65)/C65*(K65-P65*(1-I$6)))) -> 2.797415543 | P65: 2.797415543 | Q65: 2.797415543 | R65: 2.797415543 | S65: =MIN(K65,IF(OPFOKLEGHEN!$H$13="parallel geschakeld met warmtewisselaar",K65-(G65/(C65-G65))*(Q65)*95%,K65-(G65/(C65-G65))*(P65)*84%)) -> 2.797415543 | T65: 2.797415543 | U65: 17.17927448 | V65: =IF(OPFOKLEGHEN!$J$18="nee",H65/C65*K65,IF(OPFOKLEGHEN!$H$20="ja",O65-(K65-Q65)-(K65-S65),Q65-(K65-O65)-(K65-S65))) -> 2.797415543 | W65: =IF(H65=0,0,IF(OPFOKLEGHEN!$H$11="geen droogtunnel",IF(OPFOKLEGHEN!$H$15="geen warmtewisselaar",Q65-(K65-R65)))+IF(OPFOKLEGHEN!$H$12>0,IF(OPFOKLEGHEN!$H$13="serie geschakeld met warmtewisselaar",(O65*80%-(K65-S65)),(Q65-(K65-S65)-(K65-T65))),(N65-(K65-S65)))) -> 5.594831087 | X65: =IF(H65=0,0,IF(OPFOKLEGHEN!$H$11="geen droogtunnel",IF(OPFOKLEGHEN!$H$15="geen warmtewisselaar",Q65-(K65-R65)))+IF(OPFOKLEGHEN!$H$12>0,IF(OPFOKLEGHEN!$H$13="serie geschakeld met warmtewisselaar",3*(O65*80%-(K65-S65)),(Q65-(K65-S65)-(K65-N65))),(N65-(K65-S65)))) -> 5.594831087 | Y65: =IF(H65=0,0,IF(OPFOKLEGHEN!$H$11="geen droogtunnel",IF(OPFOKLEGHEN!$H$15="geen warmtewisselaar",Q65-(K65-R65)))+IF(OPFOKLEGHEN!$H$12>0,IF(OPFOKLEGHEN!$H$13="serie geschakeld met warmtewisselaar",(O65-(K65-S65)),IF(OPFOKLEGHEN!$H$13="parallel geschakeld met warmtewisselaar",IF(OPFOKLEGHEN!$L$9="ja",IF(OPFOKLEGHEN!$J$18="nee",(N65-(K65-Q65)-(K65-S65)),(Q65-(K65-N65/80%)))))),(O65-(K65-S65)))) -> 5.594831087 | Z65: 1 | AC65: =IF(H65=0,0,IF(OPFOKLEGHEN!$H$11="geen droogtunnel",IF(OPFOKLEGHEN!$H$15="geen warmtewisselaar",P65-(K65-R65),K65-(K65-O65)/I$6-(K65-R65)/95%)+IF(OPFOKLEGHEN!$J$18="ja",J$5/I$5*(K65-O65)*(1-I$6)),IF(OPFOKLEGHEN!$H$12>=0,IF(OPFOKLEGHEN!$L$9="ja",IF(OPFOKLEGHEN!$J$18="ja",IF(OPFOKLEGHEN!$H$20="ja",O65-(K65-S65),IF(OPFOKLEGHEN!$H$20="nee",(O65-(K65-S65)),(O65-(K65-S65)))),IF(OPFOKLEGHEN!$J$18="nee",IF(OPFOKLEGHEN!$H$20="nee",O65*80%-(K65-S65),0+O65-(K65-S65)))),IF(OPFOKLEGHEN!$L$9="nee",IF(OPFOKLEGHEN!$J$18="nee",IF(OPFOKLEGHEN!$H$20="nee",(O65*80%-(K65-S65)),O65*93%-(K65-S65)),IF(OPFOKLEGHEN!$H$20="nee",IF(OPFOKLEGHEN!$J$18="ja",IF(OPFOKLEGHEN!$L$9="nee",O65-(K65-S65))),O65-(K65-S65)))))))) -> 2.797415543 | AD65: =IF(H65=0,0,IF(OPFOKLEGHEN!$H$11="geen droogtunnel",IF(OPFOKLEGHEN!$H$15="geen warmtewisselaar",Q65-(K65-R65),N65-(K65-R65)),IF(OPFOKLEGHEN!$H$12>=0,IF(OPFOKLEGHEN!$L$9="ja",IF(OPFOKLEGHEN!$J$18="ja",IF(OPFOKLEGHEN!$H$20="ja",Q65-(K65-N65)-(K65-S65),IF(OPFOKLEGHEN!$H$20="nee",(Q65-(K65-N65)-(K65-S65)),(O65-(K65-S65)))),IF(OPFOKLEGHEN!$J$18="nee",IF(OPFOKLEGHEN!$H$20="nee",1*Q65*$N$135-(K65-N65)-(K65-S65),(Q65-(K65-N65)-(K65-S65))*N$135))),IF(OPFOKLEGHEN!$L$9="nee",IF(OPFOKLEGHEN!$J$18="nee",IF(OPFOKLEGHEN!$H$20="nee",(N65*95%-(K65-Q65)/I$4-(K65-S65)),N65-(K65-Q65)/I$4-(K65-S65)),IF(OPFOKLEGHEN!$H$20="nee",IF(OPFOKLEGHEN!$J$18="ja",IF(OPFOKLEGHEN!$L$9="nee",N65-(K65-Q65)/I$4-(K65-S65))),N65-(K65-Q65)/I$4-(K65-S65)))))))) -> 2.797415543 | AE65: 0 | AF65: 0.5224342592 | AG65: 0 | AH65: 0 | AI65: 0.5224342592 | AJ65: 0 | AK65: 0.6112533171 | AL65: 0.01596698369 | AM65: 8 | AN65: 50 | AO65: =AO64+12.1 -> 562.1 | AP65: =AP64+12.1 -> 497.1 | AQ65: 529.6 | AR65: 17.17927448
A66: 8 | B66: 51 | C66: 0.6236551711 | D66: 0 | E66: =IF(I$3=0,0,IF(OPFOKLEGHEN!$H$13="parallel geschakeld met warmtewisselaar",0,MIN(I$3,C66))) -> 0 | F66: =IF(I$3=0,0,IF(OPFOKLEGHEN!$H$13="serie geschakeld met warmtewisselaar",0,IF(C66<$I$3,C66-D66,MIN($I$3,C66-D66)))) -> 0 | G66: =IF(C66<$I$7,MAX(0,C66-D66-E66-F66,IF(OPFOKLEGHEN!$H$15="warmtewisselaar",IF(OPFOKLEGHEN!$H$13="serie geschakeld met warmtewisselaar",MIN(I$7,MAX(0,C66-D66-F66)),MIN(I$7,MAX(0,C66-D66-E66-F66))))),IF(OPFOKLEGHEN!$H$13="parallel geschakeld met warmtewisselaar",MIN(I$7,C66-D66-E66-F66,MIN(I$7,C66-E66-F66)),MIN(I$7,MAX(0,C66-D66-F66)))) -> 0 | H66: =IF(OPFOKLEGHEN!$H$13="parallel geschakeld met warmtewisselaar",IF(OPFOKLEGHEN!$L$9="nee",IF(OPFOKLEGHEN!$J$18="ja",C66-F66-G66,C66-D66-F66-G66),IF(OPFOKLEGHEN!$L$9="ja",IF(OPFOKLEGHEN!$J$18="ja",C66-G66,IF(OPFOKLEGHEN!$J$18="nee",C66-D66-G66)))),IF(OPFOKLEGHEN!$H$13="serie geschakeld met warmtewisselaar",IF(OPFOKLEGHEN!$J$18="ja",C66-G66,C66-D66-F66-G66),C66-D66-F66-G66)) -> 0.6236551711 | I66: 0.6236551711 | J66: 0.5321360321 | K66: 2.907175841 | L66: =SUM(K$16:K66)/$K$137 -> 0.07123892021 | M66: 0.0169253388 | N66: 2.907175841 | O66: =IF(E66<I$3,P66*(1-I$6*D66/C66),IF(OPFOKLEGHEN!$H$11="droogtunnel (platen) 55%",P66*(1-$I$6)+(C66-D66)/C66*(K66-P66*(1-I$6)),P66*(1-$I$6)+(C66-D66)/C66*(K66-P66*(1-I$6)))) -> 2.907175841 | P66: 2.907175841 | Q66: 2.907175841 | R66: 2.907175841 | S66: =MIN(K66,IF(OPFOKLEGHEN!$H$13="parallel geschakeld met warmtewisselaar",K66-(G66/(C66-G66))*(Q66)*95%,K66-(G66/(C66-G66))*(P66)*84%)) -> 2.907175841 | T66: 2.907175841 | U66: 18.26324276 | V66: =IF(OPFOKLEGHEN!$J$18="nee",H66/C66*K66,IF(OPFOKLEGHEN!$H$20="ja",O66-(K66-Q66)-(K66-S66),Q66-(K66-O66)-(K66-S66))) -> 2.907175841 | W66: =IF(H66=0,0,IF(OPFOKLEGHEN!$H$11="geen droogtunnel",IF(OPFOKLEGHEN!$H$15="geen warmtewisselaar",Q66-(K66-R66)))+IF(OPFOKLEGHEN!$H$12>0,IF(OPFOKLEGHEN!$H$13="serie geschakeld met warmtewisselaar",(O66*80%-(K66-S66)),(Q66-(K66-S66)-(K66-T66))),(N66-(K66-S66)))) -> 5.814351681 | X66: =IF(H66=0,0,IF(OPFOKLEGHEN!$H$11="geen droogtunnel",IF(OPFOKLEGHEN!$H$15="geen warmtewisselaar",Q66-(K66-R66)))+IF(OPFOKLEGHEN!$H$12>0,IF(OPFOKLEGHEN!$H$13="serie geschakeld met warmtewisselaar",3*(O66*80%-(K66-S66)),(Q66-(K66-S66)-(K66-N66))),(N66-(K66-S66)))) -> 5.814351681 | Y66: =IF(H66=0,0,IF(OPFOKLEGHEN!$H$11="geen droogtunnel",IF(OPFOKLEGHEN!$H$15="geen warmtewisselaar",Q66-(K66-R66)))+IF(OPFOKLEGHEN!$H$12>0,IF(OPFOKLEGHEN!$H$13="serie geschakeld met warmtewisselaar",(O66-(K66-S66)),IF(OPFOKLEGHEN!$H$13="parallel geschakeld met warmtewisselaar",IF(OPFOKLEGHEN!$L$9="ja",IF(OPFOKLEGHEN!$J$18="nee",(N66-(K66-Q66)-(K66-S66)),(Q66-(K66-N66/80%)))))),(O66-(K66-S66)))) -> 5.814351681 | Z66: 1 | AC66: =IF(H66=0,0,IF(OPFOKLEGHEN!$H$11="geen droogtunnel",IF(OPFOKLEGHEN!$H$15="geen warmtewisselaar",P66-(K66-R66),K66-(K66-O66)/I$6-(K66-R66)/95%)+IF(OPFOKLEGHEN!$J$18="ja",J$5/I$5*(K66-O66)*(1-I$6)),IF(OPFOKLEGHEN!$H$12>=0,IF(OPFOKLEGHEN!$L$9="ja",IF(OPFOKLEGHEN!$J$18="ja",IF(OPFOKLEGHEN!$H$20="ja",O66-(K66-S66),IF(OPFOKLEGHEN!$H$20="nee",(O66-(K66-S66)),(O66-(K66-S66)))),IF(OPFOKLEGHEN!$J$18="nee",IF(OPFOKLEGHEN!$H$20="nee",O66*80%-(K66-S66),0+O66-(K66-S66)))),IF(OPFOKLEGHEN!$L$9="nee",IF(OPFOKLEGHEN!$J$18="nee",IF(OPFOKLEGHEN!$H$20="nee",(O66*80%-(K66-S66)),O66*93%-(K66-S66)),IF(OPFOKLEGHEN!$H$20="nee",IF(OPFOKLEGHEN!$J$18="ja",IF(OPFOKLEGHEN!$L$9="nee",O66-(K66-S66))),O66-(K66-S66)))))))) -> 2.907175841 | AD66: =IF(H66=0,0,IF(OPFOKLEGHEN!$H$11="geen droogtunnel",IF(OPFOKLEGHEN!$H$15="geen warmtewisselaar",Q66-(K66-R66),N66-(K66-R66)),IF(OPFOKLEGHEN!$H$12>=0,IF(OPFOKLEGHEN!$L$9="ja",IF(OPFOKLEGHEN!$J$18="ja",IF(OPFOKLEGHEN!$H$20="ja",Q66-(K66-N66)-(K66-S66),IF(OPFOKLEGHEN!$H$20="nee",(Q66-(K66-N66)-(K66-S66)),(O66-(K66-S66)))),IF(OPFOKLEGHEN!$J$18="nee",IF(OPFOKLEGHEN!$H$20="nee",1*Q66*$N$135-(K66-N66)-(K66-S66),(Q66-(K66-N66)-(K66-S66))*N$135))),IF(OPFOKLEGHEN!$L$9="nee",IF(OPFOKLEGHEN!$J$18="nee",IF(OPFOKLEGHEN!$H$20="nee",(N66*95%-(K66-Q66)/I$4-(K66-S66)),N66-(K66-Q66)/I$4-(K66-S66)),IF(OPFOKLEGHEN!$H$20="nee",IF(OPFOKLEGHEN!$J$18="ja",IF(OPFOKLEGHEN!$L$9="nee",N66-(K66-Q66)/I$4-(K66-S66))),N66-(K66-Q66)/I$4-(K66-S66)))))))) -> 2.907175841 | AE66: 0 | AF66: 0.5321360321 | AG66: 0 | AH66: 0 | AI66: 0.5321360321 | AJ66: 0 | AK66: 0.6236551711 | AL66: 0.0169253388 | AM66: 8 | AN66: 51 | AO66: =AO65+12.1 -> 574.2 | AP66: 509.2 | AQ66: 541.7 | AR66: 18.26324276
A67: 8 | B67: 52 | C67: 0.6361395929 | D67: 0 | E67: =IF(I$3=0,0,IF(OPFOKLEGHEN!$H$13="parallel geschakeld met warmtewisselaar",0,MIN(I$3,C67))) -> 0 | F67: =IF(I$3=0,0,IF(OPFOKLEGHEN!$H$13="serie geschakeld met warmtewisselaar",0,IF(C67<$I$3,C67-D67,MIN($I$3,C67-D67)))) -> 0 | G67: =IF(C67<$I$7,MAX(0,C67-D67-E67-F67,IF(OPFOKLEGHEN!$H$15="warmtewisselaar",IF(OPFOKLEGHEN!$H$13="serie geschakeld met warmtewisselaar",MIN(I$7,MAX(0,C67-D67-F67)),MIN(I$7,MAX(0,C67-D67-E67-F67))))),IF(OPFOKLEGHEN!$H$13="parallel geschakeld met warmtewisselaar",MIN(I$7,C67-D67-E67-F67,MIN(I$7,C67-E67-F67)),MIN(I$7,MAX(0,C67-D67-F67)))) -> 0 | H67: =IF(OPFOKLEGHEN!$H$13="parallel geschakeld met warmtewisselaar",IF(OPFOKLEGHEN!$L$9="nee",IF(OPFOKLEGHEN!$J$18="ja",C67-F67-G67,C67-D67-F67-G67),IF(OPFOKLEGHEN!$L$9="ja",IF(OPFOKLEGHEN!$J$18="ja",C67-G67,IF(OPFOKLEGHEN!$J$18="nee",C67-D67-G67)))),IF(OPFOKLEGHEN!$H$13="serie geschakeld met warmtewisselaar",IF(OPFOKLEGHEN!$J$18="ja",C67-G67,C67-D67-F67-G67),C67-D67-F67-G67)) -> 0.6361395929 | I67: 0.6361395929 | J67: 0.5420179702 | K67: 3.020440036 | L67: =SUM(K$16:K67)/$K$137 -> 0.07477597667 | M67: 0.01792955273 | N67: 3.020440036 | O67: =IF(E67<I$3,P67*(1-I$6*D67/C67),IF(OPFOKLEGHEN!$H$11="droogtunnel (platen) 55%",P67*(1-$I$6)+(C67-D67)/C67*(K67-P67*(1-I$6)),P67*(1-$I$6)+(C67-D67)/C67*(K67-P67*(1-I$6)))) -> 3.020440036 | P67: 3.020440036 | Q67: 3.020440036 | R67: 3.020440036 | S67: =MIN(K67,IF(OPFOKLEGHEN!$H$13="parallel geschakeld met warmtewisselaar",K67-(G67/(C67-G67))*(Q67)*95%,K67-(G67/(C67-G67))*(P67)*84%)) -> 3.020440036 | T67: 3.020440036 | U67: 19.39436945 | V67: =IF(OPFOKLEGHEN!$J$18="nee",H67/C67*K67,IF(OPFOKLEGHEN!$H$20="ja",O67-(K67-Q67)-(K67-S67),Q67-(K67-O67)-(K67-S67))) -> 3.020440036 | W67: =IF(H67=0,0,IF(OPFOKLEGHEN!$H$11="geen droogtunnel",IF(OPFOKLEGHEN!$H$15="geen warmtewisselaar",Q67-(K67-R67)))+IF(OPFOKLEGHEN!$H$12>0,IF(OPFOKLEGHEN!$H$13="serie geschakeld met warmtewisselaar",(O67*80%-(K67-S67)),(Q67-(K67-S67)-(K67-T67))),(N67-(K67-S67)))) -> 6.040880072 | X67: =IF(H67=0,0,IF(OPFOKLEGHEN!$H$11="geen droogtunnel",IF(OPFOKLEGHEN!$H$15="geen warmtewisselaar",Q67-(K67-R67)))+IF(OPFOKLEGHEN!$H$12>0,IF(OPFOKLEGHEN!$H$13="serie geschakeld met warmtewisselaar",3*(O67*80%-(K67-S67)),(Q67-(K67-S67)-(K67-N67))),(N67-(K67-S67)))) -> 6.040880072 | Y67: =IF(H67=0,0,IF(OPFOKLEGHEN!$H$11="geen droogtunnel",IF(OPFOKLEGHEN!$H$15="geen warmtewisselaar",Q67-(K67-R67)))+IF(OPFOKLEGHEN!$H$12>0,IF(OPFOKLEGHEN!$H$13="serie geschakeld met warmtewisselaar",(O67-(K67-S67)),IF(OPFOKLEGHEN!$H$13="parallel geschakeld met warmtewisselaar",IF(OPFOKLEGHEN!$L$9="ja",IF(OPFOKLEGHEN!$J$18="nee",(N67-(K67-Q67)-(K67-S67)),(Q67-(K67-N67/80%)))))),(O67-(K67-S67)))) -> 6.040880072 | Z67: 1 | AC67: =IF(H67=0,0,IF(OPFOKLEGHEN!$H$11="geen droogtunnel",IF(OPFOKLEGHEN!$H$15="geen warmtewisselaar",P67-(K67-R67),K67-(K67-O67)/I$6-(K67-R67)/95%)+IF(OPFOKLEGHEN!$J$18="ja",J$5/I$5*(K67-O67)*(1-I$6)),IF(OPFOKLEGHEN!$H$12>=0,IF(OPFOKLEGHEN!$L$9="ja",IF(OPFOKLEGHEN!$J$18="ja",IF(OPFOKLEGHEN!$H$20="ja",O67-(K67-S67),IF(OPFOKLEGHEN!$H$20="nee",(O67-(K67-S67)),(O67-(K67-S67)))),IF(OPFOKLEGHEN!$J$18="nee",IF(OPFOKLEGHEN!$H$20="nee",O67*80%-(K67-S67),0+O67-(K67-S67)))),IF(OPFOKLEGHEN!$L$9="nee",IF(OPFOKLEGHEN!$J$18="nee",IF(OPFOKLEGHEN!$H$20="nee",(O67*80%-(K67-S67)),O67*93%-(K67-S67)),IF(OPFOKLEGHEN!$H$20="nee",IF(OPFOKLEGHEN!$J$18="ja",IF(OPFOKLEGHEN!$L$9="nee",O67-(K67-S67))),O67-(K67-S67)))))))) -> 3.020440036 | AD67: =IF(H67=0,0,IF(OPFOKLEGHEN!$H$11="geen droogtunnel",IF(OPFOKLEGHEN!$H$15="geen warmtewisselaar",Q67-(K67-R67),N67-(K67-R67)),IF(OPFOKLEGHEN!$H$12>=0,IF(OPFOKLEGHEN!$L$9="ja",IF(OPFOKLEGHEN!$J$18="ja",IF(OPFOKLEGHEN!$H$20="ja",Q67-(K67-N67)-(K67-S67),IF(OPFOKLEGHEN!$H$20="nee",(Q67-(K67-N67)-(K67-S67)),(O67-(K67-S67)))),IF(OPFOKLEGHEN!$J$18="nee",IF(OPFOKLEGHEN!$H$20="nee",1*Q67*$N$135-(K67-N67)-(K67-S67),(Q67-(K67-N67)-(K67-S67))*N$135))),IF(OPFOKLEGHEN!$L$9="nee",IF(OPFOKLEGHEN!$J$18="nee",IF(OPFOKLEGHEN!$H$20="nee",(N67*95%-(K67-Q67)/I$4-(K67-S67)),N67-(K67-Q67)/I$4-(K67-S67)),IF(OPFOKLEGHEN!$H$20="nee",IF(OPFOKLEGHEN!$J$18="ja",IF(OPFOKLEGHEN!$L$9="nee",N67-(K67-Q67)/I$4-(K67-S67))),N67-(K67-Q67)/I$4-(K67-S67)))))))) -> 3.020440036 | AE67: 0 | AF67: 0.5420179702 | AG67: 0 | AH67: 0 | AI67: 0.5420179702 | AJ67: 0 | AK67: 0.6361395929 | AL67: 0.01792955273 | AM67: 8 | AN67: 52 | AO67: 586.3 | AP67: 521.3 | AQ67: 553.8 | AR67: 19.39436945
A68: 8 | B68: 53 | C68: 0.6487106641 | D68: 0 | E68: =IF(I$3=0,0,IF(OPFOKLEGHEN!$H$13="parallel geschakeld met warmtewisselaar",0,MIN(I$3,C68))) -> 0 | F68: =IF(I$3=0,0,IF(OPFOKLEGHEN!$H$13="serie geschakeld met warmtewisselaar",0,IF(C68<$I$3,C68-D68,MIN($I$3,C68-D68)))) -> 0 | G68: =IF(C68<$I$7,MAX(0,C68-D68-E68-F68,IF(OPFOKLEGHEN!$H$15="warmtewisselaar",IF(OPFOKLEGHEN!$H$13="serie geschakeld met warmtewisselaar",MIN(I$7,MAX(0,C68-D68-F68)),MIN(I$7,MAX(0,C68-D68-E68-F68))))),IF(OPFOKLEGHEN!$H$13="parallel geschakeld met warmtewisselaar",MIN(I$7,C68-D68-E68-F68,MIN(I$7,C68-E68-F68)),MIN(I$7,MAX(0,C68-D68-F68)))) -> 0 | H68: =IF(OPFOKLEGHEN!$H$13="parallel geschakeld met warmtewisselaar",IF(OPFOKLEGHEN!$L$9="nee",IF(OPFOKLEGHEN!$J$18="ja",C68-F68-G68,C68-D68-F68-G68),IF(OPFOKLEGHEN!$L$9="ja",IF(OPFOKLEGHEN!$J$18="ja",C68-G68,IF(OPFOKLEGHEN!$J$18="nee",C68-D68-G68)))),IF(OPFOKLEGHEN!$H$13="serie geschakeld met warmtewisselaar",IF(OPFOKLEGHEN!$J$18="ja",C68-G68,C68-D68-F68-G68),C68-D68-F68-G68)) -> 0.6487106641 | I68: 0.6487106641 | J68: 0.552083419 | K68: 3.137327436 | L68: =SUM(K$16:K68)/$K$137 -> 0.07844991296 | M68: 0.01898154727 | N68: 3.137327436 | O68: =IF(E68<I$3,P68*(1-I$6*D68/C68),IF(OPFOKLEGHEN!$H$11="droogtunnel (platen) 55%",P68*(1-$I$6)+(C68-D68)/C68*(K68-P68*(1-I$6)),P68*(1-$I$6)+(C68-D68)/C68*(K68-P68*(1-I$6)))) -> 3.137327436 | P68: 3.137327436 | Q68: 3.137327436 | R68: 3.137327436 | S68: =MIN(K68,IF(OPFOKLEGHEN!$H$13="parallel geschakeld met warmtewisselaar",K68-(G68/(C68-G68))*(Q68)*95%,K68-(G68/(C68-G68))*(P68)*84%)) -> 3.137327436 | T68: 3.137327436 | U68: 20.57398845 | V68: =IF(OPFOKLEGHEN!$J$18="nee",H68/C68*K68,IF(OPFOKLEGHEN!$H$20="ja",O68-(K68-Q68)-(K68-S68),Q68-(K68-O68)-(K68-S68))) -> 3.137327436 | W68: =IF(H68=0,0,IF(OPFOKLEGHEN!$H$11="geen droogtunnel",IF(OPFOKLEGHEN!$H$15="geen warmtewisselaar",Q68-(K68-R68)))+IF(OPFOKLEGHEN!$H$12>0,IF(OPFOKLEGHEN!$H$13="serie geschakeld met warmtewisselaar",(O68*80%-(K68-S68)),(Q68-(K68-S68)-(K68-T68))),(N68-(K68-S68)))) -> 6.274654872 | X68: =IF(H68=0,0,IF(OPFOKLEGHEN!$H$11="geen droogtunnel",IF(OPFOKLEGHEN!$H$15="geen warmtewisselaar",Q68-(K68-R68)))+IF(OPFOKLEGHEN!$H$12>0,IF(OPFOKLEGHEN!$H$13="serie geschakeld met warmtewisselaar",3*(O68*80%-(K68-S68)),(Q68-(K68-S68)-(K68-N68))),(N68-(K68-S68)))) -> 6.274654872 | Y68: =IF(H68=0,0,IF(OPFOKLEGHEN!$H$11="geen droogtunnel",IF(OPFOKLEGHEN!$H$15="geen warmtewisselaar",Q68-(K68-R68)))+IF(OPFOKLEGHEN!$H$12>0,IF(OPFOKLEGHEN!$H$13="serie geschakeld met warmtewisselaar",(O68-(K68-S68)),IF(OPFOKLEGHEN!$H$13="parallel geschakeld met warmtewisselaar",IF(OPFOKLEGHEN!$L$9="ja",IF(OPFOKLEGHEN!$J$18="nee",(N68-(K68-Q68)-(K68-S68)),(Q68-(K68-N68/80%)))))),(O68-(K68-S68)))) -> 6.274654872 | Z68: 1 | AC68: =IF(H68=0,0,IF(OPFOKLEGHEN!$H$11="geen droogtunnel",IF(OPFOKLEGHEN!$H$15="geen warmtewisselaar",P68-(K68-R68),K68-(K68-O68)/I$6-(K68-R68)/95%)+IF(OPFOKLEGHEN!$J$18="ja",J$5/I$5*(K68-O68)*(1-I$6)),IF(OPFOKLEGHEN!$H$12>=0,IF(OPFOKLEGHEN!$L$9="ja",IF(OPFOKLEGHEN!$J$18="ja",IF(OPFOKLEGHEN!$H$20="ja",O68-(K68-S68),IF(OPFOKLEGHEN!$H$20="nee",(O68-(K68-S68)),(O68-(K68-S68)))),IF(OPFOKLEGHEN!$J$18="nee",IF(OPFOKLEGHEN!$H$20="nee",O68*80%-(K68-S68),0+O68-(K68-S68)))),IF(OPFOKLEGHEN!$L$9="nee",IF(OPFOKLEGHEN!$J$18="nee",IF(OPFOKLEGHEN!$H$20="nee",(O68*80%-(K68-S68)),O68*93%-(K68-S68)),IF(OPFOKLEGHEN!$H$20="nee",IF(OPFOKLEGHEN!$J$18="ja",IF(OPFOKLEGHEN!$L$9="nee",O68-(K68-S68))),O68-(K68-S68)))))))) -> 3.137327436 | AD68: =IF(H68=0,0,IF(OPFOKLEGHEN!$H$11="geen droogtunnel",IF(OPFOKLEGHEN!$H$15="geen warmtewisselaar",Q68-(K68-R68),N68-(K68-R68)),IF(OPFOKLEGHEN!$H$12>=0,IF(OPFOKLEGHEN!$L$9="ja",IF(OPFOKLEGHEN!$J$18="ja",IF(OPFOKLEGHEN!$H$20="ja",Q68-(K68-N68)-(K68-S68),IF(OPFOKLEGHEN!$H$20="nee",(Q68-(K68-N68)-(K68-S68)),(O68-(K68-S68)))),IF(OPFOKLEGHEN!$J$18="nee",IF(OPFOKLEGHEN!$H$20="nee",1*Q68*$N$135-(K68-N68)-(K68-S68),(Q68-(K68-N68)-(K68-S68))*N$135))),IF(OPFOKLEGHEN!$L$9="nee",IF(OPFOKLEGHEN!$J$18="nee",IF(OPFOKLEGHEN!$H$20="nee",(N68*95%-(K68-Q68)/I$4-(K68-S68)),N68-(K68-Q68)/I$4-(K68-S68)),IF(OPFOKLEGHEN!$H$20="nee",IF(OPFOKLEGHEN!$J$18="ja",IF(OPFOKLEGHEN!$L$9="nee",N68-(K68-Q68)/I$4-(K68-S68))),N68-(K68-Q68)/I$4-(K68-S68)))))))) -> 3.137327436 | AE68: 0 | AF68: 0.552083419 | AG68: 0 | AH68: 0 | AI68: 0.552083419 | AJ68: 0 | AK68: 0.6487106641 | AL68: 0.01898154727 | AM68: 8 | AN68: 53 | AO68: 598.4 | AP68: 533.4 | AQ68: 565.9 | AR68: 20.57398845
A69: 8 | B69: 54 | C69: 0.6613724664 | D69: 0 | E69: =IF(I$3=0,0,IF(OPFOKLEGHEN!$H$13="parallel geschakeld met warmtewisselaar",0,MIN(I$3,C69))) -> 0 | F69: =IF(I$3=0,0,IF(OPFOKLEGHEN!$H$13="serie geschakeld met warmtewisselaar",0,IF(C69<$I$3,C69-D69,MIN($I$3,C69-D69)))) -> 0 | G69: =IF(C69<$I$7,MAX(0,C69-D69-E69-F69,IF(OPFOKLEGHEN!$H$15="warmtewisselaar",IF(OPFOKLEGHEN!$H$13="serie geschakeld met warmtewisselaar",MIN(I$7,MAX(0,C69-D69-F69)),MIN(I$7,MAX(0,C69-D69-E69-F69))))),IF(OPFOKLEGHEN!$H$13="parallel geschakeld met warmtewisselaar",MIN(I$7,C69-D69-E69-F69,MIN(I$7,C69-E69-F69)),MIN(I$7,MAX(0,C69-D69-F69)))) -> 0 | H69: =IF(OPFOKLEGHEN!$H$13="parallel geschakeld met warmtewisselaar",IF(OPFOKLEGHEN!$L$9="nee",IF(OPFOKLEGHEN!$J$18="ja",C69-F69-G69,C69-D69-F69-G69),IF(OPFOKLEGHEN!$L$9="ja",IF(OPFOKLEGHEN!$J$18="ja",C69-G69,IF(OPFOKLEGHEN!$J$18="nee",C69-D69-G69)))),IF(OPFOKLEGHEN!$H$13="serie geschakeld met warmtewisselaar",IF(OPFOKLEGHEN!$J$18="ja",C69-G69,C69-D69-F69-G69),C69-D69-F69-G69)) -> 0.6613724664 | I69: 0.6613724664 | J69: 0.5623357864 | K69: 3.257961436 | L69: =SUM(K$16:K69)/$K$137 -> 0.08226511651 | M69: 0.02008332392 | N69: 3.257961436 | O69: =IF(E69<I$3,P69*(1-I$6*D69/C69),IF(OPFOKLEGHEN!$H$11="droogtunnel (platen) 55%",P69*(1-$I$6)+(C69-D69)/C69*(K69-P69*(1-I$6)),P69*(1-$I$6)+(C69-D69)/C69*(K69-P69*(1-I$6)))) -> 3.257961436 | P69: 3.257961436 | Q69: 3.257961436 | R69: 3.257961436 | S69: =MIN(K69,IF(OPFOKLEGHEN!$H$13="parallel geschakeld met warmtewisselaar",K69-(G69/(C69-G69))*(Q69)*95%,K69-(G69/(C69-G69))*(P69)*84%)) -> 3.257961436 | T69: 3.257961436 | U69: 21.8034661 | V69: =IF(OPFOKLEGHEN!$J$18="nee",H69/C69*K69,IF(OPFOKLEGHEN!$H$20="ja",O69-(K69-Q69)-(K69-S69),Q69-(K69-O69)-(K69-S69))) -> 3.257961436 | W69: =IF(H69=0,0,IF(OPFOKLEGHEN!$H$11="geen droogtunnel",IF(OPFOKLEGHEN!$H$15="geen warmtewisselaar",Q69-(K69-R69)))+IF(OPFOKLEGHEN!$H$12>0,IF(OPFOKLEGHEN!$H$13="serie geschakeld met warmtewisselaar",(O69*80%-(K69-S69)),(Q69-(K69-S69)-(K69-T69))),(N69-(K69-S69)))) -> 6.515922873 | X69: =IF(H69=0,0,IF(OPFOKLEGHEN!$H$11="geen droogtunnel",IF(OPFOKLEGHEN!$H$15="geen warmtewisselaar",Q69-(K69-R69)))+IF(OPFOKLEGHEN!$H$12>0,IF(OPFOKLEGHEN!$H$13="serie geschakeld met warmtewisselaar",3*(O69*80%-(K69-S69)),(Q69-(K69-S69)-(K69-N69))),(N69-(K69-S69)))) -> 6.515922873 | Y69: =IF(H69=0,0,IF(OPFOKLEGHEN!$H$11="geen droogtunnel",IF(OPFOKLEGHEN!$H$15="geen warmtewisselaar",Q69-(K69-R69)))+IF(OPFOKLEGHEN!$H$12>0,IF(OPFOKLEGHEN!$H$13="serie geschakeld met warmtewisselaar",(O69-(K69-S69)),IF(OPFOKLEGHEN!$H$13="parallel geschakeld met warmtewisselaar",IF(OPFOKLEGHEN!$L$9="ja",IF(OPFOKLEGHEN!$J$18="nee",(N69-(K69-Q69)-(K69-S69)),(Q69-(K69-N69/80%)))))),(O69-(K69-S69)))) -> 6.515922873 | Z69: 1 | AC69: =IF(H69=0,0,IF(OPFOKLEGHEN!$H$11="geen droogtunnel",IF(OPFOKLEGHEN!$H$15="geen warmtewisselaar",P69-(K69-R69),K69-(K69-O69)/I$6-(K69-R69)/95%)+IF(OPFOKLEGHEN!$J$18="ja",J$5/I$5*(K69-O69)*(1-I$6)),IF(OPFOKLEGHEN!$H$12>=0,IF(OPFOKLEGHEN!$L$9="ja",IF(OPFOKLEGHEN!$J$18="ja",IF(OPFOKLEGHEN!$H$20="ja",O69-(K69-S69),IF(OPFOKLEGHEN!$H$20="nee",(O69-(K69-S69)),(O69-(K69-S69)))),IF(OPFOKLEGHEN!$J$18="nee",IF(OPFOKLEGHEN!$H$20="nee",O69*80%-(K69-S69),0+O69-(K69-S69)))),IF(OPFOKLEGHEN!$L$9="nee",IF(OPFOKLEGHEN!$J$18="nee",IF(OPFOKLEGHEN!$H$20="nee",(O69*80%-(K69-S69)),O69*93%-(K69-S69)),IF(OPFOKLEGHEN!$H$20="nee",IF(OPFOKLEGHEN!$J$18="ja",IF(OPFOKLEGHEN!$L$9="nee",O69-(K69-S69))),O69-(K69-S69)))))))) -> 3.257961436 | AD69: =IF(H69=0,0,IF(OPFOKLEGHEN!$H$11="geen droogtunnel",IF(OPFOKLEGHEN!$H$15="geen warmtewisselaar",Q69-(K69-R69),N69-(K69-R69)),IF(OPFOKLEGHEN!$H$12>=0,IF(OPFOKLEGHEN!$L$9="ja",IF(OPFOKLEGHEN!$J$18="ja",IF(OPFOKLEGHEN!$H$20="ja",Q69-(K69-N69)-(K69-S69),IF(OPFOKLEGHEN!$H$20="nee",(Q69-(K69-N69)-(K69-S69)),(O69-(K69-S69)))),IF(OPFOKLEGHEN!$J$18="nee",IF(OPFOKLEGHEN!$H$20="nee",1*Q69*$N$135-(K69-N69)-(K69-S69),(Q69-(K69-N69)-(K69-S69))*N$135))),IF(OPFOKLEGHEN!$L$9="nee",IF(OPFOKLEGHEN!$J$18="nee",IF(OPFOKLEGHEN!$H$20="nee",(N69*95%-(K69-Q69)/I$4-(K69-S69)),N69-(K69-Q69)/I$4-(K69-S69)),IF(OPFOKLEGHEN!$H$20="nee",IF(OPFOKLEGHEN!$J$18="ja",IF(OPFOKLEGHEN!$L$9="nee",N69-(K69-Q69)/I$4-(K69-S69))),N69-(K69-Q69)/I$4-(K69-S69)))))))) -> 3.257961436 | AE69: 0 | AF69: 0.5623357864 | AG69: 0 | AH69: 0 | AI69: 0.5623357864 | AJ69: 0 | AK69: 0.6613724664 | AL69: 0.02008332392 | AM69: 8 | AN69: 54 | AO69: 610.5 | AP69: 545.5 | AQ69: 578 | AR69: 21.8034661
A70: 8 | B70: 55 | C70: 0.6741290814 | D70: 0 | E70: =IF(I$3=0,0,IF(OPFOKLEGHEN!$H$13="parallel geschakeld met warmtewisselaar",0,MIN(I$3,C70))) -> 0 | F70: =IF(I$3=0,0,IF(OPFOKLEGHEN!$H$13="serie geschakeld met warmtewisselaar",0,IF(C70<$I$3,C70-D70,MIN($I$3,C70-D70)))) -> 0 | G70: =IF(C70<$I$7,MAX(0,C70-D70-E70-F70,IF(OPFOKLEGHEN!$H$15="warmtewisselaar",IF(OPFOKLEGHEN!$H$13="serie geschakeld met warmtewisselaar",MIN(I$7,MAX(0,C70-D70-F70)),MIN(I$7,MAX(0,C70-D70-E70-F70))))),IF(OPFOKLEGHEN!$H$13="parallel geschakeld met warmtewisselaar",MIN(I$7,C70-D70-E70-F70,MIN(I$7,C70-E70-F70)),MIN(I$7,MAX(0,C70-D70-F70)))) -> 0 | H70: =IF(OPFOKLEGHEN!$H$13="parallel geschakeld met warmtewisselaar",IF(OPFOKLEGHEN!$L$9="nee",IF(OPFOKLEGHEN!$J$18="ja",C70-F70-G70,C70-D70-F70-G70),IF(OPFOKLEGHEN!$L$9="ja",IF(OPFOKLEGHEN!$J$18="ja",C70-G70,IF(OPFOKLEGHEN!$J$18="nee",C70-D70-G70)))),IF(OPFOKLEGHEN!$H$13="serie geschakeld met warmtewisselaar",IF(OPFOKLEGHEN!$J$18="ja",C70-G70,C70-D70-F70-G70),C70-D70-F70-G70)) -> 0.6741290814 | I70: 0.6741290814 | J70: 0.5727785436 | K70: 3.38246966 | L70: =SUM(K$16:K70)/$K$137 -> 0.08622612418 | M70: 0.02123696704 | N70: 3.38246966 | O70: =IF(E70<I$3,P70*(1-I$6*D70/C70),IF(OPFOKLEGHEN!$H$11="droogtunnel (platen) 55%",P70*(1-$I$6)+(C70-D70)/C70*(K70-P70*(1-I$6)),P70*(1-$I$6)+(C70-D70)/C70*(K70-P70*(1-I$6)))) -> 3.38246966 | P70: 3.38246966 | Q70: 3.38246966 | R70: 3.38246966 | S70: =MIN(K70,IF(OPFOKLEGHEN!$H$13="parallel geschakeld met warmtewisselaar",K70-(G70/(C70-G70))*(Q70)*95%,K70-(G70/(C70-G70))*(P70)*84%)) -> 3.38246966 | T70: 3.38246966 | U70: 23.08420214 | V70: =IF(OPFOKLEGHEN!$J$18="nee",H70/C70*K70,IF(OPFOKLEGHEN!$H$20="ja",O70-(K70-Q70)-(K70-S70),Q70-(K70-O70)-(K70-S70))) -> 3.38246966 | W70: =IF(H70=0,0,IF(OPFOKLEGHEN!$H$11="geen droogtunnel",IF(OPFOKLEGHEN!$H$15="geen warmtewisselaar",Q70-(K70-R70)))+IF(OPFOKLEGHEN!$H$12>0,IF(OPFOKLEGHEN!$H$13="serie geschakeld met warmtewisselaar",(O70*80%-(K70-S70)),(Q70-(K70-S70)-(K70-T70))),(N70-(K70-S70)))) -> 6.764939319 | X70: =IF(H70=0,0,IF(OPFOKLEGHEN!$H$11="geen droogtunnel",IF(OPFOKLEGHEN!$H$15="geen warmtewisselaar",Q70-(K70-R70)))+IF(OPFOKLEGHEN!$H$12>0,IF(OPFOKLEGHEN!$H$13="serie geschakeld met warmtewisselaar",3*(O70*80%-(K70-S70)),(Q70-(K70-S70)-(K70-N70))),(N70-(K70-S70)))) -> 6.764939319 | Y70: =IF(H70=0,0,IF(OPFOKLEGHEN!$H$11="geen droogtunnel",IF(OPFOKLEGHEN!$H$15="geen warmtewisselaar",Q70-(K70-R70)))+IF(OPFOKLEGHEN!$H$12>0,IF(OPFOKLEGHEN!$H$13="serie geschakeld met warmtewisselaar",(O70-(K70-S70)),IF(OPFOKLEGHEN!$H$13="parallel geschakeld met warmtewisselaar",IF(OPFOKLEGHEN!$L$9="ja",IF(OPFOKLEGHEN!$J$18="nee",(N70-(K70-Q70)-(K70-S70)),(Q70-(K70-N70/80%)))))),(O70-(K70-S70)))) -> 6.764939319 | Z70: 1 | AC70: =IF(H70=0,0,IF(OPFOKLEGHEN!$H$11="geen droogtunnel",IF(OPFOKLEGHEN!$H$15="geen warmtewisselaar",P70-(K70-R70),K70-(K70-O70)/I$6-(K70-R70)/95%)+IF(OPFOKLEGHEN!$J$18="ja",J$5/I$5*(K70-O70)*(1-I$6)),IF(OPFOKLEGHEN!$H$12>=0,IF(OPFOKLEGHEN!$L$9="ja",IF(OPFOKLEGHEN!$J$18="ja",IF(OPFOKLEGHEN!$H$20="ja",O70-(K70-S70),IF(OPFOKLEGHEN!$H$20="nee",(O70-(K70-S70)),(O70-(K70-S70)))),IF(OPFOKLEGHEN!$J$18="nee",IF(OPFOKLEGHEN!$H$20="nee",O70*80%-(K70-S70),0+O70-(K70-S70)))),IF(OPFOKLEGHEN!$L$9="nee",IF(OPFOKLEGHEN!$J$18="nee",IF(OPFOKLEGHEN!$H$20="nee",(O70*80%-(K70-S70)),O70*93%-(K70-S70)),IF(OPFOKLEGHEN!$H$20="nee",IF(OPFOKLEGHEN!$J$18="ja",IF(OPFOKLEGHEN!$L$9="nee",O70-(K70-S70))),O70-(K70-S70)))))))) -> 3.38246966 | AD70: =IF(H70=0,0,IF(OPFOKLEGHEN!$H$11="geen droogtunnel",IF(OPFOKLEGHEN!$H$15="geen warmtewisselaar",Q70-(K70-R70),N70-(K70-R70)),IF(OPFOKLEGHEN!$H$12>=0,IF(OPFOKLEGHEN!$L$9="ja",IF(OPFOKLEGHEN!$J$18="ja",IF(OPFOKLEGHEN!$H$20="ja",Q70-(K70-N70)-(K70-S70),IF(OPFOKLEGHEN!$H$20="nee",(Q70-(K70-N70)-(K70-S70)),(O70-(K70-S70)))),IF(OPFOKLEGHEN!$J$18="nee",IF(OPFOKLEGHEN!$H$20="nee",1*Q70*$N$135-(K70-N70)-(K70-S70),(Q70-(K70-N70)-(K70-S70))*N$135))),IF(OPFOKLEGHEN!$L$9="nee",IF(OPFOKLEGHEN!$J$18="nee",IF(OPFOKLEGHEN!$H$20="nee",(N70*95%-(K70-Q70)/I$4-(K70-S70)),N70-(K70-Q70)/I$4-(K70-S70)),IF(OPFOKLEGHEN!$H$20="nee",IF(OPFOKLEGHEN!$J$18="ja",IF(OPFOKLEGHEN!$L$9="nee",N70-(K70-Q70)/I$4-(K70-S70))),N70-(K70-Q70)/I$4-(K70-S70)))))))) -> 3.38246966 | AE70: 0 | AF70: 0.5727785436 | AG70: 0 | AH70: 0 | AI70: 0.5727785436 | AJ70: 0 | AK70: 0.6741290814 | AL70: 0.02123696704 | AM70: 8 | AN70: 55 | AO70: 622.6 | AP70: 557.6 | AQ70: 590.1 | AR70: 23.08420214
A71: 8 | B71: 56 | C71: 0.6873046139 | D71: =MIN(C71,J$5) -> 0 | E71: =IF(I$3=0,0,IF(OPFOKLEGHEN!$H$13="parallel geschakeld met warmtewisselaar",0,MIN(I$3,C71))) -> 0 | F71: =IF(I$3=0,0,IF(OPFOKLEGHEN!$H$13="serie geschakeld met warmtewisselaar",0,IF(C71<$I$3,C71-D71,MIN($I$3,C71-D71)))) -> 0 | G71: =IF(C71<$I$7,MAX(0,C71-D71-E71-F71,IF(OPFOKLEGHEN!$H$15="warmtewisselaar",IF(OPFOKLEGHEN!$H$13="serie geschakeld met warmtewisselaar",MIN(I$7,MAX(0,C71-D71-F71)),MIN(I$7,MAX(0,C71-D71-E71-F71))))),IF(OPFOKLEGHEN!$H$13="parallel geschakeld met warmtewisselaar",MIN(I$7,C71-D71-E71-F71,MIN(I$7,C71-E71-F71)),MIN(I$7,MAX(0,C71-D71-F71)))) -> 0 | H71: =IF(OPFOKLEGHEN!$H$13="parallel geschakeld met warmtewisselaar",IF(OPFOKLEGHEN!$L$9="nee",IF(OPFOKLEGHEN!$J$18="ja",C71-F71-G71,C71-D71-F71-G71),IF(OPFOKLEGHEN!$L$9="ja",IF(OPFOKLEGHEN!$J$18="ja",C71-G71,IF(OPFOKLEGHEN!$J$18="nee",C71-D71-G71)))),IF(OPFOKLEGHEN!$H$13="serie geschakeld met warmtewisselaar",IF(OPFOKLEGHEN!$J$18="ja",C71-G71,C71-D71-F71-G71),C71-D71-F71-G71)) -> 0.6873046139 | I71: 0.6873046139 | J71: 0.5834152262 | K71: 3.512619637 | L71: =SUM(K$16:K71)/$K$137 -> 0.0903395427 | M71: 0.0224551027 | N71: 3.512619637 | O71: =IF(E71<I$3,P71*(1-I$6*D71/C71),IF(OPFOKLEGHEN!$H$11="droogtunnel (platen) 55%",P71*(1-$I$6)+(C71-D71)/C71*(K71-P71*(1-I$6)),P71*(1-$I$6)+(C71-D71)/C71*(K71-P71*(1-I$6)))) -> 3.512619637 | P71: 3.512619637 | Q71: 3.512619637 | R71: 3.512619637 | S71: =MIN(K71,IF(OPFOKLEGHEN!$H$13="parallel geschakeld met warmtewisselaar",K71-(G71/(C71-G71))*(Q71)*95%,K71-(G71/(C71-G71))*(P71)*84%)) -> 3.512619637 | T71: 3.512619637 | U71: 24.44055207 | V71: =IF(OPFOKLEGHEN!$J$18="nee",H71/C71*K71,IF(OPFOKLEGHEN!$H$20="ja",O71-(K71-Q71)-(K71-S71),Q71-(K71-O71)-(K71-S71))) -> 3.512619637 | W71: =IF(H71=0,0,IF(OPFOKLEGHEN!$H$11="geen droogtunnel",IF(OPFOKLEGHEN!$H$15="geen warmtewisselaar",Q71-(K71-R71)))+IF(OPFOKLEGHEN!$H$12>0,IF(OPFOKLEGHEN!$H$13="serie geschakeld met warmtewisselaar",(O71*80%-(K71-S71)),(Q71-(K71-S71)-(K71-T71))),(N71-(K71-S71)))) -> 7.025239274 | X71: =IF(H71=0,0,IF(OPFOKLEGHEN!$H$11="geen droogtunnel",IF(OPFOKLEGHEN!$H$15="geen warmtewisselaar",Q71-(K71-R71)))+IF(OPFOKLEGHEN!$H$12>0,IF(OPFOKLEGHEN!$H$13="serie geschakeld met warmtewisselaar",3*(O71*80%-(K71-S71)),(Q71-(K71-S71)-(K71-N71))),(N71-(K71-S71)))) -> 7.025239274 | Y71: =IF(H71=0,0,IF(OPFOKLEGHEN!$H$11="geen droogtunnel",IF(OPFOKLEGHEN!$H$15="geen warmtewisselaar",Q71-(K71-R71)))+IF(OPFOKLEGHEN!$H$12>0,IF(OPFOKLEGHEN!$H$13="serie geschakeld met warmtewisselaar",(O71-(K71-S71)),IF(OPFOKLEGHEN!$H$13="parallel geschakeld met warmtewisselaar",IF(OPFOKLEGHEN!$L$9="ja",IF(OPFOKLEGHEN!$J$18="nee",(N71-(K71-Q71)-(K71-S71)),(Q71-(K71-N71/80%)))))),(O71-(K71-S71)))) -> 7.025239274 | Z71: 1 | AC71: =IF(H71=0,0,IF(OPFOKLEGHEN!$H$11="geen droogtunnel",IF(OPFOKLEGHEN!$H$15="geen warmtewisselaar",P71-(K71-R71),K71-(K71-O71)/I$6-(K71-R71)/95%)+IF(OPFOKLEGHEN!$J$18="ja",J$5/I$5*(K71-O71)*(1-I$6)),IF(OPFOKLEGHEN!$H$12>=0,IF(OPFOKLEGHEN!$L$9="ja",IF(OPFOKLEGHEN!$J$18="ja",IF(OPFOKLEGHEN!$H$20="ja",O71-(K71-S71),IF(OPFOKLEGHEN!$H$20="nee",(O71-(K71-S71)),(O71-(K71-S71)))),IF(OPFOKLEGHEN!$J$18="nee",IF(OPFOKLEGHEN!$H$20="nee",O71*80%-(K71-S71),0+O71-(K71-S71)))),IF(OPFOKLEGHEN!$L$9="nee",IF(OPFOKLEGHEN!$J$18="nee",IF(OPFOKLEGHEN!$H$20="nee",(O71*80%-(K71-S71)),O71*93%-(K71-S71)),IF(OPFOKLEGHEN!$H$20="nee",IF(OPFOKLEGHEN!$J$18="ja",IF(OPFOKLEGHEN!$L$9="nee",O71-(K71-S71))),O71-(K71-S71)))))))) -> 3.512619637 | AD71: =IF(H71=0,0,IF(OPFOKLEGHEN!$H$11="geen droogtunnel",IF(OPFOKLEGHEN!$H$15="geen warmtewisselaar",Q71-(K71-R71),N71-(K71-R71)),IF(OPFOKLEGHEN!$H$12>=0,IF(OPFOKLEGHEN!$L$9="ja",IF(OPFOKLEGHEN!$J$18="ja",IF(OPFOKLEGHEN!$H$20="ja",Q71-(K71-N71)-(K71-S71),IF(OPFOKLEGHEN!$H$20="nee",(Q71-(K71-N71)-(K71-S71)),(O71-(K71-S71)))),IF(OPFOKLEGHEN!$J$18="nee",IF(OPFOKLEGHEN!$H$20="nee",1*Q71*$N$135-(K71-N71)-(K71-S71),(Q71-(K71-N71)-(K71-S71))*N$135))),IF(OPFOKLEGHEN!$L$9="nee",IF(OPFOKLEGHEN!$J$18="nee",IF(OPFOKLEGHEN!$H$20="nee",(N71*95%-(K71-Q71)/I$4-(K71-S71)),N71-(K71-Q71)/I$4-(K71-S71)),IF(OPFOKLEGHEN!$H$20="nee",IF(OPFOKLEGHEN!$J$18="ja",IF(OPFOKLEGHEN!$L$9="nee",N71-(K71-Q71)/I$4-(K71-S71))),N71-(K71-Q71)/I$4-(K71-S71)))))))) -> 3.512619637 | AE71: 0 | AF71: 0.5834152262 | AG71: 0 | AH71: 0 | AI71: 0.5834152262 | AJ71: 0 | AK71: 0.6873046139 | AL71: 0.0224551027 | AM71: 8 | AN71: 56 | AO71: 635 | AP71: 570 | AQ71: 602.5 | AR71: 24.44055207
A72: 9 | B72: 57 | C72: 0.6998893117 | D72: =MIN(C72,J$5) -> 0 | E72: =IF(I$3=0,0,IF(OPFOKLEGHEN!$H$13="parallel geschakeld met warmtewisselaar",0,MIN(I$3,C72))) -> 0 | F72: =IF(I$3=0,0,IF(OPFOKLEGHEN!$H$13="serie geschakeld met warmtewisselaar",0,IF(C72<$I$3,C72-D72,MIN($I$3,C72-D72)))) -> 0 | G72: =IF(C72<$I$7,MAX(0,C72-D72-E72-F72,IF(OPFOKLEGHEN!$H$15="warmtewisselaar",IF(OPFOKLEGHEN!$H$13="serie geschakeld met warmtewisselaar",MIN(I$7,MAX(0,C72-D72-F72)),MIN(I$7,MAX(0,C72-D72-E72-F72))))),IF(OPFOKLEGHEN!$H$13="parallel geschakeld met warmtewisselaar",MIN(I$7,C72-D72-E72-F72,MIN(I$7,C72-E72-F72)),MIN(I$7,MAX(0,C72-D72-F72)))) -> 0 | H72: =IF(OPFOKLEGHEN!$H$13="parallel geschakeld met warmtewisselaar",IF(OPFOKLEGHEN!$L$9="nee",IF(OPFOKLEGHEN!$J$18="ja",C72-F72-G72,C72-D72-F72-G72),IF(OPFOKLEGHEN!$L$9="ja",IF(OPFOKLEGHEN!$J$18="ja",C72-G72,IF(OPFOKLEGHEN!$J$18="nee",C72-D72-G72)))),IF(OPFOKLEGHEN!$H$13="serie geschakeld met warmtewisselaar",IF(OPFOKLEGHEN!$J$18="ja",C72-G72,C72-D72-F72-G72),C72-D72-F72-G72)) -> 0.6998893117 | I72: =IF(C72-D72-E72<0, 0, C72-D72-E72) -> 0.6998893117 | J72: 0.5942494354 | K72: 3.643361336 | L72: =SUM(K$16:K72)/$K$137 -> 0.09460606499 | M72: 0.02370680321 | N72: 3.643361336 | O72: =IF(E72<I$3,P72*(1-I$6*D72/C72),IF(OPFOKLEGHEN!$H$11="droogtunnel (platen) 55%",P72*(1-$I$6)+(C72-D72)/C72*(K72-P72*(1-I$6)),P72*(1-$I$6)+(C72-D72)/C72*(K72-P72*(1-I$6)))) -> 3.643361336 | P72: 3.643361336 | Q72: 3.643361336 | R72: 3.643361336 | S72: =MIN(K72,IF(OPFOKLEGHEN!$H$13="parallel geschakeld met warmtewisselaar",K72-(G72/(C72-G72))*(Q72)*95%,K72-(G72/(C72-G72))*(P72)*84%)) -> 3.643361336 | T72: 3.643361336 | U72: =AR72 -> 0 | V72: =IF(OPFOKLEGHEN!$J$18="nee",H72/C72*K72,IF(OPFOKLEGHEN!$H$20="ja",O72-(K72-Q72)-(K72-S72),Q72-(K72-O72)-(K72-S72))) -> 3.643361336 | W72: =IF(H72=0,0,IF(OPFOKLEGHEN!$H$11="geen droogtunnel",IF(OPFOKLEGHEN!$H$15="geen warmtewisselaar",Q72-(K72-R72)))+IF(OPFOKLEGHEN!$H$12>0,IF(OPFOKLEGHEN!$H$13="serie geschakeld met warmtewisselaar",(O72*80%-(K72-S72)),(Q72-(K72-S72)-(K72-T72))),(N72-(K72-S72)))) -> 7.286722672 | X72: =IF(H72=0,0,IF(OPFOKLEGHEN!$H$11="geen droogtunnel",IF(OPFOKLEGHEN!$H$15="geen warmtewisselaar",Q72-(K72-R72)))+IF(OPFOKLEGHEN!$H$12>0,IF(OPFOKLEGHEN!$H$13="serie geschakeld met warmtewisselaar",3*(O72*80%-(K72-S72)),(Q72-(K72-S72)-(K72-N72))),(N72-(K72-S72)))) -> 7.286722672 | Y72: =IF(H72=0,0,IF(OPFOKLEGHEN!$H$11="geen droogtunnel",IF(OPFOKLEGHEN!$H$15="geen warmtewisselaar",Q72-(K72-R72)))+IF(OPFOKLEGHEN!$H$12>0,IF(OPFOKLEGHEN!$H$13="serie geschakeld met warmtewisselaar",(O72-(K72-S72)),IF(OPFOKLEGHEN!$H$13="parallel geschakeld met warmtewisselaar",IF(OPFOKLEGHEN!$L$9="ja",IF(OPFOKLEGHEN!$J$18="nee",(N72-(K72-Q72)-(K72-S72)),(Q72-(K72-N72/80%)))))),(O72-(K72-S72)))) -> 7.286722672 | Z72: 1 | AC72: =IF(H72=0,0,IF(OPFOKLEGHEN!$H$11="geen droogtunnel",IF(OPFOKLEGHEN!$H$15="geen warmtewisselaar",P72-(K72-R72),K72-(K72-O72)/I$6-(K72-R72)/95%)+IF(OPFOKLEGHEN!$J$18="ja",J$5/I$5*(K72-O72)*(1-I$6)),IF(OPFOKLEGHEN!$H$12>=0,IF(OPFOKLEGHEN!$L$9="ja",IF(OPFOKLEGHEN!$J$18="ja",IF(OPFOKLEGHEN!$H$20="ja",O72-(K72-S72),IF(OPFOKLEGHEN!$H$20="nee",(O72-(K72-S72)),(O72-(K72-S72)))),IF(OPFOKLEGHEN!$J$18="nee",IF(OPFOKLEGHEN!$H$20="nee",O72*80%-(K72-S72),0+O72-(K72-S72)))),IF(OPFOKLEGHEN!$L$9="nee",IF(OPFOKLEGHEN!$J$18="nee",IF(OPFOKLEGHEN!$H$20="nee",(O72*80%-(K72-S72)),O72*93%-(K72-S72)),IF(OPFOKLEGHEN!$H$20="nee",IF(OPFOKLEGHEN!$J$18="ja",IF(OPFOKLEGHEN!$L$9="nee",O72-(K72-S72))),O72-(K72-S72)))))))) -> 3.643361336 | AD72: =IF(H72=0,0,IF(OPFOKLEGHEN!$H$11="geen droogtunnel",IF(OPFOKLEGHEN!$H$15="geen warmtewisselaar",Q72-(K72-R72),N72-(K72-R72)),IF(OPFOKLEGHEN!$H$12>=0,IF(OPFOKLEGHEN!$L$9="ja",IF(OPFOKLEGHEN!$J$18="ja",IF(OPFOKLEGHEN!$H$20="ja",Q72-(K72-N72)-(K72-S72),IF(OPFOKLEGHEN!$H$20="nee",(Q72-(K72-N72)-(K72-S72)),(O72-(K72-S72)))),IF(OPFOKLEGHEN!$J$18="nee",IF(OPFOKLEGHEN!$H$20="nee",1*Q72*$N$135-(K72-N72)-(K72-S72),(Q72-(K72-N72)-(K72-S72))*N$135))),IF(OPFOKLEGHEN!$L$9="nee",IF(OPFOKLEGHEN!$J$18="nee",IF(OPFOKLEGHEN!$H$20="nee",(N72*95%-(K72-Q72)/I$4-(K72-S72)),N72-(K72-Q72)/I$4-(K72-S72)),IF(OPFOKLEGHEN!$H$20="nee",IF(OPFOKLEGHEN!$J$18="ja",IF(OPFOKLEGHEN!$L$9="nee",N72-(K72-Q72)/I$4-(K72-S72))),N72-(K72-Q72)/I$4-(K72-S72)))))))) -> 3.643361336 | AM72: 9 | AN72: 57 | AO72: =AO71+12.1 -> 647.1 | AP72: =AP71+11.4 -> 581.4 | AQ72: 614.25
A73: 9 | B73: 58 | C73: 0.7125749474 | D73: 0 | E73: =IF(I$3=0,0,IF(OPFOKLEGHEN!$H$13="parallel geschakeld met warmtewisselaar",0,MIN(I$3,C73))) -> 0 | F73: =IF(I$3=0,0,IF(OPFOKLEGHEN!$H$13="serie geschakeld met warmtewisselaar",0,IF(C73<$I$3,C73-D73,MIN($I$3,C73-D73)))) -> 0 | G73: =IF(C73<$I$7,MAX(0,C73-D73-E73-F73,IF(OPFOKLEGHEN!$H$15="warmtewisselaar",IF(OPFOKLEGHEN!$H$13="serie geschakeld met warmtewisselaar",MIN(I$7,MAX(0,C73-D73-F73)),MIN(I$7,MAX(0,C73-D73-E73-F73))))),IF(OPFOKLEGHEN!$H$13="parallel geschakeld met warmtewisselaar",MIN(I$7,C73-D73-E73-F73,MIN(I$7,C73-E73-F73)),MIN(I$7,MAX(0,C73-D73-F73)))) -> 0 | H73: =IF(OPFOKLEGHEN!$H$13="parallel geschakeld met warmtewisselaar",IF(OPFOKLEGHEN!$L$9="nee",IF(OPFOKLEGHEN!$J$18="ja",C73-F73-G73,C73-D73-F73-G73),IF(OPFOKLEGHEN!$L$9="ja",IF(OPFOKLEGHEN!$J$18="ja",C73-G73,IF(OPFOKLEGHEN!$J$18="nee",C73-D73-G73)))),IF(OPFOKLEGHEN!$H$13="serie geschakeld met warmtewisselaar",IF(OPFOKLEGHEN!$J$18="ja",C73-G73,C73-D73-F73-G73),C73-D73-F73-G73)) -> 0.7125749474 | I73: 0.7125749474 | J73: 0.6052848394 | K73: 3.778282718 | L73: =SUM(K$16:K73)/$K$137 -> 0.09903058563 | M73: 0.02501602713 | N73: 3.778282718 | O73: =IF(E73<I$3,P73*(1-I$6*D73/C73),IF(OPFOKLEGHEN!$H$11="droogtunnel (platen) 55%",P73*(1-$I$6)+(C73-D73)/C73*(K73-P73*(1-I$6)),P73*(1-$I$6)+(C73-D73)/C73*(K73-P73*(1-I$6)))) -> 3.778282718 | P73: 3.778282718 | Q73: 3.778282718 | R73: 3.778282718 | S73: =MIN(K73,IF(OPFOKLEGHEN!$H$13="parallel geschakeld met warmtewisselaar",K73-(G73/(C73-G73))*(Q73)*95%,K73-(G73/(C73-G73))*(P73)*84%)) -> 3.778282718 | T73: 3.778282718 | U73: 0 | V73: =IF(OPFOKLEGHEN!$J$18="nee",H73/C73*K73,IF(OPFOKLEGHEN!$H$20="ja",O73-(K73-Q73)-(K73-S73),Q73-(K73-O73)-(K73-S73))) -> 3.778282718 | W73: =IF(H73=0,0,IF(OPFOKLEGHEN!$H$11="geen droogtunnel",IF(OPFOKLEGHEN!$H$15="geen warmtewisselaar",Q73-(K73-R73)))+IF(OPFOKLEGHEN!$H$12>0,IF(OPFOKLEGHEN!$H$13="serie geschakeld met warmtewisselaar",(O73*80%-(K73-S73)),(Q73-(K73-S73)-(K73-T73))),(N73-(K73-S73)))) -> 7.556565437 | X73: =IF(H73=0,0,IF(OPFOKLEGHEN!$H$11="geen droogtunnel",IF(OPFOKLEGHEN!$H$15="geen warmtewisselaar",Q73-(K73-R73)))+IF(OPFOKLEGHEN!$H$12>0,IF(OPFOKLEGHEN!$H$13="serie geschakeld met warmtewisselaar",3*(O73*80%-(K73-S73)),(Q73-(K73-S73)-(K73-N73))),(N73-(K73-S73)))) -> 7.556565437 | Y73: =IF(H73=0,0,IF(OPFOKLEGHEN!$H$11="geen droogtunnel",IF(OPFOKLEGHEN!$H$15="geen warmtewisselaar",Q73-(K73-R73)))+IF(OPFOKLEGHEN!$H$12>0,IF(OPFOKLEGHEN!$H$13="serie geschakeld met warmtewisselaar",(O73-(K73-S73)),IF(OPFOKLEGHEN!$H$13="parallel geschakeld met warmtewisselaar",IF(OPFOKLEGHEN!$L$9="ja",IF(OPFOKLEGHEN!$J$18="nee",(N73-(K73-Q73)-(K73-S73)),(Q73-(K73-N73/80%)))))),(O73-(K73-S73)))) -> 7.556565437 | Z73: 1 | AC73: =IF(H73=0,0,IF(OPFOKLEGHEN!$H$11="geen droogtunnel",IF(OPFOKLEGHEN!$H$15="geen warmtewisselaar",P73-(K73-R73),K73-(K73-O73)/I$6-(K73-R73)/95%)+IF(OPFOKLEGHEN!$J$18="ja",J$5/I$5*(K73-O73)*(1-I$6)),IF(OPFOKLEGHEN!$H$12>=0,IF(OPFOKLEGHEN!$L$9="ja",IF(OPFOKLEGHEN!$J$18="ja",IF(OPFOKLEGHEN!$H$20="ja",O73-(K73-S73),IF(OPFOKLEGHEN!$H$20="nee",(O73-(K73-S73)),(O73-(K73-S73)))),IF(OPFOKLEGHEN!$J$18="nee",IF(OPFOKLEGHEN!$H$20="nee",O73*80%-(K73-S73),0+O73-(K73-S73)))),IF(OPFOKLEGHEN!$L$9="nee",IF(OPFOKLEGHEN!$J$18="nee",IF(OPFOKLEGHEN!$H$20="nee",(O73*80%-(K73-S73)),O73*93%-(K73-S73)),IF(OPFOKLEGHEN!$H$20="nee",IF(OPFOKLEGHEN!$J$18="ja",IF(OPFOKLEGHEN!$L$9="nee",O73-(K73-S73))),O73-(K73-S73)))))))) -> 3.778282718 | AD73: =IF(H73=0,0,IF(OPFOKLEGHEN!$H$11="geen droogtunnel",IF(OPFOKLEGHEN!$H$15="geen warmtewisselaar",Q73-(K73-R73),N73-(K73-R73)),IF(OPFOKLEGHEN!$H$12>=0,IF(OPFOKLEGHEN!$L$9="ja",IF(OPFOKLEGHEN!$J$18="ja",IF(OPFOKLEGHEN!$H$20="ja",Q73-(K73-N73)-(K73-S73),IF(OPFOKLEGHEN!$H$20="nee",(Q73-(K73-N73)-(K73-S73)),(O73-(K73-S73)))),IF(OPFOKLEGHEN!$J$18="nee",IF(OPFOKLEGHEN!$H$20="nee",1*Q73*$N$135-(K73-N73)-(K73-S73),(Q73-(K73-N73)-(K73-S73))*N$135))),IF(OPFOKLEGHEN!$L$9="nee",IF(OPFOKLEGHEN!$J$18="nee",IF(OPFOKLEGHEN!$H$20="nee",(N73*95%-(K73-Q73)/I$4-(K73-S73)),N73-(K73-Q73)/I$4-(K73-S73)),IF(OPFOKLEGHEN!$H$20="nee",IF(OPFOKLEGHEN!$J$18="ja",IF(OPFOKLEGHEN!$L$9="nee",N73-(K73-Q73)/I$4-(K73-S73))),N73-(K73-Q73)/I$4-(K73-S73)))))))) -> 3.778282718 | AM73: 9 | AN73: 58 | AO73: 659.2 | AP73: 592.8 | AQ73: 626
A74: 9 | B74: 59 | C74: 0.7253652588 | D74: 0 | E74: =IF(I$3=0,0,IF(OPFOKLEGHEN!$H$13="parallel geschakeld met warmtewisselaar",0,MIN(I$3,C74))) -> 0 | F74: =IF(I$3=0,0,IF(OPFOKLEGHEN!$H$13="serie geschakeld met warmtewisselaar",0,IF(C74<$I$3,C74-D74,MIN($I$3,C74-D74)))) -> 0 | G74: =IF(C74<$I$7,MAX(0,C74-D74-E74-F74,IF(OPFOKLEGHEN!$H$15="warmtewisselaar",IF(OPFOKLEGHEN!$H$13="serie geschakeld met warmtewisselaar",MIN(I$7,MAX(0,C74-D74-F74)),MIN(I$7,MAX(0,C74-D74-E74-F74))))),IF(OPFOKLEGHEN!$H$13="parallel geschakeld met warmtewisselaar",MIN(I$7,C74-D74-E74-F74,MIN(I$7,C74-E74-F74)),MIN(I$7,MAX(0,C74-D74-F74)))) -> 0 | H74: =IF(OPFOKLEGHEN!$H$13="parallel geschakeld met warmtewisselaar",IF(OPFOKLEGHEN!$L$9="nee",IF(OPFOKLEGHEN!$J$18="ja",C74-F74-G74,C74-D74-F74-G74),IF(OPFOKLEGHEN!$L$9="ja",IF(OPFOKLEGHEN!$J$18="ja",C74-G74,IF(OPFOKLEGHEN!$J$18="nee",C74-D74-G74)))),IF(OPFOKLEGHEN!$H$13="serie geschakeld met warmtewisselaar",IF(OPFOKLEGHEN!$J$18="ja",C74-G74,C74-D74-F74-G74),C74-D74-F74-G74)) -> 0.7253652588 | I74: 0.7253652588 | J74: 0.6165251744 | K74: 3.917524058 | L74: =SUM(K$16:K74)/$K$137 -> 0.1036181635 | M74: 0.02638515062 | N74: 3.917524058 | O74: =IF(E74<I$3,P74*(1-I$6*D74/C74),IF(OPFOKLEGHEN!$H$11="droogtunnel (platen) 55%",P74*(1-$I$6)+(C74-D74)/C74*(K74-P74*(1-I$6)),P74*(1-$I$6)+(C74-D74)/C74*(K74-P74*(1-I$6)))) -> 3.917524058 | P74: 3.917524058 | Q74: 3.917524058 | R74: 3.917524058 | S74: =MIN(K74,IF(OPFOKLEGHEN!$H$13="parallel geschakeld met warmtewisselaar",K74-(G74/(C74-G74))*(Q74)*95%,K74-(G74/(C74-G74))*(P74)*84%)) -> 3.917524058 | T74: 3.917524058 | U74: 0 | V74: =IF(OPFOKLEGHEN!$J$18="nee",H74/C74*K74,IF(OPFOKLEGHEN!$H$20="ja",O74-(K74-Q74)-(K74-S74),Q74-(K74-O74)-(K74-S74))) -> 3.917524058 | W74: =IF(H74=0,0,IF(OPFOKLEGHEN!$H$11="geen droogtunnel",IF(OPFOKLEGHEN!$H$15="geen warmtewisselaar",Q74-(K74-R74)))+IF(OPFOKLEGHEN!$H$12>0,IF(OPFOKLEGHEN!$H$13="serie geschakeld met warmtewisselaar",(O74*80%-(K74-S74)),(Q74-(K74-S74)-(K74-T74))),(N74-(K74-S74)))) -> 7.835048116 | X74: =IF(H74=0,0,IF(OPFOKLEGHEN!$H$11="geen droogtunnel",IF(OPFOKLEGHEN!$H$15="geen warmtewisselaar",Q74-(K74-R74)))+IF(OPFOKLEGHEN!$H$12>0,IF(OPFOKLEGHEN!$H$13="serie geschakeld met warmtewisselaar",3*(O74*80%-(K74-S74)),(Q74-(K74-S74)-(K74-N74))),(N74-(K74-S74)))) -> 7.835048116 | Y74: =IF(H74=0,0,IF(OPFOKLEGHEN!$H$11="geen droogtunnel",IF(OPFOKLEGHEN!$H$15="geen warmtewisselaar",Q74-(K74-R74)))+IF(OPFOKLEGHEN!$H$12>0,IF(OPFOKLEGHEN!$H$13="serie geschakeld met warmtewisselaar",(O74-(K74-S74)),IF(OPFOKLEGHEN!$H$13="parallel geschakeld met warmtewisselaar",IF(OPFOKLEGHEN!$L$9="ja",IF(OPFOKLEGHEN!$J$18="nee",(N74-(K74-Q74)-(K74-S74)),(Q74-(K74-N74/80%)))))),(O74-(K74-S74)))) -> 7.835048116 | Z74: 1 | AC74: =IF(H74=0,0,IF(OPFOKLEGHEN!$H$11="geen droogtunnel",IF(OPFOKLEGHEN!$H$15="geen warmtewisselaar",P74-(K74-R74),K74-(K74-O74)/I$6-(K74-R74)/95%)+IF(OPFOKLEGHEN!$J$18="ja",J$5/I$5*(K74-O74)*(1-I$6)),IF(OPFOKLEGHEN!$H$12>=0,IF(OPFOKLEGHEN!$L$9="ja",IF(OPFOKLEGHEN!$J$18="ja",IF(OPFOKLEGHEN!$H$20="ja",O74-(K74-S74),IF(OPFOKLEGHEN!$H$20="nee",(O74-(K74-S74)),(O74-(K74-S74)))),IF(OPFOKLEGHEN!$J$18="nee",IF(OPFOKLEGHEN!$H$20="nee",O74*80%-(K74-S74),0+O74-(K74-S74)))),IF(OPFOKLEGHEN!$L$9="nee",IF(OPFOKLEGHEN!$J$18="nee",IF(OPFOKLEGHEN!$H$20="nee",(O74*80%-(K74-S74)),O74*93%-(K74-S74)),IF(OPFOKLEGHEN!$H$20="nee",IF(OPFOKLEGHEN!$J$18="ja",IF(OPFOKLEGHEN!$L$9="nee",O74-(K74-S74))),O74-(K74-S74)))))))) -> 3.917524058 | AD74: =IF(H74=0,0,IF(OPFOKLEGHEN!$H$11="geen droogtunnel",IF(OPFOKLEGHEN!$H$15="geen warmtewisselaar",Q74-(K74-R74),N74-(K74-R74)),IF(OPFOKLEGHEN!$H$12>=0,IF(OPFOKLEGHEN!$L$9="ja",IF(OPFOKLEGHEN!$J$18="ja",IF(OPFOKLEGHEN!$H$20="ja",Q74-(K74-N74)-(K74-S74),IF(OPFOKLEGHEN!$H$20="nee",(Q74-(K74-N74)-(K74-S74)),(O74-(K74-S74)))),IF(OPFOKLEGHEN!$J$18="nee",IF(OPFOKLEGHEN!$H$20="nee",1*Q74*$N$135-(K74-N74)-(K74-S74),(Q74-(K74-N74)-(K74-S74))*N$135))),IF(OPFOKLEGHEN!$L$9="nee",IF(OPFOKLEGHEN!$J$18="nee",IF(OPFOKLEGHEN!$H$20="nee",(N74*95%-(K74-Q74)/I$4-(K74-S74)),N74-(K74-Q74)/I$4-(K74-S74)),IF(OPFOKLEGHEN!$H$20="nee",IF(OPFOKLEGHEN!$J$18="ja",IF(OPFOKLEGHEN!$L$9="nee",N74-(K74-Q74)/I$4-(K74-S74))),N74-(K74-Q74)/I$4-(K74-S74)))))))) -> 3.917524058 | AM74: 9 | AN74: 59 | AO74: 671.3 | AP74: 604.2 | AQ74: 637.75
A75: 9 | B75: 60 | C75: 0.7382639836 | D75: 0 | E75: =IF(I$3=0,0,IF(OPFOKLEGHEN!$H$13="parallel geschakeld met warmtewisselaar",0,MIN(I$3,C75))) -> 0 | F75: =IF(I$3=0,0,IF(OPFOKLEGHEN!$H$13="serie geschakeld met warmtewisselaar",0,IF(C75<$I$3,C75-D75,MIN($I$3,C75-D75)))) -> 0 | G75: =IF(C75<$I$7,MAX(0,C75-D75-E75-F75,IF(OPFOKLEGHEN!$H$15="warmtewisselaar",IF(OPFOKLEGHEN!$H$13="serie geschakeld met warmtewisselaar",MIN(I$7,MAX(0,C75-D75-F75)),MIN(I$7,MAX(0,C75-D75-E75-F75))))),IF(OPFOKLEGHEN!$H$13="parallel geschakeld met warmtewisselaar",MIN(I$7,C75-D75-E75-F75,MIN(I$7,C75-E75-F75)),MIN(I$7,MAX(0,C75-D75-F75)))) -> 0 | H75: =IF(OPFOKLEGHEN!$H$13="parallel geschakeld met warmtewisselaar",IF(OPFOKLEGHEN!$L$9="nee",IF(OPFOKLEGHEN!$J$18="ja",C75-F75-G75,C75-D75-F75-G75),IF(OPFOKLEGHEN!$L$9="ja",IF(OPFOKLEGHEN!$J$18="ja",C75-G75,IF(OPFOKLEGHEN!$J$18="nee",C75-D75-G75)))),IF(OPFOKLEGHEN!$H$13="serie geschakeld met warmtewisselaar",IF(OPFOKLEGHEN!$J$18="ja",C75-G75,C75-D75-F75-G75),C75-D75-F75-G75)) -> 0.7382639836 | I75: 0.7382639836 | J75: 0.6279742461 | K75: 4.061230332 | L75: =SUM(K$16:K75)/$K$137 -> 0.1083740271 | M75: 0.02781664611 | N75: 4.061230332 | O75: =IF(E75<I$3,P75*(1-I$6*D75/C75),IF(OPFOKLEGHEN!$H$11="droogtunnel (platen) 55%",P75*(1-$I$6)+(C75-D75)/C75*(K75-P75*(1-I$6)),P75*(1-$I$6)+(C75-D75)/C75*(K75-P75*(1-I$6)))) -> 4.061230332 | P75: 4.061230332 | Q75: 4.061230332 | R75: 4.061230332 | S75: =MIN(K75,IF(OPFOKLEGHEN!$H$13="parallel geschakeld met warmtewisselaar",K75-(G75/(C75-G75))*(Q75)*95%,K75-(G75/(C75-G75))*(P75)*84%)) -> 4.061230332 | T75: 4.061230332 | U75: 0 | V75: =IF(OPFOKLEGHEN!$J$18="nee",H75/C75*K75,IF(OPFOKLEGHEN!$H$20="ja",O75-(K75-Q75)-(K75-S75),Q75-(K75-O75)-(K75-S75))) -> 4.061230332 | W75: =IF(H75=0,0,IF(OPFOKLEGHEN!$H$11="geen droogtunnel",IF(OPFOKLEGHEN!$H$15="geen warmtewisselaar",Q75-(K75-R75)))+IF(OPFOKLEGHEN!$H$12>0,IF(OPFOKLEGHEN!$H$13="serie geschakeld met warmtewisselaar",(O75*80%-(K75-S75)),(Q75-(K75-S75)-(K75-T75))),(N75-(K75-S75)))) -> 8.122460664 | X75: =IF(H75=0,0,IF(OPFOKLEGHEN!$H$11="geen droogtunnel",IF(OPFOKLEGHEN!$H$15="geen warmtewisselaar",Q75-(K75-R75)))+IF(OPFOKLEGHEN!$H$12>0,IF(OPFOKLEGHEN!$H$13="serie geschakeld met warmtewisselaar",3*(O75*80%-(K75-S75)),(Q75-(K75-S75)-(K75-N75))),(N75-(K75-S75)))) -> 8.122460664 | Y75: =IF(H75=0,0,IF(OPFOKLEGHEN!$H$11="geen droogtunnel",IF(OPFOKLEGHEN!$H$15="geen warmtewisselaar",Q75-(K75-R75)))+IF(OPFOKLEGHEN!$H$12>0,IF(OPFOKLEGHEN!$H$13="serie geschakeld met warmtewisselaar",(O75-(K75-S75)),IF(OPFOKLEGHEN!$H$13="parallel geschakeld met warmtewisselaar",IF(OPFOKLEGHEN!$L$9="ja",IF(OPFOKLEGHEN!$J$18="nee",(N75-(K75-Q75)-(K75-S75)),(Q75-(K75-N75/80%)))))),(O75-(K75-S75)))) -> 8.122460664 | Z75: 1 | AC75: =IF(H75=0,0,IF(OPFOKLEGHEN!$H$11="geen droogtunnel",IF(OPFOKLEGHEN!$H$15="geen warmtewisselaar",P75-(K75-R75),K75-(K75-O75)/I$6-(K75-R75)/95%)+IF(OPFOKLEGHEN!$J$18="ja",J$5/I$5*(K75-O75)*(1-I$6)),IF(OPFOKLEGHEN!$H$12>=0,IF(OPFOKLEGHEN!$L$9="ja",IF(OPFOKLEGHEN!$J$18="ja",IF(OPFOKLEGHEN!$H$20="ja",O75-(K75-S75),IF(OPFOKLEGHEN!$H$20="nee",(O75-(K75-S75)),(O75-(K75-S75)))),IF(OPFOKLEGHEN!$J$18="nee",IF(OPFOKLEGHEN!$H$20="nee",O75*80%-(K75-S75),0+O75-(K75-S75)))),IF(OPFOKLEGHEN!$L$9="nee",IF(OPFOKLEGHEN!$J$18="nee",IF(OPFOKLEGHEN!$H$20="nee",(O75*80%-(K75-S75)),O75*93%-(K75-S75)),IF(OPFOKLEGHEN!$H$20="nee",IF(OPFOKLEGHEN!$J$18="ja",IF(OPFOKLEGHEN!$L$9="nee",O75-(K75-S75))),O75-(K75-S75)))))))) -> 4.061230332 | AD75: =IF(H75=0,0,IF(OPFOKLEGHEN!$H$11="geen droogtunnel",IF(OPFOKLEGHEN!$H$15="geen warmtewisselaar",Q75-(K75-R75),N75-(K75-R75)),IF(OPFOKLEGHEN!$H$12>=0,IF(OPFOKLEGHEN!$L$9="ja",IF(OPFOKLEGHEN!$J$18="ja",IF(OPFOKLEGHEN!$H$20="ja",Q75-(K75-N75)-(K75-S75),IF(OPFOKLEGHEN!$H$20="nee",(Q75-(K75-N75)-(K75-S75)),(O75-(K75-S75)))),IF(OPFOKLEGHEN!$J$18="nee",IF(OPFOKLEGHEN!$H$20="nee",1*Q75*$N$135-(K75-N75)-(K75-S75),(Q75-(K75-N75)-(K75-S75))*N$135))),IF(OPFOKLEGHEN!$L$9="nee",IF(OPFOKLEGHEN!$J$18="nee",IF(OPFOKLEGHEN!$H$20="nee",(N75*95%-(K75-Q75)/I$4-(K75-S75)),N75-(K75-Q75)/I$4-(K75-S75)),IF(OPFOKLEGHEN!$H$20="nee",IF(OPFOKLEGHEN!$J$18="ja",IF(OPFOKLEGHEN!$L$9="nee",N75-(K75-Q75)/I$4-(K75-S75))),N75-(K75-Q75)/I$4-(K75-S75)))))))) -> 4.061230332 | AM75: 9 | AN75: 60 | AO75: 683.4 | AP75: 615.6 | AQ75: 649.5
A76: 9 | B76: 61 | C76: 0.7512748592 | D76: 0 | E76: =IF(I$3=0,0,IF(OPFOKLEGHEN!$H$13="parallel geschakeld met warmtewisselaar",0,MIN(I$3,C76))) -> 0 | F76: =IF(I$3=0,0,IF(OPFOKLEGHEN!$H$13="serie geschakeld met warmtewisselaar",0,IF(C76<$I$3,C76-D76,MIN($I$3,C76-D76)))) -> 0 | G76: =IF(C76<$I$7,MAX(0,C76-D76-E76-F76,IF(OPFOKLEGHEN!$H$15="warmtewisselaar",IF(OPFOKLEGHEN!$H$13="serie geschakeld met warmtewisselaar",MIN(I$7,MAX(0,C76-D76-F76)),MIN(I$7,MAX(0,C76-D76-E76-F76))))),IF(OPFOKLEGHEN!$H$13="parallel geschakeld met warmtewisselaar",MIN(I$7,C76-D76-E76-F76,MIN(I$7,C76-E76-F76)),MIN(I$7,MAX(0,C76-D76-F76)))) -> 0 | H76: =IF(OPFOKLEGHEN!$H$13="parallel geschakeld met warmtewisselaar",IF(OPFOKLEGHEN!$L$9="nee",IF(OPFOKLEGHEN!$J$18="ja",C76-F76-G76,C76-D76-F76-G76),IF(OPFOKLEGHEN!$L$9="ja",IF(OPFOKLEGHEN!$J$18="ja",C76-G76,IF(OPFOKLEGHEN!$J$18="nee",C76-D76-G76)))),IF(OPFOKLEGHEN!$H$13="serie geschakeld met warmtewisselaar",IF(OPFOKLEGHEN!$J$18="ja",C76-G76,C76-D76-F76-G76),C76-D76-F76-G76)) -> 0.7512748592 | I76: 0.7512748592 | J76: 0.6396359307 | K76: 4.20955137 | L76: =SUM(K$16:K76)/$K$137 -> 0.1133035806 | M76: 0.02931308602 | N76: 4.20955137 | O76: =IF(E76<I$3,P76*(1-I$6*D76/C76),IF(OPFOKLEGHEN!$H$11="droogtunnel (platen) 55%",P76*(1-$I$6)+(C76-D76)/C76*(K76-P76*(1-I$6)),P76*(1-$I$6)+(C76-D76)/C76*(K76-P76*(1-I$6)))) -> 4.20955137 | P76: 4.20955137 | Q76: 4.20955137 | R76: 4.20955137 | S76: =MIN(K76,IF(OPFOKLEGHEN!$H$13="parallel geschakeld met warmtewisselaar",K76-(G76/(C76-G76))*(Q76)*95%,K76-(G76/(C76-G76))*(P76)*84%)) -> 4.20955137 | T76: 4.20955137 | U76: 0 | V76: =IF(OPFOKLEGHEN!$J$18="nee",H76/C76*K76,IF(OPFOKLEGHEN!$H$20="ja",O76-(K76-Q76)-(K76-S76),Q76-(K76-O76)-(K76-S76))) -> 4.20955137 | W76: =IF(H76=0,0,IF(OPFOKLEGHEN!$H$11="geen droogtunnel",IF(OPFOKLEGHEN!$H$15="geen warmtewisselaar",Q76-(K76-R76)))+IF(OPFOKLEGHEN!$H$12>0,IF(OPFOKLEGHEN!$H$13="serie geschakeld met warmtewisselaar",(O76*80%-(K76-S76)),(Q76-(K76-S76)-(K76-T76))),(N76-(K76-S76)))) -> 8.419102739 | X76: =IF(H76=0,0,IF(OPFOKLEGHEN!$H$11="geen droogtunnel",IF(OPFOKLEGHEN!$H$15="geen warmtewisselaar",Q76-(K76-R76)))+IF(OPFOKLEGHEN!$H$12>0,IF(OPFOKLEGHEN!$H$13="serie geschakeld met warmtewisselaar",3*(O76*80%-(K76-S76)),(Q76-(K76-S76)-(K76-N76))),(N76-(K76-S76)))) -> 8.419102739 | Y76: =IF(H76=0,0,IF(OPFOKLEGHEN!$H$11="geen droogtunnel",IF(OPFOKLEGHEN!$H$15="geen warmtewisselaar",Q76-(K76-R76)))+IF(OPFOKLEGHEN!$H$12>0,IF(OPFOKLEGHEN!$H$13="serie geschakeld met warmtewisselaar",(O76-(K76-S76)),IF(OPFOKLEGHEN!$H$13="parallel geschakeld met warmtewisselaar",IF(OPFOKLEGHEN!$L$9="ja",IF(OPFOKLEGHEN!$J$18="nee",(N76-(K76-Q76)-(K76-S76)),(Q76-(K76-N76/80%)))))),(O76-(K76-S76)))) -> 8.419102739 | Z76: 1 | AC76: =IF(H76=0,0,IF(OPFOKLEGHEN!$H$11="geen droogtunnel",IF(OPFOKLEGHEN!$H$15="geen warmtewisselaar",P76-(K76-R76),K76-(K76-O76)/I$6-(K76-R76)/95%)+IF(OPFOKLEGHEN!$J$18="ja",J$5/I$5*(K76-O76)*(1-I$6)),IF(OPFOKLEGHEN!$H$12>=0,IF(OPFOKLEGHEN!$L$9="ja",IF(OPFOKLEGHEN!$J$18="ja",IF(OPFOKLEGHEN!$H$20="ja",O76-(K76-S76),IF(OPFOKLEGHEN!$H$20="nee",(O76-(K76-S76)),(O76-(K76-S76)))),IF(OPFOKLEGHEN!$J$18="nee",IF(OPFOKLEGHEN!$H$20="nee",O76*80%-(K76-S76),0+O76-(K76-S76)))),IF(OPFOKLEGHEN!$L$9="nee",IF(OPFOKLEGHEN!$J$18="nee",IF(OPFOKLEGHEN!$H$20="nee",(O76*80%-(K76-S76)),O76*93%-(K76-S76)),IF(OPFOKLEGHEN!$H$20="nee",IF(OPFOKLEGHEN!$J$18="ja",IF(OPFOKLEGHEN!$L$9="nee",O76-(K76-S76))),O76-(K76-S76)))))))) -> 4.20955137 | AD76: =IF(H76=0,0,IF(OPFOKLEGHEN!$H$11="geen droogtunnel",IF(OPFOKLEGHEN!$H$15="geen warmtewisselaar",Q76-(K76-R76),N76-(K76-R76)),IF(OPFOKLEGHEN!$H$12>=0,IF(OPFOKLEGHEN!$L$9="ja",IF(OPFOKLEGHEN!$J$18="ja",IF(OPFOKLEGHEN!$H$20="ja",Q76-(K76-N76)-(K76-S76),IF(OPFOKLEGHEN!$H$20="nee",(Q76-(K76-N76)-(K76-S76)),(O76-(K76-S76)))),IF(OPFOKLEGHEN!$J$18="nee",IF(OPFOKLEGHEN!$H$20="nee",1*Q76*$N$135-(K76-N76)-(K76-S76),(Q76-(K76-N76)-(K76-S76))*N$135))),IF(OPFOKLEGHEN!$L$9="nee",IF(OPFOKLEGHEN!$J$18="nee",IF(OPFOKLEGHEN!$H$20="nee",(N76*95%-(K76-Q76)/I$4-(K76-S76)),N76-(K76-Q76)/I$4-(K76-S76)),IF(OPFOKLEGHEN!$H$20="nee",IF(OPFOKLEGHEN!$J$18="ja",IF(OPFOKLEGHEN!$L$9="nee",N76-(K76-Q76)/I$4-(K76-S76))),N76-(K76-Q76)/I$4-(K76-S76)))))))) -> 4.20955137 | AM76: 9 | AN76: 61 | AO76: 695.5 | AP76: 627 | AQ76: 661.25
